Workbook

Sheet Инф-я
A2: Электронный формат расчета НВВ разработан экспертами ООО "ТОРИ-АУДИТ"
A4: тел. 8-4922-42-32-92
A6: Расчет НВВ на услуги по передаче электрической энергии, устанавливаемых с применением метода долгосрочной индексации необходимой валовой выручки
B9: Информация об организации
A11: № п/п | B11: Требуемая информация | C11: Данные об организации
A12: 1. | B12: Наименование организации в соответствии с уставом: | C12: Общество с ограниченной ответстваенностью "Энергетик"
B13: сокращенное название организации | C13: ООО "Энергетик"
B14: полное наименование организации | C14: Общество с ограниченной ответстваенностью "Энергетик"
A15: 2. | B15: Муниципальное образование | C15: г.Карабаново
A16: 3. | B16: Адрес организации:
B17: юридический адрес | C17: 601640, Владимирская обл., Александровский р-н, г.Карабаново, ул.Вокзальная, д.9
B18: фактический адрес (месторасположение) | C18: 601640, Владимирская обл., Александровский р-н, г.Карабаново, ул.Вокзальная, д.9
A19: 4. | B19: ИНН | C19: 3311023373
A20: 5. | B20: КПП | C20: 331101001
A21: 6. | B21: ФИО руководителя организации | C21: Окунев Василий Михайлович
B22: контактный телефон/факс | C22: 8(49244)5-23-60
B23: е-mail | C23: oao-energetik@yandex.ru
A24: 7. | B24: ФИО начальника ПЭО
B25: контактный телефон/факс
A26: 8. | B26: ФИО ответственного за электрохозяйство | C26: Ивановский Михаил Владимирович
B27: контактный телефон/факс | C27: 8(49244)5-26-01
A28: 9. | B28: ФИО главного бухгалтера | C28: Макарова Галина Юрьевна
B29: контактный телефон/факс | C29: 8(49244)5-10-79
A30: 10. | B30: ФИО непосредственного исполнителя | C30: Макарова Галина Юрьевна
B31: контактный телефон/факс | C31: 8(49244)5-10-79
B32: е-mail | C32: oao-energetik@yandex.ru
A33: 11. | B33: Банковские реквизиты:
B34: расчетный счет | C34: 40702810710000002518
B35: банк | C35: ВЛАДИМИРСКОЕ ОТДЕЛЕНИЕ №8611 ПАО СБЕРБАНК
B36: корреспондентский счет | C36: 30101810000000000602
B37: БИК | C37: 041708602
A39: Предложение о размере цен (тарифов), долгосрочных параметров регулирования (при применении метода доходности инвестированного капитала или метода долгосрочной необходимой валовой выручки), подлежит раскрытию на официальных сайтах регулируемых организаций или на ином официальном сайте в сети Интернет, определяемом Правительством Российской Федерации, и (или) в периодическом печатном издании, в котором публикуются нормативные правовые акты органа исполнительной власти в области регулирования тарифов, - за 10 дней до представления в регулирующий орган предложения об установлении цен (тарифов) и (или) их предельных уровней, содержащего такую информацию. ( п. 9 Постановления Правительства РФ от 21.01.2004 г. № 24 "Об утверждении стандартов раскрытия информации субъектами оптового и розничных рынков электрической энергии": )
A40: В случае если регулируемая организация не опубликовала предложение о размере цен (тарифов) и долгосрочных параметров регулирования , подлежащих регулированию или указанное опубликованное предложение не соответствует предложению, представляемому в орган регулирования Регулирующий орган отказывает в открытии дела об установлении цены (тарифа).
A98: 1 | B98: ООО «Радугагорэнерго»
A99: 2 | B99: МУП «Горэлектросеть» г. Муром
A100: 3 | B100: МУП «Александровэлектросеть»
A101: 4 | B101: ООО «СтройГарант»
A102: 5 | B102: ООО «Костеревские городские электрические сети»
A103: 6 | B103: ООО «Ковровэлектросетьремонт»
A104: 7 | B104: ООО «ПромРЭС»
A105: 8 | B105: ООО «ПромЭнерго» г. Судогда
A106: 9 | B106: ОАО «Энергетик» г. Карабаново
A107: 10 | B107: ООО «Электросистемы»
A108: 11 | B108: ООО «Ярцево-Энерго»
A109: 12 | B109: ПАО «Ставровский завод АТО»
A110: 13 | B110: ООО «ЭнергоАктив»

Sheet Соответствие критериям
A2: Критерии отнесения владельцев объектов электросетевого хозяйства к территориальным сетевым организациям (утв. постановлением Правительства РФ от 28 февраля 2015 г. N 184)
A4: ='Инф-я'!C13 -> ООО "Энергетик"
A6: № п./п. | B6: Наименование показателя | C6: Ед. измерения | D6: По данным организации | E6: По данным экспертов | F6: Представляемые обосновывающие материалы
A7: 1 | B7: 2 | C7: 3 | D7: 4 | E7: 5 | F7: 6
A8: 1. | B8: Владение на праве собственности и (или) на ином законном основании на срок не менее долгосрочного периода регулирования трансформаторными и иными подстанциями с установленными силовыми трансформаторами (автотрансформаторами), расположенными и используемыми для осуществления регулируемой деятельности в административных границах субъекта Российской Федерации, сумма номинальных мощностей которых составляет не менее 10 МВА. | C8: МВА | D8: 18723 | F8: Согласно пункта 17 Правил государственного регулирования (пересмотра, применения) цен (тарифов) в электроэнергетике, утвержденных Постановлением Правительства РФ от 29 декабря 2011 г. N 1178: К заявлениям, направленным в соответствии с пунктами 12, 14 и 16 настоящих Правил, организации, осуществляющие регулируемую деятельность, и органы исполнительной власти субъектов Российской Федерации в области государственного регулирования тарифов прилагают следующие обосновывающие материалы: . . . 13) документы, подтверждающие осуществление (фактическое или планируемое) регулируемой деятельности, - документы, подтверждающие право собственности или иные законные основания владения в отношении объектов, используемых для осуществления деятельности, и (или) договоры на осуществление регулируемой деятельности (при реорганизации юридического лица - передаточные акты); . . . 15) справка о наличии официального сайта в сети Интернет и выделенного абонентского номера для обращений потребителей услуг по передаче электрической энергии и (или) технологическому присоединению, подписанная руководителем или иным уполномоченным лицом заявителя и заверенная печатью заявителя; 16) утвержденные руководителем или иным уполномоченным лицом заявителя и заверенные печатью заявителя (при наличии печати) схемы соединений электрической сети заявителя с обозначением трансформаторных и иных подстанций, а также линий электропередачи, указанных в пунктах 1 и 2 критериев отнесения владельцев объектов электросетевого хозяйства к территориальным сетевым организациям, утвержденных постановлением Правительства Российской Федерации от 28 февраля 2015 г. N 184 "Об отнесении владельцев объектов электросетевого хозяйства к территориальным сетевым организациям" (далее - критерии отнесения владельцев объектов электросетевого хозяйства к территориальным сетевым организациям).
A9: 2. | B9: Владение на праве собственности и (или) на ином законном основании на срок не менее долгосрочного периода регулирования линиями электропередачи (воздушными и (или) кабельными), расположенными и используемыми для осуществления регулируемой деятельности в административных границах субъекта Российской Федерации, непосредственно соединенными с трансформаторными и иными подстанциями, указанными в пункте 1 настоящих критериев, сумма протяженностей которых по трассе составляет не менее 15 км, не менее 2 из следующих проектных номинальных классов напряжения: | C9: км | D9: =D10+D11+D12+D13 -> 209.32 | E9: =E10+E11+E12+E13 -> 0
B10: 110 кВ и выше; | C10: км
B11: 35 кВ; | C11: км
B12: 1 - 20 кВ; | C12: км | D12: 60.4
B13: ниже 1 кВ - трехфазных участков линий электропередачи. | C13: км | D13: 148.92
A14: 3. | B14: 3. Отсутствие за 3 предшествующих расчетных периода регулирования 3 фактов применения органами исполнительной власти субъектов Российской Федерации в области государственного регулирования тарифов понижающих коэффициентов, позволяющих обеспечить соответствие уровня тарифов, установленных для владельца объектов электросетевого хозяйства, уровню надежности и качества поставляемых товаров и оказываемых услуг, а также корректировки цен (тарифов), установленных на долгосрочный период регулирования, в случае представления владельцем объектов электросетевого хозяйства, для которого такие цены (тарифы) установлены, недостоверных отчетных данных, используемых при расчете фактических значений показателей надежности и качества поставляемых товаров и оказываемых услуг, или непредставления таких данных. | C14: х | D14: нет
A15: 4. | B15: 4. Наличие выделенного абонентского номера для обращений потребителей услуг по передаче электрической энергии и (или) технологическому присоединению. | C15: х | D15: есть 8-800-450-01-50
A16: 5. | B16: 5. Наличие официального сайта в информационно-телекоммуникационной сети "Интернет". | C16: х | D16: есть oao-energetik.ru
A17: 6. | B17: 6. Отсутствие во владении и (или) пользовании объектов электросетевого хозяйства, расположенных в административных границах субъекта Российской Федерации и используемых для осуществления регулируемой деятельности в указанных границах, принадлежащих на праве собственности или ином законном основании иному лицу, владеющему объектом по производству электрической энергии (мощности), который расположен в административных границах соответствующего субъекта Российской Федерации и с использованием которого осуществляется производство электрической энергии и мощности с целью ее продажи на оптовом рынке электрической энергии (мощности) и (или) розничных рынках электрической энергии. | C17: х | D17: нет
B19: Руководитель организации | D19: ='Инф-я'!C21 -> Окунев Василий Михайлович

Sheet Баланс энергии
A1: Заполняется в тыс. кВт.ч. ! | AF1: тыс. кВт.ч.
A3: Баланс электрической энергии по сетям ВН, СН1, СН2, и НН | H3: ='Инф-я'!C13 -> ООО "Энергетик"
A5: № п.п. | B5: Показатели | C5: Принято регулирующим органом на 2018 год | H5: Факт за 2018 год | M5: Принято регулирующим органом на 2019 год | R5: По данным организации на 2020 год | W5: По данным организации на 1 полугодие 2020 года | AB5: По данным организации на 2 полугодие 2020 года | AG5: По данным экспертов на 2020 год | AL5: По данным экспертов на 1 полугодие 2020 года | AQ5: По данным экспертов на 2 полугодие 2020 года
C6: Всего | D6: ВН | E6: СН1 | F6: СН2 | G6: НН | H6: Всего | I6: ВН | J6: СН1 | K6: СН2 | L6: НН | M6: Всего | N6: ВН | O6: СН1 | P6: СН2 | Q6: НН | R6: Всего | S6: ВН | T6: СН1 | U6: СН2 | V6: НН | W6: Всего | X6: ВН | Y6: СН1 | Z6: СН2 | AA6: НН | AB6: Всего | AC6: ВН | AD6: СН1 | AE6: СН2 | AF6: НН | AG6: Всего | AH6: ВН | AI6: СН1 | AJ6: СН2 | AK6: НН | AL6: Всего | AM6: ВН | AN6: СН1 | AO6: СН2 | AP6: НН | AQ6: Всего | AR6: ВН | AS6: СН1 | AT6: СН2 | AU6: НН
A7: 1 | B7: 2 | C7: 3 | D7: 4 | E7: 5 | F7: 6 | G7: 7 | H7: 18 | I7: 19 | J7: 20 | K7: 21 | L7: 22 | M7: 33 | N7: 34 | O7: 35 | P7: 36 | Q7: 37 | R7: 48 | S7: 49 | T7: 50 | U7: 51 | V7: 52 | W7: 53 | X7: 54 | Y7: 55 | Z7: 56 | AA7: 57 | AB7: 58 | AC7: 59 | AD7: 60 | AE7: 61 | AF7: 62 | AG7: 63 | AH7: 64 | AI7: 65 | AJ7: 66 | AK7: 67 | AL7: 53 | AM7: 54 | AN7: 55 | AO7: 56 | AP7: 57 | AQ7: 58 | AR7: 59 | AS7: 60 | AT7: 61 | AU7: 62
A8: 1. | B8: Поступление эл.энергии в сеть , ВСЕГО | C8: =C18+C20+C21 -> 26146.6 | D8: =D14+D15+D16+D17 -> 26146.6 | E8: =E9+E14+E15+E16+E17 -> 0 | F8: =F9+F14+F15+F16+F17 -> 26146.6 | G8: =G9+G14+G15+G16+G17 -> 16645.63828 | H8: =H18+H20+H21 -> 24932.312 | I8: =I14+I15+I16+I17 -> 24932.312 | J8: =J9+J14+J15+J16+J17 -> 0 | K8: =K9+K14+K15+K16+K17 -> 24932.312 | L8: =L9+L14+L15+L16+L17 -> 17159.45412 | M8: =M18+M20+M21 -> 26146.6 | N8: =N14+N15+N16+N17 -> 26146.6 | O8: =O9+O14+O15+O16+O17 -> 0 | P8: =P9+P14+P15+P16+P17 -> 26146.6 | Q8: =Q9+Q14+Q15+Q16+Q17 -> 16636.76211 | R8: =R18+R20+R21 -> 24932.312 | S8: =S14+S15+S16+S17 -> 24932.312 | T8: =T9+T14+T15+T16+T17 -> 0 | U8: =U9+U14+U15+U16+U17 -> 24932.312 | V8: =V9+V14+V15+V16+V17 -> 17159.45412 | W8: =W18+W20+W21 -> 12667.37426 | X8: =X14+X15+X16+X17 -> 12667.37426 | Y8: =Y9+Y14+Y15+Y16+Y17 -> 0 | Z8: =Z9+Z14+Z15+Z16+Z17 -> 12667.37426 | AA8: =AA9+AA14+AA15+AA16+AA17 -> 8736.764679 | AB8: =AB18+AB20+AB21 -> 12264.93774 | AC8: =AC14+AC15+AC16+AC17 -> 12264.93774 | AD8: =AD9+AD14+AD15+AD16+AD17 -> 0 | AE8: =AE9+AE14+AE15+AE16+AE17 -> 12264.93774 | AF8: =AF9+AF14+AF15+AF16+AF17 -> 8422.68944 | AG8: =AG18+AG20+AG21 -> 0 | AH8: =AH14+AH15+AH16+AH17 -> 0 | AI8: =AI9+AI14+AI15+AI16+AI17 -> 0 | AJ8: =AJ9+AJ14+AJ15+AJ16+AJ17 -> 0 | AK8: =AK9+AK14+AK15+AK16+AK17 -> 0 | AL8: =AL18+AL20+AL21 -> 0 | AM8: =AM14+AM15+AM16+AM17 -> 0 | AN8: =AN9+AN14+AN15+AN16+AN17 -> 0 | AO8: =AO9+AO14+AO15+AO16+AO17 -> 0 | AP8: =AP9+AP14+AP15+AP16+AP17 -> 0 | AQ8: =AQ18+AQ20+AQ21 -> 0 | AR8: =AR14+AR15+AR16+AR17 -> 0 | AS8: =AS9+AS14+AS15+AS16+AS17 -> 0 | AT8: =AT9+AT14+AT15+AT16+AT17 -> 0 | AU8: =AU9+AU14+AU15+AU16+AU17 -> 0
A9: 1.1. | B9: из смежной сети, всего | C9: х | D9: х | E9: =E11 -> 0 | F9: =F11+F12 -> 26146.6 | G9: =G11+G12+G13 -> 16645.63828 | H9: х | I9: х | J9: =J11 -> 0 | K9: =K11+K12 -> 24932.312 | L9: =L11+L12+L13 -> 17159.45412 | M9: х | N9: х | O9: =O11 -> 0 | P9: =P11+P12 -> 26146.6 | Q9: =Q11+Q12+Q13 -> 16636.76211 | R9: х | S9: х | T9: =T11 -> 0 | U9: =U11+U12 -> 24932.312 | V9: =V11+V12+V13 -> 17159.45412 | W9: х | X9: х | Y9: =Y11 -> 0 | Z9: =Z11+Z12 -> 12667.37426 | AA9: =AA11+AA12+AA13 -> 8736.764679 | AB9: х | AC9: х | AD9: =AD11 -> 0 | AE9: =AE11+AE12 -> 12264.93774 | AF9: =AF11+AF12+AF13 -> 8422.68944 | AG9: х | AH9: х | AI9: =AI11 -> 0 | AJ9: =AJ11+AJ12 -> 0 | AK9: =AK11+AK12+AK13 -> 0 | AL9: х | AM9: х | AN9: =AN11 -> 0 | AO9: =AO11+AO12 -> 0 | AP9: =AP11+AP12+AP13 -> 0 | AQ9: х | AR9: х | AS9: =AS11 -> 0 | AT9: =AT11+AT12 -> 0 | AU9: =AU11+AU12+AU13 -> 0
B10: в том числе из сети | C10: х | D10: х | E10: х | F10: х | G10: х | H10: х | I10: х | J10: х | K10: х | L10: х | M10: х | N10: х | O10: х | P10: х | Q10: х | R10: х | S10: х | T10: х | U10: х | V10: х | W10: х | X10: х | Y10: х | Z10: х | AA10: х | AB10: х | AC10: х | AD10: х | AE10: х | AF10: х | AG10: х | AH10: х | AI10: х | AJ10: х | AK10: х | AL10: х | AM10: х | AN10: х | AO10: х | AP10: х | AQ10: х | AR10: х | AS10: х | AT10: х | AU10: х
A11: 1.1.1. | B11: ВН | C11: х | D11: х | F11: =D8-D18-D20-D21-E11-G11 -> 26146.6 | H11: х | I11: х | K11: =I8-I18-I20-I21-J11-L11 -> 24932.312 | M11: х | N11: х | P11: =N8-N18-N20-N21-O11-Q11 -> 26146.6 | R11: х | S11: х | U11: =S8-S18-S20-S21-T11-V11 -> 24932.312 | W11: х | X11: х | Z11: =X8-X18-X20-X21-Y11-AA11 -> 12667.37426 | AB11: х | AC11: х | AE11: =AC8-AC18-AC20-AC21-AD11-AF11 -> 12264.93774 | AG11: х | AH11: х | AJ11: =AH8-AH18-AH20-AH21-AI11-AK11 -> 0 | AL11: х | AM11: х | AO11: =AM8-AM18-AM20-AM21-AN11-AP11 -> 0 | AQ11: х | AR11: х | AT11: =AR8-AR18-AR20-AR21-AS11-AU11 -> 0
A12: 1.1.2. | B12: СН1 | C12: х | D12: х | E12: х | F12: =E8-E18-E20-E21-G12 -> 0 | H12: х | I12: х | J12: х | K12: =J8-J18-J20-J21-L12 -> 0 | M12: х | N12: х | O12: х | P12: =O8-O18-O20-O21-Q12 -> 0 | R12: х | S12: х | T12: х | U12: =T8-T18-T20-T21-V12 -> 0 | W12: х | X12: х | Y12: х | Z12: =Y8-Y18-Y20-Y21-AA12 -> 0 | AB12: х | AC12: х | AD12: х | AE12: =AD8-AD18-AD20-AD21-AF12 -> 0 | AG12: х | AH12: х | AI12: х | AJ12: =AI8-AI18-AI20-AI21-AK12 -> 0 | AL12: х | AM12: х | AN12: х | AO12: =AN8-AN18-AN20-AN21-AP12 -> 0 | AQ12: х | AR12: х | AS12: х | AT12: =AS8-AS18-AS20-AS21-AU12 -> 0
A13: 1.1.3. | B13: СН2 | C13: х | D13: х | E13: х | F13: х | G13: =F8-F18-F20-F21 -> 16645.63828 | H13: х | I13: х | J13: х | K13: х | L13: =K8-K18-K20-K21 -> 17159.45412 | M13: х | N13: х | O13: х | P13: х | Q13: =P8-P18-P20-P21 -> 16636.76211 | R13: х | S13: х | T13: х | U13: х | V13: =U8-U18-U20-U21 -> 17159.45412 | W13: х | X13: х | Y13: х | Z13: х | AA13: =Z8-Z18-Z20-Z21 -> 8736.764679 | AB13: х | AC13: х | AD13: х | AE13: х | AF13: =AE8-AE18-AE20-AE21 -> 8422.68944 | AG13: х | AH13: х | AI13: х | AJ13: х | AK13: =AJ8-AJ18-AJ20-AJ21 -> 0 | AL13: х | AM13: х | AN13: х | AO13: х | AP13: =AO8-AO18-AO20-AO21 -> 0 | AQ13: х | AR13: х | AS13: х | AT13: х | AU13: =AT8-AT18-AT20-AT21 -> 0
A14: 1.2. | B14: от электростанций | C14: =SUM(D14:G14) -> 0 | H14: =SUM(I14:L14) -> 0 | M14: =SUM(N14:Q14) -> 0 | R14: =SUM(S14:V14) -> 0 | W14: =SUM(X14:AA14) -> 0 | AB14: =SUM(AC14:AF14) -> 0 | AG14: =SUM(AH14:AK14) -> 0 | AL14: =SUM(AM14:AP14) -> 0 | AQ14: =SUM(AR14:AU14) -> 0
A15: 1.3. | B15: от ОАО "ФСК ЕЭС" | C15: =SUM(D15:G15) -> 0 | H15: =SUM(I15:L15) -> 0 | M15: =SUM(N15:Q15) -> 0 | R15: =SUM(S15:V15) -> 0 | W15: =SUM(X15:AA15) -> 0 | AB15: =SUM(AC15:AF15) -> 0 | AG15: =SUM(AH15:AK15) -> 0 | AL15: =SUM(AM15:AP15) -> 0 | AQ15: =SUM(AR15:AU15) -> 0
A16: 1.4. | B16: от филиала "Владимирэнерго" ОАО "МРСК Центра и Приволжья" | C16: =SUM(D16:G16) -> 26146.6 | D16: 26146.6 | H16: =SUM(I16:L16) -> 24932.312 | I16: 24932.312 | M16: =SUM(N16:Q16) -> 26146.6 | N16: 26146.6 | R16: =SUM(S16:V16) -> 24932.312 | S16: 24932.312 | T16: 0 | U16: 0 | V16: 0 | W16: =SUM(X16:AA16) -> 12667.37426 | X16: 12667.37426 | Y16: 0 | Z16: 0 | AA16: 0 | AB16: =SUM(AC16:AF16) -> 12264.93774 | AC16: 12264.93774 | AG16: =SUM(AH16:AK16) -> 0 | AL16: =SUM(AM16:AP16) -> 0 | AQ16: =SUM(AR16:AU16) -> 0
A17: 1.5. | B17: от других сетевых организаций | C17: =SUM(D17:G17) -> 0 | H17: =SUM(I17:L17) -> 0 | M17: =SUM(N17:Q17) -> 0 | R17: =SUM(S17:V17) -> 0 | S17: 0 | T17: 0 | U17: 0 | V17: 0 | W17: =SUM(X17:AA17) -> 0 | X17: 0 | Y17: 0 | Z17: 0 | AA17: 0 | AB17: =SUM(AC17:AF17) -> 0 | AG17: =SUM(AH17:AK17) -> 0 | AL17: =SUM(AM17:AP17) -> 0 | AQ17: =SUM(AR17:AU17) -> 0
A18: 2. | B18: Потери электроэнергии в сети | C18: =SUM(D18:G18) -> 3670.49805 | D18: =D8*D19/100 -> 0 | E18: =E8*E19/100 -> 0 | F18: =F8*F19/100 -> 1614.761723 | G18: =G8*G19/100 -> 2055.736327 | H18: =SUM(I18:L18) -> 2857.547593 | I18: =I8*I19/100 -> 0 | J18: =J8*J19/100 -> 0 | K18: =K8*K19/100 -> 1540.816882 | L18: =L8*L19/100 -> 1316.730712 | M18: =SUM(N18:Q18) -> 3670.5 | N18: =N8*N19/100 -> 0 | O18: =O8*O19/100 -> 0 | P18: =P8*P19/100 -> 1615.85988 | Q18: =Q8*Q19/100 -> 2054.64012 | R18: =SUM(S18:V18) -> 3660.009465 | S18: =S8*S19/100 -> 0 | T18: =T8*T19/100 -> 0 | U18: =U8*U19/100 -> 1540.816882 | V18: =V8*V19/100 -> 2119.192584 | W18: =SUM(X18:AA18) -> 1861.834167 | X18: =X8*X19/100 -> 0 | Y18: =Y8*Y19/100 -> 0 | Z18: =Z8*Z19/100 -> 782.8437291 | AA18: =AA8*AA19/100 -> 1078.990438 | AB18: =SUM(AC18:AF18) -> 1798.175298 | AC18: =AC8*AC19/100 -> 0 | AD18: =AD8*AD19/100 -> 0 | AE18: =AE8*AE19/100 -> 757.9731525 | AF18: =AF8*AF19/100 -> 1040.202146 | AG18: =SUM(AH18:AK18) -> 0 | AH18: =AH8*AH19/100 -> 0 | AI18: =AI8*AI19/100 -> 0 | AJ18: =AJ8*AJ19/100 -> 0 | AK18: =AK8*AK19/100 -> 0 | AL18: =SUM(AM18:AP18) -> 0 | AM18: =AM8*AM19/100 -> 0 | AN18: =AN8*AN19/100 -> 0 | AO18: =AO8*AO19/100 -> 0 | AP18: =AP8*AP19/100 -> 0 | AQ18: =SUM(AR18:AU18) -> 0 | AR18: =AR8*AR19/100 -> 0 | AS18: =AS8*AS19/100 -> 0 | AT18: =AT8*AT19/100 -> 0 | AU18: =AU8*AU19/100 -> 0
A19: 2.1. | B19: то же в % (п.2./п.1.) | C19: =IF(C8=0,0,C18/C8*100) -> 14.03814664 | F19: 6.1758 | G19: 12.35 | H19: =IF(H8=0,0,H18/H8*100) -> 11.46122186 | K19: 6.18 | L19: 7.6735 | M19: =IF(M8=0,0,M18/M8*100) -> 14.0381541 | P19: 6.18 | Q19: 12.35 | R19: =IF(R8=0,0,R18/R8*100) -> 14.67978367 | U19: 6.18 | V19: 12.35 | W19: =IF(W8=0,0,W18/W8*100) -> 14.69786973 | Z19: 6.18 | AA19: 12.35 | AB19: =IF(AB8=0,0,AB18/AB8*100) -> 14.66110417 | AE19: 6.18 | AF19: 12.35 | AG19: =IF(AG8=0,0,AG18/AG8*100) -> 0 | AL19: =IF(AL8=0,0,AL18/AL8*100) -> 0 | AQ19: =IF(AQ8=0,0,AQ18/AQ8*100) -> 0
A20: 3. | B20: Расход электроэнергии на производственные и хознужды | C20: =SUM(D20:G20) -> 0 | H20: =SUM(I20:L20) -> 0 | M20: =SUM(N20:Q20) -> 0 | R20: =SUM(S20:V20) -> 0 | W20: =SUM(X20:AA20) -> 0 | AB20: =SUM(AC20:AF20) -> 0 | AG20: =SUM(AH20:AK20) -> 0 | AL20: =SUM(AM20:AP20) -> 0 | AQ20: =SUM(AR20:AU20) -> 0
A21: 4. | B21: Полезный отпуск из сети | C21: =SUM(D21:G21) -> 22476.10195 | D21: =D22+D23+D24 -> 0 | E21: =E22+E23+E24 -> 0 | F21: =F22+F23+F24 -> 7886.2 | G21: =G8-G18-G20 -> 14589.90195 | H21: =SUM(I21:L21) -> 22074.76441 | I21: =I22+I23+I24 -> 0 | J21: =J22+J23+J24 -> 0 | K21: =K22+K23+K24 -> 6232.041 | L21: =L8-L18-L20 -> 15842.72341 | M21: =SUM(N21:Q21) -> 22476.1 | N21: =N22+N23+N24 -> 0 | O21: =O22+O23+O24 -> 0 | P21: =P22+P23+P24 -> 7893.978015 | Q21: =Q8-Q18-Q20 -> 14582.12199 | R21: =SUM(S21:V21) -> 21272.30253 | S21: =S22+S23+S24 -> 0 | T21: =T22+T23+T24 -> 0 | U21: =U22+U23+U24 -> 6232.041 | V21: =V8-V18-V20 -> 15040.26153 | W21: =SUM(X21:AA21) -> 10805.54009 | X21: =X22+X23+X24 -> 0 | Y21: =Y22+Y23+Y24 -> 0 | Z21: =Z22+Z23+Z24 -> 3147.76585 | AA21: =AA8-AA18-AA20 -> 7657.774241 | AB21: =SUM(AC21:AF21) -> 10466.76244 | AC21: =AC22+AC23+AC24 -> 0 | AD21: =AD22+AD23+AD24 -> 0 | AE21: =AE22+AE23+AE24 -> 3084.27515 | AF21: =AF8-AF18-AF20 -> 7382.487294 | AG21: =SUM(AH21:AK21) -> 0 | AH21: =AH22+AH23+AH24 -> 0 | AI21: =AI22+AI23+AI24 -> 0 | AJ21: =AJ22+AJ23+AJ24 -> 0 | AK21: =AK8-AK18-AK20 -> 0 | AL21: =SUM(AM21:AP21) -> 0 | AM21: =AM22+AM23+AM24 -> 0 | AN21: =AN22+AN23+AN24 -> 0 | AO21: =AO22+AO23+AO24 -> 0 | AP21: =AP8-AP18-AP20 -> 0 | AQ21: =SUM(AR21:AU21) -> 0 | AR21: =AR22+AR23+AR24 -> 0 | AS21: =AS22+AS23+AS24 -> 0 | AT21: =AT22+AT23+AT24 -> 0 | AU21: =AU8-AU18-AU20 -> 0
A22: 4.1. | B22: потребителям, присоединенным к сети | C22: =SUM(D22:G22) -> 22476.1 | F22: 7886.2 | G22: 14589.9 | H22: =SUM(I22:L22) -> 22074.767 | K22: 6232.041 | L22: 15842.726 | M22: =SUM(N22:Q22) -> 22476.1 | P22: 7893.978015 | Q22: 14582.12199 | R22: =SUM(S22:V22) -> 22075.112 | S22: 0 | T22: 0 | U22: 6232.041 | V22: 15843.071 | W22: =SUM(X22:AA22) -> 11150.00426 | Z22: 3147.76585 | AA22: 8002.238408 | AB22: =SUM(AC22:AF22) -> 10925.10774 | AE22: 3084.27515 | AF22: 7840.832592 | AG22: =SUM(AH22:AK22) -> 0 | AL22: =SUM(AM22:AP22) -> 0 | AQ22: =SUM(AR22:AU22) -> 0
A23: 4.2. | B23: переток в филиал "Владимирэнерго" ОАО "МРСК Центра и Приволжья" | C23: =SUM(D23:G23) -> 0 | H23: =SUM(I23:L23) -> 0 | M23: =SUM(N23:Q23) -> 0 | R23: =SUM(S23:V23) -> 0 | S23: 0 | T23: 0 | U23: 0 | V23: 0 | W23: =SUM(X23:AA23) -> 0 | AB23: =SUM(AC23:AF23) -> 0 | AG23: =SUM(AH23:AK23) -> 0 | AL23: =SUM(AM23:AP23) -> 0 | AQ23: =SUM(AR23:AU23) -> 0
A24: 4.3. | B24: переток в другие сетевые организации | C24: =SUM(D24:G24) -> 0 | H24: =SUM(I24:L24) -> 0 | M24: =SUM(N24:Q24) -> 0 | R24: =SUM(S24:V24) -> 0 | S24: 0 | T24: 0 | U24: 0 | V24: 0 | W24: =SUM(X24:AA24) -> 0 | AB24: =SUM(AC24:AF24) -> 0 | AG24: =SUM(AH24:AK24) -> 0 | AL24: =SUM(AM24:AP24) -> 0 | AQ24: =SUM(AR24:AU24) -> 0
B25: Проверка | D25: =D8-D18-D20-D22-D23-D24-E11-F11-G11 -> 0 | E25: =E8-E18-E20-E22-E23-E24-F12-G12 -> 0 | F25: =F8-F18-F20-F22-F23-F24-G13 -> 0 | G25: =G8-G18-G20-G22-G23-G24 -> 0.001949965799 | I25: =I8-I18-I20-I22-I23-I24-J11-K11-L11 -> 0 | J25: =J8-J18-J20-J22-J23-J24-K12-L12 -> 0 | K25: =K8-K18-K20-K22-K23-K24-L13 -> 0 | L25: =L8-L18-L20-L22-L23-L24 -> -0.002593375424 | N25: =N8-N18-N20-N22-N23-N24-O11-P11-Q11 -> 0 | O25: =O8-O18-O20-O22-O23-O24-P12-Q12 -> 0 | P25: =P8-P18-P20-P22-P23-P24-Q13 -> 0 | Q25: =Q8-Q18-Q20-Q22-Q23-Q24 -> 0 | S25: =S8-S18-S20-S22-S23-S24-T11-U11-V11 -> 0 | T25: =T8-T18-T20-T22-T23-T24-U12-V12 -> 0 | U25: =U8-U18-U20-U22-U23-U24-V13 -> 0 | V25: =V8-V18-V20-V22-V23-V24 -> -802.8094652 | X25: =X8-X18-X20-X22-X23-X24-Y11-Z11-AA11 -> 0 | Y25: =Y8-Y18-Y20-Y22-Y23-Y24-Z12-AA12 -> 0 | Z25: =Z8-Z18-Z20-Z22-Z23-Z24-AA13 -> 0 | AA25: =AA8-AA18-AA20-AA22-AA23-AA24 -> -344.4641669 | AC25: =AC8-AC18-AC20-AC22-AC23-AC24-AD11-AE11-AF11 -> 0 | AD25: =AD8-AD18-AD20-AD22-AD23-AD24-AE12-AF12 -> 0 | AE25: =AE8-AE18-AE20-AE22-AE23-AE24-AF13 -> 0 | AF25: =AF8-AF18-AF20-AF22-AF23-AF24 -> -458.3452983 | AH25: =AH8-AH18-AH20-AH22-AH23-AH24-AI11-AJ11-AK11 -> 0 | AI25: =AI8-AI18-AI20-AI22-AI23-AI24-AJ12-AK12 -> 0 | AJ25: =AJ8-AJ18-AJ20-AJ22-AJ23-AJ24-AK13 -> 0 | AK25: =AK8-AK18-AK20-AK22-AK23-AK24 -> 0 | AM25: =AM8-AM18-AM20-AM22-AM23-AM24-AN11-AO11-AP11 -> 0 | AN25: =AN8-AN18-AN20-AN22-AN23-AN24-AO12-AP12 -> 0 | AO25: =AO8-AO18-AO20-AO22-AO23-AO24-AP13 -> 0 | AP25: =AP8-AP18-AP20-AP22-AP23-AP24 -> 0 | AR25: =AR8-AR18-AR20-AR22-AR23-AR24-AS11-AT11-AU11 -> 0 | AS25: =AS8-AS18-AS20-AS22-AS23-AS24-AT12-AU12 -> 0 | AT25: =AT8-AT18-AT20-AT22-AT23-AT24-AU13 -> 0 | AU25: =AU8-AU18-AU20-AU22-AU23-AU24 -> 0

Sheet Баланс мощности
B2: Электрическая мощность по диапазонам напряжения
B4: ='Инф-я'!C13 -> ООО "Энергетик"
G6: МВт
A7: № п.п. | B7: Показатели | C7: По данным организации на 2020 год | H7: По данным экспертов на 2020 год
C8: Всего | D8: ВН | E8: СН1 | F8: СН2 | G8: НН | H8: Всего | I8: ВН | J8: СН1 | K8: СН2 | L8: НН
A9: 1 | B9: 2 | C9: 3 | D9: 4 | E9: 5 | F9: 6 | G9: 7 | H9: 8 | I9: 9 | J9: 10 | K9: 11 | L9: 12
A10: 1. | B10: Поступление мощности в сеть , ВСЕГО | C10: =C20+C22+C23 -> 4.47 | D10: =D16+D17+D18+D19 -> 4.47 | E10: =E11+E16+E17+E18+E19 -> 0 | F10: =F11+F16+F17+F18+F19 -> 4.47 | G10: =G11+G16+G17+G18+G19 -> 3.421554 | H10: =H20+H22+H23 -> 0 | I10: =I16+I17+I18+I19 -> 0 | J10: =J11+J16+J17+J18+J19 -> 0 | K10: =K11+K16+K17+K18+K19 -> 0 | L10: =L11+L16+L17+L18+L19 -> 0
A11: 1.1. | B11: из смежной сети, всего | C11: х | D11: х | E11: =E13 -> 0 | F11: =F13+F14 -> 4.47 | G11: =G13+G14+G15 -> 3.421554 | H11: х | I11: х | J11: =J13 -> 0 | K11: =K13+K14 -> 0 | L11: =L13+L14+L15 -> 0
B12: в том числе из сети | C12: х | D12: х | E12: х | F12: х | G12: х | H12: х | I12: х | J12: х | K12: х | L12: х
A13: 1.1.1. | B13: ВН | C13: х | D13: х | F13: =D10-D20-D22-D23-G13-E13 -> 4.47 | H13: х | I13: х | K13: =I10-I20-I22-I23-L13-J13 -> 0
A14: 1.1.2. | B14: СН1 | C14: х | D14: х | E14: х | F14: =E10-E20-E22-E23-G14 -> 0 | H14: х | I14: х | J14: х | K14: =J10-J20-J22-J23-L14 -> 0
A15: 1.1.3. | B15: СН2 | C15: х | D15: х | E15: х | F15: х | G15: =F10-F20-F22-F23 -> 3.421554 | H15: х | I15: х | J15: х | K15: х | L15: =K10-K20-K22-K23 -> 0
A16: 1.2. | B16: от электростанций | C16: =SUM(D16:G16) -> 0 | H16: =SUM(I16:L16) -> 0
A17: 1.3. | B17: от ОАО "ФСК ЕЭС" | C17: =SUM(D17:G17) -> 0 | H17: =SUM(I17:L17) -> 0
A18: 1.4. | B18: от филиала "Владимирэнерго" ОАО "МРСК Центра и Приволжья" | C18: =SUM(D18:G18) -> 4.47 | D18: 4.47 | H18: =SUM(I18:L18) -> 0
A19: 1.5. | B19: от других сетевых организаций | C19: =SUM(D19:G19) -> 0 | H19: =SUM(I19:L19) -> 0
A20: 2. | B20: Потери мощности в сети | C20: =SUM(D20:G20) -> 0.698807919 | D20: =D10*D21/100 -> 0 | E20: =E10*E21/100 -> 0 | F20: =F10*F21/100 -> 0.276246 | G20: =G10*G21/100 -> 0.422561919 | H20: =SUM(I20:L20) -> 0 | I20: =I10*I21/100 -> 0 | J20: =J10*J21/100 -> 0 | K20: =K10*K21/100 -> 0 | L20: =L10*L21/100 -> 0
A21: 2.1. | B21: то же в % (п.2./п.1.) | C21: =IF(C10=0,0,C20/C10*100) -> 15.63328678 | D21: ='Баланс энергии'!S19 -> 0 | E21: ='Баланс энергии'!T19 -> 0 | F21: ='Баланс энергии'!U19 -> 6.18 | G21: 12.35 | H21: =IF(H10=0,0,H20/H10*100) -> 0 | I21: ='Баланс энергии'!AH19 -> 0 | J21: ='Баланс энергии'!AI19 -> 0 | K21: ='Баланс энергии'!AJ19 -> 0
A22: 3. | B22: Расход электроэнергии на производственные и хознужды | C22: =SUM(D22:G22) -> 0 | H22: =SUM(I22:L22) -> 0
A23: 4. | B23: Полезный отпуск из сети | C23: =SUM(D23:G23) -> 3.771192081 | D23: =D24+D25+D26 -> 0 | E23: =E24+E25+E26 -> 0 | F23: =F24+F25+F26 -> 0.7722 | G23: =G10-G20-G22 -> 2.998992081 | H23: =SUM(I23:L23) -> 0 | I23: =I24+I25+I26 -> 0 | J23: =J24+J25+J26 -> 0 | K23: =K24+K25+K26 -> 0 | L23: =L10-L20-L22 -> 0
A24: 4.1. | B24: потребителям, присоединенным к сети | C24: =SUM(D24:G24) -> 3.7712 | F24: 0.7722 | G24: 2.999 | H24: =SUM(I24:L24) -> 0
A25: 4.2. | B25: переток в филиал "Владимирэнерго" ОАО "МРСК Центра и Приволжья" | C25: =SUM(D25:G25) -> 0 | H25: =SUM(I25:L25) -> 0
A26: 4.3. | B26: переток в другие сетевые организации | C26: =SUM(D26:G26) -> 0 | H26: =SUM(I26:L26) -> 0
B27: Проверка | D27: =D10-D20-D22-D24-D25-D26-E13-F13-G13 -> 0 | E27: =E10-E20-E22-E24-E25-E26-F14-G14 -> 0 | F27: =F10-F20-F22-F24-F25-F26-G15 -> 0 | G27: =G10-G20-G22-G24-G25-G26 -> -7.919e-06 | I27: =I10-I20-I22-I24-I25-I26-J13-K13-L13 -> 0 | J27: =J10-J20-J22-J24-J25-J26-K14-L14 -> 0 | K27: =K10-K20-K22-K24-K25-K26-L15 -> 0 | L27: =L10-L20-L22-L24-L25-L26 -> 0

Sheet УЕ ВЛЭП 2017-2024
A3: Объем воздушных линий электропередач (ВЛЭП) и кабельных линий электропередач (КЛЭП) в условных единицах в зависимости от протяженности, напряжения, конструктивного использования и материала опор в период с 2017 по 2024 годы
B4: ='Инф-я'!C13 -> ООО "Энергетик"
A6: ЛЭП | B6: Напряжение, кВ | C6: Количество цепей на опоре | D6: Материал опор | E6: Наименование | F6: Количество условных единиц (у) на 100 км трассы ЛЭП | G6: Протяженность | H6: Объем условных единиц | I6: Протяженность | J6: Объем условных единиц | K6: Протяженность | L6: Объем условных единиц | M6: Количество единиц измерения | N6: Объем условных единиц | O6: Протяженность | P6: Объем условных единиц | Q6: Протяженность | R6: Объем условных единиц | S6: Протяженность | T6: Объем условных единиц | U6: Протяженность | V6: Объем условных единиц | W6: Протяженность | X6: Объем условных единиц | Y6: Протяженность | Z6: Объем условных единиц | AA6: Протяженность | AB6: Объем условных единиц | AC6: Протяженность | AD6: Объем условных единиц | AE6: Протяженность | AF6: Объем условных единиц | AG6: Протяженность | AH6: Объем условных единиц | AI6: Протяженность | AJ6: Объем условных единиц
F7: у/100км | G7: км | H7: у | I7: ед.изм. | J7: у | K7: ед.изм. | L7: у | M7: ед.изм. | N7: у | O7: км | P7: у | Q7: км | R7: у | S7: км | T7: у | U7: км | V7: у | W7: км | X7: у | Y7: км | Z7: у | AA7: км | AB7: у | AC7: км | AD7: у | AE7: км | AF7: у | AG7: км | AH7: у | AI7: км | AJ7: у
G8: 2017 год факт | I8: 2018 год утверждено | K8: 2018 год факт по данным организации | M8: 2018 год факт по данным экспертов | O8: 2019 год утверждено | Q8: 2020 год план по данным организации | S8: 2020 год по данным экспертов | U8: 2021 год план по данным организации | W8: 2021 год по данным экспертов | Y8: 2022 год план по данным организации | AA8: 2022 год по данным экспертов | AC8: 2023 год план по данным организации | AE8: 2023 год по данным экспертов | AG8: 2024 год план по данным организации | AI8: 2024 год по данным экспертов
A9: 1 | B9: =+A9+1 -> 2 | C9: =+B9+1 -> 3 | D9: =+C9+1 -> 4 | E9: 5 | F9: 6 | G9: 7 | H9: 8 | I9: 9 | J9: 10 | K9: 11 | L9: 12 | M9: 13 | N9: 14 | O9: 15 | P9: 16 | Q9: 17 | R9: 18 | U9: 19 | V9: 20 | Y9: 21 | Z9: 22 | AC9: 23 | AD9: 24 | AG9: 25 | AH9: 26
A10: ВЛЭП | B10: 1150 | C10: - | D10: металл | E10: ВЛЭП-1150кВ-металл | F10: 800 | H10: =$F10*G10/100 -> 0 | J10: =F10*I10/100 -> 0 | L10: =K10*F10/100 -> 0 | N10: =M10*F10/100 -> 0 | P10: =F10*O10/100 -> 0 | R10: =F10*Q10/100 -> 0 | T10: =$F10*S10/100 -> 0 | V10: =$F10*U10/100 -> 0 | X10: =$F10*W10/100 -> 0 | Z10: =$F10*Y10/100 -> 0 | AB10: =$F10*AA10/100 -> 0 | AD10: =$F10*AC10/100 -> 0 | AF10: =$F10*AE10/100 -> 0 | AH10: =$F10*AG10/100 -> 0 | AJ10: =$F10*AI10/100 -> 0
B11: 750 | C11: 1 | D11: металл | E11: ВЛЭП-750кВ-цепей:1-металл | F11: 600 | H11: =F11*G11/100 -> 0 | J11: 0 | L11: =K11*F11/100 -> 0 | N11: =M11*F11/100 -> 0 | P11: 0 | R11: 0 | T11: 0 | V11: 0 | X11: 0 | Z11: 0 | AB11: 0 | AD11: 0 | AF11: 0 | AH11: 0 | AJ11: 0
B12: 400-500 | C12: 1 | D12: металл | E12: ВЛЭП-400-500кВ-цепей:1-металл | F12: 400 | H12: 0 | J12: 0 | L12: 0 | N12: 0 | P12: 0 | R12: 0 | T12: 0 | V12: 0 | X12: 0 | Z12: 0 | AB12: 0 | AD12: 0 | AF12: 0 | AH12: 0 | AJ12: 0
D13: ж/бетон | E13: ВЛЭП-400-500кВ-ж/бетон | F13: 300 | H13: 0 | J13: 0 | L13: 0 | N13: 0 | P13: 0 | R13: 0 | T13: 0 | V13: 0 | X13: 0 | Z13: 0 | AB13: 0 | AD13: 0 | AF13: 0 | AH13: 0 | AJ13: 0
B14: 330 | C14: 1 | D14: металл | E14: ВЛЭП-330кВ-цепей:1-металл | F14: 230 | H14: 0 | J14: 0 | L14: 0 | N14: 0 | P14: 0 | R14: 0 | T14: 0 | V14: 0 | X14: 0 | Z14: 0 | AB14: 0 | AD14: 0 | AF14: 0 | AH14: 0 | AJ14: 0
D15: ж/бетон | E15: ВЛЭП-330кВ-ж/бетон | F15: 170 | H15: 0 | J15: 0 | L15: 0 | N15: 0 | P15: 0 | R15: 0 | T15: 0 | V15: 0 | X15: 0 | Z15: 0 | AB15: 0 | AD15: 0 | AF15: 0 | AH15: 0 | AJ15: 0
C16: 2 | D16: металл | E16: ВЛЭП-330кВ-цепей:2-металл | F16: 290 | H16: 0 | J16: 0 | L16: 0 | N16: 0 | P16: 0 | R16: 0 | T16: 0 | V16: 0 | X16: 0 | Z16: 0 | AB16: 0 | AD16: 0 | AF16: 0 | AH16: 0 | AJ16: 0
D17: ж/бетон | E17: ВЛЭП-330кВ-ж/бетон | F17: 210 | H17: 0 | J17: 0 | L17: 0 | N17: 0 | P17: 0 | R17: 0 | T17: 0 | V17: 0 | X17: 0 | Z17: 0 | AB17: 0 | AD17: 0 | AF17: 0 | AH17: 0 | AJ17: 0
B18: 220 | C18: 1 | D18: дерево | E18: ВЛЭП-220кВ-цепей:1-дерево | F18: 260 | H18: 0 | J18: 0 | L18: 0 | N18: 0 | P18: 0 | R18: 0 | T18: 0 | V18: 0 | X18: 0 | Z18: 0 | AB18: 0 | AD18: 0 | AF18: 0 | AH18: 0 | AJ18: 0
D19: металл | E19: ВЛЭП-220кВ-металл | F19: 210 | H19: 0 | J19: 0 | L19: 0 | N19: 0 | P19: 0 | R19: 0 | T19: 0 | V19: 0 | X19: 0 | Z19: 0 | AB19: 0 | AD19: 0 | AF19: 0 | AH19: 0 | AJ19: 0
D20: ж/бетон | E20: ВЛЭП-220кВ-ж/бетон | F20: 140 | H20: 0 | J20: 0 | L20: 0 | N20: 0 | P20: 0 | R20: 0 | T20: 0 | V20: 0 | X20: 0 | Z20: 0 | AB20: 0 | AD20: 0 | AF20: 0 | AH20: 0 | AJ20: 0
C21: 2 | D21: металл | E21: ВЛЭП-220кВ-цепей:2-металл | F21: 270 | H21: 0 | J21: 0 | L21: 0 | N21: 0 | P21: 0 | R21: 0 | T21: 0 | V21: 0 | X21: 0 | Z21: 0 | AB21: 0 | AD21: 0 | AF21: 0 | AH21: 0 | AJ21: 0
D22: ж/бетон | E22: ВЛЭП-220кВ-ж/бетон | F22: 180 | H22: 0 | J22: 0 | L22: 0 | N22: 0 | P22: 0 | R22: 0 | T22: 0 | V22: 0 | X22: 0 | Z22: 0 | AB22: 0 | AD22: 0 | AF22: 0 | AH22: 0 | AJ22: 0
B23: 110-150 | C23: 1 | D23: дерево | E23: ВЛЭП-110-150кВ-цепей:1-дерево | F23: 180 | H23: 0 | J23: 0 | L23: 0 | N23: 0 | P23: 0 | R23: 0 | T23: 0 | V23: 0 | X23: 0 | Z23: 0 | AB23: 0 | AD23: 0 | AF23: 0 | AH23: 0 | AJ23: 0
D24: металл | E24: ВЛЭП-110-150кВ-металл | F24: 160 | H24: 0 | J24: 0 | L24: 0 | N24: 0 | P24: 0 | R24: 0 | T24: 0 | V24: 0 | X24: 0 | Z24: 0 | AB24: 0 | AD24: 0 | AF24: 0 | AH24: 0 | AJ24: 0
D25: ж/бетон | E25: ВЛЭП-110-150кВ-ж/бетон | F25: 130 | H25: 0 | J25: 0 | L25: 0 | N25: 0 | P25: 0 | R25: 0 | T25: 0 | V25: 0 | X25: 0 | Z25: 0 | AB25: 0 | AD25: 0 | AF25: 0 | AH25: 0 | AJ25: 0
C26: 2 | D26: металл | E26: ВЛЭП-110-150кВ-цепей:2-металл | F26: 190 | H26: 0 | J26: 0 | L26: 0 | N26: 0 | P26: 0 | R26: 0 | T26: 0 | V26: 0 | X26: 0 | Z26: 0 | AB26: 0 | AD26: 0 | AF26: 0 | AH26: 0 | AJ26: 0
D27: ж/бетон | E27: ВЛЭП-110-150кВ-ж/бетон | F27: 160 | H27: 0 | J27: 0 | L27: 0 | N27: 0 | P27: 0 | R27: 0 | T27: 0 | V27: 0 | X27: 0 | Z27: 0 | AB27: 0 | AD27: 0 | AF27: 0 | AH27: 0 | AJ27: 0
A28: КЛЭП | B28: 220 | C28: - | D28: - | E28: КЛЭП-220кВ | F28: 3000 | H28: 0 | J28: 0 | L28: 0 | N28: 0 | P28: 0 | R28: 0 | T28: 0 | V28: 0 | X28: 0 | Z28: 0 | AB28: 0 | AD28: 0 | AF28: 0 | AH28: 0 | AJ28: 0
B29: 110 | C29: - | D29: - | E29: КЛЭП-110кВ | F29: 2300 | H29: 0 | J29: 0 | L29: 0 | N29: 0 | P29: 0 | R29: 0 | T29: 0 | V29: 0 | X29: 0 | Z29: 0 | AB29: 0 | AD29: 0 | AF29: 0 | AH29: 0 | AJ29: 0
A30: ВН, всего | E30: Итого: | G30: =SUM(G10:G29) -> 0 | H30: 0 | I30: 0 | J30: 0 | K30: 0 | L30: 0 | M30: =SUM(M10:M29) -> 0 | N30: 0 | O30: 0 | P30: 0 | Q30: 0 | R30: 0 | S30: =SUM(S10:S29) -> 0 | T30: =SUM(T10:T29) -> 0 | U30: =SUM(U10:U29) -> 0 | V30: 0 | W30: =SUM(W10:W29) -> 0 | X30: =SUM(X10:X29) -> 0 | Y30: =SUM(Y10:Y29) -> 0 | Z30: 0 | AA30: =SUM(AA10:AA29) -> 0 | AB30: =SUM(AB10:AB29) -> 0 | AC30: =SUM(AC10:AC29) -> 0 | AD30: 0 | AE30: =SUM(AE10:AE29) -> 0 | AF30: =SUM(AF10:AF29) -> 0 | AG30: =SUM(AG10:AG29) -> 0 | AH30: 0 | AI30: =SUM(AI10:AI29) -> 0 | AJ30: =SUM(AJ10:AJ29) -> 0
A31: ВЛЭП | B31: 35 | C31: 1 | D31: дерево | E31: ВЛЭП-35кВ-цепей:1-дерево | F31: 170 | H31: =F31*G31/100 -> 0 | J31: =F31*I31/100 -> 0 | L31: =K31*F31/100 -> 0 | N31: =M31*F31/100 -> 0 | P31: =F31*O31/100 -> 0 | R31: =F31*Q31/100 -> 0 | T31: =$F31*S31/100 -> 0 | V31: =$F31*U31/100 -> 0 | X31: =$F31*W31/100 -> 0 | Z31: =$F31*Y31/100 -> 0 | AB31: =$F31*AA31/100 -> 0 | AD31: =$F31*AC31/100 -> 0 | AF31: =$F31*AE31/100 -> 0 | AH31: =$F31*AG31/100 -> 0 | AJ31: =$F31*AI31/100 -> 0
D32: металл | E32: ВЛЭП-35кВ-металл | F32: 140 | H32: 0 | J32: 0 | L32: =K32*F32/100 -> 0 | N32: =M32*F32/100 -> 0 | P32: 0 | R32: 0 | T32: 0 | V32: 0 | X32: 0 | Z32: 0 | AB32: 0 | AD32: 0 | AF32: 0 | AH32: 0 | AJ32: 0
D33: ж/бетон | E33: ВЛЭП-35кВ-ж/бетон | F33: 120 | H33: 0 | J33: 0 | L33: 0 | N33: 0 | P33: 0 | R33: 0 | T33: 0 | V33: 0 | X33: 0 | Z33: 0 | AB33: 0 | AD33: 0 | AF33: 0 | AH33: 0 | AJ33: 0
C34: 2 | D34: металл | E34: ВЛЭП-35кВ-цепей:2-металл | F34: 180 | H34: 0 | J34: 0 | L34: 0 | N34: 0 | P34: 0 | R34: 0 | T34: 0 | V34: 0 | X34: 0 | Z34: 0 | AB34: 0 | AD34: 0 | AF34: 0 | AH34: 0 | AJ34: 0
D35: ж/бетон | E35: ВЛЭП-35кВ-ж/бетон | F35: 150 | H35: 0 | J35: 0 | L35: 0 | N35: 0 | P35: 0 | R35: 0 | T35: 0 | V35: 0 | X35: 0 | Z35: 0 | AB35: 0 | AD35: 0 | AF35: 0 | AH35: 0 | AJ35: 0
B36: 1 - 20 | C36: - | D36: дерево | E36: ВЛЭП-1-20кВ-дерево | F36: 160 | H36: 0 | J36: 0 | L36: 0 | N36: 0 | P36: 0 | R36: 0 | T36: 0 | V36: 0 | X36: 0 | Z36: 0 | AB36: 0 | AD36: 0 | AF36: 0 | AH36: 0 | AJ36: 0
D37: дерево на ж/б пасынках | E37: ВЛЭП-1-20кВ-дерево на ж/б пасынках | F37: 140 | G37: 7.52 | H37: 10.528 | I37: 7.52 | J37: 10.528 | K37: 7.52 | L37: 10.528 | N37: 0 | O37: 7.52 | P37: 10.528 | Q37: 7.52 | R37: 10.528 | T37: 0 | U37: 7.52 | V37: 10.528 | X37: 0 | Y37: 7.52 | Z37: 10.528 | AB37: 0 | AC37: 7.52 | AD37: 10.528 | AF37: 0 | AG37: 7.52 | AH37: 10.528 | AJ37: 0
D38: ж/бетон, металл | E38: ВЛЭП-1-20кВ-ж/бетон,металл | F38: 110 | G38: 37.169 | H38: 40.8859 | I38: 36.18 | J38: 39.798 | K38: 36.18 | L38: 39.798 | N38: 0 | O38: 39.77 | P38: 43.747 | Q38: 40.1 | R38: 44.11 | T38: 0 | U38: 40.515 | V38: 44.5665 | X38: 0 | Y38: 40.52 | Z38: 44.572 | AB38: 0 | AC38: 40.57 | AD38: 44.627 | AF38: 0 | AG38: 40.57 | AH38: 44.627 | AJ38: 0
A39: КЛЭП | B39: 20 -35 | C39: - | D39: - | E39: КЛЭП-20-35кВ | F39: 470 | H39: 0 | J39: 0 | L39: 0 | N39: 0 | P39: 0 | R39: 0 | T39: 0 | V39: 0 | X39: 0 | Z39: 0 | AB39: 0 | AD39: 0 | AF39: 0 | AH39: 0 | AJ39: 0
B40: 3 - 10 | C40: - | D40: - | E40: КЛЭП-3-10кВ | F40: 350 | G40: 16.7 | H40: 58.45 | I40: 16.7 | J40: 58.45 | K40: 16.7 | L40: 58.45 | N40: 0 | O40: 16.7 | P40: 58.45 | Q40: 16.4 | R40: 57.4 | T40: 0 | U40: 15.97 | V40: 55.895 | X40: 0 | Y40: 15.97 | Z40: 55.895 | AB40: 0 | AC40: 15.87 | AD40: 55.545 | AF40: 0 | AG40: 15.87 | AH40: 55.545 | AJ40: 0
A41: СН-1, всего | E41: Итого: | G41: =SUM(G31:G35)+G39 -> 0 | H41: 0 | I41: 0 | J41: 0 | K41: 0 | L41: 0 | M41: =SUM(M31:M35)+M39 -> 0 | N41: 0 | O41: 0 | P41: 0 | Q41: 0 | R41: 0 | S41: =SUM(S31:S35)+S39 -> 0 | T41: =SUM(T31:T35)+T39 -> 0 | U41: =SUM(U31:U35)+U39 -> 0 | V41: 0 | W41: =SUM(W31:W35)+W39 -> 0 | X41: =SUM(X31:X35)+X39 -> 0 | Y41: =SUM(Y31:Y35)+Y39 -> 0 | Z41: 0 | AA41: =SUM(AA31:AA35)+AA39 -> 0 | AB41: =SUM(AB31:AB35)+AB39 -> 0 | AC41: =SUM(AC31:AC35)+AC39 -> 0 | AD41: 0 | AE41: =SUM(AE31:AE35)+AE39 -> 0 | AF41: =SUM(AF31:AF35)+AF39 -> 0 | AG41: =SUM(AG31:AG35)+AG39 -> 0 | AH41: 0 | AI41: =SUM(AI31:AI35)+AI39 -> 0 | AJ41: =SUM(AJ31:AJ35)+AJ39 -> 0
A42: СН-2, всего | E42: Итого: | G42: =SUM(G36:G38)+G40 -> 61.389 | H42: 109.8639 | I42: 60.4 | J42: 108.776 | K42: 60.4 | L42: 108.776 | M42: =SUM(M36:M38)+M40 -> 0 | N42: 0 | O42: 63.99 | P42: 112.725 | Q42: 64.02 | R42: 112.038 | S42: =SUM(S36:S38)+S40 -> 0 | T42: =SUM(T36:T38)+T40 -> 0 | U42: =SUM(U36:U38)+U40 -> 64.005 | V42: 110.9895 | W42: =SUM(W36:W38)+W40 -> 0 | X42: =SUM(X36:X38)+X40 -> 0 | Y42: =SUM(Y36:Y38)+Y40 -> 64.01 | Z42: 110.995 | AA42: =SUM(AA36:AA38)+AA40 -> 0 | AB42: =SUM(AB36:AB38)+AB40 -> 0 | AC42: =SUM(AC36:AC38)+AC40 -> 63.96 | AD42: 110.7 | AE42: =SUM(AE36:AE38)+AE40 -> 0 | AF42: =SUM(AF36:AF38)+AF40 -> 0 | AG42: =SUM(AG36:AG38)+AG40 -> 63.96 | AH42: 110.7 | AI42: =SUM(AI36:AI38)+AI40 -> 0 | AJ42: =SUM(AJ36:AJ38)+AJ40 -> 0
A43: ВЛЭП | B43: 0,4 кВ | C43: - | D43: дерево | E43: ВЛЭП-0,4кВ-дерево | F43: 260 | H43: =F43*G43/100 -> 0 | J43: =F43*I43/100 -> 0 | L43: =K43*F43/100 -> 0 | N43: =M43*F43/100 -> 0 | P43: =F43*O43/100 -> 0 | R43: =F43*Q43/100 -> 0 | T43: =$F43*S43/100 -> 0 | V43: =$F43*U43/100 -> 0 | X43: =$F43*W43/100 -> 0 | Z43: =$F43*Y43/100 -> 0 | AB43: =$F43*AA43/100 -> 0 | AD43: =$F43*AC43/100 -> 0 | AF43: =$F43*AE43/100 -> 0 | AH43: =$F43*AG43/100 -> 0 | AJ43: =$F43*AI43/100 -> 0
D44: дерево на ж/б пасынках | E44: ВЛЭП-0,4кВ-дерево на ж/б пасынках | F44: 220 | G44: 122.81 | H44: =F44*G44/100 -> 270.182 | I44: 122.81 | J44: =F44*I44/100 -> 270.182 | K44: 122.81 | L44: =K44*F44/100 -> 270.182 | N44: 0 | O44: 122.81 | P44: =F44*O44/100 -> 270.182 | Q44: 122.81 | R44: =F44*Q44/100 -> 270.182 | T44: 0 | U44: 122.81 | V44: 270.182 | X44: 0 | Y44: 122.81 | Z44: 270.182 | AB44: 0 | AC44: 122.81 | AD44: 270.182 | AF44: 0 | AG44: 122.81 | AH44: 270.182 | AJ44: 0
D45: ж/бетон, металл | E45: ВЛЭП-0,4кВ-ж/бетон,металл | F45: 150 | G45: 13.71 | H45: =F45*G45/100 -> 20.565 | I45: 13.71 | J45: =F45*I45/100 -> 20.565 | K45: 13.71 | L45: =K45*F45/100 -> 20.565 | N45: 0 | O45: 13.71 | P45: =F45*O45/100 -> 20.565 | Q45: 13.71 | R45: =F45*Q45/100 -> 20.565 | T45: 0 | U45: 13.71 | V45: 20.565 | X45: 0 | Y45: 14.862 | Z45: 22.293 | AB45: 0 | AC45: 14.86 | AD45: 22.29 | AF45: 0 | AG45: 14.86 | AH45: 22.29 | AJ45: 0
A46: КЛЭП | B46: до 1 кВ | C46: - | D46: - | E46: КЛЭП-до1кВ | F46: 270 | G46: 12.4 | H46: =F46*G46/100 -> 33.48 | I46: 12.4 | J46: =F46*I46/100 -> 33.48 | K46: 12.4 | L46: =K46*F46/100 -> 33.48 | N46: 0 | O46: 12.4 | P46: =F46*O46/100 -> 33.48 | Q46: 12.4 | R46: =F46*Q46/100 -> 33.48 | T46: 0 | U46: 12.4 | V46: 33.48 | X46: 0 | Y46: 12.4 | Z46: 33.48 | AB46: 0 | AC46: 12.4 | AD46: 33.48 | AF46: 0 | AG46: 12.4 | AH46: 33.48 | AJ46: 0
A47: НН, всего | E47: Итого: | G47: =SUM(G43:G46) -> 148.92 | H47: 324.227 | I47: 148.92 | J47: 324.227 | K47: 148.92 | L47: 324.227 | M47: 0 | N47: 0 | O47: 148.92 | P47: 324.227 | Q47: 148.92 | R47: 324.227 | S47: 0 | T47: 0 | U47: 148.92 | V47: 324.227 | W47: 0 | X47: 0 | Y47: 150.072 | Z47: 325.955 | AA47: 0 | AB47: 0 | AC47: 150.07 | AD47: 325.952 | AE47: 0 | AF47: 0 | AG47: 150.07 | AH47: 325.952 | AI47: 0 | AJ47: 0
B48: Итого по уровням напряжения: | E48: ВН | G48: =G30 -> 0 | H48: =H30 -> 0 | I48: 0 | J48: =J30 -> 0 | K48: 0 | L48: 0 | M48: 0 | N48: 0 | O48: 0 | P48: 0 | Q48: 0 | R48: 0 | S48: 0 | T48: 0 | U48: 0 | V48: 0 | W48: 0 | X48: 0 | Y48: 0 | Z48: 0 | AA48: 0 | AB48: 0 | AC48: 0 | AD48: 0 | AE48: 0 | AF48: 0 | AG48: 0 | AH48: 0 | AI48: 0 | AJ48: 0
E49: СН1 | G49: =G41 -> 0 | H49: =H41 -> 0 | I49: 0 | J49: =J41 -> 0 | K49: 0 | L49: 0 | M49: 0 | N49: 0 | O49: 0 | P49: 0 | Q49: 0 | R49: 0 | S49: 0 | T49: 0 | U49: 0 | V49: 0 | W49: 0 | X49: 0 | Y49: 0 | Z49: 0 | AA49: 0 | AB49: 0 | AC49: 0 | AD49: 0 | AE49: 0 | AF49: 0 | AG49: 0 | AH49: 0 | AI49: 0 | AJ49: 0
E50: СН2 | G50: =G42 -> 61.389 | H50: 109.8639 | I50: 60.4 | J50: =J42 -> 108.776 | K50: 60.4 | L50: 108.776 | M50: 0 | N50: 0 | O50: 63.99 | P50: 112.725 | Q50: 64.02 | R50: 112.038 | S50: 0 | T50: 0 | U50: 64.005 | V50: 110.9895 | W50: 0 | X50: 0 | Y50: 64.01 | Z50: 110.995 | AA50: 0 | AB50: 0 | AC50: 63.96 | AD50: 110.7 | AE50: 0 | AF50: 0 | AG50: 63.96 | AH50: 110.7 | AI50: 0 | AJ50: 0
E51: НН | G51: =G47 -> 148.92 | H51: =H47 -> 324.227 | I51: 148.92 | J51: =J47 -> 324.227 | K51: 148.92 | L51: 324.227 | M51: 0 | N51: 0 | O51: 148.92 | P51: 324.227 | Q51: 148.92 | R51: 324.227 | S51: 0 | T51: 0 | U51: 148.92 | V51: 324.227 | W51: 0 | X51: 0 | Y51: 150.072 | Z51: 325.955 | AA51: 0 | AB51: 0 | AC51: 150.07 | AD51: 325.952 | AE51: 0 | AF51: 0 | AG51: 150.07 | AH51: 325.952 | AI51: 0 | AJ51: 0
A52: ВСЕГО: | G52: =SUM(G48:G51) -> 210.309 | H52: =SUM(H48:H51) -> 434.0909 | I52: 209.32 | J52: 433.003 | K52: 209.32 | L52: 433.003 | M52: 0 | N52: 0 | O52: 212.91 | P52: 436.952 | Q52: 212.94 | R52: 436.265 | S52: 0 | T52: 0 | U52: 212.925 | V52: 435.2165 | W52: 0 | X52: 0 | Y52: 214.082 | Z52: 436.95 | AA52: 0 | AB52: 0 | AC52: 214.03 | AD52: 436.652 | AE52: 0 | AF52: 0 | AG52: 214.03 | AH52: 436.652 | AI52: 0 | AJ52: 0
E54: Руководитель организации | J54: ='Инф-я'!$C$21 -> Окунев Василий Михайлович

Sheet УЕ ТП 2017-2024
A3: Объем подстанций 35-1150 кВ, трансформаторных подстанций (ТП), комплексных трансформаторных подстанций (КТП) и распределительных пунктов(РП) 0,4-20 кВ в условных единицах в период с 2017 по 2024 годы
B4: ='Инф-я'!C13 -> ООО "Энергетик"
A6: № п.п. | B6: Наименование | D6: Единица измерения | E6: Напряжение, кВ | F6: Количество условных единиц (у) на единицу измерения | G6: Количество единиц измерения | H6: Объем условных единиц | I6: Количество единиц измерения | J6: Объем условных единиц | K6: Количество единиц измерения | L6: Объем условных единиц | M6: Количество единиц измерения | N6: Объем условных единиц | O6: Количество единиц измерения | P6: Объем условных единиц | Q6: Количество единиц измерения | R6: Объем условных единиц | S6: Количество единиц измерения | T6: Объем условных единиц | U6: Количество единиц измерения | V6: Объем условных единиц | W6: Количество единиц измерения | X6: Объем условных единиц | Y6: Количество единиц измерения | Z6: Объем условных единиц | AA6: Количество единиц измерения | AB6: Объем условных единиц | AC6: Количество единиц измерения | AD6: Объем условных единиц | AE6: Количество единиц измерения | AF6: Объем условных единиц | AG6: Количество единиц измерения | AH6: Объем условных единиц | AI6: Количество единиц измерения | AJ6: Объем условных единиц
F7: у/ед.изм. | G7: ед.изм. | H7: у | I7: ед.изм. | J7: у | K7: ед.изм. | L7: у | M7: ед.изм. | N7: у | O7: ед.изм. | P7: у | Q7: ед.изм. | R7: у | S7: ед.изм. | T7: у | U7: ед.изм. | V7: у | W7: ед.изм. | X7: у | Y7: ед.изм. | Z7: у | AA7: ед.изм. | AB7: у | AC7: ед.изм. | AD7: у | AE7: ед.изм. | AF7: у | AG7: ед.изм. | AH7: у | AI7: ед.изм. | AJ7: у
G8: 2017 год факт | I8: 2018 год утверждено | K8: 2018 год факт по данным организации | M8: 2018 год факт по данным экспертов | O8: 2019 год утверждено | Q8: 2020 год план по данным организации | S8: 2020 год по данным экспертов | U8: 2021 год план по данным организации | W8: 2021 год по данным экспертов | Y8: 2022 год план по данным организации | AA8: 2022 год по данным экспертов | AC8: 2023 год план по данным организации | AE8: 2023 год по данным экспертов | AG8: 2024 год план по данным организации | AI8: 2024 год по данным экспертов
A9: 1 | B9: =+A9+1 -> 2 | C9: 3 | D9: 4 | E9: 5 | F9: 6 | G9: 7 | H9: 8 | I9: 9 | J9: 10 | K9: 11 | L9: 12 | M9: 13 | N9: 14 | O9: 15 | P9: 16 | Q9: 17 | R9: 18 | S9: 19 | T9: 20 | U9: 19 | V9: 20 | W9: 17 | X9: 18 | Y9: 21 | Z9: 22 | AA9: 17 | AB9: 18 | AC9: 23 | AD9: 24 | AE9: 17 | AF9: 18 | AG9: 25 | AH9: 26 | AI9: 17 | AJ9: 18
A10: 1 | B10: Подстанция | C10: =B10 -> Подстанция | D10: П/ст | E10: 1150 | F10: 1000 | H10: =F10*G10 -> 0 | J10: =F10*I10 -> 0 | L10: =K10*F10 -> 0 | N10: =M10*F10 -> 0 | P10: =F10*O10 -> 0 | R10: =F10*Q10 -> 0 | T10: =$F10*S10 -> 0 | V10: =$F10*U10 -> 0 | X10: =$F10*W10 -> 0 | Z10: =$F10*Y10 -> 0 | AB10: =$F10*AA10 -> 0 | AD10: =$F10*AC10 -> 0 | AF10: =$F10*AE10 -> 0 | AH10: =$F10*AG10 -> 0 | AJ10: =$F10*AI10 -> 0
C11: =B10 -> Подстанция | E11: 750 | F11: 600 | H11: 0 | J11: 0 | L11: =K11*F11 -> 0 | N11: =M11*F11 -> 0 | P11: 0 | R11: 0 | T11: =$F11*S11 -> 0 | V11: 0 | X11: 0 | Z11: 0 | AB11: 0 | AD11: 0 | AF11: 0 | AH11: 0 | AJ11: 0
C12: =B10 -> Подстанция | E12: 400-500 | F12: 500 | H12: 0 | J12: 0 | L12: 0 | N12: 0 | P12: 0 | R12: 0 | T12: 0 | V12: 0 | X12: 0 | Z12: 0 | AB12: 0 | AD12: 0 | AF12: 0 | AH12: 0 | AJ12: 0
C13: =B10 -> Подстанция | E13: 330 | F13: 250 | H13: 0 | J13: 0 | L13: 0 | N13: 0 | P13: 0 | R13: 0 | T13: 0 | V13: 0 | X13: 0 | Z13: 0 | AB13: 0 | AD13: 0 | AF13: 0 | AH13: 0 | AJ13: 0
C14: =B10 -> Подстанция | E14: 220 | F14: 210 | H14: 0 | J14: 0 | L14: 0 | N14: 0 | P14: 0 | R14: 0 | T14: 0 | V14: 0 | X14: 0 | Z14: 0 | AB14: 0 | AD14: 0 | AF14: 0 | AH14: 0 | AJ14: 0
C15: =B10 -> Подстанция | E15: 110-150 | F15: 105 | H15: 0 | J15: 0 | L15: 0 | N15: 0 | P15: 0 | R15: 0 | T15: 0 | V15: 0 | X15: 0 | Z15: 0 | AB15: 0 | AD15: 0 | AF15: 0 | AH15: 0 | AJ15: 0
C16: =B10 -> Подстанция | E16: 35 | F16: 75 | H16: 0 | J16: 0 | L16: 0 | N16: 0 | P16: 0 | R16: 0 | T16: 0 | V16: 0 | X16: 0 | Z16: 0 | AB16: 0 | AD16: 0 | AF16: 0 | AH16: 0 | AJ16: 0
A17: 2 | B17: Силовой трансформатор или реактор (одно- или трехфазный), или вольтодобавочный трансформатор | C17: =B17 -> Силовой трансформатор или реактор (одно- или трехфазный), или вольтодобавочный трансформатор | D17: Ед. оборуд. | E17: 1150 | F17: 60 | H17: 0 | J17: 0 | L17: 0 | N17: 0 | P17: 0 | R17: 0 | T17: 0 | V17: 0 | X17: 0 | Z17: 0 | AB17: 0 | AD17: 0 | AF17: 0 | AH17: 0 | AJ17: 0
C18: =B17 -> Силовой трансформатор или реактор (одно- или трехфазный), или вольтодобавочный трансформатор | E18: 750 | F18: 43 | H18: 0 | J18: 0 | L18: 0 | N18: 0 | P18: 0 | R18: 0 | T18: 0 | V18: 0 | X18: 0 | Z18: 0 | AB18: 0 | AD18: 0 | AF18: 0 | AH18: 0 | AJ18: 0
C19: =B17 -> Силовой трансформатор или реактор (одно- или трехфазный), или вольтодобавочный трансформатор | E19: 400-500 | F19: 28 | H19: 0 | J19: 0 | L19: 0 | N19: 0 | P19: 0 | R19: 0 | T19: 0 | V19: 0 | X19: 0 | Z19: 0 | AB19: 0 | AD19: 0 | AF19: 0 | AH19: 0 | AJ19: 0
C20: =B17 -> Силовой трансформатор или реактор (одно- или трехфазный), или вольтодобавочный трансформатор | E20: 330 | F20: 18 | H20: 0 | J20: 0 | L20: 0 | N20: 0 | P20: 0 | R20: 0 | T20: 0 | V20: 0 | X20: 0 | Z20: 0 | AB20: 0 | AD20: 0 | AF20: 0 | AH20: 0 | AJ20: 0
C21: =B17 -> Силовой трансформатор или реактор (одно- или трехфазный), или вольтодобавочный трансформатор | E21: 220 | F21: 14 | H21: 0 | J21: 0 | L21: 0 | N21: 0 | P21: 0 | R21: 0 | T21: 0 | V21: 0 | X21: 0 | Z21: 0 | AB21: 0 | AD21: 0 | AF21: 0 | AH21: 0 | AJ21: 0
C22: =B17 -> Силовой трансформатор или реактор (одно- или трехфазный), или вольтодобавочный трансформатор | E22: 110-150 | F22: 7.8 | H22: 0 | J22: 0 | L22: 0 | N22: 0 | P22: 0 | R22: 0 | T22: 0 | V22: 0 | X22: 0 | Z22: 0 | AB22: 0 | AD22: 0 | AF22: 0 | AH22: 0 | AJ22: 0
C23: =B17 -> Силовой трансформатор или реактор (одно- или трехфазный), или вольтодобавочный трансформатор | E23: 35 | F23: 2.1 | H23: 0 | J23: 0 | L23: 0 | N23: 0 | P23: 0 | R23: 0 | T23: 0 | V23: 0 | X23: 0 | Z23: 0 | AB23: 0 | AD23: 0 | AF23: 0 | AH23: 0 | AJ23: 0
C24: =B17 -> Силовой трансформатор или реактор (одно- или трехфазный), или вольтодобавочный трансформатор | E24: 1-20 | F24: 1 | H24: 0 | J24: 0 | L24: 0 | N24: 0 | P24: 0 | R24: 0 | T24: 0 | V24: 0 | X24: 0 | Z24: 0 | AB24: 0 | AD24: 0 | AF24: 0 | AH24: 0 | AJ24: 0
A25: 3 | B25: Воздушный выключатель | C25: =B25 -> Воздушный выключатель | D25: 3 фазы | E25: 1150 | F25: 180 | H25: 0 | J25: 0 | L25: 0 | N25: 0 | P25: 0 | R25: 0 | T25: 0 | V25: 0 | X25: 0 | Z25: 0 | AB25: 0 | AD25: 0 | AF25: 0 | AH25: 0 | AJ25: 0
C26: =B25 -> Воздушный выключатель | E26: 750 | F26: 130 | H26: 0 | J26: 0 | L26: 0 | N26: 0 | P26: 0 | R26: 0 | T26: 0 | V26: 0 | X26: 0 | Z26: 0 | AB26: 0 | AD26: 0 | AF26: 0 | AH26: 0 | AJ26: 0
C27: =B25 -> Воздушный выключатель | E27: 400-500 | F27: 88 | H27: 0 | J27: 0 | L27: 0 | N27: 0 | P27: 0 | R27: 0 | T27: 0 | V27: 0 | X27: 0 | Z27: 0 | AB27: 0 | AD27: 0 | AF27: 0 | AH27: 0 | AJ27: 0
C28: =B25 -> Воздушный выключатель | E28: 330 | F28: 66 | H28: 0 | J28: 0 | L28: 0 | N28: 0 | P28: 0 | R28: 0 | T28: 0 | V28: 0 | X28: 0 | Z28: 0 | AB28: 0 | AD28: 0 | AF28: 0 | AH28: 0 | AJ28: 0
C29: =B25 -> Воздушный выключатель | E29: 220 | F29: 43 | H29: 0 | J29: 0 | L29: 0 | N29: 0 | P29: 0 | R29: 0 | T29: 0 | V29: 0 | X29: 0 | Z29: 0 | AB29: 0 | AD29: 0 | AF29: 0 | AH29: 0 | AJ29: 0
C30: =B25 -> Воздушный выключатель | E30: 110-150 | F30: 26 | H30: 0 | J30: 0 | L30: 0 | N30: 0 | P30: 0 | R30: 0 | T30: 0 | V30: 0 | X30: 0 | Z30: 0 | AB30: 0 | AD30: 0 | AF30: 0 | AH30: 0 | AJ30: 0
C31: =B25 -> Воздушный выключатель | E31: 35 | F31: 11 | H31: 0 | J31: 0 | L31: 0 | N31: 0 | P31: 0 | R31: 0 | T31: 0 | V31: 0 | X31: 0 | Z31: 0 | AB31: 0 | AD31: 0 | AF31: 0 | AH31: 0 | AJ31: 0
C32: =B25 -> Воздушный выключатель | E32: 1-20 | F32: 5.5 | H32: 0 | J32: 0 | L32: 0 | N32: 0 | P32: 0 | R32: 0 | T32: 0 | V32: 0 | X32: 0 | Z32: 0 | AB32: 0 | AD32: 0 | AF32: 0 | AH32: 0 | AJ32: 0
A33: 4 | B33: Масляный (вакуумный) выключатель | C33: =B33 -> Масляный (вакуумный) выключатель | D33: - " - | E33: 220 | F33: 23 | H33: 0 | J33: 0 | L33: 0 | N33: 0 | P33: 0 | R33: 0 | T33: 0 | V33: 0 | X33: 0 | Z33: 0 | AB33: 0 | AD33: 0 | AF33: 0 | AH33: 0 | AJ33: 0
C34: =B33 -> Масляный (вакуумный) выключатель | E34: 110-150 | F34: 14 | H34: 0 | J34: 0 | L34: 0 | N34: 0 | P34: 0 | R34: 0 | T34: 0 | V34: 0 | X34: 0 | Z34: 0 | AB34: 0 | AD34: 0 | AF34: 0 | AH34: 0 | AJ34: 0
C35: =B33 -> Масляный (вакуумный) выключатель | E35: 35 | F35: 6.4 | H35: 0 | J35: 0 | L35: 0 | N35: 0 | P35: 0 | R35: 0 | T35: 0 | V35: 0 | X35: 0 | Z35: 0 | AB35: 0 | AD35: 0 | AF35: 0 | AH35: 0 | AJ35: 0
C36: =B33 -> Масляный (вакуумный) выключатель | E36: 1-20 | F36: 3.1 | G36: 9 | H36: 27.9 | I36: 9 | J36: 27.9 | K36: 9 | L36: 27.9 | N36: 0 | O36: 9 | P36: 27.9 | Q36: 9 | R36: 27.9 | T36: 0 | U36: 9 | V36: 27.9 | X36: 0 | Y36: 9 | Z36: 27.9 | AB36: 0 | AC36: 9 | AD36: 27.9 | AF36: 0 | AG36: 9 | AH36: 27.9 | AJ36: 0
A37: 5 | B37: Отделитель с короткозамыкателем | C37: =B37 -> Отделитель с короткозамыкателем | D37: Ед. оборуд. | E37: 400-500 | F37: 35 | H37: 0 | J37: 0 | L37: 0 | N37: 0 | P37: 0 | R37: 0 | T37: 0 | V37: 0 | X37: 0 | Z37: 0 | AB37: 0 | AD37: 0 | AF37: 0 | AH37: 0 | AJ37: 0
C38: =B37 -> Отделитель с короткозамыкателем | E38: 330 | F38: 24 | H38: 0 | J38: 0 | L38: 0 | N38: 0 | P38: 0 | R38: 0 | T38: 0 | V38: 0 | X38: 0 | Z38: 0 | AB38: 0 | AD38: 0 | AF38: 0 | AH38: 0 | AJ38: 0
C39: =B37 -> Отделитель с короткозамыкателем | E39: 220 | F39: 19 | H39: 0 | J39: 0 | L39: 0 | N39: 0 | P39: 0 | R39: 0 | T39: 0 | V39: 0 | X39: 0 | Z39: 0 | AB39: 0 | AD39: 0 | AF39: 0 | AH39: 0 | AJ39: 0
C40: =B37 -> Отделитель с короткозамыкателем | E40: 110-150 | F40: 9.5 | H40: 0 | J40: 0 | L40: 0 | N40: 0 | P40: 0 | R40: 0 | T40: 0 | V40: 0 | X40: 0 | Z40: 0 | AB40: 0 | AD40: 0 | AF40: 0 | AH40: 0 | AJ40: 0
C41: =B37 -> Отделитель с короткозамыкателем | E41: 35 | F41: 4.7 | H41: 0 | J41: 0 | L41: 0 | N41: 0 | P41: 0 | R41: 0 | T41: 0 | V41: 0 | X41: 0 | Z41: 0 | AB41: 0 | AD41: 0 | AF41: 0 | AH41: 0 | AJ41: 0
A42: 6 | B42: Выключатель нагрузки | C42: =B42 -> Выключатель нагрузки | D42: - " - | E42: 1-20 | F42: 2.3 | G42: 150 | H42: 345 | I42: 157 | J42: 361.1 | K42: 157 | L42: 361.1 | N42: 0 | O42: 157 | P42: 361.1 | Q42: 157 | R42: 361.1 | T42: 0 | U42: 157 | V42: 361.1 | X42: 0 | Y42: 157 | Z42: 361.1 | AB42: 0 | AC42: 157 | AD42: 361.1 | AF42: 0 | AG42: 157 | AH42: 361.1 | AJ42: 0
A43: 7 | B43: Синхронный компенсатор мощн. до 50 Мвар | C43: =B43 -> Синхронный компенсатор мощн. до 50 Мвар | D43: - " - | E43: 1-20 | F43: 26 | H43: 0 | J43: 0 | L43: 0 | N43: 0 | P43: 0 | R43: 0 | T43: 0 | V43: 0 | X43: 0 | Z43: 0 | AB43: 0 | AD43: 0 | AF43: 0 | AH43: 0 | AJ43: 0
A44: 8 | B44: То же, 50 Мвар и более | C44: Синхронный компенсатор мощн. 50 Мвар и выше | D44: - " - | E44: 1-20 | F44: 48 | H44: 0 | J44: 0 | L44: 0 | N44: 0 | P44: 0 | R44: 0 | T44: 0 | V44: 0 | X44: 0 | Z44: 0 | AB44: 0 | AD44: 0 | AF44: 0 | AH44: 0 | AJ44: 0
A45: 9 | B45: Статические конденсаторы | C45: =B45 -> Статические конденсаторы | D45: 100 конд. | E45: 35 | F45: 2.4 | H45: 0 | J45: 0 | L45: 0 | N45: 0 | P45: 0 | R45: 0 | T45: 0 | V45: 0 | X45: 0 | Z45: 0 | AB45: 0 | AD45: 0 | AF45: 0 | AH45: 0 | AJ45: 0
C46: =B45 -> Статические конденсаторы | E46: 1-20 | F46: 2.4 | H46: 0 | J46: 0 | L46: 0 | N46: 0 | P46: 0 | R46: 0 | T46: 0 | V46: 0 | X46: 0 | Z46: 0 | AB46: 0 | AD46: 0 | AF46: 0 | AH46: 0 | AJ46: 0
A47: 10 | B47: Мачтовая (столбовая) ТП | C47: =B47 -> Мачтовая (столбовая) ТП | D47: ТП | E47: 1-20 | F47: 2.5 | G47: 9 | H47: 22.5 | I47: 9 | J47: 22.5 | K47: 9 | L47: 22.5 | N47: 0 | O47: 9 | P47: 22.5 | Q47: 9 | R47: 22.5 | T47: 0 | U47: 9 | V47: 22.5 | X47: 0 | Y47: 9 | Z47: 22.5 | AB47: 0 | AC47: 9 | AD47: 22.5 | AF47: 0 | AG47: 9 | AH47: 22.5 | AJ47: 0
A48: 11 | B48: Однотрансфор-маторная ТП, КТП | C48: =B48 -> Однотрансфор-маторная ТП, КТП | D48: ТП, КТП | E48: 1-20 | F48: 2.3 | G48: 29 | H48: 66.7 | I48: 29 | J48: 66.7 | K48: 29 | L48: 66.7 | N48: 0 | O48: 29 | P48: 66.7 | Q48: 29 | R48: 66.7 | T48: 0 | U48: 29 | V48: 66.7 | X48: 0 | Y48: 29 | Z48: 66.7 | AB48: 0 | AC48: 29 | AD48: 66.7 | AF48: 0 | AG48: 29 | AH48: 66.7 | AJ48: 0
A49: 12 | B49: Двухтрансформаторная ТП, КТП | C49: =B49 -> Двухтрансформаторная ТП, КТП | D49: ТП, КТП | E49: 1-20 | F49: 3 | G49: 9 | H49: 27 | I49: 9 | J49: 27 | K49: 9 | L49: 27 | N49: 0 | O49: 9 | P49: 27 | Q49: 10 | R49: 30 | T49: 0 | U49: 10 | V49: 30 | X49: 0 | Y49: 11 | Z49: 33 | AB49: 0 | AC49: 11 | AD49: 33 | AF49: 0 | AG49: 11 | AH49: 33 | AJ49: 0
A50: 13 | B50: Однотрансфор-маторная подстанция 34/0,4 кВ | C50: =B50 -> Однотрансфор-маторная подстанция 34/0,4 кВ | D50: п/ст | E50: 35 | F50: 3.5 | H50: 0 | J50: 0 | L50: 0 | N50: 0 | P50: 0 | R50: 0 | T50: 0 | V50: 0 | X50: 0 | Z50: 0 | AB50: 0 | AD50: 0 | AF50: 0 | AH50: 0 | AJ50: 0
B51: Итого по уровням напряжения: | E51: ВН | G51: х | H51: =H10+H11+H12+H13+H17+H18+H19+H20+H25+H26+H27+H28+H37+H38+H40+H39+H34+H33+H30+H29+H22+H21+H15+H14 -> 0 | I51: х | J51: 0 | K51: х | L51: 0 | M51: х | N51: =N10+N11+N12+N13+N17+N18+N19+N20+N25+N26+N27+N28+N37+N38+N40+N39+N34+N33+N30+N29+N22+N21+N15+N14 -> 0 | O51: х | P51: 0 | Q51: х | R51: 0 | S51: х | T51: =T10+T11+T12+T13+T17+T18+T19+T20+T25+T26+T27+T28+T37+T38+T40+T39+T34+T33+T30+T29+T22+T21+T15+T14 -> 0 | U51: х | V51: =V10+V11+V12+V13+V17+V18+V19+V20+V25+V26+V27+V28+V37+V38+V40+V39+V34+V33+V30+V29+V22+V21+V15+V14 -> 0 | W51: х | X51: =X10+X11+X12+X13+X17+X18+X19+X20+X25+X26+X27+X28+X37+X38+X40+X39+X34+X33+X30+X29+X22+X21+X15+X14 -> 0 | Y51: х | Z51: =Z10+Z11+Z12+Z13+Z17+Z18+Z19+Z20+Z25+Z26+Z27+Z28+Z37+Z38+Z40+Z39+Z34+Z33+Z30+Z29+Z22+Z21+Z15+Z14 -> 0 | AA51: х | AB51: =AB10+AB11+AB12+AB13+AB17+AB18+AB19+AB20+AB25+AB26+AB27+AB28+AB37+AB38+AB40+AB39+AB34+AB33+AB30+AB29+AB22+AB21+AB15+AB14 -> 0 | AC51: х | AD51: =AD10+AD11+AD12+AD13+AD17+AD18+AD19+AD20+AD25+AD26+AD27+AD28+AD37+AD38+AD40+AD39+AD34+AD33+AD30+AD29+AD22+AD21+AD15+AD14 -> 0 | AE51: х | AF51: =AF10+AF11+AF12+AF13+AF17+AF18+AF19+AF20+AF25+AF26+AF27+AF28+AF37+AF38+AF40+AF39+AF34+AF33+AF30+AF29+AF22+AF21+AF15+AF14 -> 0 | AG51: х | AH51: =AH10+AH11+AH12+AH13+AH17+AH18+AH19+AH20+AH25+AH26+AH27+AH28+AH37+AH38+AH40+AH39+AH34+AH33+AH30+AH29+AH22+AH21+AH15+AH14 -> 0 | AI51: х | AJ51: =AJ10+AJ11+AJ12+AJ13+AJ17+AJ18+AJ19+AJ20+AJ25+AJ26+AJ27+AJ28+AJ37+AJ38+AJ40+AJ39+AJ34+AJ33+AJ30+AJ29+AJ22+AJ21+AJ15+AJ14 -> 0
E52: СН1 | G52: х | H52: =H16+H23+H31+H35+H41+H45+H50 -> 0 | I52: х | J52: 0 | K52: х | L52: 0 | M52: х | N52: =N16+N23+N31+N35+N41+N45+N50 -> 0 | O52: х | P52: 0 | Q52: х | R52: 0 | S52: х | T52: =T16+T23+T31+T35+T41+T45+T50 -> 0 | U52: х | V52: =V16+V23+V31+V35+V41+V45+V50 -> 0 | W52: х | X52: =X16+X23+X31+X35+X41+X45+X50 -> 0 | Y52: х | Z52: =Z16+Z23+Z31+Z35+Z41+Z45+Z50 -> 0 | AA52: х | AB52: =AB16+AB23+AB31+AB35+AB41+AB45+AB50 -> 0 | AC52: х | AD52: =AD16+AD23+AD31+AD35+AD41+AD45+AD50 -> 0 | AE52: х | AF52: =AF16+AF23+AF31+AF35+AF41+AF45+AF50 -> 0 | AG52: х | AH52: =AH16+AH23+AH31+AH35+AH41+AH45+AH50 -> 0 | AI52: х | AJ52: =AJ16+AJ23+AJ31+AJ35+AJ41+AJ45+AJ50 -> 0
E53: СН2 | G53: х | H53: =H24+H32+H36+H42+H43+H44+H46+H47+H48+H49 -> 489.1 | I53: х | J53: 505.2 | K53: х | L53: 505.2 | M53: х | N53: =N24+N32+N36+N42+N43+N44+N46+N47+N48+N49 -> 0 | O53: х | P53: 505.2 | Q53: х | R53: 508.2 | S53: х | T53: =T24+T32+T36+T42+T43+T44+T46+T47+T48+T49 -> 0 | U53: х | V53: =V24+V32+V36+V42+V43+V44+V46+V47+V48+V49 -> 508.2 | W53: х | X53: =X24+X32+X36+X42+X43+X44+X46+X47+X48+X49 -> 0 | Y53: х | Z53: =Z24+Z32+Z36+Z42+Z43+Z44+Z46+Z47+Z48+Z49 -> 511.2 | AA53: х | AB53: =AB24+AB32+AB36+AB42+AB43+AB44+AB46+AB47+AB48+AB49 -> 0 | AC53: х | AD53: =AD24+AD32+AD36+AD42+AD43+AD44+AD46+AD47+AD48+AD49 -> 511.2 | AE53: х | AF53: =AF24+AF32+AF36+AF42+AF43+AF44+AF46+AF47+AF48+AF49 -> 0 | AG53: х | AH53: =AH24+AH32+AH36+AH42+AH43+AH44+AH46+AH47+AH48+AH49 -> 511.2 | AI53: х | AJ53: =AJ24+AJ32+AJ36+AJ42+AJ43+AJ44+AJ46+AJ47+AJ48+AJ49 -> 0
E54: НН | G54: х | H54: =SUM(H10:H50) - H51-H52-H53 -> 0 | I54: х | J54: 0 | K54: х | L54: 0 | M54: х | N54: =SUM(N10:N50) - N51-N52-N53 -> 0 | O54: х | P54: 0 | Q54: х | R54: 0 | S54: х | T54: =SUM(T10:T50) - T51-T52-T53 -> 0 | U54: х | V54: =SUM(V10:V50) - V51-V52-V53 -> 0 | W54: х | X54: =SUM(X10:X50) - X51-X52-X53 -> 0 | Y54: х | Z54: =SUM(Z10:Z50) - Z51-Z52-Z53 -> 0 | AA54: х | AB54: =SUM(AB10:AB50) - AB51-AB52-AB53 -> 0 | AC54: х | AD54: =SUM(AD10:AD50) - AD51-AD52-AD53 -> 0 | AE54: х | AF54: =SUM(AF10:AF50) - AF51-AF52-AF53 -> 0 | AG54: х | AH54: =SUM(AH10:AH50) - AH51-AH52-AH53 -> 0 | AI54: х | AJ54: =SUM(AJ10:AJ50) - AJ51-AJ52-AJ53 -> 0
B55: Итого по оборудованию | G55: х | H55: =SUM(H51:H54) -> 489.1 | I55: х | J55: 505.2 | K55: х | L55: 505.2 | M55: х | N55: =SUM(N51:N54) -> 0 | O55: х | P55: 505.2 | Q55: х | R55: 508.2 | S55: х | T55: =SUM(T51:T54) -> 0 | U55: х | V55: =SUM(V51:V54) -> 508.2 | W55: х | X55: =SUM(X51:X54) -> 0 | Y55: х | Z55: =SUM(Z51:Z54) -> 511.2 | AA55: х | AB55: =SUM(AB51:AB54) -> 0 | AC55: х | AD55: =SUM(AD51:AD54) -> 511.2 | AE55: х | AF55: =SUM(AF51:AF54) -> 0 | AG55: х | AH55: =SUM(AH51:AH54) -> 511.2 | AI55: х | AJ55: =SUM(AJ51:AJ54) -> 0
B56: Всего активов по уровням напряжения: | E56: ВН | G56: х | H56: =H51+'УЕ ВЛЭП 2017-2024'!H48 -> 0 | I56: х | J56: =J51+'УЕ ВЛЭП 2017-2024'!J48 -> 0 | K56: х | L56: =L51+'УЕ ВЛЭП 2017-2024'!L48 -> 0 | M56: х | N56: =N51+'УЕ ВЛЭП 2017-2024'!N48 -> 0 | O56: х | P56: =P51+'УЕ ВЛЭП 2017-2024'!P48 -> 0 | Q56: х | R56: =R51+'УЕ ВЛЭП 2017-2024'!R48 -> 0 | S56: х | T56: =T51+'УЕ ВЛЭП 2017-2024'!T48 -> 0 | U56: х | V56: =V51+'УЕ ВЛЭП 2017-2024'!V48 -> 0 | W56: х | X56: =X51+'УЕ ВЛЭП 2017-2024'!X48 -> 0 | Y56: х | Z56: =Z51+'УЕ ВЛЭП 2017-2024'!Z48 -> 0 | AA56: х | AB56: =AB51+'УЕ ВЛЭП 2017-2024'!AB48 -> 0 | AC56: х | AD56: =AD51+'УЕ ВЛЭП 2017-2024'!AD48 -> 0 | AE56: х | AF56: =AF51+'УЕ ВЛЭП 2017-2024'!AF48 -> 0 | AG56: х | AH56: =AH51+'УЕ ВЛЭП 2017-2024'!AH48 -> 0 | AI56: х | AJ56: =AJ51+'УЕ ВЛЭП 2017-2024'!AJ48 -> 0
E57: СН1 | G57: х | H57: =H52+'УЕ ВЛЭП 2017-2024'!H49 -> 0 | I57: х | J57: =J52+'УЕ ВЛЭП 2017-2024'!J49 -> 0 | K57: х | L57: =L52+'УЕ ВЛЭП 2017-2024'!L49 -> 0 | M57: х | N57: =N52+'УЕ ВЛЭП 2017-2024'!N49 -> 0 | O57: х | P57: =P52+'УЕ ВЛЭП 2017-2024'!P49 -> 0 | Q57: х | R57: =R52+'УЕ ВЛЭП 2017-2024'!R49 -> 0 | S57: х | T57: =T52+'УЕ ВЛЭП 2017-2024'!T49 -> 0 | U57: х | V57: =V52+'УЕ ВЛЭП 2017-2024'!V49 -> 0 | W57: х | X57: =X52+'УЕ ВЛЭП 2017-2024'!X49 -> 0 | Y57: х | Z57: =Z52+'УЕ ВЛЭП 2017-2024'!Z49 -> 0 | AA57: х | AB57: =AB52+'УЕ ВЛЭП 2017-2024'!AB49 -> 0 | AC57: х | AD57: =AD52+'УЕ ВЛЭП 2017-2024'!AD49 -> 0 | AE57: х | AF57: =AF52+'УЕ ВЛЭП 2017-2024'!AF49 -> 0 | AG57: х | AH57: =AH52+'УЕ ВЛЭП 2017-2024'!AH49 -> 0 | AI57: х | AJ57: =AJ52+'УЕ ВЛЭП 2017-2024'!AJ49 -> 0
E58: СН2 | G58: х | H58: =H53+'УЕ ВЛЭП 2017-2024'!H50 -> 598.9639 | I58: х | J58: =J53+'УЕ ВЛЭП 2017-2024'!J50 -> 613.976 | K58: х | L58: =L53+'УЕ ВЛЭП 2017-2024'!L50 -> 613.976 | M58: х | N58: =N53+'УЕ ВЛЭП 2017-2024'!N50 -> 0 | O58: х | P58: =P53+'УЕ ВЛЭП 2017-2024'!P50 -> 617.925 | Q58: х | R58: =R53+'УЕ ВЛЭП 2017-2024'!R50 -> 620.238 | S58: х | T58: =T53+'УЕ ВЛЭП 2017-2024'!T50 -> 0 | U58: х | V58: =V53+'УЕ ВЛЭП 2017-2024'!V50 -> 619.1895 | W58: х | X58: =X53+'УЕ ВЛЭП 2017-2024'!X50 -> 0 | Y58: х | Z58: =Z53+'УЕ ВЛЭП 2017-2024'!Z50 -> 622.195 | AA58: х | AB58: =AB53+'УЕ ВЛЭП 2017-2024'!AB50 -> 0 | AC58: х | AD58: =AD53+'УЕ ВЛЭП 2017-2024'!AD50 -> 621.9 | AE58: х | AF58: =AF53+'УЕ ВЛЭП 2017-2024'!AF50 -> 0 | AG58: х | AH58: =AH53+'УЕ ВЛЭП 2017-2024'!AH50 -> 621.9 | AI58: х | AJ58: =AJ53+'УЕ ВЛЭП 2017-2024'!AJ50 -> 0
E59: НН | G59: х | H59: =H54+'УЕ ВЛЭП 2017-2024'!H51 -> 324.227 | I59: х | J59: =J54+'УЕ ВЛЭП 2017-2024'!J51 -> 324.227 | K59: х | L59: =L54+'УЕ ВЛЭП 2017-2024'!L51 -> 324.227 | M59: х | N59: =N54+'УЕ ВЛЭП 2017-2024'!N51 -> 0 | O59: х | P59: =P54+'УЕ ВЛЭП 2017-2024'!P51 -> 324.227 | Q59: х | R59: =R54+'УЕ ВЛЭП 2017-2024'!R51 -> 324.227 | S59: х | T59: =T54+'УЕ ВЛЭП 2017-2024'!T51 -> 0 | U59: х | V59: =V54+'УЕ ВЛЭП 2017-2024'!V51 -> 324.227 | W59: х | X59: =X54+'УЕ ВЛЭП 2017-2024'!X51 -> 0 | Y59: х | Z59: =Z54+'УЕ ВЛЭП 2017-2024'!Z51 -> 325.955 | AA59: х | AB59: =AB54+'УЕ ВЛЭП 2017-2024'!AB51 -> 0 | AC59: х | AD59: =AD54+'УЕ ВЛЭП 2017-2024'!AD51 -> 325.952 | AE59: х | AF59: =AF54+'УЕ ВЛЭП 2017-2024'!AF51 -> 0 | AG59: х | AH59: =AH54+'УЕ ВЛЭП 2017-2024'!AH51 -> 325.952 | AI59: х | AJ59: =AJ54+'УЕ ВЛЭП 2017-2024'!AJ51 -> 0
B60: Количество активов - всего | G60: х | H60: =H56+H57+H58+H59 -> 923.1909 | I60: х | J60: =J56+J57+J58+J59 -> 938.203 | K60: х | L60: =L56+L57+L58+L59 -> 938.203 | M60: х | N60: =N56+N57+N58+N59 -> 0 | O60: х | P60: =P56+P57+P58+P59 -> 942.152 | Q60: х | R60: =R56+R57+R58+R59 -> 944.465 | S60: х | T60: =T56+T57+T58+T59 -> 0 | U60: х | V60: =V56+V57+V58+V59 -> 943.4165 | W60: х | X60: =X56+X57+X58+X59 -> 0 | Y60: х | Z60: =Z56+Z57+Z58+Z59 -> 948.15 | AA60: х | AB60: =AB56+AB57+AB58+AB59 -> 0 | AC60: х | AD60: =AD56+AD57+AD58+AD59 -> 947.852 | AE60: х | AF60: =AF56+AF57+AF58+AF59 -> 0 | AG60: х | AH60: =AH56+AH57+AH58+AH59 -> 947.852 | AI60: х | AJ60: =AJ56+AJ57+AJ58+AJ59 -> 0
B62: Руководитель организации | G62: ='Инф-я'!$C$21 -> Окунев Василий Михайлович

Sheet Подконтрольные расходы
A2: Подконтрольные расходы на 2015 - 2024 годы
A4: ='Инф-я'!C13 -> ООО "Энергетик"
A6: № п.п. | B6: Наименование | C6: Ед.изм. | D6: 2015 год | E6: 2016 год | F6: 2017 год | H6: 2018 год | J6: 2019 год | L6: 2020 (базовый) год по данным организации | O6: 2020 (базовый) год по данным экспертов | R6: 2021 год | T6: 2022 год | V6: 2023 год | X6: 2024 год
D7: Утверждено | E7: Утверждено | F7: Утверждено | G7: Факт | H7: Утверждено | I7: Факт | J7: Утверждено | K7: Ожидаемые | L7: Экономически обоснованные ПР | M7: Величина эффективного уровня ПР | N7: Базовый уровень ПР | O7: Экономически обоснованные ПР | P7: Величина эффективного уровня ПР | Q7: Базовый уровень ПР | R7: По данным организации | S7: По данным экспертов | T7: По данным организации | U7: По данным экспертов | V7: По данным организации | W7: По данным экспертов | X7: По данным организации | Y7: По данным экспертов
A8: 1 | B8: 2 | C8: 3 | D8: 4 | E8: 5 | F8: 4 | G8: 5 | H8: 6 | I8: 7 | J8: 8 | K8: 9 | L8: 10 | M8: 11 | N8: 12 | R8: 13 | T8: 14 | V8: 15 | X8: 16
A9: Показатели для расчета подконтрольных расходов
A10: 1 | B10: Индекс эффективности подконтрольных расходов (Хэф) | C10: % | D10: 0.01 | E10: 0.01 | F10: =E10 -> 0.01 | G10: =F10 -> 0.01 | H10: =F10 -> 0.01 | I10: =H10 -> 0.01 | J10: =H10 -> 0.01 | K10: =J10 -> 0.01 | L10: х | M10: 0.01 | N10: =M10 -> 0.01 | O10: х | Q10: =P10 -> 0 | R10: =$N$10 -> 0.01 | S10: =$Q$10 -> 0 | T10: =$N$10 -> 0.01 | U10: =$Q$10 -> 0 | V10: =$N$10 -> 0.01 | W10: =$Q$10 -> 0 | X10: =$N$10 -> 0.01 | Y10: =$Q$10 -> 0
A11: 2 | B11: Коэффициент эластичности подконтрольных расходов по количеству активов (К эл) | C11: знач. | D11: 0.75 | E11: 0.75 | F11: 0.75 | G11: =F11 -> 0.75 | H11: 0.75 | I11: 0.75 | J11: 0.75 | K11: 0.75 | L11: х | M11: 0.75 | N11: 0.75 | O11: х | P11: 0.75 | Q11: 0.75 | R11: 0.75 | S11: 0.75 | T11: 0.75 | U11: 0.75 | V11: 0.75 | W11: 0.75 | X11: 0.75 | Y11: 0.75
A12: 3 | B12: Индекс потребительских цен (ИПЦ) | C12: % | D12: х | E12: 0.074 | F12: 0.047 | G12: 0.037 | H12: 0.037 | I12: 0.04 | J12: 0.046 | K12: 0.05 | L12: х | M12: х | N12: 0.044 | O12: х | P12: х | R12: 0.042 | T12: 0.043 | V12: 0.044 | X12: 0.044
A13: 4 | B13: Количество активов (УЕ) | C13: усл.ед. | D13: 903.337 | E13: 902.2264 | F13: 904.1795 | G13: ='УЕ ТП 2017-2024'!H60 -> 923.1909 | H13: ='УЕ ТП 2017-2024'!J60 -> 938.203 | I13: ='УЕ ТП 2017-2024'!L60 -> 938.203 | J13: ='УЕ ТП 2017-2024'!P60 -> 942.152 | K13: 942.15 | L13: х | M13: х | N13: ='УЕ ТП 2017-2024'!R60 -> 944.465 | O13: х | P13: х | Q13: ='УЕ ТП 2017-2024'!T60 -> 0 | R13: ='УЕ ТП 2017-2024'!V60 -> 943.4165 | S13: ='УЕ ТП 2017-2024'!X60 -> 0 | T13: ='УЕ ТП 2017-2024'!Z60 -> 948.15 | U13: ='УЕ ТП 2017-2024'!AB60 -> 0 | V13: ='УЕ ТП 2017-2024'!AD60 -> 947.852 | W13: ='УЕ ТП 2017-2024'!AF60 -> 0 | X13: ='УЕ ТП 2017-2024'!AH60 -> 947.852 | Y13: ='УЕ ТП 2017-2024'!AJ60 -> 0
A14: 5 | B14: Индекс изменения количества активов (ИКА) | C14: % | D14: х | E14: =IF(D13=0,0,(E13-D13)/D13) -> -0.001229441504 | F14: =IF(E13=0,0,(F13-E13)/E13) -> 0.002164755986 | G14: х | H14: =IF(F13=0,0,(H13-F13)/F13) -> 0.03762914333 | I14: х | J14: =IF(H13=0,0,(J13-H13)/H13) -> 0.004209110395 | K14: =IF(H13=0,0,(K13-H13)/H13) -> 0.00420697866 | L14: х | M14: х | N14: =IF(J13=0,0,(N13-J13)/J13) -> 0.002455017874 | O14: х | P14: х | Q14: =IF(J13=0,0,(Q13-J13)/J13) -> -1 | R14: =IF(N13=0,0,(R13-N13)/N13) -> -0.001110152308 | S14: =IF(Q13=0,0,(S13-Q13)/Q13) -> 0 | T14: 0.005017402176 | U14: 0 | V14: -0.0003142962611 | W14: 0 | X14: 0 | Y14: 0
A15: 6 | B15: Общий коэффициент индексации подконтрольных расходов ПР= ИПЦ*(1+(Кэл*ИКА))*(1-Хэф) | C15: знач. | D15: х | E15: =(1+E12)*(1+(E11*E14))*(1-E10) -> 1.062279588 | F15: =(1+F12)*(1+(F11*F14))*(1-F10) -> 1.038212876 | G15: х | H15: =(1+H12)*(1+(H11*H14))*(1-H10) -> 1.055603406 | I15: х | J15: 1.038809027 | K15: 1.042779866 | L15: х | M15: х | N15: 1.035463056 | O15: х | P15: х | Q15: 0.25 | R15: 1.030721092 | S15: 1 | T15: 1.036455614 | U15: 1 | V15: 1.033316367 | W15: 1 | X15: 1.03356 | Y15: 1
A16: Подконтрольные расходы организации (ПР)
A17: 1 | B17: Расходы на оплату труда | C17: тыс.руб. | D17: 10363.08716 | E17: =D17*E$15 -> 11008.49596 | F17: =E17*F$15 -> 11429.16225 | G17: ='П.1.16. оплата труда ОПР'!D41 -> 13184.07416 | H17: =F17*H$15 -> 12064.66259 | I17: ='П.1.16. оплата труда ОПР'!F41 -> 13525.89998 | J17: =H17*J$15 -> 12532.8804 | K17: ='П.1.16. оплата труда ОПР'!H41 -> 14061.86158 | L17: ='П.1.16. оплата труда ОПР'!I41 -> 16267.72256 | M17: х | N17: =IFERROR(L17/$L$32*$N$32,0) -> 16267.72256 | O17: ='П.1.16. оплата труда ОПР'!J41 -> 0 | P17: х | Q17: =IFERROR(O17/$O$32*$Q$32,0) -> 0 | R17: =N17*R$15 -> 16767.48476 | S17: =Q17*S$15 -> 0 | T17: =R17*T$15 -> 17378.75372 | U17: =S17*U$15 -> 0 | V17: =T17*V$15 -> 17957.75065 | W17: =U17*W$15 -> 0 | X17: =V17*X$15 -> 18560.41276 | Y17: =W17*Y$15 -> 0
A18: 2 | B18: Материалы | C18: тыс.руб. | D18: 3749.230143 | E18: =D18*E$15 -> 3982.730652 | F18: =E18*F$15 -> 4134.922244 | G18: =материалы!C36 -> 9361.081 | H18: =F18*H$15 -> 4364.838002 | I18: =материалы!E36 -> 15250.308 | J18: =H18*J$15 -> 4534.233117 | K18: =материалы!G36 -> 15929.3 | L18: =материалы!H36 -> 16566.6 | M18: х | N18: =IFERROR(L18/$L$32*$N$32,0) -> 16566.6 | O18: =материалы!I36 -> 0 | P18: х | Q18: =IFERROR(O18/$O$32*$Q$32,0) -> 0 | R18: =N18*R$15 -> 17075.54404 | S18: =Q18*S$15 -> 0 | T18: 17698.04349 | U18: 0 | V18: 18287.678 | W18: 0 | X18: 18901.41247 | Y18: 0
A19: 3 | B19: Ремонт основных фондов | C19: тыс.руб. | D19: 13270.38416 | E19: 14096.85822 | F19: 14635.53971 | G19: ='Сводная ремонт'!C13 -> 15806.99834 | H19: 15449.32556 | I19: ='Сводная ремонт'!E13 -> 15558.134 | J19: 16048.89885 | K19: ='Сводная ремонт'!G13 -> 15705 | L19: ='Сводная ремонт'!H13 -> 15411.706 | M19: х | N19: 15411.706 | O19: ='Сводная ремонт'!M13 -> 0 | P19: х | Q19: 0 | R19: 15885.17043 | S19: 0 | T19: 16464.27408 | U19: 0 | V19: 17012.80388 | W19: 0 | X19: 17583.75358 | Y19: 0
A20: 4 | B20: Другие обоснованные подконтрольные расходы, в том числе: | C20: тыс.руб. | D20: =SUM(D21:D28) -> 804.3060304 | E20: 854.3978786 | F20: 887.0468787 | G20: 2825.5817 | H20: 936.369706 | I20: 3406.93444 | J20: 972.7093029 | K20: 3275.18456 | L20: =SUM(L21:L28) -> 3679.111542 | M20: х | N20: 3679.111542 | O20: =SUM(O21:O28) -> 0 | P20: х | Q20: 0 | R20: =SUM(R21:R28) -> 3792.137866 | S20: 0 | T20: 3930.382581 | U20: 0 | V20: 4061.328649 | W20: 0 | X20: 4197.626839 | Y20: 0
A21: 4.1 | B21: Работы и услуги производственного характера | C21: тыс.руб. | D21: 0 | E21: 0 | F21: 0 | G21: =УПХ!C54 -> 168.1337 | H21: 0 | I21: =УПХ!E54 -> 292.04044 | J21: 0 | K21: =УПХ!G54 -> 276.6 | L21: =УПХ!H54 -> 287.7 | M21: х | N21: 287.7 | O21: =УПХ!I54 -> 0 | P21: х | Q21: 0 | R21: =N21*R$15 -> 296.5384581 | S21: =Q21*S$15 -> 0 | T21: =R21*T$15 -> 307.3489497 | U21: =S21*U$15 -> 0 | V21: =T21*V$15 -> 317.5887001 | W21: =U21*W$15 -> 0 | X21: =V21*X$15 -> 328.2469769 | Y21: =W21*Y$15 -> 0
A22: 4.2 | B22: Работы и услуги непроизводственного характера | C22: тыс.руб. | D22: 501.6506043 | E22: 532.8931973 | F22: 553.2565789 | G22: =УНПХ!C44 -> 2415.527 | H22: 584.0195288 | I22: =УНПХ!E44 -> 2697.536 | J22: 606.6847583 | K22: =УНПХ!G44 -> 2825.72456 | L22: =УНПХ!H44 -> 2938.697542 | M22: х | N22: 2938.697542 | O22: =УНПХ!I44 -> 0 | P22: х | Q22: 0 | R22: 3028.977539 | S22: 0 | T22: 3139.400776 | U22: 0 | V22: 3243.994204 | W22: 0 | X22: 3352.86265 | Y22: 0
A23: 4.3 | B23: Обеспечение нормальных условий труда и техники безопасности | C23: тыс.руб. | D23: 69.3877569 | E23: 73.70919781 | F23: 76.52583824 | G23: ='ОТ и ТБ'!C23 -> 79.1 | H23: 80.78093546 | I23: ='ОТ и ТБ'!E23 -> 347.3 | J23: 83.91596494 | K23: ='ОТ и ТБ'!G23 -> 92 | L23: ='ОТ и ТБ'!H23 -> 362 | M23: х | N23: 362 | O23: ='ОТ и ТБ'!I23 -> 0 | P23: х | Q23: 0 | R23: 373.1210352 | S23: 0 | T23: 386.7233918 | U23: 0 | V23: 399.6076102 | W23: 0 | X23: 413.0184416 | Y23: 0
A24: 4.4. | B24: Расходы на командировки | C24: тыс.руб. | D24: 0 | E24: 0 | F24: 0 | G24: =Команд!C13 -> 0 | H24: 0 | I24: =Команд!E13 -> 0 | J24: 0 | K24: =Команд!G13 -> 0 | L24: =Команд!H13 -> 0 | M24: х | N24: 0 | O24: =Команд!J13 -> 0 | P24: х | Q24: 0 | R24: 0 | S24: 0 | T24: 0 | U24: 0 | V24: 0 | W24: 0 | X24: 0 | Y24: 0
A25: 4.5 | B25: Расходы на обучение персонала | C25: тыс.руб. | D25: 90 | E25: 95.60516292 | F25: 99.25851115 | G25: =Обуч!C16 -> 17.6 | H25: 104.7776224 | I25: =Обуч!E16 -> 6.25 | J25: 108.8439399 | K25: =Обуч!G16 -> 14.5 | L25: =Обуч!H16 -> 21.7 | M25: х | N25: 21.7 | O25: =Обуч!I16 -> 0 | P25: х | Q25: 0 | R25: 22.36664769 | S25: 0 | T25: 23.18203757 | U25: 0 | V25: 23.95437884 | W25: 0 | X25: 24.7582878 | Y25: 0
A26: 4.6 | B26: Расходы на страхование | C26: тыс.руб. | D26: 0 | E26: 0 | F26: 0 | G26: =Страхов!C26 -> 25.775 | H26: 0 | I26: =Страхов!E26 -> 0 | J26: 0 | K26: =Страхов!G26 -> 0 | L26: =Страхов!H26 -> 0 | M26: х | N26: 0 | O26: =Страхов!I26 -> 0 | P26: х | Q26: 0 | R26: 0 | S26: 0 | T26: 0 | U26: 0 | V26: 0 | W26: 0 | X26: 0 | Y26: 0
A27: 4.7 | B27: Расходы на услуги банков | C27: тыс.руб. | D27: 143.2676692 | E27: 152.1903206 | F27: 158.0059504 | G27: ='Услуги банков'!C14 -> 119.446 | H27: 166.7916193 | I27: ='Услуги банков'!E14 -> 63.808 | J27: 173.2646397 | K27: ='Услуги банков'!G14 -> 66.36 | L27: ='Услуги банков'!H14 -> 69.014 | M27: х | N27: 69.014 | O27: ='Услуги банков'!I14 -> 0 | P27: х | Q27: 0 | R27: 71.13418543 | S27: 0 | T27: 73.72742585 | U27: 0 | V27: 76.18375583 | W27: 0 | X27: 78.74048267 | Y27: 0
A28: 4.8 | B28: Прочие обоснованные подконтрольные расходы | C28: тыс.руб. | D28: 0 | E28: 0 | F28: 0 | G28: ='Прочие ПР'!C14 -> 0 | H28: 0 | I28: ='Прочие ПР'!E14 -> 0 | J28: 0 | K28: ='Прочие ПР'!G14 -> 0 | L28: ='Прочие ПР'!H14 -> 0 | M28: х | N28: 0 | O28: ='Прочие ПР'!I14 -> 0 | P28: х | Q28: 0 | R28: 0 | S28: 0 | T28: 0 | U28: 0 | V28: 0 | W28: 0 | X28: 0 | Y28: 0
A29: 5 | B29: Расходы из прибыли, в том числе: | C29: тыс.руб. | D29: 299.0771678 | E29: 317.7035706 | F29: 329.8439377 | G29: =SUM(G30:G31) -> 432.525 | H29: 348.184384 | I29: 692.79 | J29: 361.697081 | K29: 762.069 | L29: =SUM(L30:L31) -> 792.55 | M29: х | N29: 792.55 | O29: =SUM(O30:O31) -> 0 | P29: х | Q29: 0 | R29: =SUM(R30:R31) -> 816.8980013 | S29: 0 | T29: 846.6785197 | U29: 0 | V29: 874.886772 | W29: 0 | X29: 904.247972 | Y29: 0
A30: 5.1 | B30: Расходы по коллективным договорам | C30: тыс.руб. | D30: 299.0771678 | E30: 317.7035706 | F30: 329.8439377 | G30: ='Расходы по кол дог'!C29 -> 432.525 | H30: 348.184384 | I30: ='Расходы по кол дог'!E29 -> 692.79 | J30: 361.697081 | K30: ='Расходы по кол дог'!G29 -> 762.069 | L30: ='Расходы по кол дог'!H29 -> 792.55 | M30: х | N30: 792.55 | O30: ='Расходы по кол дог'!I29 -> 0 | P30: х | Q30: 0 | R30: =N30*R$15 -> 816.8980013 | S30: =Q30*S$15 -> 0 | T30: =R30*T$15 -> 846.6785197 | U30: =S30*U$15 -> 0 | V30: =T30*V$15 -> 874.886772 | W30: =U30*W$15 -> 0 | X30: =V30*X$15 -> 904.247972 | Y30: =W30*Y$15 -> 0
A31: 5.2 | B31: Прочие обоснованные расходы из прибыли | C31: тыс.руб. | D31: 0 | E31: 0 | F31: 0 | G31: ='другие расходы прибыль'!C15 -> 0 | H31: 0 | I31: ='другие расходы прибыль'!E15 -> 0 | J31: 0 | K31: ='другие расходы прибыль'!G15 -> 0 | L31: ='другие расходы прибыль'!H15 -> 0 | M31: х | N31: 0 | O31: ='другие расходы прибыль'!I15 -> 0 | P31: х | Q31: 0 | R31: 0 | S31: 0 | T31: 0 | U31: 0 | V31: 0 | W31: 0 | X31: 0 | Y31: 0
B32: Итого ПР | C32: тыс.руб. | D32: =D17+D18+D19+D20+D29 -> 28486.08466 | E32: 30260.18628 | F32: 31416.51502 | G32: =G17+G18+G19+G20+G29 -> 41610.2602 | H32: =H17+H18+H19+H20+H29 -> 33163.38025 | I32: 48434.06642 | J32: 34450.41875 | K32: 49733.41514 | L32: =L17+L18+L19+L20+L29 -> 52717.6901 | M32: =L32 -> 52717.6901 | N32: =L32*0.7+M32*0.3 -> 52717.6901 | O32: =O17+O18+O19+O20+O29 -> 0 | Q32: =O32*0.7+P32*0.3 -> 0 | R32: 54337.2351 | S32: 0 | T32: 56318.13238 | U32: 0 | V32: 58194.44795 | W32: 0 | X32: 60147.45362 | Y32: 0
B34: Руководитель организации | H34: ='Инф-я'!$C$21 -> Окунев Василий Михайлович

Sheet материалы
A2: Расходы на материалы
A4: ='Инф-я'!C13 -> ООО "Энергетик"
H5: тыс. руб.
A6: Показатели | B6: 2017 год | D6: 2018 год | F6: 2019 год | H6: 2020 год | J6: 2017 год | K6: 2018 год
B7: Утвержденные | C7: Факт | D7: Утвержденные | E7: Факт | F7: Утвержденные | G7: Ожидаемые | H7: По данным организации | I7: По данным экспертов | J7: Факт по расчету экспертов | K7: Факт по расчету экспертов
A8: 1 | B8: 2 | C8: 3 | D8: 4 | E8: 5 | F8: 6 | G8: 7 | H8: 8 | I8: 9 | J8: 10 | K8: 11
A9: Материалы для эксплуатации, всего, в том числе: | B9: х | C9: =SUM(C10:C16) -> 8304.381 | D9: х | E9: =SUM(E10:E16) -> 14039.008 | F9: х | G9: =SUM(G10:G16) -> 14600.6 | H9: 15184.7 | I9: 0 | J9: =SUM(J10:J16) -> 0 | K9: 0
A10: Инструмент | B10: х | C10: 187.969 | D10: х | E10: 232.227 | F10: х | G10: 241.5 | H10: 251.2
A11: Основные материалы | B11: х | C11: 7892.689 | D11: х | E11: 13389.286 | F11: х | G11: 13924.9 | H11: 14481.9
A12: Запчасти | B12: х | C12: 223.723 | D12: х | E12: 417.495 | F12: х | G12: 434.2 | H12: 451.6
B13: х | D13: х | F13: х
B14: х | D14: х | F14: х
B15: х | D15: х | F15: х
B16: х | D16: х | F16: х
A17: Добавить
A18: ГСМ | B18: х | C18: 777.4 | D18: х | E18: 944 | F18: х | G18: 981.8 | H18: 1021.1
A19: Основные средства стомостью до 40 тыс. руб., всего, в том числе: | B19: х | C19: =SUM(C20:C26) -> 0 | D19: х | E19: =SUM(E20:E26) -> 0 | F19: х | G19: =SUM(G20:G26) -> 0 | H19: 0 | I19: =SUM(I20:I27) -> 0 | J19: =SUM(J20:J27) -> 0 | K19: =SUM(K20:K27) -> 0
B20: х | D20: х | F20: х
B21: х | D21: х | F21: х
B22: х | D22: х | F22: х
B23: х | D23: х | F23: х
B24: х | D24: х | F24: х
B25: х | D25: х | F25: х
B26: х | D26: х | F26: х
A27: Добавить
A28: Прочие материалы, всего, в том числе: | B28: х | C28: =SUM(C29:C34) -> 279.3 | D28: х | E28: =SUM(E29:E34) -> 267.3 | F28: х | G28: =SUM(G29:G34) -> 346.9 | H28: 360.8 | I28: 0 | J28: =SUM(J29:J34) -> 0 | K28: 0
A29: Почтово-канцелярские | B29: х | C29: 172.3 | D29: х | E29: 191.2 | F29: х | G29: 198.8 | H29: 206.8
A30: Оргтехника | B30: х | C30: 69.5 | D30: х | E30: 3.2 | F30: х | G30: 72.3 | H30: 75.2
A31: Прочие материалы | B31: х | C31: 37.5 | D31: х | E31: 72.9 | F31: х | G31: 75.8 | H31: 78.8
B32: х | D32: х | F32: х
B33: х | D33: х | F33: х
B34: х | D34: х | F34: х
A35: Добавить
A36: ИТОГО | B36: ='Подконтрольные расходы'!F18 -> 4134.922244 | C36: =C9+C18+C19+C28 -> 9361.081 | D36: ='Подконтрольные расходы'!H18 -> 4364.838002 | E36: =E9+E18+E19+E28 -> 15250.308 | F36: ='Подконтрольные расходы'!J18 -> 4534.233117 | G36: =G9+G18+G19+G28 -> 15929.3 | H36: 16566.6 | I36: 0 | J36: =J9+J18+J19+J28 -> 0 | K36: 0
A38: Руководитель организации | D38: ='Инф-я'!$C$21 -> Окунев Василий Михайлович

Sheet план ремонтов
A2: Расчет стоимости ремонтных работ на 2020 - 2024 годы, связанных с передачей электрической энергии
A4: ='Инф-я'!C13 -> ООО "Энергетик"
A6: Нименование работ, месторасположение объектов | B6: По данным Общества | L6: По данным экспертов
B7: 2020 год | D7: 2021 год | F7: 2022 год | H7: 2023 год | J7: 2024 год | L7: 2020 год
B8: всего по смете (без НДС) | C8: в т.ч. материалы | D8: всего по смете (без НДС) | E8: в т.ч. материалы | F8: всего по смете (без НДС) | G8: в т.ч. материалы | H8: всего по смете (без НДС) | I8: в т.ч. материалы | J8: всего по смете (без НДС) | K8: в т.ч. материалы | L8: всего по смете (без НДС) | M8: в т.ч. материалы
A9: 1 | B9: 2 | C9: 3 | D9: 4 | E9: 5 | F9: 6 | G9: 7 | H9: 8 | I9: 9 | J9: 10 | K9: 11 | L9: 12 | M9: 13
A10: Подрядный способ
A11: Капитальный ремонт здания производственной базы | B11: 5091.407 | C11: х | D11: 5079.312 | E11: х | F11: 5033.643 | G11: х | H11: 5116.894 | I11: х | J11: 16781.134 | K11: х | M11: х
A12: Капитальный ремонт ТП № 3 | B12: 2353.694 | C12: х | E12: х | G12: х | I12: х | K12: х | M12: х
A13: Капитальный ремонт ТП № 1 | B13: 2467.373 | C13: х | E13: х | G13: х | I13: х | K13: х | M13: х
A14: Капитальный ремонт ТП № 7 | B14: 2430.216 | C14: х | E14: х | G14: х | I14: х | K14: х | M14: х
A15: Капитальный ремонт ТП № 25 | C15: х | D15: 2523.218 | E15: х | G15: х | I15: х | K15: х | M15: х
A16: Капитальный ремонт ТП № 34 | C16: х | D16: 2679.897 | E16: х | G16: х | I16: х | K16: х | M16: х
A17: Капитальный ремонт ТП № 35 | C17: х | D17: 2985.922 | E17: х | G17: х | I17: х | K17: х | M17: х
A18: Капитальный ремонт сети 0,4 кВ и трансформаторных подстанций по мониторингу аварийных ситуаций | B18: 3069.016 | C18: х | D18: 2159.334 | E18: х | F18: 10232.167 | G18: х | H18: 10306.24778 | I18: х | K18: х | M18: х
C19: х | E19: х | G19: х | I19: х | K19: х | M19: х
A20: Добавить
A21: Всего (Подрядный способ) | B21: =SUM(B11:B19) -> 15411.706 | C21: х | D21: =SUM(D11:D19) -> 15427.683 | E21: х | F21: =SUM(F11:F19) -> 15265.81 | G21: х | H21: =SUM(H11:H19) -> 15423.14178 | I21: х | J21: =SUM(J11:J19) -> 16781.134 | K21: х | L21: =SUM(L11:L19) -> 0 | M21: х
A22: Хозяйственный способ
A31: Добавить
A32: Всего (Хозяйственный способ) | B32: =SUM(B23:B30) -> 0 | C32: 0 | D32: 0 | E32: 0 | F32: 0 | G32: 0 | H32: 0 | I32: 0 | J32: 0 | K32: 0 | L32: 0 | M32: 0
A34: Руководитель организации

Sheet Сводная ремонт
A2: Стоимость ремонтных работ
A4: ='Инф-я'!C13 -> ООО "Энергетик"
L5: тыс. руб.
A6: Показатели | B6: 2017 год | D6: 2018 год | F6: 2019 год | H6: 2020 год | I6: 2021 год | J6: 2022 год | K6: 2023 год | L6: 2024 год | M6: 2020 год | N6: 2017 год | O6: 2018 год
B7: Утвержденные | C7: Факт | D7: Утвержденные | E7: Факт | F7: Утвержденные | G7: Ожидаемые | H7: по данным организации | M7: По данным экспертов | N7: Факт по расчету экспертов | O7: Факт по расчету экспертов
A8: 1 | B8: 2 | C8: 3 | D8: 4 | E8: 5 | F8: 6 | G8: 7 | H8: 8 | I8: 9 | J8: 10 | K8: 11 | L8: 12 | M8: 13 | N8: 14 | O8: 15
A9: Объем ремонтных работ по сметам - всего | B9: х | C9: =C10+C11 -> 15806.99834 | D9: х | E9: =E10+E11 -> 15558.134 | F9: х | G9: =G10+G11 -> 15705 | H9: =H10+H11 -> 15411.706 | I9: =I10+I11 -> 15427.683 | J9: 15265.81 | K9: 15423.14178 | L9: 16781.134 | M9: =M10+M11 -> 0 | N9: =N10+N11 -> 0 | O9: =O10+O11 -> 0
A10: - подряд | B10: х | C10: 15806.99834 | D10: х | E10: 15558.134 | F10: х | G10: 15705 | H10: ='план ремонтов'!B21 -> 15411.706 | I10: ='план ремонтов'!D21 -> 15427.683 | J10: ='план ремонтов'!F21 -> 15265.81 | K10: ='план ремонтов'!H21 -> 15423.14178 | L10: ='план ремонтов'!J21 -> 16781.134 | M10: ='план ремонтов'!L21 -> 0
A11: - хозспособ | B11: х | D11: х | F11: х | H11: ='план ремонтов'!B32 -> 0 | I11: ='план ремонтов'!D32 -> 0 | J11: ='план ремонтов'!F32 -> 0 | K11: ='план ремонтов'!H32 -> 0 | L11: ='план ремонтов'!J32 -> 0 | M11: ='план ремонтов'!L32 -> 0
A13: Стоимость ремонтных работ (подряд + хозспособ (материалы)) - всего | B13: ='Подконтрольные расходы'!F19 -> 14635.53971 | C13: =C14+C15 -> 15806.99834 | D13: ='Подконтрольные расходы'!H19 -> 15449.32556 | E13: 15558.134 | F13: ='Подконтрольные расходы'!J19 -> 16048.89885 | G13: =G14+G15 -> 15705 | H13: =H14+H15 -> 15411.706 | I13: 15427.683 | J13: 15265.81 | K13: 15423.14178 | L13: 16781.134 | M13: =M14+M15 -> 0 | N13: =N14+N15 -> 0 | O13: 0
A14: - подряд | B14: х | C14: =C10 -> 15806.99834 | D14: х | E14: =E10 -> 15558.134 | F14: х | G14: =G10 -> 15705 | H14: =H10 -> 15411.706 | I14: =I10 -> 15427.683 | J14: 15265.81 | K14: 15423.14178 | L14: 16781.134 | M14: =M10 -> 0 | N14: =N10 -> 0 | O14: =O10 -> 0
A15: - хозспособ | B15: х | D15: х | F15: х | H15: ='план ремонтов'!C32 -> 0 | I15: ='план ремонтов'!E32 -> 0 | J15: ='план ремонтов'!G32 -> 0 | K15: ='план ремонтов'!I32 -> 0 | L15: ='план ремонтов'!K32 -> 0 | M15: ='план ремонтов'!M32 -> 0
A17: Руководитель организации | D17: ='Инф-я'!$C$21 -> Окунев Василий Михайлович

Sheet численность
A2: Справка о численности работников
A4: ='Инф-я'!C13 -> ООО "Энергетик"
F5: Чел.
A6: Вид деятельности | B6: 2017 год факт | C6: 2018 год факт | D6: 2019 год ожидаемые | E6: 2020 год Нормативная численность | F6: 2020 план по данным организации | G6: По данным экспертов
A7: 1 | B7: 3 | C7: 4 | D7: 5 | E7: 6 | F7: 7 | G7: 8
A8: Передача электрической энергии, всего, в том числе: | B8: =B9+B10+B11 -> 40 | C8: 38 | D8: 40 | E8: 44 | F8: 44 | G8: 0
A9: основные производственные рабочие | B9: 23 | C9: 24 | D9: 25 | E9: 29 | F9: 29
A10: цеховый персонал
A11: общеэксплуатационный персонал | B11: 17 | C11: 14 | D11: 15 | E11: 15 | F11: 15
A12: Уличное освещение
A13: Технологическое присоединение
A14: Прочие виды деятельности
A15: Численность, всего | B15: =B8+B12+B13+B14 -> 40 | C15: =C8+C12+C13+C14 -> 38 | D15: 40 | E15: 44 | F15: 44 | G15: 0
A17: Руководитель организации | C17: ='Инф-я'!$C$21 -> Окунев Василий Михайлович

Sheet П.1.16. оплата труда ОПР
A3: Расчет расходов на оплату труда основных производственных рабочих, цехового и общеэксплуатационного персонала, в части, относящейся на передачу электроэнергии
A5: ='Инф-я'!C13 -> ООО "Энергетик"
A7: Показатели | B7: Ед. изм. | C7: 2017 год | E7: 2018 год | G7: 2019 год | I7: 2020 год | K7: 2017 год | L7: 2018 год
C8: Утвержденные | D8: Факт | E8: Утвержденные | F8: Факт | G8: Утвержденные | H8: Ожидаемые | I8: По данным организации | J8: По данным экспертов | K8: Факт по расчету экспертов | L8: Факт по расчету экспертов
A9: ЧИСЛЕННОСТЬ, всего, в том числе: | B9: чел. | C9: х | D9: =D10+D11+D12 -> 40 | E9: х | F9: =численность!C8 -> 38 | G9: х | H9: =численность!D8 -> 40 | I9: =численность!F8 -> 44 | J9: =J10+J11+J12 -> 0 | K9: =K10+K11+K12 -> 0 | L9: =L10+L11+L12 -> 0
A10: Основные производственные рабочие | B10: чел. | C10: х | D10: =численность!B9 -> 23 | E10: х | F10: =численность!C9 -> 24 | G10: х | H10: =численность!D9 -> 25 | I10: =численность!F9 -> 29 | J10: =численность!G9 -> 0
A11: Цеховый персонал | B11: чел. | C11: х | D11: =численность!B10 -> 0 | E11: х | F11: =численность!C10 -> 0 | G11: х | H11: =численность!D10 -> 0 | I11: =численность!F10 -> 0 | J11: =численность!G10 -> 0
A12: Общеэксплуатационный персонал | B12: чел. | C12: х | D12: =численность!B11 -> 17 | E12: х | F12: =численность!C11 -> 14 | G12: х | H12: =численность!D11 -> 15 | I12: =численность!F11 -> 15 | J12: =численность!G11 -> 0
A13: СРЕДСТВА НА ОПЛАТУ ТРУДА ОСНОВНЫХ ПРОИЗВОДСТВЕННЫХ РАБОЧИХ (ОПР)
A14: Минимальная месячная тарифная ставка рабочего 1 разряда для организаций коммунального электроснабжения | B14: руб. | C14: х | D14: х | E14: х | F14: х | G14: х | H14: х | K14: х | L14: х
A15: Средний межразрядный коэффициент | C15: х | D15: х | E15: х | F15: х | G15: х | H15: х | K15: х | L15: х
A16: Среднемесячная тарифная ставка ОПР | B16: руб. | C16: х | E16: х | G16: х | I16: 14999.76
A17: Выплаты, связанные с режимом работы, с условиями труда 1 рабочего | I17: 11863.32
A18: - процент выплаты | B18: % | C18: х | D18: =IF(D16=0,0,D19/D16) -> 0 | E18: х | F18: =IF(F16=0,0,F19/F16) -> 0 | G18: х | H18: =IF(H16=0,0,H19/H16) -> 0 | I18: 0.08
A19: - сумма выплат | B19: руб. | C19: х | D19: 17820.25 | E19: х | F19: 16432.615 | G19: х | H19: 18159.13 | I19: =I16*I18 -> 1199.9808 | J19: =J16*J18 -> 0 | K19: =K16*K18 -> 0 | L19: =L16*L18 -> 0
A20: Оплата за совмещение профессий
A21: - процент выплаты | B21: % | C21: х | D21: =IF(D16=0,0,D22/(D16+D19)) -> 0 | E21: х | F21: =IF(F16=0,0,F22/(F16+F19)) -> 0 | G21: х | H21: =IF(H16=0,0,H22/(H16+H19)) -> 0 | I21: 0.1
A22: - сумма выплат | B22: руб. | C22: х | D22: 204.22 | E22: х | F22: 269.75 | G22: х | H22: 296.8 | I22: =(I16+I19)*I21 -> 1619.97408 | J22: =(J16+J19)*J21 -> 0 | K22: =(K16+K19)*K21 -> 0 | L22: =(L16+L19)*L21 -> 0
A23: Текущее премирование:
A24: - процент выплаты | B24: % | C24: х | D24: =IF(D16=0,0,D25/(D16+D19+D22)) -> 0 | E24: х | F24: =IF(F16=0,0,F25/(F16+F19+F22)) -> 0 | G24: х | H24: =IF(H16=0,0,H25/(H16+H19+H22)) -> 0 | I24: 0.4
A25: - сумма выплат | B25: руб. | C25: х | D25: 5427.11 | E25: х | F25: 5173.83 | G25: х | H25: 5707.46 | I25: =(I16+I19+I22)*I24 -> 7127.885952 | J25: =(J16+J19+J22)*J24 -> 0 | K25: =(K16+K19+K22)*K24 -> 0 | L25: =(L16+L19+L22)*L24 -> 0
A26: Вознаграждение за выслугу лет:
A27: - процент выплаты | B27: % | C27: х | D27: =IF(D16=0,0,D28/D16) -> 0 | E27: х | F27: =IF(F16=0,0,F28/F16) -> 0 | G27: х | H27: =IF(H16=0,0,H28/H16) -> 0 | I27: 0.05
A28: - сумма выплат | B28: руб. | C28: х | D28: 731.65 | E28: х | F28: 305.578 | H28: 323.5 | I28: =I16*I27 -> 749.988 | J28: =J16*J27 -> 0 | K28: =K16*K27 -> 0 | L28: =L16*L27 -> 0
A29: Выплаты по итогам года:
A30: - процент выплаты | B30: % | C30: х | D30: =IF(D16=0,0,D31/D16) -> 0 | E30: х | F30: =IF(F16=0,0,F31/F16) -> 0 | G30: х | H30: =IF(H16=0,0,H31/H16) -> 0
A31: - сумма выплат | B31: руб. | C31: х | E31: х | G31: х | I31: =I16*I30 -> 0 | J31: =J16*J30 -> 0 | K31: =K16*K30 -> 0 | L31: =L16*L30 -> 0
A32: Другие доплаты и премии
A33: - процент выплаты | B33: % | C33: х | D33: =IF(D16=0,0,D34/D16) -> 0 | E33: х | F33: =IF(F16=0,0,F34/F16) -> 0 | G33: х | H33: =IF(H16=0,0,H34/H16) -> 0 | I33: 0.1
A34: - сумма выплат | B34: руб. | C34: х | D34: 487.68 | E34: х | F34: 547.22 | H34: 581.57 | I34: =I16*I33 -> 1499.976 | J34: =J16*J33 -> 0 | K34: =K16*K33 -> 0 | L34: =L16*L33 -> 0
A35: ИТОГО среднемесячная оплата труда на 1 рабочего | B35: руб. | C35: х | D35: =D16+D19+D22+D25+D28+D31+D34 -> 24670.91 | E35: х | F35: =F16+F19+F22+F25+F28+F31+F34 -> 22728.993 | G35: х | H35: =H16+H19+H22+H25+H28+H31+H34 -> 25068.46 | I35: 27197.56483 | J35: 0 | K35: 0 | L35: 0
A36: ИТОГО средства на оплату труда основных производственных рабочих | B36: тыс.руб. | C36: х | D36: =D35*D10*12/1000 -> 6809.17116 | E36: х | F36: =F35*F10*12/1000 -> 6545.949984 | G36: х | H36: =H35*H10*12/1000 -> 7520.538 | I36: =I35*I10*12/1000 -> 9464.752562 | J36: =J35*J10*12/1000 -> 0 | K36: =K35*K10*12/1000 -> 0 | L36: =L35*L10*12/1000 -> 0
A37: Среднемесячная заработная плата 1 работника цехового персонала | B37: руб. | C37: х | D37: =IF(D38=0,0,D38/D11/12*1000) -> 0 | E37: х | F37: =IF(F38=0,0,F38/F11/12*1000) -> 0 | G37: х | H37: =IF(H38=0,0,H38/H11/12*1000) -> 0 | I37: =IF(I38=0,0,I38/I11/12*1000) -> 0 | J37: =IF(J38=0,0,J38/J11/12*1000) -> 0 | K37: =IF(K38=0,0,K38/K11/12*1000) -> 0 | L37: =IF(L38=0,0,L38/L11/12*1000) -> 0
A38: ИТОГО средства на оплату труда цехового персонала | B38: тыс.руб. | C38: х | E38: х | G38: х
A39: Среднемесячная заработная плата 1 работника общеэксплуатационного персонала | B39: руб. | C39: х | D39: =IF(D40=0,0,D40/12/D12*1000) -> 31249.52451 | E39: х | F39: =IF(F40=0,0,F40/12/F12*1000) -> 41547.32143 | G39: х | H39: =IF(H40=0,0,H40/12/H12*1000) -> 36340.68656 | I39: =IF(I40=0,0,I40/12/I12*1000) -> 37794.27778 | J39: =IF(J40=0,0,J40/12/J12*1000) -> 0 | K39: =IF(K40=0,0,K40/12/K12*1000) -> 0 | L39: =IF(L40=0,0,L40/12/L12*1000) -> 0
A40: ИТОГО средства на оплату труда общеэксплуатационного персонала | B40: тыс.руб. | C40: х | D40: 6374.903 | E40: х | F40: 6979.95 | G40: х | H40: 6541.32358 | I40: 6802.97
A41: ИТОГО средства на оплату труда | B41: тыс.руб. | C41: ='Подконтрольные расходы'!F17 -> 11429.16225 | D41: =D36+D38+D40 -> 13184.07416 | E41: ='Подконтрольные расходы'!H17 -> 12064.66259 | F41: =F36+F38+F40 -> 13525.89998 | G41: ='Подконтрольные расходы'!J17 -> 12532.8804 | H41: =H36+H38+H40 -> 14061.86158 | I41: 16267.72256 | J41: 0 | K41: 0 | L41: 0
A42: Среднемесячная оплата труда 1 работника организации | B42: руб. | C42: х | D42: =IF(D9=0,0,D41/D9/12*1000) -> 27466.82117 | E42: х | F42: 29662.06137 | G42: х | H42: 29295.54496 | I42: 30810.08061 | J42: 0 | K42: 0 | L42: 0
A44: Руководитель организации | D44: ='Инф-я'!$C$21 -> Окунев Василий Михайлович

Sheet УПХ
A2: Услуги производственного характера, связанные с передачей электрической энергии
A4: ='Инф-я'!C13 -> ООО "Энергетик"
A6: Показатели | B6: 2017 год | D6: 2018 год | F6: 2019 год | H6: 2020 год | J6: 2017 год | K6: 2018 год
B7: Утвержденные | C7: Факт | D7: Утвержденные | E7: Факт | F7: Утвержденные | G7: Ожидаемые | H7: По данным организации | I7: По данным экспертов | J7: Факт по расчету экспертов | K7: Факт по расчету экспертов
A8: 1 | B8: 2 | C8: 3 | D8: 4 | E8: 5 | F8: 6 | G8: 7 | H8: 8 | I8: 9 | J8: 10 | K8: 11
A9: Транспортные услуги сторонних организаций | B9: х | C9: =SUM(C10:C13) -> 0 | D9: х | E9: =SUM(E10:E13) -> 0 | F9: х | G9: =SUM(G10:G13) -> 0 | H9: =SUM(H10:H13) -> 0 | I9: =SUM(I10:I14) -> 0 | J9: =SUM(J10:J14) -> 0 | K9: 0
A10: договор с _____ от_____№ __ на_________ | B10: х | D10: х | F10: х
A11: договор с _____ от_____№ __ на_________ | B11: х | D11: х | F11: х
A12: договор с _____ от_____№ __ на_________ | B12: х | D12: х | F12: х
A13: договор с _____ от_____№ __ на_________ | B13: х | D13: х | F13: х
A14: Добавить
A15: Наладочные работы | B15: х | C15: =SUM(C16:C21) -> 0 | D15: х | E15: =SUM(E16:E21) -> 0 | F15: х | G15: =SUM(G16:G21) -> 0 | H15: =SUM(H16:H21) -> 0 | I15: =SUM(I16:I22) -> 0 | J15: =SUM(J16:J22) -> 0 | K15: 0
A16: договор с _____ от_____№ __ на_________ | B16: х | D16: х | F16: х
A17: договор с _____ от_____№ __ на_________ | B17: х | D17: х | F17: х
A18: договор с _____ от_____№ __ на_________ | B18: х | D18: х | F18: х
A19: договор с _____ от_____№ __ на_________ | B19: х | D19: х | F19: х
A20: договор с _____ от_____№ __ на_________ | B20: х | D20: х | F20: х
A21: договор с _____ от_____№ __ на_________ | B21: х | D21: х | F21: х
A22: Добавить
A23: Техническое обслуживание основных средств | B23: х | C23: =SUM(C24:C27) -> 0 | D23: х | E23: =SUM(E24:E27) -> 0 | F23: х | G23: =SUM(G24:G27) -> 0 | H23: =SUM(H24:H27) -> 0 | I23: =SUM(I24:I28) -> 0 | J23: =SUM(J24:J28) -> 0 | K23: 0
A24: договор с _____ от_____№ __ на_________ | B24: х | D24: х | F24: х
A25: договор с _____ от_____№ __ на_________ | B25: х | D25: х | F25: х
A26: договор с _____ от_____№ __ на_________ | B26: х | D26: х | F26: х
A27: договор с _____ от_____№ __ на_________ | B27: х | D27: х | F27: х
A28: Добавить
A29: Поверка средств измерений | B29: х | C29: =SUM(C30:C41) -> 0 | D29: х | E29: =SUM(E30:E41) -> 0 | F29: х | G29: =SUM(G30:G41) -> 0 | H29: =SUM(H30:H41) -> 0 | I29: =SUM(I30:I42) -> 0 | J29: =SUM(J30:J42) -> 0 | K29: 0
A30: договор с _____ от_____№ __ на_________ | B30: х | D30: х | F30: х
A31: договор с _____ от_____№ __ на_________ | B31: х | D31: х | F31: х
A32: договор с _____ от_____№ __ на_________ | B32: х | D32: х | F32: х
A33: договор с _____ от_____№ __ на_________ | B33: х | D33: х | F33: х
A34: договор с _____ от_____№ __ на_________ | B34: х | D34: х | F34: х
A35: договор с _____ от_____№ __ на_________ | B35: х | D35: х | F35: х
A36: договор с _____ от_____№ __ на_________ | B36: х | D36: х | F36: х
A37: договор с _____ от_____№ __ на_________ | B37: х | D37: х | F37: х
A38: договор с _____ от_____№ __ на_________ | B38: х | D38: х | F38: х
A39: договор с _____ от_____№ __ на_________ | B39: х | D39: х | F39: х
A40: договор с _____ от_____№ __ на_________ | B40: х | D40: х | F40: х
A41: договор с _____ от_____№ __ на_________ | B41: х | D41: х | F41: х
A42: Добавить
A43: Прочие | B43: х | C43: =SUM(C44:C52) -> 168.1337 | D43: х | E43: =SUM(E44:E52) -> 292.04044 | F43: х | G43: =SUM(G44:G52) -> 276.6 | H43: =SUM(H44:H52) -> 287.7 | I43: =SUM(I44:I53) -> 0 | J43: =SUM(J44:J53) -> 0 | K43: 0
A44: договор с ООО "Желдорэкспедиция" на услуги по перевозке | B44: х | C44: 15.23 | D44: х | F44: х
A45: договор с ООО "Желдорэкспедиция-Москва" на услуги по перевозке | B45: х | C45: 2.998 | D45: х | E45: 9.91 | F45: х | G45: 10.5 | H45: 11
A46: договор с ООО "Деловые линии" на услуги по перевозке | B46: х | D46: х | E46: 1.056 | F46: х | G46: 1.5 | H46: 1.6
A47: договор с ООО "Матрица" на ремонт электросчетчиков | B47: х | C47: 34.574 | D47: х | E47: 79.42344 | F47: х | G47: 82.6 | H47: 85.9
A48: договор с ООО "Про-Сервис" на охрану ТП | B48: х | C48: 35.09557 | D48: х | E48: 21.489 | F48: х | G48: 23.8 | H48: 24.8
A49: договор с ОВО по Александровскому району на охрану ТП | B49: х | C49: 66.93613 | D49: х | E49: 130.962 | F49: х | G49: 136.2 | H49: 141.6
A50: договор с ООО "Тензор" на ЭКЦП | B50: х | C50: 13.3 | D50: х | E50: 18 | F50: х | G50: 18.7 | H50: 19.4
A51: договор с ООО "Гранд-Владимир" на обновление программы "ГрандСмета" | B51: х | D51: х | E51: 3.2 | F51: х | G51: 3.3 | H51: 3.4
A52: договор с ООО "Энергомонтаж" на доставку груза | B52: х | D52: х | E52: 28 | F52: х
A53: Добавить
A54: ИТОГО услуги производственного характера | B54: ='Подконтрольные расходы'!F21 -> 0 | C54: =C9+C15+C23+C29+C43 -> 168.1337 | D54: ='Подконтрольные расходы'!H21 -> 0 | E54: =E9+E15+E23+E29+E43 -> 292.04044 | F54: ='Подконтрольные расходы'!J21 -> 0 | G54: =G9+G15+G23+G29+G43 -> 276.6 | H54: =H9+H15+H23+H29+H43 -> 287.7 | I54: =I9+I15+I23+I29+I43 -> 0 | J54: =J9+J15+J23+J29+J43 -> 0 | K54: 0
A56: Руководитель организации | D56: ='Инф-я'!$C$21 -> Окунев Василий Михайлович

Sheet УНПХ
A2: Услуги непроизводственного характера, связанные с передачей электрической энергии
A4: ='Инф-я'!C13 -> ООО "Энергетик"
A6: Показатели | B6: 2017 год | D6: 2018 год | F6: 2019 год | H6: 2020 год | J6: 2017 год | K6: 2018 год
B7: Утвержденные | C7: Факт | D7: Утвержденные | E7: Факт | F7: Утвержденные | G7: Ожидаемые | H7: По данным организации | I7: По данным экспертов | J7: Факт по расчету экспертов | K7: Факт по расчету экспертов
A8: 1 | B8: 2 | C8: 3 | D8: 4 | E8: 5 | F8: 6 | G8: 7 | H8: 8 | I8: 9 | J8: 10 | K8: 11
A9: Услуги связи | B9: х | C9: =SUM(C10:C14) -> 137.293 | D9: х | E9: =SUM(E10:E14) -> 146.139 | F9: х | G9: 151.98456 | H9: 158.0639424 | I9: =SUM(I10:I15) -> 0 | J9: =SUM(J10:J15) -> 0 | K9: 0
A10: договор с ООО "Телеком Сервис_____ от_____№ __ на_________ | B10: х | C10: 2.22 | D10: х | E10: 3.215 | F10: х | G10: =E10*1.04 -> 3.3436 | H10: =G10*1.04 -> 3.477344
A11: договор с ООО "Инфокар" от_____№ __ на_________ | B11: х | C11: 54 | D11: х | E11: 54 | F11: х | G11: =E11*1.04 -> 56.16 | H11: =G11*1.04 -> 58.4064
A12: договор с ООО "Новосистем" от_____№ __ на_________ | B12: х | C12: 38.975 | D12: х | E12: 32.507 | F12: х | G12: 33.80728 | H12: 35.1595712
A13: договор с ПАО "Ростелеком" от_____№ __ на_________ | B13: х | C13: 37.543 | D13: х | E13: 34.204 | F13: х | G13: 35.57216 | H13: 36.9950464
A14: договор с УФ ПАО "Мегафон" от_____№ __ на_________ | B14: х | C14: 4.555 | D14: х | E14: 22.213 | F14: х | G14: 23.10152 | H14: 24.0255808
A15: Добавить
A16: Услуги по охране помещений | B16: х | C16: =SUM(C17:C18) -> 0 | D16: х | E16: =SUM(E17:E18) -> 0 | F16: х | G16: 0 | H16: 0 | I16: =SUM(I17:I19) -> 0 | J16: =SUM(J17:J19) -> 0 | K16: 0
A17: договор с _____ от_____№ __ на_________ | B17: х | D17: х | F17: х
A18: договор с _____ от_____№ __ на_________ | B18: х | D18: х | F18: х
A19: Добавить
A20: Юридические и информационные услуги | B20: х | C20: =SUM(C21:C22) -> 304.5 | D20: х | E20: =SUM(E21:E22) -> 635.5 | F20: х | G20: =SUM(G21:G22) -> 660.92 | H20: 687.3568 | I20: =SUM(I21:I22) -> 0 | J20: =SUM(J21:J22) -> 0 | K20: 0
A21: договор с ООО "Лига Оптима"от_____№ __ на_________ | B21: х | C21: 296.5 | D21: х | E21: 635.5 | F21: х | G21: =E21*1.04 -> 660.92 | H21: =G21*1.04 -> 687.3568
A22: договор с ООО "Графика"_____ от_____№ __ на_________ | B22: х | C22: 8 | D22: х | F22: х
A23: Аудиторские и консультационные услуги | B23: х | C23: =SUM(C24:C27) -> 1721.828 | D23: х | E23: =SUM(E24:E27) -> 1632 | F23: х | G23: =SUM(G24:G27) -> 1710.32 | H23: =SUM(H24:H27) -> 1778.6768 | I23: 0 | J23: =SUM(J24:J27) -> 0 | K23: 0
A24: договор с ООО "Анит-Аудит" от_____№ __ на_________ | B24: х | C24: 80 | D24: х | E24: 80 | F24: х | G24: 83.2 | H24: 86.5
A25: договор с ООО ФГУ "Владимирэнерго" от_____№ __ на_________ | B25: х | C25: 1600 | D25: х | E25: 1523 | F25: х | G25: =E25*1.04 -> 1583.92 | H25: =G25*1.04 -> 1647.2768
A26: договор с ООО "Креол"от_____№ __ на_________ | B26: х | C26: 41.828 | D26: х | E26: 29 | F26: х | G26: 43.2 | H26: 44.9
B27: х | D27: х | F27: х
A28: Добавить
A29: Электрическая энергия на хозяйственные нужды | B29: х | C29: =SUM(C30:C35) -> 154.175 | D29: х | E29: =SUM(E30:E35) -> 142.997 | F29: х | G29: =SUM(G30:G35) -> 156 | H29: =SUM(H30:H35) -> 162.2 | I29: 0 | J29: =SUM(J30:J35) -> 0 | K29: 0
A30: договор с ООО "Владимирэнергосбыт" от_____№ __ на_________ | B30: х | C30: 76.113 | D30: х | F30: х
A31: договор с ПАО "МРСК Центра и Приволжья" Филиал "Владимирэнерго" от_____№ __ на_________ | B31: х | C31: 78.062 | D31: х | E31: 42.804 | F31: х
A32: договор сООО "ЭСВ" от_____№ __ на_________ | B32: х | D32: х | E32: 100.193 | F32: х | G32: 156 | H32: 162.2
A33: договор с _____ от_____№ __ на_________ | B33: х | D33: х | F33: х
A34: договор с _____ от_____№ __ на_________ | B34: х | D34: х | F34: х
A35: договор с _____ от_____№ __ на_________ | B35: х | D35: х | F35: х
A36: Прочие услуги непроизводственного характера | B36: х | C36: =SUM(C37:C42) -> 97.731 | D36: х | E36: =SUM(E37:E42) -> 140.9 | F36: х | G36: =SUM(G37:G42) -> 146.5 | H36: =SUM(H37:H42) -> 152.4 | I36: =SUM(I37:I43) -> 0 | J36: =SUM(J37:J43) -> 0 | K36: =SUM(K37:K43) -> 0
A37: договор с ООО "Техкадастр" на присвоение кадастрового номера | B37: х | C37: 20.7 | D37: х | F37: х
A38: договор с ООО "Медиа-КП"_____ от_____№ __ на_________ | B38: х | C38: 12 | D38: х | F38: х
A39: договор с ООО "АиФ Владимир" от_____№ __ на_________ | B39: х | C39: 29.475 | D39: х | E39: 77.7 | F39: х | G39: 80.8 | H39: 84
A40: договор с ООО "КоммерсантЭксперт"от_____№ __ на_________ | B40: х | C40: 17.556 | D40: х | F40: х
A41: договор с ООО "Новый Мир"от_____№ __ на_________ | B41: х | C41: 18 | D41: х | E41: 62 | F41: х | G41: 64.5 | H41: 67.1
A42: договор с ООО "Голос труда"от_____№ __ на_________ | B42: х | D42: х | E42: 1.2 | F42: х | G42: 1.2 | H42: 1.3
A43: Добавить
A44: ИТОГО услуги непроизводственного характера | B44: ='Подконтрольные расходы'!F22 -> 553.2565789 | C44: =C9+C16+C20+C36+C23+C29 -> 2415.527 | D44: ='Подконтрольные расходы'!H22 -> 584.0195288 | E44: =E9+E16+E20+E36+E23+E29 -> 2697.536 | F44: ='Подконтрольные расходы'!J22 -> 606.6847583 | G44: =G9+G16+G20+G36+G23+G29 -> 2825.72456 | H44: 2938.697542 | I44: 0 | J44: 0 | K44: 0
A46: Руководитель организации | D46: ='Инф-я'!$C$21 -> Окунев Василий Михайлович

Sheet Страхов
A2: Расходы на страхование
A4: ='Инф-я'!C13 -> ООО "Энергетик"
A6: Показатели | B6: 2017 год | D6: 2018 год | F6: 2019 год | H6: 2020 год | J6: 2017 год | K6: 2018 год
B7: Утвержденные | C7: Факт | D7: Утвержденные | E7: Факт | F7: Утвержденные | G7: Ожидаемые | H7: По данным организации | I7: По данным экспертов | J7: Факт по расчету экспертов | K7: Факт по расчету экспертов
A8: 1 | B8: 2 | C8: 3 | D8: 4 | E8: 5 | F8: 6 | G8: 7 | H8: 8 | I8: 9 | J8: 10 | K8: 11
A9: Страхование имущества | B9: х | C9: =SUM(C10:C12) -> 25.775 | D9: х | E9: 0 | F9: х | G9: =SUM(G10:G12) -> 0 | H9: =SUM(H10:H12) -> 0 | I9: =SUM(I10:I13) -> 0 | J9: =SUM(J10:J13) -> 0 | K9: 0
A10: договор с Росгосстрах от_____№ __ | B10: х | C10: 25.775 | D10: х | F10: х
A11: договор с _____ от_____№ __ | B11: х | D11: х | F11: х
A12: договор с _____ от_____№ __ | B12: х | D12: х | F12: х
A13: Добавить
A14: Страхование работников от несчастных случаев | B14: х | C14: =SUM(C15:C16) -> 0 | D14: х | E14: 0 | F14: х | G14: =SUM(G15:G16) -> 0 | H14: =SUM(H15:H16) -> 0 | I14: =SUM(I15:I16) -> 0 | J14: =SUM(J15:J16) -> 0 | K14: 0
A15: договор с _____ от_____№ __ | B15: х | D15: х | F15: х
A16: договор с _____ от_____№ __ | B16: х | D16: х | F16: х
A17: Добавить
A18: Страхование гражданской ответственности владельцев транспортных средств | B18: х | C18: =SUM(C19:C20) -> 0 | D18: х | E18: 0 | F18: х | G18: =SUM(G19:G20) -> 0 | H18: =SUM(H19:H20) -> 0 | I18: =SUM(I19:I21) -> 0 | J18: =SUM(J19:J21) -> 0 | K18: 0
A19: Данные полиса | B19: х | D19: х | F19: х
A20: Данные полиса | B20: х | D20: х | F20: х
A21: Добавить
A22: Другие виды страхования | B22: х | C22: =SUM(C23:C24) -> 0 | D22: х | E22: 0 | F22: х | G22: =SUM(G23:G24) -> 0 | H22: =SUM(H23:H24) -> 0 | I22: =SUM(I23:I25) -> 0 | J22: =SUM(J23:J25) -> 0 | K22: 0
A23: договор с _____ от_____№ __ | B23: х | D23: х | F23: х
A24: договор с _____ от_____№ __ | B24: х | D24: х | F24: х
A25: Добавить
A26: ИТОГО расходы на страхование | B26: ='Подконтрольные расходы'!F26 -> 0 | C26: =C9+C14+C18+C22 -> 25.775 | D26: ='Подконтрольные расходы'!H26 -> 0 | E26: =E9+E14+E18+E22 -> 0 | F26: ='Подконтрольные расходы'!J26 -> 0 | G26: =G9+G14+G18+G22 -> 0 | H26: 0 | I26: 0 | J26: 0 | K26: 0
A28: Руководитель организации | D28: ='Инф-я'!$C$21 -> Окунев Василий Михайлович

Sheet Обуч
A2: Расходы на обучение, подготовку и переподготовку кадров
A4: ='Инф-я'!C13 -> ООО "Энергетик"
A6: Показатели | B6: 2017 год | D6: 2018 год | F6: 2019 год | H6: 2020 год | J6: 2017 год | K6: 2018 год
B7: Утвержденные | C7: Факт | D7: Утвержденные | E7: Факт | F7: Утвержденные | G7: Ожидаемые | H7: По данным организации | I7: По данным экспертов | J7: Факт по расчету экспертов | K7: Факт по расчету экспертов
A8: 1 | B8: 2 | C8: 3 | D8: 4 | E8: 5 | F8: 6 | G8: 7 | H8: 8 | I8: 9 | J8: 10 | K8: 11
A9: договор с ООО "Стройресурс" на обучение | B9: х | C9: 11 | D9: х | F9: х | H9: 15
A10: договор с ИП Дементьева Н.И.от_____№ __ на обучение | B10: х | C10: 6.6 | D10: х | E10: 6.25 | F10: х | G10: 6.5 | H10: 6.7
A11: договор с _____ от_____№ __ на_________ | B11: х | D11: х | F11: х | G11: 8
A12: договор с _____ от_____№ __ на_________ | B12: х | D12: х | F12: х
A13: договор с _____ от_____№ __ на_________ | B13: х | D13: х | F13: х
A14: договор с _____ от_____№ __ на_________ | B14: х | D14: х | F14: х
A15: Добавить
A16: ИТОГО расходы на обучение | B16: ='Подконтрольные расходы'!F25 -> 99.25851115 | C16: =SUM(C9:C14) -> 17.6 | D16: ='Подконтрольные расходы'!H25 -> 104.7776224 | E16: =SUM(E9:E14) -> 6.25 | F16: ='Подконтрольные расходы'!J25 -> 108.8439399 | G16: =SUM(G9:G14) -> 14.5 | H16: =SUM(H9:H14) -> 21.7 | I16: =SUM(I9:I14) -> 0 | J16: 0 | K16: 0
A18: Руководитель организации | D18: ='Инф-я'!$C$21 -> Окунев Василий Михайлович

Sheet ОТ и ТБ
A2: Расходы на обеспечение нормальных условий труда и техники безопасности
A4: ='Инф-я'!C13 -> ООО "Энергетик"
A6: Показатели | B6: 2017 год | D6: 2018 год | F6: 2019 год | H6: 2020 год | J6: 2017 год | K6: 2018 год
B7: Утвержденные | C7: Факт | D7: Утвержденные | E7: Факт | F7: Утвержденные | G7: Ожидаемые | H7: По данным организации | I7: По данным экспертов | J7: Факт по расчету экспертов | K7: Факт по расчету экспертов
A8: 1 | B8: 2 | C8: 3 | D8: 4 | E8: 5 | F8: 6 | G8: 7 | H8: 8 | I8: 9 | J8: 10 | K8: 11
A9: Спецпитание | B9: х | D9: х | F9: х
A10: Средства индивидуальной защиты | B10: х | C10: 43.1 | D10: х | E10: 311.3 | F10: х | G10: 50 | H10: 320
A11: Смывающие и обезвреживающие средства | B11: х | D11: х | F11: х
A12: Медицинские осмотры | B12: х | C12: =SUM(C13:C16) -> 0 | D12: х | E12: =SUM(E13:E16) -> 0 | F12: х | G12: =SUM(G13:G16) -> 0 | H12: =SUM(H13:H16) -> 0 | I12: =SUM(I13:I16) -> 0 | J12: =SUM(J13:J16) -> 0 | K12: 0
A13: договор с _____ от_____№ __ на_________ | B13: х | D13: х | F13: х
A14: договор с _____ от_____№ __ на_________ | B14: х | D14: х | F14: х
A15: договор с _____ от_____№ __ на_________ | B15: х | D15: х | F15: х
A16: договор с _____ от_____№ __ на_________ | B16: х | D16: х | F16: х
A17: Добавить
A18: Прочие расходы на обеспечение нормальных условий труда и техники безопасности | B18: х | C18: =SUM(C19:C21) -> 36 | D18: х | E18: =SUM(E19:E21) -> 36 | F18: х | G18: 42 | H18: 42 | I18: =SUM(I19:I22) -> 0 | J18: =SUM(J19:J22) -> 0 | K18: 0
A19: договор с ФГУП "Профдезинсекция" от 19.05.2016г. № 68 на дератизацию | B19: х | C19: 36 | D19: х | E19: 36 | F19: х | G19: 42 | H19: 42
A20: договор с _____ от_____№ __ на_________ | B20: х | D20: х | F20: х
A21: договор с _____ от_____№ __ на_________ | B21: х | D21: х | F21: х
A22: Добавить
A23: ИТОГО расходы на обеспечение нормальных условий труда и техники безопасности | B23: ='Подконтрольные расходы'!F23 -> 76.52583824 | C23: =C9+C10+C11+C12+C18 -> 79.1 | D23: ='Подконтрольные расходы'!H23 -> 80.78093546 | E23: =E9+E10+E11+E12+E18 -> 347.3 | F23: ='Подконтрольные расходы'!J23 -> 83.91596494 | G23: =G9+G10+G11+G12+G18 -> 92 | H23: =H9+H10+H11+H12+H18 -> 362 | I23: =I9+I10+I11+I12+I18 -> 0 | J23: =J9+J10+J11+J12+J18 -> 0 | K23: 0
A25: Руководитель организации | D25: ='Инф-я'!$C$21 -> Окунев Василий Михайлович

Sheet Команд
A2: Расходы на командировки
A4: ='Инф-я'!C13 -> ООО "Энергетик"
A6: Показатели | B6: 2017 год | D6: 2018 год | F6: 2019 год | H6: 2020 год | J6: 2017 год | K6: 2018 год
B7: Утвержденные | C7: Факт | D7: Утвержденные | E7: Факт | F7: Утвержденные | G7: Ожидаемые | H7: По данным организации | I7: По данным экспертов | J7: Факт по расчету экспертов | K7: Факт по расчету экспертов
A8: 1 | B8: 2 | C8: 3 | D8: 4 | E8: 5 | F8: 6 | G8: 7 | H8: 8 | I8: 9 | J8: 10 | K8: 11
B9: х | D9: х | F9: х
B10: х | D10: х | F10: х
B11: х | D11: х | F11: х
B12: х | D12: х | F12: х
A13: Итого расходы на командировки | B13: ='Подконтрольные расходы'!F24 -> 0 | C13: =SUM(C9:C12) -> 0 | D13: ='Подконтрольные расходы'!H24 -> 0 | E13: =SUM(E9:E12) -> 0 | F13: ='Подконтрольные расходы'!J24 -> 0 | G13: 0 | H13: 0 | I13: 0 | J13: 0 | K13: 0
A15: Руководитель организации | D15: ='Инф-я'!$C$21 -> Окунев Василий Михайлович

Sheet Услуги банков
A2: Расходы на оплату услуг банков
A4: ='Инф-я'!C13 -> ООО "Энергетик"
A6: Показатели | B6: 2017 год | D6: 2018 год | F6: 2019 год | H6: 2020 год | J6: 2017 год | K6: 2018 год
B7: Утвержденные | C7: Факт | D7: Утвержденные | E7: Факт | F7: Утвержденные | G7: Ожидаемые | H7: По данным организации | I7: По данным экспертов | J7: Факт по расчету экспертов | K7: Факт по расчету экспертов
A8: 1 | B8: 2 | C8: 3 | D8: 4 | E8: 5 | F8: 6 | G8: 7 | H8: 8 | I8: 9 | J8: 10 | K8: 11
A9: договор с ПАО Сбербанк от_____№ __ | B9: х | C9: 119.446 | D9: х | E9: 63.808 | F9: х | G9: 66.36 | H9: 69.014
A10: договор с _____ от_____№ __ | B10: х | D10: х | F10: х
A11: договор с _____ от_____№ __ | B11: х | D11: х | F11: х
A12: договор с _____ от_____№ __ | B12: х | D12: х | F12: х
A13: Добавить
A14: ИТОГО расходы на оплату услуг банков | B14: ='Подконтрольные расходы'!F27 -> 158.0059504 | C14: =SUM(C9:C12) -> 119.446 | D14: ='Подконтрольные расходы'!H27 -> 166.7916193 | E14: 63.808 | F14: ='Подконтрольные расходы'!J27 -> 173.2646397 | G14: 66.36 | H14: 69.014 | I14: 0 | J14: 0 | K14: 0
A16: Руководитель организации | D16: ='Инф-я'!$C$21 -> Окунев Василий Михайлович

Sheet Прочие ПР
A2: Прочие обоснованные подконтрольные расходы, связанные с передачей электрической энергии
A4: ='Инф-я'!C13 -> ООО "Энергетик"
A6: Показатели | B6: 2017 год | D6: 2018 год | F6: 2019 год | H6: 2020 год | J6: 2017 год | K6: 2018 год
B7: Утвержденные | C7: Факт | D7: Утвержденные | E7: Факт | F7: Утвержденные | G7: Ожидаемые | H7: По данным организации | I7: По данным экспертов | J7: Факт по расчету экспертов | K7: Факт по расчету экспертов
A8: 1 | B8: 2 | C8: 3 | D8: 4 | E8: 5 | F8: 6 | G8: 7 | H8: 8 | I8: 9 | J8: 10 | K8: 11
B9: х | D9: х | F9: х
B10: х | D10: х | F10: х
B11: х | D11: х | F11: х
B12: х | D12: х | F12: х
A13: Добавить
A14: ИТОГО другие расходы, связанные с передачей электроэнергии | B14: ='Подконтрольные расходы'!F28 -> 0 | C14: =SUM(C9:C12) -> 0 | D14: ='Подконтрольные расходы'!H28 -> 0 | E14: =SUM(E9:E12) -> 0 | F14: ='Подконтрольные расходы'!J28 -> 0 | G14: =SUM(G9:G12) -> 0 | H14: =SUM(H9:H12) -> 0 | I14: =SUM(I9:I12) -> 0 | J14: 0 | K14: 0
A16: Руководитель организации | D16: ='Инф-я'!$C$21 -> Окунев Василий Михайлович

Sheet Расходы по кол дог
A2: Расходы по коллективным договорам
A4: ='Инф-я'!C13 -> ООО "Энергетик"
A6: Показатели | B6: 2017 год | D6: 2018 год | F6: 2019 год | H6: 2020 год | J6: 2017 год | K6: 2018 год
B7: Утвержденные | C7: Факт | D7: Утвержденные | E7: Факт | F7: Утвержденные | G7: Ожидаемые | H7: По данным организации | I7: По данным экспертов | J7: Факт по расчету экспертов | K7: Факт по расчету экспертов
A8: 1 | B8: 2 | C8: 3 | D8: 4 | E8: 5 | F8: 6 | G8: 7 | H8: 8 | I8: 9 | J8: 10 | K8: 11
A9: Вознаграждения, премии, всего, в том числе: | B9: х | C9: =SUM(C10:C13) -> 0 | D9: х | E9: =SUM(E10:E13) -> 0 | F9: х | G9: =SUM(G10:G13) -> 0 | H9: =SUM(H10:H13) -> 0 | I9: =SUM(I10:I13) -> 0 | J9: =SUM(J10:J13) -> 0 | K9: 0
A10: Материальная помощь | B10: х | D10: х | F10: х
A11: Введите название | B11: х | D11: х | F11: х
A12: Введите название | B12: х | D12: х | F12: х
A13: Введите название | B13: х | D13: х | F13: х
A14: Добавить
A15: Материальная помощь, всего, в том числе: | B15: х | C15: =SUM(C16:C18) -> 432.525 | D15: х | E15: =SUM(E16:E18) -> 692.79 | F15: х | G15: =SUM(G16:G18) -> 762.069 | H15: =SUM(H16:H18) -> 792.55 | I15: =SUM(I16:I18) -> 0 | J15: =SUM(J16:J18) -> 0 | K15: 0
A16: Введите название | B16: х | C16: 432.525 | D16: х | E16: 692.79 | F16: х | G16: 762.069 | H16: 792.55
A17: Введите название | B17: х | D17: х | F17: х
A18: Введите название | B18: х | D18: х | F18: х
A19: Добавить
A20: Оплата дополнительных отпусков | B20: х | D20: х | F20: х
A21: Оплата проезда | B21: х | D21: х | F21: х
A22: Оплата путевок на лечение и отдых | B22: х | D22: х | F22: х
A23: Прочие расходы социального характера, всего, в том числе: | B23: х | C23: =SUM(C24:C27) -> 0 | D23: х | E23: =SUM(E24:E27) -> 0 | F23: х | G23: =SUM(G24:G27) -> 0 | H23: =SUM(H24:H27) -> 0 | I23: =SUM(I24:I27) -> 0 | J23: =SUM(J24:J27) -> 0 | K23: 0
A24: Введите название | B24: х | D24: х | F24: х
A25: Введите название | B25: х | D25: х | F25: х
A26: Введите название | B26: х | D26: х | F26: х
A27: Введите название | B27: х | D27: х | F27: х
A28: Добавить
A29: ИТОГО расходов на выплаты социального характера | B29: ='Подконтрольные расходы'!F30 -> 329.8439377 | C29: =C9+C15+C20+C21+C22+C23 -> 432.525 | D29: ='Подконтрольные расходы'!H30 -> 348.184384 | E29: =E9+E15+E20+E21+E22+E23 -> 692.79 | F29: ='Подконтрольные расходы'!J30 -> 361.697081 | G29: =G9+G15+G20+G21+G22+G23 -> 762.069 | H29: =H9+H15+H20+H21+H22+H23 -> 792.55 | I29: =I9+I15+I20+I21+I22+I23 -> 0 | J29: =J9+J15+J20+J21+J22+J23 -> 0 | K29: 0
A31: Руководитель организации | D31: ='Инф-я'!$C$21 -> Окунев Василий Михайлович

Sheet другие расходы прибыль
A2: Другие расходы из прибыли
A4: ='Инф-я'!C13 -> ООО "Энергетик"
A6: Показатели | B6: 2017 год | D6: 2018 год | F6: 2019 год | H6: 2020 год | J6: 2017 год | K6: 2018 год
B7: Утвержденные | C7: Факт | D7: Утвержденные | E7: Факт | F7: Утвержденные | G7: Ожидаемые | H7: По данным организации | I7: По данным экспертов | J7: Факт по расчету экспертов | K7: Факт по расчету экспертов
A8: 1 | B8: 2 | C8: 3 | D8: 4 | E8: 5 | F8: 6 | G8: 7 | H8: 8 | I8: 9 | J8: 10 | K8: 11
A9: Введите название | B9: х | D9: х | F9: х
A10: Введите название | B10: х | D10: х | F10: х
A11: Введите название | B11: х | D11: х | F11: х
A12: Введите название | B12: х | D12: х | F12: х
A13: Введите название | B13: х | D13: х | F13: х
A14: Добавить
A15: Всего расходов | B15: ='Подконтрольные расходы'!F31 -> 0 | C15: =SUM(C9:C13) -> 0 | D15: ='Подконтрольные расходы'!H31 -> 0 | E15: =SUM(E9:E13) -> 0 | F15: ='Подконтрольные расходы'!J31 -> 0 | G15: =SUM(G9:G13) -> 0 | H15: =SUM(H9:H13) -> 0 | I15: =SUM(I9:I14) -> 0 | J15: =SUM(J9:J14) -> 0 | K15: 0
A17: Руководитель организации | E17: ='Инф-я'!$C$21 -> Окунев Василий Михайлович

Sheet Расчет аморт. max срок
A1: Заполняется в Рублях !
A2: Расчет амортизационных отчислений основных средств, участвующих в передаче электрической энергии по максимальному сроку использования и расчет среднегодовой стоимости ОС
A3: ='Инф-я'!C13 -> ООО "Энергетик"
A5: Группа учета ОС \ Амортизационная группа \ Основное средство, Инвентарный номер, Дата принятия к учету | B5: Год ввода | C5: Срок полезного использования, мес. | E5: На начало 01.01.2019 г. | H5: За 1 квартал 2019 года | L5: На конец 31.03.2019 г. | O5: Амортизация (2-4 квартал 2019) | P5: Амортизация (2019 год) | Q5: Остаточная стоимость на начало 2020 года | R5: Амортизация на 2020 год | T5: Остаточная стоимость на начало 2021 года | U5: Налоговая ставка (%) | V5: Среднегодовая остаточная стоимость ОС
C6: бух.учет | D6: Максимальный срок по группе | E6: Стоимость | F6: Накопленная амортизация (износ) | G6: Остаточная стоимость | H6: Увеличение стоимости | I6: Начисление амортизации (износа) | J6: Уменьшение стоимости | K6: Списание амортизации (износа) | L6: Стоимость | M6: Накопленная амортизация (износ) | N6: Остаточная стоимость | P6: Амортизация (2015 год) | Q6: Остаточная стоимость на начало 2016 года | R6: бух.учет | S6: Максимальный срок по группе | V6: облагаемых по ставке 2,2 % | W6: необлагаемых налогом (движимое имущество)
A7: Первая группа (от 1 года до 2 лет включительно)
C8: 24 | D8: 24 | O8: =IF(C8>0,IF(N8>L8/C8*9,(L8/C8*9),N8),0) -> 0 | P8: =I8+O8 -> 0 | Q8: =IF((N8-O8)>0,(N8-O8),0) -> 0 | R8: =IF(C8>0,IF(Q8>L8/C8*12,(L8/C8*12),Q8),0) -> 0 | S8: =IF(D8>0,IF(Q8>L8/D8*12,(L8/D8*12),Q8),0) -> 0 | T8: =IF((Q8-R8)>0,(Q8-R8),0) -> 0 | V8: =IF(U8=2.2,(T8+Q8)/2,0) -> 0 | W8: =IF(U8=0,(T8+Q8)/2,0) -> 0
D9: =$D$8 -> 24 | O9: 0 | P9: =I9+O9 -> 0 | Q9: =IF((N9-O9)>0,(N9-O9),0) -> 0 | R9: =IF(C9>0,IF(Q9>L9/C9*12,(L9/C9*12),Q9),0) -> 0 | S9: =IF(D9>0,IF(Q9>L9/D9*12,(L9/D9*12),Q9),0) -> 0 | T9: =IF((Q9-R9)>0,(Q9-R9),0) -> 0 | V9: =IF(U9=2.2,(T9+Q9)/2,0) -> 0 | W9: =IF(U9=0,(T9+Q9)/2,0) -> 0
D10: =$D$8 -> 24 | O10: 0 | P10: =I10+O10 -> 0 | Q10: =IF((N10-O10)>0,(N10-O10),0) -> 0 | R10: =IF(C10>0,IF(Q10>L10/C10*12,(L10/C10*12),Q10),0) -> 0 | S10: =IF(D10>0,IF(Q10>L10/D10*12,(L10/D10*12),Q10),0) -> 0 | T10: =IF((Q10-R10)>0,(Q10-R10),0) -> 0 | V10: =IF(U10=2.2,(T10+Q10)/2,0) -> 0 | W10: =IF(U10=0,(T10+Q10)/2,0) -> 0
A11: Добавить
A12: Вторая группа (свыше 2 лет до 3 лет включительно)
C13: 36 | D13: 36 | O13: =IF(C13>0,IF(N13>L13/C13*9,(L13/C13*9),N13),0) -> 0 | P13: =I13+O13 -> 0 | Q13: =IF((N13-O13)>0,(N13-O13),0) -> 0 | R13: =IF(C13>0,IF(Q13>L13/C13*12,(L13/C13*12),Q13),0) -> 0 | S13: =IF(D13>0,IF(Q13>L13/D13*12,(L13/D13*12),Q13),0) -> 0 | T13: =IF((Q13-R13)>0,(Q13-R13),0) -> 0 | U13: 2.2 | V13: =IF(U13=2.2,(T13+Q13)/2,0) -> 0 | W13: =IF(U13=0,(T13+Q13)/2,0) -> 0
D14: =$D$13 -> 36 | O14: =IF(C14>0,IF(N14>L14/C14*9,(L14/C14*9),N14),0) -> 0 | P14: =I14+O14 -> 0 | Q14: =IF((N14-O14)>0,(N14-O14),0) -> 0 | R14: =IF(C14>0,IF(Q14>L14/C14*12,(L14/C14*12),Q14),0) -> 0 | S14: =IF(D14>0,IF(Q14>L14/D14*12,(L14/D14*12),Q14),0) -> 0 | T14: =IF((Q14-R14)>0,(Q14-R14),0) -> 0 | V14: =IF(U14=2.2,(T14+Q14)/2,0) -> 0 | W14: =IF(U14=0,(T14+Q14)/2,0) -> 0
D15: =$D$13 -> 36 | O15: 0 | P15: =I15+O15 -> 0 | Q15: =IF((N15-O15)>0,(N15-O15),0) -> 0 | R15: =IF(C15>0,IF(Q15>L15/C15*12,(L15/C15*12),Q15),0) -> 0 | S15: =IF(D15>0,IF(Q15>L15/D15*12,(L15/D15*12),Q15),0) -> 0 | T15: =IF((Q15-R15)>0,(Q15-R15),0) -> 0 | V15: =IF(U15=2.2,(T15+Q15)/2,0) -> 0 | W15: =IF(U15=0,(T15+Q15)/2,0) -> 0
A16: Добавить
A17: Третья группа (свыше 3 лет до 5 лет включительно)
A18: Зеркальная камера | C18: 60 | D18: 60 | E18: 89980 | F18: 50988.78 | G18: =E18-F18 -> 38991.22 | I18: 4499.01 | J18: 89980 | K18: 55487.79 | O18: =IF(C18>0,IF(N18>L18/C18*9,(L18/C18*9),N18),0) -> 0 | P18: =I18+O18 -> 4499.01 | Q18: =IF((N18-O18)>0,(N18-O18),0) -> 0 | R18: =IF(C18>0,IF(Q18>L18/C18*12,(L18/C18*12),Q18),0) -> 0 | S18: =IF(D18>0,IF(Q18>L18/D18*12,(L18/D18*12),Q18),0) -> 0 | T18: =IF((Q18-R18)>0,(Q18-R18),0) -> 0 | V18: =IF(U18=2.2,(T18+Q18)/2,0) -> 0 | W18: =IF(U18=0,(T18+Q18)/2,0) -> 0
A19: Планшет 12,9* Apple IPAD Pro Wi-Fi | C19: 60 | D19: =$D$18 -> 60 | E19: 76990 | F19: 72712.7 | G19: 4277.3 | I19: 4277.26 | J19: 76990 | K19: 76990 | O19: 0 | P19: =I19+O19 -> 4277.26 | Q19: =IF((N19-O19)>0,(N19-O19),0) -> 0 | R19: =IF(C19>0,IF(Q19>L19/C19*12,(L19/C19*12),Q19),0) -> 0 | S19: =IF(D19>0,IF(Q19>L19/D19*12,(L19/D19*12),Q19),0) -> 0 | T19: =IF((Q19-R19)>0,(Q19-R19),0) -> 0 | V19: =IF(U19=2.2,(T19+Q19)/2,0) -> 0 | W19: =IF(U19=0,(T19+Q19)/2,0) -> 0
D20: =$D$18 -> 60 | O20: 0 | P20: =I20+O20 -> 0 | Q20: =IF((N20-O20)>0,(N20-O20),0) -> 0 | R20: =IF(C20>0,IF(Q20>L20/C20*12,(L20/C20*12),Q20),0) -> 0 | S20: =IF(D20>0,IF(Q20>L20/D20*12,(L20/D20*12),Q20),0) -> 0 | T20: =IF((Q20-R20)>0,(Q20-R20),0) -> 0 | V20: =IF(U20=2.2,(T20+Q20)/2,0) -> 0 | W20: =IF(U20=0,(T20+Q20)/2,0) -> 0
A21: Добавить
A22: Четвертая группа (свыше 5 лет до 7 лет включительно)
A23: Подъемник 2-х стоечный электрогидравлический | C23: 84 | D23: 84 | E23: 162000 | F23: 39876.96 | G23: =E23-F23 -> 122123.04 | I23: 7476.93 | J23: 162000 | K23: 47353.89 | O23: =IF(C23>0,IF(N23>L23/C23*9,(L23/C23*9),N23),0) -> 0 | P23: =I23+O23 -> 7476.93 | Q23: =IF((N23-O23)>0,(N23-O23),0) -> 0 | R23: =IF(C23>0,IF(Q23>L23/C23*12,(L23/C23*12),Q23),0) -> 0 | S23: =IF(D23>0,IF(Q23>L23/D23*12,(L23/D23*12),Q23),0) -> 0 | T23: =IF((Q23-R23)>0,(Q23-R23),0) -> 0 | V23: =IF(U23=2.2,(T23+Q23)/2,0) -> 0 | W23: =IF(U23=0,(T23+Q23)/2,0) -> 0
A24: Подъемник 2-х стоечный электрогидравлический | C24: 84 | D24: =$D$23 -> 84 | E24: 162000 | F24: 59815.44 | G24: 102184.56 | I24: 7476.93 | J24: 162000 | K24: 67292.37 | O24: 0 | P24: =I24+O24 -> 7476.93 | Q24: =IF((N24-O24)>0,(N24-O24),0) -> 0 | R24: =IF(C24>0,IF(Q24>L24/C24*12,(L24/C24*12),Q24),0) -> 0 | S24: =IF(D24>0,IF(Q24>L24/D24*12,(L24/D24*12),Q24),0) -> 0 | T24: =IF((Q24-R24)>0,(Q24-R24),0) -> 0 | V24: =IF(U24=2.2,(T24+Q24)/2,0) -> 0 | W24: =IF(U24=0,(T24+Q24)/2,0) -> 0
D25: =$D$23 -> 84 | O25: 0 | P25: =I25+O25 -> 0 | Q25: =IF((N25-O25)>0,(N25-O25),0) -> 0 | R25: =IF(C25>0,IF(Q25>L25/C25*12,(L25/C25*12),Q25),0) -> 0 | S25: =IF(D25>0,IF(Q25>L25/D25*12,(L25/D25*12),Q25),0) -> 0 | T25: =IF((Q25-R25)>0,(Q25-R25),0) -> 0 | V25: =IF(U25=2.2,(T25+Q25)/2,0) -> 0 | W25: =IF(U25=0,(T25+Q25)/2,0) -> 0
A26: Добавить
A27: Пятая группа (свыше 7 лет до 10 лет включительно)
A28: Аппарат высокого давления 1,286-500 HD 10/25-4 SX | C28: 120 | D28: 120 | E28: 116394 | F28: 39767.95 | G28: =E28-F28 -> 76626.05 | I28: 2909.85 | J28: 116394 | K28: 42677.8 | O28: =IF(C28>0,IF(N28>L28/C28*9,(L28/C28*9),N28),0) -> 0 | P28: =I28+O28 -> 2909.85 | Q28: =IF((N28-O28)>0,(N28-O28),0) -> 0 | R28: =IF(C28>0,IF(Q28>L28/C28*12,(L28/C28*12),Q28),0) -> 0 | S28: =IF(D28>0,IF(Q28>L28/D28*12,(L28/D28*12),Q28),0) -> 0 | T28: =IF((Q28-R28)>0,(Q28-R28),0) -> 0 | V28: =IF(U28=2.2,(T28+Q28)/2,0) -> 0 | W28: =IF(U28=0,(T28+Q28)/2,0) -> 0
D29: =$D$28 -> 120 | O29: 0 | P29: =I29+O29 -> 0 | Q29: =IF((N29-O29)>0,(N29-O29),0) -> 0 | R29: =IF(C29>0,IF(Q29>L29/C29*12,(L29/C29*12),Q29),0) -> 0 | S29: =IF(D29>0,IF(Q29>L29/D29*12,(L29/D29*12),Q29),0) -> 0 | T29: =IF((Q29-R29)>0,(Q29-R29),0) -> 0 | V29: =IF(U29=2.2,(T29+Q29)/2,0) -> 0 | W29: =IF(U29=0,(T29+Q29)/2,0) -> 0
D30: =$D$28 -> 120 | O30: 0 | P30: =I30+O30 -> 0 | Q30: =IF((N30-O30)>0,(N30-O30),0) -> 0 | R30: =IF(C30>0,IF(Q30>L30/C30*12,(L30/C30*12),Q30),0) -> 0 | S30: =IF(D30>0,IF(Q30>L30/D30*12,(L30/D30*12),Q30),0) -> 0 | T30: =IF((Q30-R30)>0,(Q30-R30),0) -> 0 | V30: =IF(U30=2.2,(T30+Q30)/2,0) -> 0 | W30: =IF(U30=0,(T30+Q30)/2,0) -> 0
A31: Добавить
A32: Шестая группа (свыше 10 лет до 15 лет включительно)
A33: Возд. двухц(ВЛ)10кВ от ПС"Караб."доТП13ф1003,1005 | C33: 180 | D33: 180 | E33: 1398812.18 | F33: 544138.58 | G33: =E33-F33 -> 854673.6 | I33: 23313.54 | L33: =E33 -> 1398812.18 | M33: =F33+I33 -> 567452.12 | N33: =L33-M33 -> 831360.06 | O33: =IF(C33>0,IF(N33>L33/C33*9,(L33/C33*9),N33),0) -> 69940.609 | P33: =I33+O33 -> 93254.149 | Q33: =IF((N33-O33)>0,(N33-O33),0) -> 761419.451 | R33: =IF(C33>0,IF(Q33>L33/C33*12,(L33/C33*12),Q33),0) -> 93254.14533 | S33: =IF(D33>0,IF(Q33>L33/D33*12,(L33/D33*12),Q33),0) -> 93254.14533 | T33: =IF((Q33-R33)>0,(Q33-R33),0) -> 668165.3057 | V33: =IF(U33=2.2,(T33+Q33)/2,0) -> 0 | W33: =IF(U33=0,(T33+Q33)/2,0) -> 714792.3783
A34: Возд. одноц(ВЛ)10кВ от ТП 2 до ТП 62ф1003 | C34: 180 | D34: =$D$57 -> 180 | E34: 659289.64 | F34: 307668.48 | G34: 351621.16 | I34: 10988.16 | L34: =E34 -> 659289.64 | M34: =F34+I34 -> 318656.64 | N34: 340633 | O34: 32964.482 | P34: 43952.642 | Q34: 307668.518 | R34: 43952.64267 | S34: 43952.64267 | T34: 263715.8753 | V34: 0 | W34: 285692.1967
A35: Возд. одноц(ВЛ)10кВ от ТП 55 до ТП 57ф1022 | C35: 180 | D35: =$D$57 -> 180 | E35: 748971.92 | F35: 320393.92 | G35: 428578 | I35: 12482.88 | L35: 748971.92 | M35: 332876.8 | N35: 416095.12 | O35: 37448.596 | P35: 49931.476 | Q35: 378646.524 | R35: 49931.46133 | S35: 49931.46133 | T35: 328715.0627 | V35: 0 | W35: 353680.7933
A36: Возд. одноц(ВЛ)10кВ от ТП 55 до ТП3ф1022 | C36: 180 | D36: 180 | E36: 558227.64 | F36: 260505.84 | G36: 297721.8 | I36: 9303.78 | L36: 558227.64 | M36: 269809.62 | N36: 288418.02 | O36: 27911.382 | P36: 37215.162 | Q36: 260506.638 | R36: 37215.176 | S36: 37215.176 | T36: 223291.462 | V36: 0 | W36: 241899.05
A37: Возд. одноц(ВЛ)10кВ от ТП 55 до ТП54ф1022 | C37: 180 | D37: =$D$57 -> 180 | E37: 400737.9 | F37: 187010.88 | G37: 213727.02 | I37: 6678.96 | L37: 400737.9 | M37: 193689.84 | N37: 207048.06 | O37: 20036.895 | P37: 26715.855 | Q37: 187011.165 | R37: 26715.86 | S37: 26715.86 | T37: 160295.305 | V37: 0 | W37: 173653.235
A38: Возд-каб. двухц(ВЛ)10кВ от ТП 1 до ТП 63ф1003,1005 | C38: 180 | D38: =$D$57 -> 180 | E38: 2303696.72 | F38: 838696.95 | G38: 1464999.77 | I38: 38394.96 | L38: 2303696.72 | M38: 877091.91 | N38: 1426604.81 | O38: 115184.836 | P38: 153579.796 | Q38: 1311419.974 | R38: 153579.7813 | S38: 153579.7813 | T38: 1157840.193 | V38: 0 | W38: 1234630.083
A39: Возд-каб. двухц(ВЛ+КЛ)10кВотПС"Караб"доТП51 | C39: 180 | D39: 180 | E39: 8415145.52 | F39: 2804959.87 | G39: 5610185.65 | I39: 140252.43 | L39: 8415145.52 | M39: 2945212.3 | N39: 5469933.22 | O39: 420757.276 | P39: 561009.706 | Q39: 5049175.944 | R39: 561009.7013 | S39: 561009.7013 | T39: 4488166.243 | V39: 0 | W39: 4768671.093
A40: Воздушн. одноц.(ВЛ)10кВ от ТП8 до ТП83,84 ф1001 | C40: 180 | D40: =$D$57 -> 180 | E40: 616520.09 | F40: 205506.6 | G40: 411013.49 | I40: 10275.33 | L40: 616520.09 | M40: 215781.93 | N40: 400738.16 | O40: 30826.0045 | P40: 41101.3345 | Q40: 369912.1555 | R40: 41101.33933 | S40: 41101.33933 | T40: 328810.8162 | V40: 0 | W40: 349361.4858
A41: Воздушн. одноцеп. (ВЛ) 10кВ от ТП39 до ТП40 ф1004 | C41: 180 | D41: =$D$57 -> 180 | E41: 700537.25 | F41: 245187.81 | G41: 455349.44 | I41: 11675.61 | L41: 700537.25 | M41: 256863.42 | N41: 443673.83 | O41: 35026.8625 | P41: 46702.4725 | Q41: 408646.9675 | R41: 46702.48333 | S41: 46702.48333 | T41: 361944.4842 | V41: 0 | W41: 385295.7258
A42: Воздушн. одноцеп. (ВЛ) 10кВ отТП38 доТП39 ф1004 | C42: 180 | D42: 180 | E42: 1096068.19 | F42: 383624.01 | G42: 712444.18 | I42: 18267.81 | L42: 1096068.19 | M42: 401891.82 | N42: 694176.37 | O42: =IF(C42>0,IF(N42>L42/C42*9,(L42/C42*9),N42),0) -> 54803.4095 | P42: 73071.2195 | Q42: 639372.9605 | R42: 73071.21267 | S42: 73071.21267 | T42: 566301.7478 | V42: 0 | W42: 602837.3542
A43: Воздушн. одноцеп. (ВЛ) 10кВ отТП40 доТП58/37 ф1004 | C43: 180 | D43: =$D$57 -> 180 | E43: 537327.7 | F43: 188064.45 | G43: 349263.25 | I43: 8955.45 | L43: 537327.7 | M43: 197019.9 | N43: 340307.8 | O43: 26866.385 | P43: 35821.835 | Q43: 313441.415 | R43: 35821.84667 | S43: 35821.84667 | T43: 277619.5683 | V43: 0 | W43: 295530.4917
A44: Воздушн. одноцеп. (ВЛ) 10кВ отТП55 доТП56 ф1022 | C44: 180 | D44: =$D$57 -> 180 | E44: 833308.07 | F44: 291657.87 | G44: 541650.2 | I44: 13888.47 | L44: 833308.07 | M44: 305546.34 | N44: 527761.73 | O44: 41665.4035 | P44: 55553.8735 | Q44: 486096.3265 | R44: 55553.87133 | S44: 55553.87133 | T44: 430542.4552 | V44: 0 | W44: 458319.3908
A45: Воздушн. одноцеп. (ВЛ) 10кВ отТП56 доТП82/20 ф1022 | C45: 180 | D45: 180 | E45: 429493.27 | F45: 150322.41 | G45: 279170.86 | I45: 7158.21 | L45: 429493.27 | M45: 157480.62 | N45: 272012.65 | O45: 21474.6635 | P45: 28632.8735 | Q45: 250537.9865 | R45: 28632.88467 | S45: 28632.88467 | T45: 221905.1018 | V45: 0 | W45: 236221.5442
A46: Воздушн. одноцеп.(ВЛ)10кВ от опоры №16доТП44 ф1001 | C46: 180 | D46: =$D$57 -> 180 | E46: 187578.58 | F46: 62526 | G46: 125052.58 | I46: 3126.3 | L46: 187578.58 | M46: 65652.3 | N46: 121926.28 | O46: 9378.929 | P46: 12505.229 | Q46: 112547.351 | R46: 12505.23867 | S46: 12505.23867 | T46: 100042.1123 | V46: 0 | W46: 106294.7317
A47: Воздушная двухц(ВЛ)10кВ от ТП1 до ТП61 ф1003,1005 | C47: 180 | D47: =$D$57 -> 180 | E47: 641304.05 | F47: 299275.2 | G47: 342028.85 | I47: 10688.4 | L47: 641304.05 | M47: 309963.6 | N47: 331340.45 | O47: 32065.2025 | P47: 42753.6025 | Q47: 299275.2475 | R47: 42753.60333 | S47: 42753.60333 | T47: 256521.6442 | V47: 0 | W47: 277898.4458
A48: Воздушная двухц(ВЛ)10кВ от ТП13 до ТП1 ф1003,1005 | C48: 180 | D48: 180 | E48: 2130397.72 | F48: 778874.84 | G48: 1351522.88 | I48: 35506.62 | L48: 2130397.72 | M48: 814381.46 | N48: 1316016.26 | O48: =IF(C48>0,IF(N48>L48/C48*9,(L48/C48*9),N48),0) -> 106519.886 | P48: 142026.506 | Q48: 1209496.374 | R48: 142026.5147 | S48: 142026.5147 | T48: 1067469.859 | V48: 0 | W48: 1138483.117
A49: Воздушная двухц(ВЛ)10кВ от ТП9-ТП8-ТП32-ТП18 ф1001,1005 | C49: 180 | D49: =$D$57 -> 180 | E49: 4547113.62 | F49: 1364133.96 | G49: 3182979.66 | I49: 75785.22 | L49: 4547113.62 | M49: 1439919.18 | N49: 3107194.44 | O49: 227355.681 | P49: 303140.901 | Q49: 2879838.759 | R49: 303140.908 | S49: 303140.908 | T49: 2576697.851 | V49: 0 | W49: 2728268.305
A50: ВЛ 10кВ ТП №11-ТП №66 Ф 1001 | C50: 180 | D50: =$D$57 -> 180 | E50: 2604937.89 | F50: 564403.32 | G50: 2040534.57 | I50: 43415.64 | L50: 2604937.89 | M50: 607818.96 | N50: 1997118.93 | O50: 130246.8945 | P50: 173662.5345 | Q50: 1866872.036 | R50: 173662.526 | S50: 173662.526 | T50: 1693209.51 | V50: 0 | W50: 1780040.773
A51: ВЛ 10кВ ТП №12-ТП №11 Ф 1001 | C51: 180 | D51: 180 | E51: 1804578.12 | F51: 421068.06 | G51: 1383510.06 | I51: 30076.29 | L51: 1804578.12 | M51: 451144.35 | N51: 1353433.77 | O51: 90228.906 | P51: 120305.196 | Q51: 1263204.864 | R51: 120305.208 | S51: 120305.208 | T51: 1142899.656 | V51: 0 | W51: 1203052.26
A52: ВЛ 0,4 кВ и мачтовые подстанции №94 ул.Первомайская, №90 ул.Пионерская, №97 ВРУ 0,4 кВ | C52: 180 | D52: =$D$57 -> 180 | E52: 8559056.22 | F52: 998556.51 | G52: 7560499.71 | I52: 142650.93 | L52: 8559056.22 | M52: 1141207.44 | N52: 7417848.78 | O52: 427952.811 | P52: 570603.741 | Q52: 6989895.969 | R52: 570603.748 | S52: 570603.748 | T52: 6419292.221 | V52: 0 | W52: 6704594.095
A53: ВЛ 10 кВ и мачтовые подстанции №93 СНТ "Заря" и №92 ул.Красногорская | C53: 180 | D53: =$D$57 -> 180 | E53: 1460815.16 | F53: 170428.44 | G53: 1290386.72 | I53: 24346.92 | L53: 1460815.16 | M53: 194775.36 | N53: 1266039.8 | O53: 73040.758 | P53: 97387.678 | Q53: 1192999.042 | R53: 97387.67733 | S53: 97387.67733 | T53: 1095611.365 | V53: 0 | W53: 1144305.203
A54: ВЛ от ТП 24 до ул. Мира 30А | C54: 180 | D54: 180 | E54: 171464.46 | F54: 40008.36 | G54: 131456.1 | I54: 2857.74 | L54: 171464.46 | M54: 42866.1 | N54: 128598.36 | O54: 8573.223 | P54: 11430.963 | Q54: 120025.137 | R54: 11430.964 | S54: 11430.964 | T54: 108594.173 | V54: 0 | W54: 114309.655
A55: ВЛ от ТП 32 по ул. Красноармейская с подкл. В ТП 18 | C55: 180 | D55: =$D$57 -> 180 | E55: 245516.82 | F55: 57287.16 | G55: 188229.66 | I55: 4091.94 | L55: 245516.82 | M55: 61379.1 | N55: 184137.72 | O55: 12275.841 | P55: 16367.781 | Q55: 171861.879 | R55: 16367.788 | S55: 16367.788 | T55: 155494.091 | V55: 0 | W55: 163677.985
A56: Воздушная линия 10 кВ Ф1004 | C56: 180 | D56: =$D$57 -> 180 | E56: 5287101.45 | F56: 616828.59 | G56: 4670272.86 | I56: 88118.37 | L56: 5287101.45 | M56: 704946.96 | N56: 4582154.49 | O56: 264355.0725 | P56: 352473.4425 | Q56: 4317799.418 | R56: 352473.43 | S56: 352473.43 | T56: 3965325.988 | V56: 0 | W56: 4141562.703
A57: Воздушная двухц(ВЛ)10кВ от ТП2 до ТП22 ф1003,1005 | C57: 180 | D57: 180 | E57: 192147.14 | F57: 89668.32 | G57: 102478.82 | I57: 3202.44 | L57: 192147.14 | M57: 92870.76 | N57: 99276.38 | O57: =IF(C57>0,IF(N57>L57/C57*9,(L57/C57*9),N57),0) -> 9607.357 | P57: 12809.797 | Q57: 89669.023 | R57: 12809.80933 | S57: 12809.80933 | T57: 76859.21367 | V57: 0 | W57: 83264.11833
A58: ВЛ 10кВ энергетический комплекс "Больница" Ф 1001 | C58: 180 | D58: =$D$57 -> 180 | E58: 4726559.22 | F58: 288845.26 | G58: 4437713.96 | I58: 78775.98 | L58: 4726559.22 | M58: 367621.24 | N58: 4358937.98 | O58: 236327.961 | P58: 315103.941 | Q58: 4122610.019 | R58: 315103.948 | S58: 315103.948 | T58: 3807506.071 | V58: 0 | W58: 3965058.045
A59: Воздушная линия 0,4 кВ от ТП45 | B59: 2018 | C59: 180 | D59: 180 | E59: 4600845.55 | F59: 0 | G59: =E59-F59 -> 4600845.55 | I59: 76680.75 | L59: =E59 -> 4600845.55 | M59: =F59+I59 -> 76680.75 | N59: =L59-M59 -> 4524164.8 | O59: =IF(C59>0,IF(N59>L59/C59*9,(L59/C59*9),N59),0) -> 230042.2775 | P59: 306723.0275 | Q59: 4294122.522 | R59: 306723.0367 | S59: 306723.0367 | T59: 3987399.486 | V59: 0 | W59: 4140761.004
A60: ВЛ 10 кВ (двухцепная) от ПС "Карабаново" до ТП12 Ф1001 ул.Иванова | B60: 2019 | C60: 180 | D60: 180 | G60: 0 | L60: 3604938.1 | M60: 0 | N60: 3604938.1 | O60: 180246.905 | P60: 180246.905 | Q60: 3424691.195 | R60: 240329.2067 | S60: 240329.2067 | T60: 3184361.988 | V60: 0 | W60: 3304526.592
A61: ВЛ 10 кВ (двухцепная) от ТП10 до ТП27 Ф1001 ул.Горького-Больничный городок | B61: 2019 | C61: 180 | D61: 180 | G61: 0 | L61: 2138149.4 | M61: 0 | N61: 2138149.4 | O61: 106907.47 | P61: 106907.47 | Q61: 2031241.93 | R61: 142543.2933 | S61: 142543.2933 | T61: 1888698.637 | V61: 0 | W61: 1959970.283
A62: ВЛ 10 кВ (двухцепная) от ТП12 до ТП62 Ф1001 ул.Иванова-2я Школьная | B62: 2019 | C62: 180 | D62: 180 | G62: 0 | L62: 1783832.9 | M62: 0 | N62: 1783832.9 | O62: 89191.645 | P62: 89191.645 | Q62: 1694641.255 | R62: 118922.1933 | S62: 118922.1933 | T62: 1575719.062 | V62: 0 | W62: 1635180.158
A63: ВЛ 10 кВ ТП9-ТП62 | B63: 2018 | C63: 180 | D63: 180 | E63: 1554512.01 | F63: 17272.36 | G63: 1537239.65 | I63: 25908.54 | L63: =E63 -> 1554512.01 | M63: =F63+I63 -> 43180.9 | N63: =L63-M63 -> 1511331.11 | O63: 77725.6005 | P63: 103634.1405 | Q63: 1433605.51 | R63: 103634.134 | S63: 103634.134 | T63: 1329971.376 | V63: 0 | W63: 1381788.443
A64: Добавить
A65: Седьмая группа (свыше 15 лет до 20 лет включительно)
A66: Трансформаторная подстанция ТП 61 10/0,4-250кВА | C66: 240 | D66: 240 | E66: 1636018.1 | F66: 572606.16 | G66: =E66-F66 -> 1063411.94 | I66: 20450.22 | L66: =E66 -> 1636018.1 | M66: =F66+I66 -> 593056.38 | N66: =L66-M66 -> 1042961.72 | O66: =IF(C66>0,IF(N66>L66/C66*9,(L66/C66*9),N66),0) -> 61350.67875 | P66: =I66+O66 -> 81800.89875 | Q66: =IF((N66-O66)>0,(N66-O66),0) -> 981611.0413 | R66: =IF(C66>0,IF(Q66>L66/C66*12,(L66/C66*12),Q66),0) -> 81800.905 | S66: =IF(D66>0,IF(Q66>L66/D66*12,(L66/D66*12),Q66),0) -> 81800.905 | T66: =IF((Q66-R66)>0,(Q66-R66),0) -> 899810.1363 | V66: =IF(U66=2.2,(T66+Q66)/2,0) -> 0 | W66: =IF(U66=0,(T66+Q66)/2,0) -> 940710.5888
A67: Трансформаторная подстанция ТП 66 10/0,4-250кВА | C67: 240 | D67: =$D$69 -> 240 | E67: 1653625.37 | F67: 496087.92 | G67: 1157537.45 | I67: 20670.33 | L67: =E67 -> 1653625.37 | M67: =F67+I67 -> 516758.25 | N67: =L67-M67 -> 1136867.12 | O67: 62010.95138 | P67: 82681.28138 | Q67: 1074856.169 | R67: 82681.2685 | S67: 82681.2685 | T67: 992174.9001 | V67: 0 | W67: 1033515.534
A68: Мачтовая ТП 95 10/0,4-100кВА | C68: 240 | D68: =$D$69 -> 240 | E68: 334555.91 | F68: 75274.92 | G68: 259280.99 | I68: 4181.94 | L68: 334555.91 | M68: 79456.86 | N68: 255099.05 | O68: 12545.84663 | P68: 16727.78663 | Q68: 242553.2034 | R68: 16727.7955 | S68: 16727.7955 | T68: 225825.4079 | V68: 0 | W68: 234189.3056
A69: Мачтовая ТП 96 10/0,4-100кВА | C69: 240 | D69: 240 | E69: 334555.91 | F69: 75274.92 | G69: 259280.99 | I69: 4181.94 | L69: 334555.91 | M69: 79456.86 | N69: 255099.05 | O69: =IF(C69>0,IF(N69>L69/C69*9,(L69/C69*9),N69),0) -> 12545.84663 | P69: 16727.78663 | Q69: 242553.2034 | R69: 16727.7955 | S69: 16727.7955 | T69: 225825.4079 | V69: 0 | W69: 234189.3056
A70: АИИС КУЭ | C70: 192 | D70: =$D$69 -> 240 | E70: 15315771.43 | F70: 6169431.94 | G70: 9146339.49 | I70: 239308.92 | L70: 15315771.43 | M70: 6408740.86 | N70: 8907030.57 | O70: 717926.7858 | P70: 957235.7058 | Q70: 8189103.784 | R70: 957235.7144 | S70: 765788.5715 | T70: 7231868.07 | V70: 0 | W70: 7710485.927
A71: Мачтовая ТП 88 ул. Чулкова | C71: 240 | D71: =$D$69 -> 240 | E71: 296331.11 | F71: 28398.33 | G71: 267932.78 | I71: 3704.13 | L71: 296331.11 | M71: 32102.46 | N71: 264228.65 | O71: 11112.41662 | P71: 14816.54662 | Q71: 253116.2334 | R71: 14816.5555 | S71: 14816.5555 | T71: 238299.6779 | V71: 0 | W71: 245707.9556
A72: Добавить
A73: Восьмая группа (свыше 20 лет до 25 лет включительно)
D74: 300 | O74: =IF(C74>0,IF(N74>L74/C74*9,(L74/C74*9),N74),0) -> 0 | P74: =I74+O74 -> 0 | Q74: =IF((N74-O74)>0,(N74-O74),0) -> 0 | R74: =IF(C74>0,IF(Q74>L74/C74*12,(L74/C74*12),Q74),0) -> 0 | S74: =IF(D74>0,IF(Q74>L74/D74*12,(L74/D74*12),Q74),0) -> 0 | T74: =IF((Q74-R74)>0,(Q74-R74),0) -> 0 | V74: =IF(U74=2.2,(T74+Q74)/2,0) -> 0 | W74: =IF(U74=0,(T74+Q74)/2,0) -> 0
D75: =$D$74 -> 300 | O75: 0 | P75: =I75+O75 -> 0 | Q75: =IF((N75-O75)>0,(N75-O75),0) -> 0 | R75: =IF(C75>0,IF(Q75>L75/C75*12,(L75/C75*12),Q75),0) -> 0 | S75: =IF(D75>0,IF(Q75>L75/D75*12,(L75/D75*12),Q75),0) -> 0 | T75: =IF((Q75-R75)>0,(Q75-R75),0) -> 0 | V75: =IF(U75=2.2,(T75+Q75)/2,0) -> 0 | W75: =IF(U75=0,(T75+Q75)/2,0) -> 0
D76: =$D$74 -> 300 | O76: 0 | P76: =I76+O76 -> 0 | Q76: =IF((N76-O76)>0,(N76-O76),0) -> 0 | R76: =IF(C76>0,IF(Q76>L76/C76*12,(L76/C76*12),Q76),0) -> 0 | S76: =IF(D76>0,IF(Q76>L76/D76*12,(L76/D76*12),Q76),0) -> 0 | T76: =IF((Q76-R76)>0,(Q76-R76),0) -> 0 | V76: =IF(U76=2.2,(T76+Q76)/2,0) -> 0 | W76: =IF(U76=0,(T76+Q76)/2,0) -> 0
A77: Добавить
A78: Девятая группа (свыше 25 лет до 30 лет включительно)
A79: Трансформаторная подстанция ТП 44 10/0,4-250кВА | C79: 360 | D79: 360 | E79: 298798.03 | F79: 49799.4 | G79: =E79-F79 -> 248998.63 | I79: 2489.97 | L79: =E79 -> 298798.03 | M79: =F79+I79 -> 52289.37 | N79: =L79-M79 -> 246508.66 | O79: =IF(C79>0,IF(N79>L79/C79*9,(L79/C79*9),N79),0) -> 7469.95075 | P79: =I79+O79 -> 9959.92075 | Q79: =IF((N79-O79)>0,(N79-O79),0) -> 239038.7093 | R79: =IF(C79>0,IF(Q79>L79/C79*12,(L79/C79*12),Q79),0) -> 9959.934333 | S79: =IF(D79>0,IF(Q79>L79/D79*12,(L79/D79*12),Q79),0) -> 9959.934333 | T79: =IF((Q79-R79)>0,(Q79-R79),0) -> 229078.7749 | V79: =IF(U79=2.2,(T79+Q79)/2,0) -> 0 | W79: =IF(U79=0,(T79+Q79)/2,0) -> 234058.7421
D80: =$D$79 -> 360 | O80: 0 | P80: =I80+O80 -> 0 | Q80: =IF((N80-O80)>0,(N80-O80),0) -> 0 | R80: =IF(C80>0,IF(Q80>L80/C80*12,(L80/C80*12),Q80),0) -> 0 | S80: =IF(D80>0,IF(Q80>L80/D80*12,(L80/D80*12),Q80),0) -> 0 | T80: =IF((Q80-R80)>0,(Q80-R80),0) -> 0 | V80: =IF(U80=2.2,(T80+Q80)/2,0) -> 0 | W80: =IF(U80=0,(T80+Q80)/2,0) -> 0
D81: =$D$79 -> 360 | O81: 0 | P81: =I81+O81 -> 0 | Q81: =IF((N81-O81)>0,(N81-O81),0) -> 0 | R81: =IF(C81>0,IF(Q81>L81/C81*12,(L81/C81*12),Q81),0) -> 0 | S81: =IF(D81>0,IF(Q81>L81/D81*12,(L81/D81*12),Q81),0) -> 0 | T81: =IF((Q81-R81)>0,(Q81-R81),0) -> 0 | V81: =IF(U81=2.2,(T81+Q81)/2,0) -> 0 | W81: =IF(U81=0,(T81+Q81)/2,0) -> 0
A82: Добавить
A83: Десятая группа (свыше 30 лет)
A84: Трансформаторная подстанция ТП 38 10/0,4-250кВА | C84: 479.999564 | D84: =MAX(361,C84) -> 479.999564 | E84: 1200003.71 | F84: 150000.6 | G84: =E84-F84 -> 1050003.11 | I84: 7500.03 | L84: =E84 -> 1200003.71 | M84: =F84+I84 -> 157500.63 | N84: =L84-M84 -> 1042503.08 | O84: =IF(C84>0,IF(N84>L84/C84*9,(L84/C84*9),N84),0) -> 22500.09 | P84: =I84+O84 -> 30000.12 | Q84: =IF((N84-O84)>0,(N84-O84),0) -> 1020002.99 | R84: =IF(C84>0,IF(Q84>L84/C84*12,(L84/C84*12),Q84),0) -> 30000.12 | S84: =IF(D84>0,IF(Q84>L84/D84*12,(L84/D84*12),Q84),0) -> 30000.12 | T84: =IF((Q84-R84)>0,(Q84-R84),0) -> 990002.87 | V84: =IF(U84=2.2,(T84+Q84)/2,0) -> 0 | W84: =IF(U84=0,(T84+Q84)/2,0) -> 1005002.93
A85: Трансформаторная подстанция ТП 39 10/0,4-250кВА | C85: 479.9999917 | D85: =MAX(361,C85) -> 479.9999917 | E85: 1725143.97 | F85: 215643 | G85: 1509500.97 | I85: 10782.15 | L85: 1725143.97 | M85: 226425.15 | N85: 1498718.82 | O85: 32346.45 | P85: 43128.6 | Q85: 1466372.37 | R85: 43128.6 | S85: 43128.6 | T85: 1423243.77 | V85: 0 | W85: 1444808.07
A86: Трансформаторная подстанция ТП 45 10/0,4-250кВА | C86: 600.0006756 | D86: 600.0006756 | E86: 1714123.93 | F86: 254093.52 | G86: 1460030.41 | I86: 8570.61 | L86: 1714123.93 | M86: 262664.13 | N86: 1451459.8 | O86: 25711.83 | P86: 34282.44 | Q86: 1425747.97 | R86: 34282.44 | S86: 34282.44 | T86: 1391465.53 | V86: 0 | W86: 1408606.75
A87: Трансформаторная подстанция ТП 51 Очистные сооружения | C87: 599.9997126 | D87: =MAX(361,C87) -> 599.9997126 | E87: 4153930.01 | F87: 415393.2 | G87: 3738536.81 | I87: 20769.66 | L87: 4153930.01 | M87: 436162.86 | N87: 3717767.15 | O87: =IF(C87>0,IF(N87>L87/C87*9,(L87/C87*9),N87),0) -> 62308.98 | P87: 83078.64 | Q87: 3655458.17 | R87: 83078.64 | S87: 83078.64 | T87: 3572379.53 | V87: 0 | W87: 3613918.85
A88: Трансформаторная подстанция ТП 54 10/0,4-250кВА | C88: 479.9999047 | D88: 479.9999047 | E88: 1459986.91 | F88: 319883.16 | G88: 1140103.75 | I88: 9124.92 | L88: 1459986.91 | M88: 329008.08 | N88: 1130978.83 | O88: 27374.76 | P88: 36499.68 | Q88: 1103604.07 | R88: 36499.68 | S88: 36499.68 | T88: 1067104.39 | V88: 0 | W88: 1085354.23
A89: Трансформаторная подстанция ТП 55 10/0,4-400кВА | C89: 480.0000204 | D89: 480.0000204 | E89: 2112753.69 | F89: 365056.04 | G89: 1747697.65 | I89: 13204.71 | L89: 2112753.69 | M89: 378260.75 | N89: 1734492.94 | O89: 39614.13 | P89: 52818.84 | Q89: 1694878.81 | R89: 52818.84 | S89: 52818.84 | T89: 1642059.97 | V89: 0 | W89: 1668469.39
A90: Трансформаторная подстанция ТП 56 10/0,4-400кВА*2 | C90: 599.9999425 | D90: 599.9999425 | E90: 3337073.68 | F90: 333707.4 | G90: 3003366.28 | I90: 16685.37 | L90: 3337073.68 | M90: 350392.77 | N90: 2986680.91 | O90: 50056.11 | P90: 66741.48 | Q90: 2936624.8 | R90: 66741.48 | S90: 66741.48 | T90: 2869883.32 | V90: 0 | W90: 2903254.06
A91: Трансформаторная подстанция ТП 62 10/0,4-400кВА | C91: 600.0003777 | D91: 600.0003777 | E91: 4367990.75 | F91: 610230.86 | G91: 3757759.89 | I91: 21839.94 | L91: 4367990.75 | M91: 632070.8 | N91: 3735919.95 | O91: 65519.82 | P91: 87359.76 | Q91: 3670400.13 | R91: 87359.76 | S91: 87359.76 | T91: 3583040.37 | V91: 0 | W91: 3626720.25
A92: Трансформаторная подстанция ТП 63 10/0,4-400кВА*2 | C92: 599.9996676 | D92: 599.9996676 | E92: 4241739.65 | F92: 424174.2 | G92: 3817565.45 | I92: 21208.71 | L92: 4241739.65 | M92: 445382.91 | N92: 3796356.74 | O92: 63626.13 | P92: 84834.84 | Q92: 3732730.61 | R92: 84834.84 | S92: 84834.84 | T92: 3647895.77 | V92: 0 | W92: 3690313.19
A93: Трансформаторная подстанция ТП 91 10/0,4-250кВА | C93: 479.999766 | D93: 479.999766 | E93: 1702885.57 | F93: 212860.8 | G93: 1490024.77 | I93: 10643.04 | L93: 1702885.57 | M93: 223503.84 | N93: 1479381.73 | O93: 31929.12 | P93: 42572.16 | Q93: 1447452.61 | R93: 42572.16 | S93: 42572.16 | T93: 1404880.45 | V93: 0 | W93: 1426166.53
A94: Трансформаторная подстанция ТП 10 10/0,4-100кВА | C94: 599.9994172 | D94: 599.9994172 | E94: 1708942.34 | F94: 102536.64 | G94: 1606405.7 | I94: 8544.72 | L94: 1708942.34 | M94: 111081.36 | N94: 1597860.98 | O94: 25634.16 | P94: 34178.88 | Q94: 1572226.82 | R94: 34178.88 | S94: 34178.88 | T94: 1538047.94 | V94: 0 | W94: 1555137.38
A95: Трансформаторная подстанция ТП 11 10/0,4-250кВА | C95: 600.0008468 | D95: 600.0008468 | E95: 1339231.89 | F95: 80353.8 | G95: 1258878.09 | I95: 6696.15 | L95: 1339231.89 | M95: 87049.95 | N95: 1252181.94 | O95: 20088.45 | P95: 26784.6 | Q95: 1232093.49 | R95: 26784.6 | S95: 26784.6 | T95: 1205308.89 | V95: 0 | W95: 1218701.19
A96: Трансформаторная подстанция ТП 37 10/0,4-250кВА*2 | C96: 599.9992537 | D96: 599.9992537 | E96: 2315283.12 | F96: 138917.16 | G96: 2176365.96 | I96: 11576.43 | L96: 2315283.12 | M96: 150493.59 | N96: 2164789.53 | O96: 34729.29 | P96: 46305.72 | Q96: 2130060.24 | R96: 46305.72 | S96: 46305.72 | T96: 2083754.52 | V96: 0 | W96: 2106907.38
A97: Подстанция ТП-13 | C97: 600.0021083 | D97: 600.0021083 | E97: 660254.32 | F97: 39615.12 | G97: 620639.2 | I97: 3301.26 | L97: 660254.32 | M97: 42916.38 | N97: 617337.94 | O97: 9903.78 | P97: 13205.04 | Q97: 607434.16 | R97: 13205.04 | S97: 13205.04 | T97: 594229.12 | V97: 0 | W97: 600831.64
A98: Подстанция ТП-2 | C98: 599.9992944 | D98: 599.9992944 | E98: 875872.97 | F98: 52552.44 | G98: 823320.53 | I98: 4379.37 | L98: 875872.97 | M98: 56931.81 | N98: 818941.16 | O98: 13138.11 | P98: 17517.48 | Q98: 805803.05 | R98: 17517.48 | S98: 17517.48 | T98: 788285.57 | V98: 0 | W98: 797044.31
A99: КТП 41 ул. Мира | C99: 480 | D99: 480 | E99: 5933777.67 | F99: 135982.44 | G99: 5797795.23 | I99: 37086.12 | L99: 5933777.67 | M99: 173068.56 | N99: 5760709.11 | O99: 111258.3313 | P99: 148344.4513 | Q99: 5649450.779 | R99: 148344.4417 | S99: 148344.4417 | T99: 5501106.337 | V99: 0 | W99: 5575278.558
A100: Добавить
A101: Неамортизируемое имущество (Земельные участки)
O102: х | P102: х | Q102: х | R102: х | S102: х | T102: =Q102 -> х | U102: х | V102: х | W102: х
O103: х | P103: х | Q103: х | R103: х | S103: х | T103: =Q103 -> х | U103: х | V103: х | W103: х
O104: х | P104: х | Q104: х | R104: х | S104: х | T104: =Q104 -> х | U104: х | V104: х | W104: х
O105: х | P105: х | Q105: х | R105: х | S105: х | T105: =Q105 -> х | U105: х | V105: х | W105: х
O106: х | P106: х | Q106: х | R106: х | S106: х | T106: =Q106 -> х | U106: х | V106: х | W106: х
A107: Добавить
A108: Итого | B108: x | C108: x | D108: x | E108: =SUM(E8:E10)+SUM(E13:E15)+SUM(E18:E20)+SUM(E23:E25)+SUM(E28:E30)+SUM(E33:E63)+SUM(E66:E71)+SUM(E74:E76)+SUM(E79:E81)+SUM(E84:E99)+SUM(E102:E106) -> 116738078.1 | F108: 24077949.85 | G108: 92660128.29 | H108: 0 | I108: 1490408.29 | J108: 607364 | K108: 289801.85 | L108: 123657634.5 | M108: 25278556.33 | N108: 98379078.21 | O108: 4767651.243 | P108: 6258059.533 | Q108: 93611426.97 | R108: 6356868.324 | S108: =SUM(S8:S10)+SUM(S13:S15)+SUM(S18:S20)+SUM(S23:S25)+SUM(S28:S30)+SUM(S33:S63)+SUM(S66:S71)+SUM(S74:S76)+SUM(S79:S81)+SUM(S84:S99)+SUM(S102:S106) -> 6165421.181 | T108: =SUM(T8:T10)+SUM(T13:T15)+SUM(T18:T20)+SUM(T23:T25)+SUM(T28:T30)+SUM(T33:T63)+SUM(T66:T71)+SUM(T74:T76)+SUM(T79:T81)+SUM(T84:T99)+SUM(T102:T106) -> 87254558.64 | U108: х | V108: =SUM(V8:V10)+SUM(V13:V15)+SUM(V18:V20)+SUM(V23:V25)+SUM(V28:V30)+SUM(V33:V63)+SUM(V66:V71)+SUM(V74:V76)+SUM(V79:V81)+SUM(V84:V99)+SUM(V102:V106) -> 0 | W108: =SUM(W8:W10)+SUM(W13:W15)+SUM(W18:W20)+SUM(W23:W25)+SUM(W28:W30)+SUM(W33:W63)+SUM(W66:W71)+SUM(W74:W76)+SUM(W79:W81)+SUM(W84:W99)+SUM(W102:W106) -> 90432992.81
A110: Руководитель организации | F110: ='Инф-я'!$C$21 -> Окунев Василий Михайлович

Sheet Ввод выбытие ОС
A2: Справка о вводе основных средств в 2019 году (с 01.04.2019 г.), участвующих в передаче электрической энергии
A4: ='Инф-я'!C13 -> ООО "Энергетик"
A6: Наименование вводимых объектов основных фондов | B6: По данным организации | L6: По данным экспертов
B7: Является ли ОС недвижимым имуществом? (да/нет) | C7: Амортизационная группа | D7: Порядковый номер месяца ввода | E7: Первоначальная стоимость, тыс. руб. | F7: Норма амортизационных отчислений, % | G7: Корректировка годовой суммы амортизационных отчислений по вводимым объектам (тыс. руб.) | H7: Амортизация 2019 год | I7: Остаточная стоимость на 01.01.2020 | J7: Остаточная стоимость на 01.01.2021 | K7: Среднегодовая остаточная стоимость ОС за 2020 год | L7: Является ли ОС недвижимым имуществом? (да/нет) | M7: Амортизационная группа | N7: Порядковый номер месяца ввода | O7: Первоначальная стоимость, тыс. руб. | P7: Норма амортизационных отчислений, % | Q7: Корректировка годовой суммы амортизационных отчислений по вводимым объектам (тыс. руб.) | R7: Амортизация 2019 год | S7: Остаточная стоимость на 01.01.2020 | T7: Остаточная стоимость на 01.01.2021 | U7: Среднегодовая остаточная стоимость ОС за 2020 год
A8: 1 | B8: 2 | C8: 3 | D8: 4 | E8: 5 | F8: 6 | G8: 7 | H8: 8 | I8: 9 | J8: 10 | K8: 11 | L8: 12 | M8: 13 | N8: 14 | O8: 15 | P8: 16 | Q8: 17 | R8: 18 | S8: 19 | T8: 20 | U8: 21
A9: Установка КРУН (10кВ)на выходе с ПС "Карабаново"фидера 1001 1 ячейка | B9: да | C9: 6 | D9: 12 | E9: 1010.13 | F9: 0.06666 | G9: =E9*F9 -> 67.3352658 | H9: =(12-D9)*E9/12*F9 -> 0 | I9: =E9-H9 -> 1010.13 | J9: =I9-G9 -> 942.7947342 | K9: =IF(B9="да",(I9+J9)/2,"") -> 976.4623671 | Q9: =O9*P9 -> 0 | R9: =(12-N9)*O9/12*P9 -> 0 | S9: =O9-R9 -> 0 | T9: =S9-Q9 -> 0 | U9: =IF(L9="да",(S9+T9)/2,"") -> 
A10: Установка КРУН (10кВ)на выходе с ПС "Карабаново"фидера 1022 2 ячейки | B10: да | C10: 6 | D10: 12 | E10: 2240.77 | F10: 0.06666 | G10: =E10*F10 -> 149.3697282 | H10: =(12-D10)*E10/12*F10 -> 0 | I10: =E10-H10 -> 2240.77 | J10: =I10-G10 -> 2091.400272 | K10: =IF(B10="да",(I10+J10)/2,"") -> 2166.085136 | Q10: =O10*P10 -> 0 | R10: =(12-N10)*O10/12*P10 -> 0 | S10: =O10-R10 -> 0 | T10: =S10-Q10 -> 0 | U10: =IF(L10="да",(S10+T10)/2,"") -> 
A11: Установка КРУН (10кВ)на выходе с ПС "Карабаново"фидера 1003 2 ячейки | B11: да | C11: 6 | D11: 12 | E11: 2341.65 | F11: 0.06666 | G11: 156.094389 | H11: 0 | I11: 2341.65 | J11: 2185.555611 | K11: 2263.602806 | Q11: 0 | R11: =(12-N11)*O11/12*P11 -> 0 | S11: =O11-R11 -> 0 | T11: =S11-Q11 -> 0 | U11: =IF(L11="да",(S11+T11)/2,"") -> 
G12: 0 | H12: 0 | I12: 0 | J12: 0 | Q12: 0 | R12: =(12-N12)*O12/12*P12 -> 0 | S12: =O12-R12 -> 0 | T12: =S12-Q12 -> 0 | U12: =IF(L12="да",(S12+T12)/2,"") -> 
G13: 0 | H13: 0 | I13: 0 | J13: 0 | Q13: 0 | R13: =(12-N13)*O13/12*P13 -> 0 | S13: =O13-R13 -> 0 | T13: =S13-Q13 -> 0 | U13: =IF(L13="да",(S13+T13)/2,"") -> 
A14: Добавить
A15: Всего по вводимым объектам в 2019 году (с 01.04.2019 г.), участвующим в передаче электрической энергии | B15: х | C15: х | D15: х | E15: =SUM(E9:E13) -> 5592.55 | F15: х | G15: =SUM(G9:G13) -> 372.799383 | H15: =SUM(H9:H13) -> 0 | I15: 5592.55 | J15: 5219.750617 | K15: 5406.150309 | L15: х | M15: х | N15: х | O15: х | P15: х | Q15: =SUM(Q9:Q13) -> 0 | R15: =SUM(R9:R13) -> 0 | S15: 0 | T15: 0 | U15: 0
A18: Справка о выбытии не полностью самортизированных основных средств в 2019 году (с 01.04.2019 г.), участвующих в передаче электрической энергии
A21: Наименование вводимых объектов основных фондов | B21: По данным организации | L21: По данным экспертов
B22: Является ли ОС недвижимым имуществом? (да/нет) | C22: Амортизационная группа | D22: Остаточная стоимость на начало 2019 года, тыс. руб. | E22: Первоначальная стоимость, тыс. руб. | F22: Норма амортизационных отчислений, % | G22: Корректировка годовой суммы амортизационных отчислений по вводимым объектам (тыс. руб.) | H22: Амортизация в год | I22: Остаточная стоимость на 01.01.2020 | J22: Остаточная стоимость на 01.01.2021 | K22: Среднегодовая остаточная стоимость ОС за 2020 год | L22: Является ли ОС недвижимым имуществом? (да/нет) | M22: Амортизационная группа | N22: Порядковый номер месяца ввода | O22: Первоначальная стоимость, тыс. руб. | P22: Норма амортизационных отчислений, % | Q22: Корректировка годовой суммы амортизационных отчислений по вводимым объектам (тыс. руб.) | R22: Амортизация 2019 год | S22: Остаточная стоимость на 01.01.2020 | T22: Остаточная стоимость на 01.01.2021 | U22: Среднегодовая остаточная стоимость ОС за 2020 год
A23: 1 | B23: 2 | C23: 3 | D23: 4 | E23: 5 | F23: 6 | G23: 7 | H23: 8 | I23: 9 | J23: 10 | K23: 11 | L23: 12 | M23: 13 | N23: 14 | O23: 15 | P23: 16 | Q23: 17 | R23: 18 | S23: 19 | T23: 20 | U23: 21
G24: =E24*F24 -> 0 | H24: =E24*F24 -> 0 | I24: =IF(D24>H24,D24-H24,0) -> 0 | J24: =IF(I24>H24,I24-H24,0) -> 0 | K24: =IF(B24="да",(I24+J24)/2,"") ->  | Q24: =O24*P24 -> 0 | R24: =O24*P24 -> 0 | S24: =IF(N24>R24,N24-R24,0) -> 0 | T24: =IF(S24>R24,S24-R24,0) -> 0 | U24: =IF(L24="да",(S24+T24)/2,"") -> 
G25: =E25*F25 -> 0 | H25: =E25*F25 -> 0 | I25: =IF(D25>H25,D25-H25,0) -> 0 | J25: =IF(I25>H25,I25-H25,0) -> 0 | K25: =IF(B25="да",(I25+J25)/2,"") ->  | Q25: =O25*P25 -> 0 | R25: =O25*P25 -> 0 | S25: =IF(N25>R25,N25-R25,0) -> 0 | T25: =IF(S25>R25,S25-R25,0) -> 0 | U25: =IF(L25="да",(S25+T25)/2,"") -> 
G26: 0 | H26: 0 | I26: 0 | J26: 0 | Q26: 0 | R26: 0 | S26: 0 | T26: 0
G27: 0 | H27: 0 | I27: 0 | J27: 0 | Q27: 0 | R27: 0 | S27: 0 | T27: 0
A28: Добавить
A29: Всего по выбывающим объектам в 2019 году (с 01.04.2019 г.), участвующим в передаче электрической энергии | B29: х | C29: х | D29: х | E29: =SUM(E24:E27) -> 0 | F29: х | G29: =SUM(G24:G27) -> 0 | H29: х | I29: х | J29: х | K29: =SUM(K24:K27) -> 0 | L29: х | M29: х | N29: х | O29: х | P29: х | Q29: =SUM(Q24:Q27) -> 0 | R29: х | S29: х | T29: х | U29: =SUM(U24:U27) -> 0
A31: Руководитель организации | G31: ='Инф-я'!$C$21 -> Окунев Василий Михайлович
A33: В справке о выбытии основных средств указывается информация о выбывающих объектах (продажа, ликвидация)

Sheet Свод по амортизации
A2: Сводный расчет амортизационных отчислений на восстановление основных производственных фондов, участвующих в передаче электрической энергии
A4: ='Инф-я'!C13 -> ООО "Энергетик"
N5: тыс. руб.
A6: Наименование | B6: 2018 год | D6: 2019 год | F6: 2020 год | H6: 2021 год | J6: 2022 год | L6: 2023 год | N6: 2024 год
B7: Утверждено | C7: Факт | D7: Утверждено | E7: Ожидаемые | F7: По данным организации | G7: По данным экспертов | H7: По данным организации | I7: По данным экспертов | J7: По данным организации | K7: По данным экспертов | L7: По данным организации | M7: По данным экспертов | N7: По данным организации | O7: По данным экспертов
A8: 1 | B8: 2 | C8: 3 | D8: 4 | E8: 5 | F8: 6 | H8: 7 | J8: 8 | L8: 9 | N8: 10
A9: Амортизационные отчисления на 2019 год по основным средствам по состоянию на 01.04.2019 г. | B9: х | C9: х | D9: х | E9: х | F9: ='Расчет аморт. max срок '!S108/1000 -> 6165.421181 | H9: х | I9: х | J9: х | K9: х | L9: х | M9: х | N9: х | O9: х
A10: Корректировка годовой суммы амортизационных отчислений, в том числе: | B10: х | C10: х | D10: х | E10: х | F10: =F11-F12 -> 372.799383 | G10: =G11-G12 -> 0 | H10: х | I10: х | J10: х | K10: х | L10: х | M10: х | N10: х | O10: х
A11: по вводимым объектам основных средств после 01.04.2019 г. (+) | B11: х | C11: х | D11: х | E11: х | F11: ='Ввод выбытие ОС '!G15 -> 372.799383 | G11: ='Ввод выбытие ОС '!Q15 -> 0 | H11: х | I11: х | J11: х | K11: х | L11: х | M11: х | N11: х | O11: х
A12: по выбывающим объектам основных средств после 01.04.2019 г.(-) | B12: х | C12: х | D12: х | E12: х | F12: ='Ввод выбытие ОС '!G29 -> 0 | G12: ='Ввод выбытие ОС '!Q29 -> 0 | H12: х | I12: х | J12: х | K12: х | L12: х | M12: х | N12: х | O12: х
A13: Годовая сумма амортизационных отчислений | B13: 4803.363901 | C13: 5538.48194 | D13: 5333.766356 | E13: 6271.55627 | F13: =F9+F10 -> 6538.220564 | G13: =G9+G10 -> 0 | H13: =F13 -> 6538.220564 | I13: =G13 -> 0 | J13: =H13 -> 6538.220564 | K13: 0 | L13: 6538.220564 | M13: 0 | N13: 6538.220564 | O13: 0
A15: Руководитель организации | D15: ='Инф-я'!C21 -> Окунев Василий Михайлович

Sheet Страховые взносы
B2: Расчет расходов на страховые взносы
B4: ='Инф-я'!C13 -> ООО "Энергетик"
P5: тыс. руб.
A6: № п/п | B6: Наименование | C6: Ед.изм. | D6: 2018 год | F6: 2019 год | H6: 2020 год | J6: 2021 год | L6: 2022 год | N6: 2023 год | P6: 2024 год | R6: 2018 год
D7: Утверждено | E7: Факт | F7: Утверждено | G7: Ожидаемые | H7: По данным организации | I7: По данным экспертов | J7: По данным организации | K7: По данным экспертов | L7: По данным организации | M7: По данным экспертов | N7: По данным организации | O7: По данным экспертов | P7: По данным организации | Q7: По данным экспертов | R7: Факт по данным экспертов
A8: 1 | B8: 2 | C8: 3 | D8: 4 | E8: 5 | F8: 6 | G8: 7 | H8: 8 | I8: 9 | J8: 10 | K8: 11 | L8: 12 | M8: 13 | N8: 14 | O8: 15 | P8: 16 | Q8: 17 | R8: 18
A9: 1. | B9: Сумма выплат и иных вознаграждений, начисленных в пользу физических лиц, в соответствии со статьей 420 НК РФ | C9: тыс. руб. | D9: х | E9: х | F9: 12894.57749 | G9: 14425.7 | H9: =H10+H11 -> 17060.27256 | I9: 0 | J9: 17584.38276 | K9: 0 | L9: 18225.43224 | M9: 0 | N9: 18832.63742 | O9: 0 | P9: 19464.66074 | Q9: 0 | R9: х
A10: 1.1. | B10: Расходы из фонда оплаты труда | C10: тыс. руб. | D10: х | E10: х | F10: 12532.8804 | G10: 14425.7 | H10: ='Подконтрольные расходы'!N17 -> 16267.72256 | I10: ='Подконтрольные расходы'!Q17 -> 0 | J10: ='Подконтрольные расходы'!R17 -> 16767.48476 | K10: ='Подконтрольные расходы'!S17 -> 0 | L10: ='Подконтрольные расходы'!T17 -> 17378.75372 | M10: ='Подконтрольные расходы'!U17 -> 0 | N10: ='Подконтрольные расходы'!V17 -> 17957.75065 | O10: ='Подконтрольные расходы'!W17 -> 0 | P10: ='Подконтрольные расходы'!X17 -> 18560.41276 | Q10: ='Подконтрольные расходы'!Y17 -> 0 | R10: х
A11: 1.2. | B11: Расходы по коллективным договорам | C11: тыс. руб. | D11: х | E11: х | F11: 361.697081 | G11: 762.069 | H11: ='Подконтрольные расходы'!N30 -> 792.55 | I11: ='Подконтрольные расходы'!Q30 -> 0 | J11: ='Подконтрольные расходы'!R30 -> 816.8980013 | K11: ='Подконтрольные расходы'!S30 -> 0 | L11: ='Подконтрольные расходы'!T30 -> 846.6785197 | M11: ='Подконтрольные расходы'!U30 -> 0 | N11: ='Подконтрольные расходы'!V30 -> 874.886772 | O11: ='Подконтрольные расходы'!W30 -> 0 | P11: ='Подконтрольные расходы'!X30 -> 904.247972 | Q11: ='Подконтрольные расходы'!Y30 -> 0 | R11: х
A12: 2. | B12: Суммы, не подлежащие обложению страховыми взносами, в соответствии со статьей 422 НК РФ | C12: тыс. руб. | D12: х | E12: х | F12: 115.049026 | G12: 115 | R12: х
A13: 3. | B13: Тарифы страховых взносов: | C13: % | D13: х | E13: х | F13: х | G13: х | H13: х | I13: х | J13: х | K13: х | L13: х | M13: х | N13: х | O13: х | P13: х | Q13: х | R13: х
A14: 3.1. | B14: на обязательное пенсионное страхование | C14: % | D14: х | E14: х | F14: 0.22 | G14: 0.22 | H14: 0.22 | I14: 0.22 | J14: 0.22 | K14: 0.22 | L14: 0.22 | M14: 0.22 | N14: 0.22 | O14: 0.22 | P14: 0.22 | Q14: 0.22 | R14: х
A15: 3.2. | B15: на обязательное медицинское страхование | C15: % | D15: х | E15: х | F15: 0.051 | G15: 0.051 | H15: 0.051 | I15: 0.051 | J15: 0.051 | K15: 0.051 | L15: 0.051 | M15: 0.051 | N15: 0.051 | O15: 0.051 | P15: 0.051 | Q15: 0.051 | R15: х
A16: 3.3. | B16: на обязательное социальное страхование на случай временной нетрудоспособности и в связи с материнством | C16: % | D16: х | E16: х | F16: 0.029 | G16: 0.029 | H16: 0.029 | I16: 0.029 | J16: 0.029 | K16: 0.029 | L16: 0.029 | M16: 0.029 | N16: 0.029 | O16: 0.029 | P16: 0.029 | Q16: 0.029 | R16: х
A17: 3.4. | B17: на обязательное страхование от несчастных случаев | C17: % | D17: х | E17: х | G17: 0.004 | H17: 0.004 | J17: 0.004 | L17: 0.004 | N17: 0.004 | P17: 0.004 | R17: х
A18: 4. | B18: Расходы на страховые взносы: | C18: тыс. руб. | D18: 3706.168939 | E18: 4238.7 | F18: 3884.976652 | G18: =G19+G20+G21+G22 -> 4350.4528 | H18: 5186.322859 | I18: 0 | J18: 5345.652359 | K18: 0 | L18: 5540.5314 | M18: 0 | N18: 5725.121777 | O18: 0 | P18: 5917.256864 | Q18: 0
A19: 4.1. | B19: на обязательное пенсионное страхование | C19: тыс. руб. | D19: х | E19: 3067.39441 | F19: х | G19: =(G9-G12)*G14 -> 3148.354 | H19: 3753.259964 | I19: 0 | J19: 3868.564207 | K19: 0 | L19: 4009.595092 | M19: 0 | N19: 4143.180233 | O19: 0 | P19: 4282.225362 | Q19: 0
A20: 4.2. | B20: на обязательное медицинское страхование | C20: тыс. руб. | D20: х | E20: 721.14801 | F20: х | G20: =(G9-G12)*G15 -> 729.8457 | H20: 870.0739006 | I20: 0 | J20: 896.8035208 | K20: 0 | L20: 929.497044 | M20: 0 | N20: 960.4645086 | O20: 0 | P20: 992.6976975 | Q20: 0
A21: 4.3. | B21: на обязательное социальное страхование на случай временной нетрудоспособности и в связи с материнством | C21: тыс. руб. | D21: х | E21: 393.59252 | F21: х | G21: =(G9-G12)*G16 -> 415.0103 | H21: 494.7479043 | I21: 0 | J21: 509.9471001 | K21: 0 | L21: 528.5375348 | M21: 0 | N21: 546.1464853 | O21: 0 | P21: 564.4751613 | Q21: 0
A22: 4.4. | B22: на обязательное страхование от несчастных случаев | C22: тыс. руб. | D22: х | E22: 56.56458 | F22: х | G22: =(G9-G12)*G17 -> 57.2428 | H22: 68.24109025 | I22: 0 | J22: 70.33753104 | K22: 0 | L22: 72.90172894 | M22: 0 | N22: 75.3305497 | O22: 0 | P22: 77.85864294 | Q22: 0
B24: Руководитель организации | E24: ='Инф-я'!$C$21 -> Окунев Василий Михайлович
A31: № п./п. | B31: Показатели | C31: По расчету Общества
A32: 1 | B32: 2 | C32: 3
A33: 1. | B33: Расходы на оплату труда, включаемые в базу для начисления страховых взносов | C33: =H9 -> 17060.27256
A34: 2. | B34: Выплаты работникам по коллективному договору - всего. в т. ч. | C34: 0
A35: 3. | B35: суммы, не подлежащие обложению страховыми взносами в соответствии со ст. 9 закона от 24.07.2009 г. № 212-ФЗ | C35: 0
A36: 4. | B36: Итого база страховых взносов (п.1+п.2-п.3) | C36: =C33+C34 -> 17060.27256
A37: 5. | B37: Отчисления во внебюджетные фонды | C37: =C36*C38/100 -> 5186.322859
A38: 6. | B38: Процент отчислений (%) | C38: 30.4

Sheet Расходы рег. орг-ий
A2: Расходы на оплату услуг организаций, осуществляющих регулируемые виды деятельности
A4: ='Инф-я'!C13 -> ООО "Энергетик"
N6: тыс. руб.
A7: Наименование | B7: 2018 год | D7: 2019 год | F7: 2020 год | H7: 2021 год | J7: 2022 год | L7: 2023 год | N7: 2024 год | P7: 2018 год
B8: Утверждено | C8: Факт | D8: Утверждено | E8: Ожидаемые | F8: По данным организации | G8: По данным экспертов | H8: По данным организации | I8: По данным экспертов | J8: По данным организации | K8: По данным экспертов | L8: По данным организации | M8: По данным экспертов | N8: По данным организации | O8: По данным экспертов | P8: Факт по данным экспертов
A9: 1 | B9: 2 | C9: 3 | D9: 4 | E9: 5 | F9: 6 | G9: 7 | H9: 6 | I9: 7 | J9: 6 | K9: 7 | L9: 6 | M9: 7 | N9: 6 | O9: 7 | P9: 8
A10: Тепловая энергия | B10: 209.1894709 | C10: =SUM(C11:C12) -> 210.778 | D10: 218.657872 | E10: =SUM(E11:E12) -> 210.779 | F10: 227.98 | G10: 0 | H10: =SUM(H11:H12) -> 237.1 | I10: 246.584 | J10: =SUM(J11:J12) -> 246.58 | K10: 256.4432 | L10: =SUM(L11:L12) -> 256.44 | M10: 266.6976 | N10: =SUM(N11:N12) -> 266.7 | O10: 0 | P10: 0
A11: договор с ООО "Теплосеть" от_____№ __ на_________ | B11: х | C11: 210.778 | D11: х | E11: 210.779 | F11: 227.98 | H11: 237.1 | I11: =H11*1.04 -> 246.584 | J11: 246.58 | K11: 256.4432 | L11: 256.44 | M11: 266.6976 | N11: 266.7
A12: договор с _____ от_____№ __ на_________ | B12: х | D12: х
A13: Добавить
A14: Водоснабжение и канализация | B14: 27.28460464 | C14: =SUM(C15:C16) -> 23.261 | D14: 12.7776048 | E14: =SUM(E15:E16) -> 23.26 | F14: 25.16 | G14: 0 | H14: =SUM(H15:H16) -> 26.17 | I14: 0 | J14: =SUM(J15:J16) -> 27.22 | K14: 0 | L14: =SUM(L15:L16) -> 28.31 | M14: 0 | N14: =SUM(N15:N16) -> 29.44 | O14: 0 | P14: 0
A15: договор с ООО "ВодКанал"от_____№ __ на_________ | B15: х | C15: 23.261 | D15: х | E15: 23.26 | F15: 25.16 | H15: 26.17 | J15: 27.22 | L15: 28.31 | N15: 29.44
A16: договор с _____ от_____№ __ на_________ | B16: х | D16: х
A17: Добавить
A18: Прочие услуги по регулируемым тарифам | B18: 13.47229241 | C18: =SUM(C19:C21) -> 12.979 | D18: 13.82220104 | E18: =SUM(E19:E21) -> 13.5 | F18: 14.04 | G18: 0 | H18: =SUM(H19:H21) -> 14.6 | I18: 0 | J18: =SUM(J19:J21) -> 15.18 | K18: 0 | L18: =SUM(L19:L21) -> 15.79 | M18: 0 | N18: =SUM(N19:N21) -> 16.42 | O18: 0 | P18: 0
A19: договор с ООО "Аккор" от_____№ __ на_________ | B19: х | C19: 12.979 | D19: х | E19: 13.5 | F19: 14.04 | H19: 14.6 | J19: 15.18 | L19: 15.79 | N19: 16.42
A20: договор с _____ от_____№ __ на_________ | B20: х | D20: х
A21: договор с _____ от_____№ __ на_________ | B21: х | D21: х
A22: Добавить
A23: Итого | B23: =B10+B14+B18 -> 249.946368 | C23: 247.018 | D23: 245.2576778 | E23: 247.539 | F23: 267.18 | G23: =G10+G14+G18 -> 0 | H23: =H10+H14+H18 -> 277.87 | I23: =I10+I14+I18 -> 246.584 | J23: =J10+J14+J18 -> 288.98 | K23: =K10+K14+K18 -> 256.4432 | L23: =L10+L14+L18 -> 300.54 | M23: =M10+M14+M18 -> 266.6976 | N23: =N10+N14+N18 -> 312.56 | O23: =O10+O14+O18 -> 0 | P23: =P10+P14+P18 -> 0
A25: Руководитель организации | D25: ='Инф-я'!C21 -> Окунев Василий Михайлович

Sheet Аренда имущества
A2: Расходы по аренде имущества в части амортизации и налогов, относимых к арендуемому имуществу
A4: ='Инф-я'!C13 -> ООО "Энергетик"
A6: Наименование | B6: 2018 год | D6: 2019 год | F6: 2020 год | V6: 2021 год | X6: 2022 год | Z6: 2023 год | AB6: 2024 год | AD6: 2018 год Факт по данным экспертов
F7: По данным организации | N7: По расчету экспертов
F8: Сумма арендной платы для включения в тариф | G8: Стоимость арендной платы по договору | H8: Стоимость арендной платы в соответствии с требованиями п. 28 Основ ценообразования | N8: Сумма арендной платы для включения в тариф | O8: Стоимость арендной платы по договору | P8: Стоимость арендной платы расчитанной в соответствии с требованиями п. 28 Основ ценообразования
B9: Утверждено | C9: Факт | D9: Утверждено | E9: Ожидаемые | H9: Всего | I9: амортизационные отчисления | J9: налог на имущество | K9: транспортный налог | L9: плата за землю | M9: иные обязательные платежи предусмотренные законодательством, связанные с арендуемым имуществом | P9: Всего | Q9: амортизационные отчисления | R9: налог на имущество | S9: транспортный налог | T9: плата за землю | U9: иные обязательные платежи предусмотренные законодательством, связанные с арендуемым имуществом | V9: По данным организации | W9: По данным экспертов | X9: По данным организации | Y9: По данным экспертов | Z9: По данным организации | AA9: По данным экспертов | AB9: По данным организации | AC9: По данным экспертов
A10: 1 | B10: 2 | C10: 3 | D10: 4 | E10: 5 | F10: 6 | G10: 7 | H10: 8 | I10: 9 | J10: 10 | K10: 11 | L10: 12 | M10: 13 | N10: 14 | O10: 15 | P10: 16 | Q10: 17 | R10: 18 | S10: 19 | T10: 20 | U10: 21 | V10: 22 | W10: 23 | X10: 24 | Y10: 25 | Z10: 26 | AA10: 27 | AB10: 28 | AC10: 29 | AD10: 30
A11: Аренда объектов электросетевого хозяйства | B11: =SUM(B12:B14) -> 2976 | C11: =SUM(C12:C14) -> 2976 | D11: 2976 | E11: 2976 | F11: 2976 | G11: 2976 | H11: 2976 | I11: 2976 | J11: 0 | K11: 0 | L11: 0 | M11: 0 | N11: =SUM(N12:N14) -> 0 | O11: =SUM(O12:O14) -> 0 | P11: 0 | Q11: 0 | R11: 0 | S11: 0 | T11: 0 | U11: 0 | V11: 2976 | W11: 0 | X11: =SUM(X12:X14) -> 2976 | Y11: 0 | Z11: =SUM(Z12:Z14) -> 2976 | AA11: 0 | AB11: =SUM(AB12:AB14) -> 2976 | AC11: 0 | AD11: 0
A12: договор с ООО "Техстройэнерго" от 01.12.2017г № 13А-18 | B12: 2976 | C12: 2976 | D12: 2976 | E12: =G12 -> 2976 | F12: =MIN(G12,H12) -> 2976 | G12: 2976 | H12: =I12+J12+K12+L12+M12 -> 2976 | I12: 2976 | N12: =MIN(O12,P12) -> 0 | P12: =Q12+R12+S12+T12+U12 -> 0 | V12: =G12 -> 2976 | X12: =G12 -> 2976 | Z12: =G12 -> 2976 | AB12: =G12 -> 2976
A13: договор с _____ от_____№ __ | F13: 0 | H13: 0 | N13: 0 | P13: 0
A14: договор с _____ от_____№ __ | F14: 0 | H14: 0 | N14: 0 | P14: 0
A15: Добавить
A16: Аренда зданий, соружений, помещений, основных средств | B16: =SUM(B17:B20) -> 228.48 | C16: =SUM(C17:C20) -> 228.48 | D16: 228.48 | E16: 228.48 | F16: 228.48 | G16: 228.48 | H16: 228.48 | I16: 228.48 | J16: 0 | K16: 0 | L16: 0 | M16: 0 | N16: =SUM(N17:N20) -> 0 | O16: =SUM(O17:O20) -> 0 | P16: 0 | Q16: 0 | R16: 0 | S16: 0 | T16: 0 | U16: 0 | V16: 228.48 | W16: 0 | X16: =SUM(X17:X20) -> 228.48 | Y16: 0 | Z16: =SUM(Z17:Z20) -> 228.48 | AA16: 0 | AB16: =SUM(AB17:AB20) -> 228.48 | AC16: 0 | AD16: 0
A17: договор с ООО "Техстройэнерго" от 01.12.2017г № 12А-18 | B17: 228.48 | C17: 228.48 | D17: 228.48 | E17: =G17 -> 228.48 | F17: =MIN(G17,H17) -> 228.48 | G17: 228.48 | H17: =I17+J17+K17+L17+M17 -> 228.48 | I17: 228.48 | N17: =MIN(O17,P17) -> 0 | P17: =Q17+R17+S17+T17+U17 -> 0 | V17: =G17 -> 228.48 | X17: =G17 -> 228.48 | Z17: =G17 -> 228.48 | AB17: =G17 -> 228.48
A18: договор с _____ от_____№ __ | F18: 0 | H18: 0 | N18: 0 | P18: 0
A19: договор с _____ от_____№ __ | F19: 0 | H19: 0 | N19: 0 | P19: 0
A20: договор с _____ от_____№ __ | F20: 0 | H20: 0 | N20: 0 | P20: 0
A21: Добавить
A22: Аренда транспортных средств | B22: =SUM(B23:B35) -> 1639.8 | C22: =SUM(C23:C35) -> 1593.21936 | D22: 1639.8 | E22: 1686.019 | F22: 1566.017 | G22: 1566.019 | H22: 1566.02 | I22: 1566.02 | J22: 0 | K22: 0 | L22: 0 | M22: 0 | N22: =SUM(N23:N35) -> 0 | O22: =SUM(O23:O35) -> 0 | P22: 0 | Q22: 0 | R22: 0 | S22: 0 | T22: 0 | U22: 0 | V22: 1566.019 | W22: 0 | X22: =SUM(X23:X35) -> 1566.019 | Y22: 0 | Z22: =SUM(Z23:Z35) -> 1566.019 | AA22: 0 | AB22: =SUM(AB23:AB35) -> 1566.019 | AC22: 0 | AD22: 0
A23: договор с ООО "Техстройэнерго" от 01.12.2017г. № 11А-18 на аренду УАЗ-3909 (VIN XTT39090030476836) | B23: 59.3 | C23: 63.577 | D23: 59.3 | E23: 63.577 | F23: =MIN(G23,H23) -> 63.577 | G23: 63.577 | H23: =I23+J23+K23+L23+M23 -> 63.58 | I23: 63.58 | N23: =MIN(O23,P23) -> 0 | P23: =Q23+R23+S23+T23+U23 -> 0 | V23: =G23 -> 63.577 | X23: =G23 -> 63.577 | Z23: =G23 -> 63.577 | AB23: =G23 -> 63.577
A24: договор с ООО "Техстройэнерго" от 01.12.2017г. № 8А-18 на аренду ЗИЛ-130 Г (VIN отсутствует; год выпуска 1985г.; модель двигателя 508.400; двигатель № 292036) | B24: 234.5 | C24: 240 | D24: 234.5 | E24: 240 | F24: 240 | G24: 240 | H24: 240 | I24: 240 | N24: 0 | P24: 0 | V24: 240 | X24: 240 | Z24: 240 | AB24: 240
A25: договор с ООО "Техстройэнерго" от 01.12.2017г. № 02А-18 на аренду ГАЗ-6612 (VIN ) | B25: 234.5 | C25: 120 | F25: 0 | H25: 0 | N25: 0 | P25: 0 | V25: 0 | X25: 0 | Z25: 0 | AB25: 0
A26: договор с ООО "Техстройэнерго" от 01.12.2017г. № 6А-18 на аренду АПТ-17Э (VIN XTH330700R1536123) | B26: 234.5 | C26: 240 | D26: 234.5 | E26: 240 | F26: 240 | G26: 240 | H26: 240 | I26: 240 | N26: 0 | P26: 0 | V26: 240 | X26: 240 | Z26: 240 | AB26: 240
A27: договор с ООО "Техстройэнерго" от 01.12.2017г. № 7А-18 на аренду ГАЗ-5312 (VIN XTH531200M1403186) | B27: 114.5 | C27: 30 | D27: 114.5 | E27: 120 | F27: 0 | G27: 0 | H27: 0 | I27: 0 | N27: 0 | P27: 0 | V27: 0 | X27: 0 | Z27: 0 | AB27: 0
A28: договор с ООО "Техстройэнерго" от 01.12.2017г. № 9А-18 на аренду ВАЗ-2105 (VIN ХТА210540А2178050) | B28: 34 | C28: 38.44236 | D28: 34 | E28: 38.442 | F28: 38.44 | G28: 38.442 | H28: 38.44 | I28: 38.44 | N28: 0 | P28: 0 | V28: 38.442 | X28: 38.442 | Z28: 38.442 | AB28: 38.442
A29: договор с ООО "Техстройэнерго" от 01.12.2017г. № 5А-18 на аренду ВАЗ-11193 (VIN XTA11193070022812) | B29: 79.5 | C29: 18.2 | D29: 0 | F29: 0 | G29: 0 | H29: 0 | I29: 0 | N29: 0 | P29: 0 | V29: 0 | X29: 0 | Z29: 0 | AB29: 0
A30: договор с ООО "Техстройэнерго" от 01.12.2017г. № 4А-18 на аренду ЗИЛ-131 (VIN отсутствует; год выпуска 1993г.; модель двигателя отсутствует; двигатель № 146550) | B30: 414.5 | C30: 420 | D30: 414.5 | E30: 420 | F30: 420 | G30: 420 | H30: 420 | I30: 420 | N30: 0 | P30: 0 | V30: 420 | X30: 420 | Z30: 420 | AB30: 420
A31: договор с ООО "Техстройэнерго" от 01.12.2017г. № 10А-18 на аренду ТА-18 (VIN X89483713FCAH3011) | B31: 234.5 | C31: 240 | D31: 234.5 | E31: 240 | F31: 240 | G31: 240 | H31: 240 | I31: 240 | N31: 0 | P31: 0 | V31: 240 | X31: 240 | Z31: 240 | AB31: 240
A32: договор с ООО "Техстройэнерго" от 01.04.2018г. № 15А-18 на аренду LADA GRANDA (VIN XTA219010J0532195) | C32: 63 | D32: 79.5 | E32: 84 | F32: 84 | G32: 84 | H32: 84 | I32: 84 | N32: 0 | P32: 0 | V32: 84 | X32: 84 | Z32: 84 | AB32: 84
A33: договор с ООО "Техстройэнерго" от 01.07.2018г. №16А-18 на аренду ГАЗ-66 | C33: 120 | D33: 234.5 | E33: 240 | F33: 240 | G33: 240 | H33: 240 | I33: 240 | N33: 0 | P33: 0 | V33: 240 | X33: 240 | Z33: 240 | AB33: 240
A34: договор с _____ от_____№ __ | F34: =MIN(G34,H34) -> 0 | H34: =I34+J34+K34+L34+M34 -> 0 | N34: =MIN(O34,P34) -> 0 | P34: =Q34+R34+S34+T34+U34 -> 0
A35: договор с _____ от_____№ __ | F35: 0 | H35: 0 | N35: 0 | P35: 0
A36: Добавить
A37: Лизинг | B37: =SUM(B38:B42) -> 0 | C37: =SUM(C38:C42) -> 0 | D37: 0 | E37: 0 | F37: 0 | G37: х | H37: х | I37: х | J37: х | K37: х | L37: х | M37: х | N37: =SUM(N38:N42) -> 0 | O37: х | P37: х | Q37: х | R37: х | S37: х | T37: х | U37: х | V37: =SUM(V38:V42) -> 0 | W37: 0 | X37: =SUM(X38:X42) -> 0 | Y37: 0 | Z37: =SUM(Z38:Z42) -> 0 | AA37: 0 | AB37: =SUM(AB38:AB42) -> 0 | AC37: 0 | AD37: =SUM(AD38:AD42) -> 0
A38: объектов электросетевого хозяйства договор с _____ от_____№ __ | G38: х | H38: х | I38: х | J38: х | K38: х | L38: х | M38: х | O38: х | P38: х | Q38: х | R38: х | S38: х | T38: х | U38: х
A39: иного имущества договор с _____ от_____№ __ | G39: х | H39: х | I39: х | J39: х | K39: х | L39: х | M39: х | O39: х | P39: х | Q39: х | R39: х | S39: х | T39: х | U39: х
A40: договор с _____ от_____№ __ | G40: х | H40: х | I40: х | J40: х | K40: х | L40: х | M40: х | O40: х | P40: х | Q40: х | R40: х | S40: х | T40: х | U40: х
A41: договор с _____ от_____№ __ | G41: х | H41: х | I41: х | J41: х | K41: х | L41: х | M41: х | O41: х | P41: х | Q41: х | R41: х | S41: х | T41: х | U41: х
A42: договор с _____ от_____№ __ | G42: х | H42: х | I42: х | J42: х | K42: х | L42: х | M42: х | O42: х | P42: х | Q42: х | R42: х | S42: х | T42: х | U42: х
A43: Добавить
A44: ИТОГО расходы по аренде имущества, всего в том числе | B44: =B11+B16+B22+B37 -> 4844.28 | C44: =C11+C16+C22+C37 -> 4797.69936 | D44: =D11+D16+D22+D37 -> 4844.28 | E44: =E11+E16+E22+E37 -> 4890.499 | F44: =F11+F16+F22+F37 -> 4770.497 | G44: =G11+G16+G22 -> 4770.499 | H44: =H11+H16+H22 -> 4770.5 | I44: 4770.5 | J44: 0 | K44: 0 | L44: 0 | M44: 0 | N44: =N11+N16+N22+N37 -> 0 | O44: =O11+O16+O22 -> 0 | P44: =P11+P16+P22 -> 0 | Q44: 0 | R44: 0 | S44: 0 | T44: 0 | U44: 0 | V44: =V11+V16+V22+V37 -> 4770.499 | W44: 0 | X44: 4770.499 | Y44: 0 | Z44: 4770.499 | AA44: 0 | AB44: 4770.499 | AC44: 0 | AD44: 0
A45: в т.ч. по уровням напряжения: ВН | B45: х | C45: х | E45: х | G45: х | H45: х | I45: х | J45: х | K45: х | L45: х | M45: х | O45: х | P45: х | Q45: х | R45: х | S45: х | T45: х | U45: х | W45: х | Y45: х | AA45: х | AC45: х
A46: СН1 | B46: х | C46: х | E46: х | G46: х | H46: х | I46: х | J46: х | K46: х | L46: х | M46: х | O46: х | P46: х | Q46: х | R46: х | S46: х | T46: х | U46: х | W46: х | Y46: х | AA46: х | AC46: х
A47: СН2 | B47: х | C47: х | E47: х | G47: х | H47: х | I47: х | J47: х | K47: х | L47: х | M47: х | O47: х | P47: х | Q47: х | R47: х | S47: х | T47: х | U47: х | W47: х | Y47: х | AA47: х | AC47: х
A48: НН | B48: х | C48: х | E48: х | G48: х | H48: х | I48: х | J48: х | K48: х | L48: х | M48: х | O48: х | P48: х | Q48: х | R48: х | S48: х | T48: х | U48: х | W48: х | Y48: х | AA48: х | AC48: х
A49: Для проверки прибыли на капитальные вложения (аренда и лизинг объектов электросетевого хозяйства) | B49: =B11+B38 -> 2976 | C49: =C11+C38 -> 2976 | D49: =D11+D38 -> 2976 | E49: =E11+E38 -> 2976 | F49: =F11+F38 -> 2976 | G49: х | H49: х | I49: х | J49: х | K49: х | L49: х | M49: х | N49: =N11+N38 -> 0 | O49: х | P49: х | Q49: х | R49: х | S49: х | T49: х | U49: х | V49: =V11+V38 -> 2976 | W49: 0 | X49: 2976 | Y49: 0 | Z49: 2976 | AA49: 0 | AB49: 2976 | AC49: 0 | AD49: 0
A51: Руководитель организации | D51: ='Инф-я'!$C$21 -> Окунев Василий Михайлович

Sheet Плата за землю
A2: Плата за землю
A4: ='Инф-я'!C13 -> ООО "Энергетик"
O5: тыс. руб.
A6: Наименование | B6: 2018 год | D6: 2019 год | F6: 2020 год | H6: 2021 год | J6: 2022 год | L6: 2023 год | N6: 2024 год | P6: 2018 год
B7: Утверждено | C7: Факт | D7: Утверждено | E7: Ожидаемые | F7: По данным организации | G7: По данным экспертов | H7: По данным организации | I7: По данным экспертов | J7: По данным организации | K7: По данным экспертов | L7: По данным организации | M7: По данным экспертов | N7: По данным организации | O7: По данным экспертов | P7: Факт по данным экспертов
A8: 1 | B8: 2 | C8: 3 | D8: 4 | E8: 5 | F8: 6 | G8: 7 | H8: 8 | I8: 9 | J8: 10 | K8: 11 | L8: 12 | M8: 13 | N8: 14 | O8: 15 | P8: 16
A9: Земельный налог
A11: Арендная плата за землю | B11: 369.5941697 | C11: =SUM(C12:C15) -> 109.97977 | D11: 502.51673 | E11: =SUM(E12:E15) -> 225.1896 | F11: 235 | G11: 0 | H11: 301 | I11: 0 | J11: 350 | K11: 0 | L11: 411 | M11: 0 | N11: 435 | O11: 0 | P11: 0
A12: договор № ___ от ____ | B12: x | C12: 109.97977 | D12: x | E12: 225.1896 | F12: 235 | H12: 301 | J12: 350 | L12: 411 | N12: 435
A13: договор № ___ от ____ | B13: x | D13: x
A14: договор № ___ от ____ | B14: x | D14: x
A15: договор № ___ от ____ | B15: x | D15: x
A16: Добавить
A17: Всего плата за землю | B17: =B9+B11 -> 369.5941697 | C17: 109.97977 | D17: 502.51673 | E17: 225.1896 | F17: 235 | G17: 0 | H17: =H9+H11 -> 301 | I17: 0 | J17: =J9+J11 -> 350 | K17: 0 | L17: =L9+L11 -> 411 | M17: 0 | N17: =N9+N11 -> 435 | O17: 0 | P17: 0
A19: Руководитель организации | D19: ='Инф-я'!$C$21 -> Окунев Василий Михайлович

Sheet Транспортный налог
A2: Расчет транспортного налога
A4: ='Инф-я'!C13 -> ООО "Энергетик"
I5: тыс. руб.
A6: Объект налогообложения (вид и марка транспортного средства) | B6: Налоговая база, (л.с.) | C6: Налоговая ставка, руб. | D6: 2018 год | F6: 2019 год | H6: 2020 год | L6: 2021 год | N6: 2022 год | P6: 2023 год | R6: 2024 год | T6: 2018 год
H7: По расчету организации | J7: По расчету экспертов | T7: Факт по данным экспертов
D8: Утверждено | E8: Факт | F8: Утверждено | G8: Ожидаемые | H8: Коэф. использ. | I8: Годовая сумма налога, тыс.руб. | J8: Коэф. использ. | K8: Годовая сумма налога, тыс. руб. | L8: По данным организации | M8: По данным экспертов | N8: По данным организации | O8: По данным экспертов | P8: По данным организации | Q8: По данным экспертов | R8: По данным организации | S8: По данным экспертов
A9: 1 | B9: 2 | C9: 3 | D9: 4 | E9: 5 | F9: 6 | G9: 7 | H9: 8 | I9: 9 | J9: 10 | K9: 11 | L9: 12 | M9: 13 | N9: 14 | O9: 15 | P9: 16 | Q9: 17 | R9: 18 | S9: 19 | T9: 20
D10: х | F10: х | I10: =B10*C10*H10/1000 -> 0 | K10: =B10*C10*J10/1000 -> 0
D11: х | F11: х | I11: =B11*C11*H11/1000 -> 0 | K11: =B11*C11*J11/1000 -> 0
D12: х | F12: х | I12: 0 | K12: 0
D13: х | F13: х | I13: 0 | K13: 0
D14: х | F14: х | I14: 0 | K14: 0
A15: Добавить
A16: Транспортный налог всего, в т.ч. | B16: х | C16: х | E16: =SUM(E10:E14) -> 0 | G16: =SUM(G10:G14) -> 0 | H16: х | I16: =SUM(I10:I14) -> 0 | J16: х | K16: =SUM(K10:K14) -> 0 | L16: 0 | M16: 0 | N16: 0 | O16: 0 | P16: 0 | Q16: 0 | R16: 0 | S16: 0 | T16: 0
A17: относимый на услугу по передаче электрической энергии | B17: х | C17: х | H17: х | J17: х
A18: * Условное форматирование: если в ячейке не указано значение - форматируется красным цветом
A19: Руководитель организации | D19: ='Инф-я'!$C$21 -> Окунев Василий Михайлович

Sheet Налог на имущество
A2: Налог на имущество
A4: ='Инф-я'!C13 -> ООО "Энергетик"
N5: тыс. руб.
A6: Наименование | B6: 2018 год | D6: 2019 год | F6: 2020 год | H6: 2021 год | J6: 2022 год | L6: 2023 год | N6: 2024 год | P6: 2018 год
B7: Утверждено | C7: Факт | D7: Утверждено | E7: Ожидаемые | F7: По данным организации | G7: По данным экспертов | H7: По данным организации | I7: По данным экспертов | J7: По данным организации | K7: По данным экспертов | L7: По данным организации | M7: По данным экспертов | N7: По данным организации | O7: По данным экспертов | P7: Факт по данным экспертов
A8: 1 | B8: 2 | C8: 3 | D8: 4 | E8: 5 | F8: 6 | G8: 7 | H8: 6 | I8: 7 | J8: 6 | K8: 7 | L8: 6 | M8: 7 | N8: 6 | O8: 7 | P8: 8
A9: Среднегодовая остаточная стоимость основных средств, всего, в том числе: | B9: х | C9: =C10+C12+C11 -> 0 | D9: х | E9: =E10+E11 -> 0 | F9: 95839.14311 | G9: 0 | H9: 0 | I9: 0 | J9: 0 | K9: 0 | L9: 0 | M9: 0 | N9: 0 | O9: 0 | P9: =P10+P12+P11 -> 0
A10: -облагаемых по ставке 2,2 % | B10: х | D10: х | F10: ='Расчет аморт. max срок '!V108/1000+'Ввод выбытие ОС '!K15-'Ввод выбытие ОС '!K29 -> 5406.150309
A11: - необлагаемых (движимое имущество) | B11: х | D11: х | F11: ='Расчет аморт. max срок '!W108/1000 -> 90432.99281
A12: -облагаемых по льготной ставке | B12: х | D12: х | E12: х | F12: х | G12: х | H12: х | I12: х | J12: х | K12: х | L12: х | M12: х | N12: х | O12: х
A13: Льготная ставка налога | B13: х | C13: 0.019 | D13: х | E13: х | F13: х | G13: х | H13: х | I13: х | J13: х | K13: х | L13: х | M13: х | N13: х | O13: х | P13: 0.019
A14: Налог на имущество | C14: =C10*2.2%+C12*C13 -> 0 | E14: =E10*2.2% -> 0 | F14: 118.9353068 | G14: 0 | H14: 0 | I14: 0 | J14: 0 | K14: 0 | L14: 0 | M14: 0 | N14: 0 | O14: 0 | P14: =P10*2.2%+P12*P13 -> 0
A15: Налог на имущество, относимый на услугу по передаче электрической энергии | Q15: Условное форматирование: если в ячейке не указано значение -форматируется красным цветом
A17: Руководитель организации | D17: ='Инф-я'!$C$21 -> Окунев Василий Михайлович

Sheet Налог прим при УСНО
B2: Налог организаций, применяющих УСНО от деятельности по передаче и технологического присоединения
B4: ='Инф-я'!C13 -> ООО "Энергетик"
N5: тыс. руб.
A6: № п/п | B6: Наименование | C6: 2018 год | E6: 2019 год | F6: 2020 год | H6: 2021 год | J6: 2022 год | L6: 2023 год | N6: 2024 год | P6: 2018 год
C7: Утверждено | D7: Факт | E7: Утверждено | F7: По данным организации | G7: По данным экспертов | H7: По данным организации | I7: По данным экспертов | J7: По данным организации | K7: По данным экспертов | L7: По данным организации | M7: По данным экспертов | N7: По данным организации | O7: По данным экспертов | P7: Факт по данным экспертов
A8: 1 | B8: 2 | C8: 3 | D8: 4 | E8: 5 | F8: 6 | G8: 7 | H8: 6 | I8: 7 | J8: 6 | K8: 7 | L8: 6 | M8: 7 | N8: 6 | O8: 7 | P8: 8
A9: 1 | B9: ='[15]Налог прим при УСНО'!$B$9 -> Налог организаций, применяющих УСНО всего по декларации | C9: х | D9: 791.176 | E9: х | F9: х | G9: х | H9: х | I9: х | J9: х | K9: х | L9: х | M9: х | N9: х | O9: х | P9: 0
A10: ='[15]Налог прим при УСНО'!$A$10:$B$10 -> Налог организаций, применяющих УСНО от деятельности по передаче и технологического присоединения | C10: 991.895 | D10: =D9 -> 791.176 | E10: 1318.804 | F10: =D10 -> 791.176 | G10: =P10 -> 0 | H10: =F10 -> 791.176 | I10: =$G$10 -> 0 | J10: =H10 -> 791.176 | K10: =$G$10 -> 0 | L10: =J10 -> 791.176 | M10: =$G$10 -> 0 | N10: =L10 -> 791.176 | O10: =$G$10 -> 0 | P10: =P9 -> 0
A12: Руководитель организации | D12: ='Инф-я'!$C$21 -> Окунев Василий Михайлович
A14: Постановлением Правительства РФ от 11 июня 2014 года № 542 внесены изменения в п. 20 Основ ценообразования в области регулируемых цен (тарифов) в электроэнергетике, утвержденных постановлением Правительства РФ от 29 декабря 2011 г. № 1178 в части определения налога на прибыль: «В необходимую валовую выручку включается величина налога на прибыль организаций по регулируемому виду деятельности, сформированная по данным бухгалтерского учета за последний истекший период. При установлении тарифов на услуги по передаче электрической энергии учитывается величина налога на прибыль организаций, которая относится по данным раздельного учета к деятельности по оказанию услуг по передаче электрической энергии и осуществлению технологического присоединения к электрическим сетям».

Sheet Негативное возд. на окр. среду
B2: Расчет платы за негативное воздействие на окружающую среду
B4: ='Инф-я'!C13 -> ООО "Энергетик"
O5: тыс. руб.
A6: № п./п. | B6: Наименование | C6: 2018 год | E6: 2019 год | G6: 2020 год | I6: 2021 год | K6: 2022 год | M6: 2023 год | O6: 2024 год | Q6: 2018 год
C7: Утверждено | D7: Факт | E7: Утверждено | F7: Ожидаемые | G7: По данным организации | H7: По данным экспертов | I7: По данным организации | J7: По данным экспертов | K7: По данным организации | L7: По данным экспертов | M7: По данным организации | N7: По данным экспертов | O7: По данным организации | P7: По данным экспертов | Q7: Факт по данным экспертов
A8: 1 | B8: 2 | C8: 3 | D8: 4 | E8: 5 | F8: 6 | G8: 7 | I8: 8 | K8: 9 | M8: 10 | O8: 11
A9: 1. | B9: Плата за выбросы загрязняющих веществ в атмосферный воздух стационарными объектами, исчисленная без учета корректировки, в том числе: | C9: x | D9: =SUM(D10:D12) -> 0.23 | E9: x | F9: x | G9: =SUM(G10:G12) -> 0.23 | H9: =SUM(H10:H12) -> 0 | I9: =SUM(I10:I12) -> 0.235 | J9: =SUM(J10:J12) -> 0 | K9: =SUM(K10:K12) -> 0.24 | L9: 0 | M9: =SUM(M10:M12) -> 0.245 | N9: =SUM(N10:N12) -> 0 | O9: =SUM(O10:O12) -> 0.25 | P9: 0 | Q9: 0
A10: 1.1. | B10: плата за выбросы в пределах предельно-допустимых выбросов (ПДВ) | C10: x | E10: x | F10: x
A11: 1.2. | B11: плата за выбросы в пределах лимитов на выбросы загрязняющих веществ (временно согласованные выбросы ВСВ) | C11: x | E11: x | F11: x
A12: 1.3. | B12: плата за выбросы, превышающие установленные разрешениями на выброс загрязняющих веществ в атмосферный воздух | C12: x | D12: 0.23 | E12: x | F12: x | G12: 0.23 | I12: 0.235 | K12: 0.24 | M12: 0.245 | O12: 0.25
A13: 2. | B13: Плата за сбросы загрязняющих веществ в водные объекты | C13: x | D13: =SUM(D14:D16) -> 0 | E13: x | F13: x | G13: =SUM(G14:G16) -> 0 | H13: =SUM(H14:H16) -> 0 | I13: =SUM(I14:I16) -> 0 | J13: =SUM(J14:J16) -> 0 | K13: =SUM(K14:K16) -> 0 | L13: 0 | M13: =SUM(M14:M16) -> 0 | N13: =SUM(N14:N16) -> 0 | O13: =SUM(O14:O16) -> 0 | P13: 0 | Q13: 0
A14: 2.1. | B14: плата за сбросы в пределах нормативов допустимых сбросов (НДС) | C14: x | E14: x | F14: x
A15: 2.2. | B15: плата за сбросы в пределах лимитов на сбросы загрязняющих веществ (временно согласованный сбор ВСС) | C15: x | E15: x | F15: x
A16: 2.3. | B16: плата за сбросы, превышающие установленные разрешениями на сброс загрязняющих веществ (сверх лимита на сбросы) | C16: x | E16: x | F16: x
A17: 3. | B17: Плата за размещение отходов производства и потребления, исчисленная без учета корректировки, в том числе: | C17: x | D17: =SUM(D18:D19) -> 0 | E17: x | F17: x | G17: =SUM(G18:G19) -> 0 | H17: =SUM(H18:H19) -> 0 | I17: =SUM(I18:I19) -> 0 | J17: =SUM(J18:J19) -> 0 | K17: =SUM(K18:K19) -> 0 | L17: 0 | M17: =SUM(M18:M19) -> 0 | N17: =SUM(N18:N19) -> 0 | O17: =SUM(O18:O19) -> 0 | P17: 0 | Q17: 0
A18: 3.1. | B18: плата за размещение отходов в пределах установленного лимита на их размещение | C18: x | E18: x | F18: x
A19: 3.2. | B19: плата за размещение отходов сверх установленного лимита на их размещение | C19: x | E19: x | F19: x
A20: 4. | B20: Сумма средств на выполнение мероприятий по снижению негативного воздействия на окружающую среду, всего (п.4.1.+п.4.2.+п.4.3.), в том числе | C20: x | D20: =D21+D23+D25 -> 0 | E20: x | F20: x | G20: =G21+G23+G25 -> 0 | H20: =H21+H23+H25 -> 0 | I20: =I21+I23+I25 -> 0 | J20: =J21+J23+J25 -> 0 | K20: =K21+K23+K25 -> 0 | L20: 0 | M20: =M21+M23+M25 -> 0 | N20: =N21+N23+N25 -> 0 | O20: =O21+O23+O25 -> 0 | P20: 0 | Q20: 0
A21: 4.1. | B21: платы за выбросы | C21: x | E21: x | F21: x
A22: 4.1.1. | B22: средства, уменьшающие плату за выбросы в части предельно допустимых выбросов | C22: x | D22: =IF(D9=0,0,D21*((D10+D11)/D9)) -> 0 | E22: x | F22: x | G22: =IF(G9=0,0,G21*((G10+G11)/G9)) -> 0 | H22: =IF(H9=0,0,H21*((H10+H11)/H9)) -> 0 | I22: =IF(I9=0,0,I21*((I10+I11)/I9)) -> 0 | J22: =IF(J9=0,0,J21*((J10+J11)/J9)) -> 0 | K22: =IF(K9=0,0,K21*((K10+K11)/K9)) -> 0 | L22: 0 | M22: =IF(M9=0,0,M21*((M10+M11)/M9)) -> 0 | N22: =IF(N9=0,0,N21*((N10+N11)/N9)) -> 0 | O22: =IF(O9=0,0,O21*((O10+O11)/O9)) -> 0 | P22: 0 | Q22: 0
A23: 4.2. | B23: платы за сбросы | C23: x | E23: x | F23: x
A24: 4.2.1. | B24: средства, уменьшающие плату за сбросы в части нормативов сбросов | C24: x | D24: =IF(D13=0,0,D23*((D14+D15)/D13)) -> 0 | E24: x | F24: x | G24: =IF(G13=0,0,G23*((G14+G15)/G13)) -> 0 | H24: =IF(H13=0,0,H23*((H14+H15)/H13)) -> 0 | I24: =IF(I13=0,0,I23*((I14+I15)/I13)) -> 0 | J24: =IF(J13=0,0,J23*((J14+J15)/J13)) -> 0 | K24: =IF(K13=0,0,K23*((K14+K15)/K13)) -> 0 | L24: 0 | M24: =IF(M13=0,0,M23*((M14+M15)/M13)) -> 0 | N24: =IF(N13=0,0,N23*((N14+N15)/N13)) -> 0 | O24: =IF(O13=0,0,O23*((O14+O15)/O13)) -> 0 | P24: 0 | Q24: 0
A25: 4.3. | B25: платы за размещение отходов | C25: x | E25: x | F25: x
A26: 4.3.1. | B26: средства, уменьшающие плату за размещение отходов в части лимита | C26: x | D26: =IF(D17=0,0,D25*(D18/D17)) -> 0 | E26: x | F26: x | G26: =IF(G17=0,0,G25*(G18/G17)) -> 0 | H26: =IF(H17=0,0,H25*(H18/H17)) -> 0 | I26: =IF(I17=0,0,I25*(I18/I17)) -> 0 | J26: =IF(J17=0,0,J25*(J18/J17)) -> 0 | K26: =IF(K17=0,0,K25*(K18/K17)) -> 0 | L26: 0 | M26: =IF(M17=0,0,M25*(M18/M17)) -> 0 | N26: =IF(N17=0,0,N25*(N18/N17)) -> 0 | O26: =IF(O17=0,0,O25*(O18/O17)) -> 0 | P26: 0 | Q26: 0
A27: 5. | B27: Сумма платы, подлежащей внесению в бюджет, всего (п.1+п.2+п.3-п.4), в том числе | C27: x | D27: =D9+D13+D17-D20 -> 0.23 | E27: x | F27: x | G27: =G9+G13+G17-G20 -> 0.23 | H27: =H9+H13+H17-H20 -> 0 | I27: =I9+I13+I17-I20 -> 0.235 | J27: =J9+J13+J17-J20 -> 0 | K27: =K9+K13+K17-K20 -> 0.24 | L27: 0 | M27: =M9+M13+M17-M20 -> 0.245 | N27: =N9+N13+N17-N20 -> 0 | O27: =O9+O13+O17-O20 -> 0.25 | P27: 0 | Q27: 0
A28: Плата за негативное воздействие на окружающую среду в пределах лимитов | D28: =D10+D11-D22+D14+D15-D24+D18-D26 -> 0 | G28: =G10+G11-G22+G14+G15-G24+G18-G26 -> 0 | H28: 0 | I28: 0 | J28: 0 | K28: 0 | L28: 0 | M28: 0 | N28: 0 | O28: 0 | P28: 0 | Q28: =Q10+Q11-Q22+Q14+Q15-Q24+Q18-Q26 -> 0
A29: Плата за негативное воздействие на окружающую среду, относимая на услугу по передаче электрической энергии | R29: Условное форматирование: если в ячейке не указано значение -форматируется красным цветом
B31: Руководитель организации | E31: ='Инф-я'!$C$21 -> Окунев Василий Михайлович
B35: Плата вносится раздельно по четырем компонентам окружающей среды: плата за выбросы, плата за выбросы ПНГ, плата за сбросы в водные объекты и плата за размещение отходов. Каждая по своему КБК (коду бюджетной классификации)
B36: 1. Плата за выбросы загрязняющих веществ в атмосферный воздух стационарными объектами, исчисленная без учета корректировки, в том числе:
B37: 1.1. плата за выбросы в пределах предельно-допустимых выбросов (ПДВ)
B38: 1.2. плата за выбросы в пределах лимитов на выбросы загрязняющих веществ (временно согласованные выбросы ВСВ)
B39: 1.3. плата за выбросы, превышающие установленные разрешениями на выброс загрязняющих веществ в атмосферный воздух
B40: 2. Плата за выбросы загрязняющих веществ при сжигании и (или) рассеивании попутного нефтяного газа
B41: 2.1. плата за выбросы ПНГ в пределах ПДВ
B42: 2.2. плата за выбросы ПНГ в пределах лимитов на выбросы загрязняющих веществ (ВСВ)
B43: 2.3. плата за выбросы ПНГ сверх лимита на выбросы
B44: 3. Плата за сбросы загрязняющих веществ в водные объекты
B45: 3.1. плата за сбросы в пределах НДС
B46: 3.2. плата за сбросы в пределах лимитов на сбросы загрязняющих веществ (ВСС)
B47: 3.3. плата за сбросы, превышающие установленные разрешениями на сброс загрязняющих веществ (сверх лимита на сбросы)
B48: 4. Плата за размещение отходов производства и потребления, исчисленная без учета корректировки, в том числе:
B49: 4.1. плата за размещение отходов в пределах установленного лимита на их размещение
B50: 4.2. плата за размещение отходов сверх установленного лимита на их размещение
B51: 5. Сумма средств на выполнение мероприятий по снижению негативного воздействия на окружающую среду, всего
B52: 5.1. платы за выбросы
B53: 5.2. платы за выбросы ПНГ
B54: 5.3. платы за сбросы
B55: 5.4. платы за размещение отходов
B56: Сумма платы, подлежащей внесению в бюджет, всего (п.1+п.2+п.3+п.4-п.5)
B58: НК, Статья 270. Расходы, не учитываемые в целях налогообложения
B59: 4) в виде суммы налога, а также суммы платежей за выбросы загрязняющих веществ в атмосферный воздух, сбросы загрязняющих веществ в составе сточных вод в водные объекты,
B60: осуществляемые с превышением нормативов допустимых сбросов, за размещение отходов производства и потребления с превышением установленных лимитов на их размещение;

Sheet Услуги ФСК
A2: Оплата услуг ПАО "ФСК ЕЭС"
A3: ='Инф-я'!C13 -> ООО "Энергетик"
V4: тыс. руб.
A5: Показатели | B5: 2018 год | F5: 2019 год | J5: 2020 год | P5: 2021 год | R5: 2022 год | T5: 2023 год | V5: 2024 год | X5: 2018 год
B6: Утверждено | C6: Факт | F6: Утверждено | G6: Ожидаемые | J6: По данным организации | M6: По данным экспертов | P6: По данным организации | Q6: По данным экспертов | R6: По данным организации | S6: По данным экспертов | T6: По данным организации | U6: По данным экспертов | V6: По данным организации | W6: По данным экспертов | X6: Факт по данным экспертов
B7: год | C7: 1 полугодие | D7: 2 полугодие | E7: год | F7: год | G7: 1 полугодие | H7: 2 полугодие | I7: год | J7: 1 полугодие | K7: 2 полугодие | L7: год | M7: 1 полугодие | N7: 2 полугодие | O7: год | Q7: По данным экспертов | S7: По данным экспертов | U7: По данным экспертов | W7: По данным экспертов
A8: 1 | B8: 2 | C8: 3 | D8: 4 | E8: 5 | F8: 6 | G8: 7 | H8: 8 | I8: 9 | J8: 10 | K8: 11 | L8: 12 | M8: 13 | N8: 14 | O8: 15 | P8: 16 | Q8: 17 | R8: 18 | S8: 19 | T8: 20 | U8: 21 | V8: 22 | W8: 23 | X8: 24
A9: Расходы на содержание сетей, тыс. руб. | B9: х | C9: =O26 -> 0 | D9: =P26 -> 0 | E9: =D9+C9 -> 0 | F9: х | G9: =G10*G11*6/1000 -> 0 | H9: =H10*H11*6/1000 -> 0 | I9: =H9+G9 -> 0 | J9: =J10*J11*6/1000 -> 0 | K9: =K10*K11*6/1000 -> 0 | L9: =K9+J9 -> 0 | M9: =M10*M11*6/1000 -> 0 | N9: =N10*N11*6/1000 -> 0 | O9: =M9+N9 -> 0 | P9: х | Q9: х | R9: х | S9: х | T9: х | U9: х | V9: х | W9: х | X9: х
A10: Заявленная мощность в точках присоединения к сетям ПАО "ФСК ЕЭС", МВт | B10: х | C10: =B24 -> 0 | D10: =H24 -> 0 | E10: х | F10: х | I10: х | L10: х | O10: х | P10: х | Q10: х | R10: х | S10: х | T10: х | U10: х | V10: х | W10: х | X10: х
A11: Ставка тарифа услуги по передаче электрической энергии на содержание объектов электросетевого хозяйства, входящих в ЕНЭС, руб. МВт/мес. | B11: х | C11: =B25 -> 0 | D11: =H25 -> 0 | E11: х | F11: х | I11: х | L11: х | O11: х | P11: х | Q11: х | R11: х | S11: х | T11: х | U11: х | V11: х | W11: х | X11: х
A12: Расходы на компенсацию потерь, тыс. руб. | B12: х | C12: =C13*C16 ->  | D12: =D13*D16 ->  | E12: =D12+C12 ->  | F12: х | G12: =G13*G16 -> 0 | H12: =H13*H16 -> 0 | I12: =G12+H12 -> 0 | J12: =J13*J16 -> 0 | K12: =K13*K16 -> 0 | L12: =J12+K12 -> 0 | M12: =M13*M16 -> 0 | N12: =N13*N16 -> 0 | O12: =M12+N12 -> 0 | P12: х | Q12: х | R12: х | S12: х | T12: х | U12: х | V12: х | W12: х | X12: х
A13: Объем технологических потерь электрической энергии при ее передаче по ЕНЭС, млн. кВт.ч | B13: х | C13: =C14*C15% -> 0 | D13: =D14*D15% -> 0 | E13: =E14*E15% -> 0 | F13: х | G13: =G14*G15% -> 0 | H13: 0 | I13: 0 | J13: 0 | K13: 0 | L13: 0 | M13: 0 | N13: 0 | O13: 0 | P13: х | Q13: х | R13: х | S13: х | T13: х | U13: х | V13: х | W13: х | X13: х
A14: Объем отпуска электроэнергии из сети ПАО "ФСК ЕЭС" в сеть организации, млн. кВт.ч | B14: х | C14: =O28/1000 -> 0 | D14: =P28/1000 -> 0 | E14: =D14+C14 -> 0 | F14: х | I14: =H14+G14 -> 0 | L14: =K14+J14 -> 0 | O14: =N14+M14 -> 0 | P14: х | Q14: х | R14: х | S14: х | T14: х | U14: х | V14: х | W14: х | X14: х
A15: Норматив технологических потерь электрической энергии при ее передаче по ЕНЭС, применяемый к отпуску электроэнергии из сети ПАО "ФСК ЕЭС", % | B15: х | C15: =B29 -> 4.25 | D15: =B29 -> 4.25 | E15: =B29 -> 4.25 | F15: х | G15: 3.89 | H15: 3.89 | I15: 3.89 | J15: 3.89 | K15: 3.89 | L15: 3.89 | M15: 3.89 | N15: 3.89 | O15: 3.89 | P15: х | Q15: х | R15: х | S15: х | T15: х | U15: х | V15: х | W15: х | X15: х
A16: Ставка тарифа на оплату нормативных технологических потерь электрической энергии в ЕНЭС, руб./МВт.ч | B16: х | C16: =O31 ->  | D16: =P31 ->  | E16: х | F16: х | I16: х | L16: х | O16: х | P16: х | Q16: х | R16: х | S16: х | T16: х | U16: х | V16: х | W16: х | X16: х
A17: ИТОГО оплата услуг ПАО "ФСК ЕЭС" | C17: =C9+C12 ->  | E17: =IFERROR(E9+E12,0) -> 0 | G17: =G9+G12 -> 0 | H17: 0 | I17: 0 | J17: 0 | K17: 0 | L17: 0 | M17: 0 | N17: 0 | O17: 0
A19: Руководитель организации | D19: ='Инф-я'!$C$21 -> Окунев Василий Михайлович
A21: Факт по данным организации за 2018 год
B23: янв | C23: фев | D23: мар | E23: апр | F23: май | G23: июн | H23: июль | I23: авг | J23: сент | K23: окт | L23: ноя | M23: дек | N23: Итого | O23: 1 полуг | P23: 2 полуг
A24: Заявленная мощность в точках присоединения к сетям ПАО "ФСК ЕЭС", МВт | N24: х | O24: х | P24: х
A25: Ставка тарифа услуги по передаче электрической энергии на содержание объектов электросетевого хозяйства, входящих в ЕНЭС, руб. МВт/мес. | C25: =B25 -> 0 | D25: =C25 -> 0 | E25: 0 | F25: 0 | G25: 0 | I25: =H25 -> 0 | J25: =I25 -> 0 | K25: 0 | L25: 0 | M25: =L25 -> 0 | N25: х | O25: х | P25: х
A26: Стоимость услуги по передаче электрической энергии на содержание объектов элкутросетевого хозяйства, тыс. руб. | B26: =B24*B25/1000 -> 0 | C26: =C24*C25/1000 -> 0 | D26: 0 | E26: 0 | F26: 0 | G26: 0 | H26: 0 | I26: 0 | J26: 0 | K26: 0 | L26: 0 | M26: =M24*M25/1000 -> 0 | N26: =SUM(B26:M26) -> 0 | O26: =SUM(B26:G26) -> 0 | P26: =SUM(H26:M26) -> 0
B27: янв | C27: фев | D27: мар | E27: апр | F27: май | G27: июн | H27: июль | I27: авг | J27: сент | K27: окт | L27: ноя | M27: дек | N27: Итого | O27: 1 полуг | P27: 2 полуг
A28: Отпуск электрической энергии из сетей ПАО "ФСК ЕЭС" напряжением 220 кВ и ниже, МВт.ч | N28: =SUM(B28:M28) -> 0 | O28: =SUM(B28:G28) -> 0 | P28: =SUM(H28:M28) -> 0
A29: Норматив технологических потерь электрической энергии при ее передаче по ЕНЭС, применяемый к отпуску электроэнергии из сети ПАО "ФСК ЕЭС" , % | B29: 4.25 | C29: =B29 -> 4.25 | D29: =C29 -> 4.25 | E29: 4.25 | F29: 4.25 | G29: 4.25 | H29: 4.25 | I29: 4.25 | J29: 4.25 | K29: 4.25 | L29: 4.25 | M29: =L29 -> 4.25 | N29: х | O29: х | P29: х
A30: Объем технологических потерь электрической энергии при ее передаче по ЕНЭС, МВт.ч | B30: =ROUND(B28*B29/100,3) -> 0 | C30: =ROUND(C28*C29/100,3) -> 0 | D30: 0 | E30: 0 | F30: 0 | G30: 0 | H30: 0 | I30: 0 | J30: 0 | K30: 0 | L30: 0 | M30: =ROUND(M28*M29/100,3) -> 0 | N30: =SUM(B30:M30) -> 0 | O30: =SUM(B30:G30) -> 0 | P30: =SUM(H30:M30) -> 0
A31: Ставка тарифа на оплату нормативных технологических потерь электрической энергии в ЕНЭС, руб./МВт.ч | N31: =N32/N30*1000 ->  | O31: =O32/O30*1000 ->  | P31: =P32/P30*1000 -> 
A32: Расходы на компенсацию потерь, тыс. руб. | B32: =B30*B31/1000 -> 0 | C32: =C30*C31/1000 -> 0 | D32: 0 | E32: 0 | F32: 0 | G32: 0 | H32: 0 | I32: 0 | J32: 0 | K32: 0 | L32: 0 | M32: =M30*M31/1000 -> 0 | N32: =SUM(B32:M32) -> 0 | O32: =SUM(B32:G32) -> 0 | P32: =SUM(H32:M32) -> 0
A33: Итого расходы на услуги ФСК, тыс. руб. | B33: =B26+B32 -> 0 | C33: =C26+C32 -> 0 | D33: 0 | E33: 0 | F33: 0 | G33: 0 | H33: 0 | I33: 0 | J33: 0 | K33: 0 | L33: 0 | M33: =M26+M32 -> 0 | N33: =N26+N32 -> 0 | O33: =O26+O32 -> 0 | P33: =P26+P32 -> 0
A35: Приказ Минэнерго от 27.12.2018 г. №1251 "Об утверждении норматива потерь на 2019 год" 220 кВ и ниже - 3,89, 330 кВ и выше - 3,46

Sheet Прочие НР
A2: Прочие обоснованные неподконтрольные расходы
A3: ='Инф-я'!C13 -> ООО "Энергетик"
N4: тыс. руб.
A5: Наименование | B5: 2018 год | D5: 2019 год | F5: 2020 год | H5: 2021 год | J5: 2022 год | L5: 2023 год | N5: 2024 год | P5: 2018 год
B6: Утверждено | C6: Факт | D6: Утверждено | E6: Ожидаемые | F6: По данным организации | G6: По данным экспертов | H6: По данным организации | I6: По данным экспертов | J6: По данным организации | K6: По данным экспертов | L6: По данным организации | M6: По данным экспертов | N6: По данным организации | O6: По данным экспертов | P6: Факт по данным экспертов
A7: 1 | B7: 2 | C7: 3 | D7: 4 | E7: 5 | F7: 6 | G7: 7 | H7: 8 | I7: 9 | J7: 10 | K7: 11 | L7: 12 | M7: 13 | N7: 14 | O7: 15 | P7: 16
A8: Экспертиза НВВ по договору с ТОРИ-АУДИТ №Ф-07-Э-2014 от 05.02.2014г. Доп.соглашение от 17.01.2017г. | B8: 198.026 | C8: 198.03 | D8: 205.353 | E8: 205.35
A9: Расчет плановых показателей надежности и качества по договору с ООО "ТОРИ-АУДИТ" №Ф-07-НК от 25.01.2019г. | F9: 70
A10: Экспертиза НВВ по договору с ТОРИ-АУДИТ на долгосрочный период 2020-2024гг | F10: 362.421
A13: Добавить
A14: ИТОГО прочие обоснованные неподконтрольные расходы | B14: =SUM(B8:B12) -> 198.026 | C14: 198.03 | D14: 205.353 | E14: 205.35 | F14: 432.421 | G14: 0 | H14: =SUM(H8:H12) -> 0 | I14: 0 | J14: =SUM(J8:J12) -> 0 | K14: 0 | L14: =SUM(L8:L12) -> 0 | M14: 0 | N14: =SUM(N8:N12) -> 0 | O14: 0 | P14: 0
A16: Руководитель организации | D16: ='Инф-я'!$C$21 -> Окунев Василий Михайлович

Sheet КВЛ
A2: Расходы на капитальные вложения
A4: ='Инф-я'!C13 -> ООО "Энергетик"
N5: тыс. руб.
A6: Наименование капитальных вложений | B6: 2018 год | D6: 2019 год | F6: 2020 год | H6: 2021 год | J6: 2022 год | L6: 2023 год | N6: 2024 год
B7: Утверждено | C7: Факт | D7: Утверждено | E7: Ожидаемые | F7: По данным организации | G7: По данным экспертов | H7: По данным организации | I7: По данным экспертов | J7: По данным организации | K7: По данным экспертов | L7: По данным организации | M7: По данным экспертов | N7: По данным организации | O7: По данным экспертов
A8: 1 | B8: 2 | C8: 3 | D8: 4 | E8: 5 | F8: 6 | G8: 7 | H8: 8 | I8: 9 | J8: 10 | K8: 11 | L8: 12 | M8: 13 | N8: 14 | O8: 15
A9: Строительство ВЛ 10 кВ от ТП 9 до ТП 62 Ф1001, Фидер 1001 | B9: 1554.512 | C9: 1554.51
A10: Строительство ВЛ 0,4 кВ от ТП 45, Технологическое присоединение абонентов в районе ул.Чистопольная, Луговая, Сосновая, Дружбы, Тихая, Фидер 1001 | B10: 4600.845 | C10: 4600.85
A11: Установка КРУН (10кВ)на выходе с ПС "Карабаново"фидера 1001 1 ячейка | B11: 1010.134 | C11: 1010.13
A12: Установка КРУН (10кВ)на выходе с ПС "Карабаново"фидера 1022 2 ячейки | B12: 2240.77 | C12: 2240.77
A13: Реконструкция ВЛ 10 кВ от ТП 10 до ТП 27 (фидер 1001) | D13: 2138.149 | E13: 2138.15
A14: Строительство ВЛ 10 кВ от ТП 12 до ТП 62 Ф1001, Фидер 1001 | D14: 1783.832 | E14: 1783.83
A15: Реконструкция ВЛ 10 кВ от ПС "Карабаново" до ТП 12 (фидер 1001) | D15: 3604.938 | E15: 3604.94
A16: Установка КРУН (10кВ)на выходе с ПС "Карабаново"фидера 1003 2 ячейки | D16: 2341.653 | E16: 2341.65
A17: Строительство ТП 72 | F17: 7524.7
A18: Строительство ВЛ 10 кВ (двухцепная) от ТП63 до ТП64 Ф1003, 1005 | F18: 2020.6
A19: Строительство ТП 64 | H19: 6633.7
A20: Строительство ВЛ 10 кВ от ТП76 до ТП19 Ф1005 | H20: 1279.5
A21: Строительство ВЛ 10 кВ (двухцепная) от ТП72 до ж/д перехода Ф1003, 1005 | H21: 408.3
A22: Строительство ТП 76 | J22: 7613.9
A23: Строительство ВЛ 0,4 кВ от ТП40 для подключения потребителей ул.1-я и 2-я Воронцова | J23: 2086.9
A24: Строительство многофункционального пункта энергосистемы г.Карабаново | L24: 6216
A25: Строительство ВЛ 10 кВ (двухцепная) от ТП19 до ТП64 Ф1003, 1005 | L25: 597.8
A26: Реконструкция здания производственной базы | F26: 1143.14868 | H26: 2367.04249 | J26: 985.06844 | L26: 3874.89972 | N26: 10688.55751
A27: Введите название
A28: Добавить
A29: ИТОГО капитальных вложений | B29: =SUM(B9:B27) -> 9406.261 | C29: =SUM(C9:C27) -> 9406.26 | D29: 9868.572 | E29: 9868.57 | F29: 10688.44868 | G29: 0 | H29: =SUM(H9:H27) -> 10688.54249 | I29: 0 | J29: 10685.86844 | K29: 0 | L29: 10688.69972 | M29: 0 | N29: 10688.55751 | O29: 0
A30: - амортизация | B30: 4681.263209 | C30: ='Свод по амортизации'!C13 -> 5538.48194 | D30: 4681.572 | E30: ='Свод по амортизации'!E13 -> 6271.55627 | F30: ='Свод по амортизации'!F13 -> 6538.220564 | G30: ='Свод по амортизации'!G13 -> 0 | H30: ='Свод по амортизации'!H13 -> 6538.220564 | I30: ='Свод по амортизации'!I13 -> 0 | J30: ='Свод по амортизации'!J13 -> 6538.220564 | K30: ='Свод по амортизации'!K13 -> 0 | L30: ='Свод по амортизации'!L13 -> 6538.220564 | M30: ='Свод по амортизации'!M13 -> 0 | N30: ='Свод по амортизации'!N13 -> 6538.220564 | O30: ='Свод по амортизации'!O13 -> 0
A31: - прочие средства
A32: - прибыль | B32: =IF((B29-B30-B31)<=0,0,(B29-B30-B31)) -> 4724.997791 | C32: 3867.77806 | D32: 5187 | E32: 3597.01373 | F32: =IF((F29-F30-F31)<=0,0,(F29-F30-F31)) -> 4150.228116 | G32: 0 | H32: =IF((H29-H30-H31)<=0,0,(H29-H30-H31)) -> 4150.321926 | I32: =IF((I29-I30-I31)<=0,0,(I29-I30-I31)) -> 0 | J32: =IF((J29-J30-J31)<=0,0,(J29-J30-J31)) -> 4147.647876 | K32: =IF((K29-K30-K31)<=0,0,(K29-K30-K31)) -> 0 | L32: =IF((L29-L30-L31)<=0,0,(L29-L30-L31)) -> 4150.479156 | M32: =IF((M29-M30-M31)<=0,0,(M29-M30-M31)) -> 0 | N32: =IF((N29-N30-N31)<=0,0,(N29-N30-N31)) -> 4150.336946 | O32: =IF((O29-O30-O31)<=0,0,(O29-O30-O31)) -> 0
A34: Руководитель организации | D34: ='Инф-я'!$C$21 -> Окунев Василий Михайлович

Sheet Выпадающий доход (hidden)
A2: Расходы, связанные с компенсацией выпадающих доходов по льготному технологическому присоединению
A4: ='Инф-я'!C13 -> ООО "Энергетик"
D5: тыс. руб.
A6: Наименование | B6: 2018 год | C6: 2019 год | D6: 2020 год
B7: Утверждено | C7: Утверждено | D7: По данным организации | E7: По данным экспертов
A8: 1 | B8: 2 | C8: 3 | D8: 4 | E8: 5
A9: выпадающие доходы сетевой организации от присоединения энергопринимающих устройств максимальной мощностью, не превышающей 15 кВт включительно, исходя из стоимости мероприятий по технологическому присоединению в размере не более 550 рублей; | B9: =SUM(B10:B14) -> 0 | C9: 0 | D9: 0 | E9: 0
A10: за 2016 год | B10: ='Расчет выпадающих до 15 кВт'!C50 -> 0 | C10: х | D10: х | E10: х
A11: за 2017 год | B11: х | D11: х | E11: х
A12: за 2018 год | B12: ='Расчет выпадающих до 15 кВт'!C51 -> 0 | C12: х | D12: ='Расчет выпадающих до 15 кВт'!C53 -> 0
A13: за 2019 год | B13: х | D13: х | E13: х
A14: за 2020 год | B14: х | C14: х | D14: ='Расчет выпадающих до 15 кВт'!C54 -> 0
A15: выпадающие доходы сетевой организации от присоединения энергопринимающих устройств максимальной мощностью не более, чем 150 кВт на покрытие расходов на строительство объектов электросетевого хозяйства | B15: =SUM(B16:B20) -> 0 | C15: =SUM(C16:C20) -> 0 | D15: 0 | E15: 0
A16: за 2016 год | B16: ='Расчет выпадающих до 150 кВт'!C57 -> 0 | C16: х | D16: х | E16: х
A17: за 2017 год | B17: х | D17: х | E17: х
A18: за 2018 год | B18: ='Расчет выпадающих до 150 кВт'!C58 -> 0 | C18: х | D18: ='Расчет выпадающих до 150 кВт'!C60 -> 0
A19: за 2019 год | B19: х | D19: х | E19: х
A20: за 2020 год | B20: х | C20: х | D20: ='Расчет выпадающих до 150 кВт'!C61 -> 0
A21: выпадающие доходы сетевой организации от выплаты процентов по кредитным договорам, связанным с рассрочкой по оплате субъектами малого и среднего предпринимательства технологического присоединения энергопринимающих устройств максимальной мощностью свыше 15 кВт и до 150 кВт включительно | D21: ='СВОД по % по рассрочке'!J18 -> 0
A22: Итого расходы, связанные с компенсацией выпадающих доходов по льготному технологическому присоединению | B22: =B9+B21+B15 -> 0 | C22: =C9+C21+C15 -> 0 | D22: 0 | E22: 0
A26: Руководитель организации | C26: ='Инф-я'!$C$21 -> Окунев Василий Михайлович

Sheet Расчет выпадающих до 15 кВт (hidden)
G1: Приложение 1
G2: к Методическим указаниям,
G3: утвержденным приказом ФСТ от 11.09.2014 г. №215-э/1
A5: Расчет размера расходов, связанных с осуществлением технологического присоединения энергопринимающих устройств максимальной мощностью, не превышающей 15 кВт включительно, не включаемых в состав платы за технологическое присоединение за 2018 год и плановый период 2020 года
A7: ='Инф-я'!$C$13 -> ООО "Энергетик"
A9: № п./п. | B9: Показатели | C9: Фактические данные за 2018 год | F9: Расчетные (фактические) данные за 2018 год | I9: Плановые показатели на 2020 год
C11: ставка платы (руб./кВт, руб./км, руб./шт.) | D11: мощность, длина линий, количество (кВт, км, шт.) | E11: Сумма (в соответствии с актами приемки выполненных работ) тыс. руб. | F11: стандартизированная ставка платы (руб./кВт, руб./км, руб./шт.) | G11: мощность, длина линий, количество (кВт, км, шт.) | H11: Сумма, тыс. руб. | I11: стандартизированная ставка платы (руб./кВт, руб./км, руб./шт.) | J11: мощность, длина линий, количество (кВт, км, шт.) | K11: Сумма, тыс. руб.
A12: 1 | B12: 2 | C12: 3 | D12: 4 | E12: 5 | F12: 6 | G12: 7 | H12: 8 | I12: 9 | J12: 10 | K12: 11
A13: 1. | B13: м | C13: =SUM(C14:C15) -> 0 | D13: =F44 -> 0 | E13: =SUM(E14:E15) -> 0 | F13: =SUM(F14:F15) -> 21128.05 | G13: =D13 -> 0 | H13: =SUM(H14:H15) -> 0 | I13: 21221 | J13: =F45 -> 0 | K13: =I13*J13/1000 -> 0
A14: 1.1. | B14: подготовка и выдача сетевой организацией технических условий (ТУ) Заявителю | C14: =IF(D14=0,0,E14/D14*1000) -> 0 | D14: =D13 -> 0 | F14: 4479.37 | G14: =G13 -> 0 | H14: =F14*G14/1000 -> 0 | I14: х | J14: х | K14: х
A15: 1.2. | B15: проверка сетевой организацией выполнения Заявителем ТУ | C15: =IF(D15=0,0,E15/D15*1000) -> 0 | D15: =D13 -> 0 | F15: 16648.68 | G15: =G13 -> 0 | H15: =F15*G15/1000 -> 0 | I15: х | J15: х | K15: х
A16: 2. | B16: Расходы по мероприятиям "последней мили", связанные с осуществлением технологического присоединения | C16: х | D16: х | E16: =SUM(E17:E32) -> 0 | F16: =C16 -> х | G16: х | H16: =SUM(H17:H32) -> 0 | I16: =F16 -> х | J16: х | K16: =SUM(K17:K32) -> 0
A17: 2.1. | B17: строительство воздушных линий, на уровне напряжения i и (или) диапазоне мощности j | C17: =IF(D17=0,0,E17/D17*1000) -> 0 | G17: =D17 -> 0 | H17: =F17*G17/1000 -> 0 | K17: =I17*J17/1000 -> 0
B18: строительство воздушных линий, на уровне напряжения i и (или) диапазоне мощности j | C18: 0 | G18: =D18 -> 0 | H18: 0 | K18: 0
B19: строительство воздушных линий, на уровне напряжения i и (или) диапазоне мощности j | C19: =IF(D19=0,0,E19/D19*1000) -> 0 | G19: =D19 -> 0 | H19: =F19*G19/1000 -> 0 | K19: =I19*J19/1000 -> 0
A20: Добавить
A21: 2.2. | B21: строительство кабельных линий, на уровне напряжения i и (или) диапазоне мощности j | C21: =IF(D21=0,0,E21/D21*1000) -> 0 | G21: =D21 -> 0 | H21: =F21*G21/1000 -> 0 | K21: =I21*J21/1000 -> 0
B22: строительство кабельных линий, на уровне напряжения i и (или) диапазоне мощности j | C22: =IF(D22=0,0,E22/D22*1000) -> 0 | G22: =D22 -> 0 | H22: =F22*G22/1000 -> 0 | K22: =I22*J22/1000 -> 0
A23: Добавить
A24: 2.3. | B24: строительством пунктов секционирования, на уровне напряжения i и (или) диапазоне мощности j | C24: =IF(D24=0,0,E24/D24*1000) -> 0 | G24: =D24 -> 0 | H24: =F24*G24/1000 -> 0 | K24: =I24*J24/1000 -> 0
A25: Добавить
A26: 2.4. | B26: строительство комплектных трансформаторных подстанций (КТП) с уровнем напряжения до 35 кВ, на уровне напряжения i и (или) диапазоне мощности j | C26: =IF(D26=0,0,E26/D26*1000) -> 0 | G26: =D26 -> 0 | H26: =F26*G26/1000 -> 0 | K26: =I26*J26/1000 -> 0
A27: Добавить
A28: 2.5. | B28: строительство распределительных трансформаторных подстанций (РТП) с уровнем напряжения до 35 кВ, на уровне напряжения i и (или) диапазоне мощности j | C28: =IF(D28=0,0,E28/D28*1000) -> 0 | G28: =D28 -> 0 | H28: =F28*G28/1000 -> 0 | K28: =I28*J28/1000 -> 0
A29: Добавить
A30: 2.6. | B30: строительство центров питания, подстанций уровнем напряжения 35 кВ и выше (ПС), на уровне напряжения i и (или) диапазоне мощности j | C30: =IF(D30=0,0,E30/D30*1000) -> 0 | G30: =D30 -> 0 | H30: =F30*G30/1000 -> 0 | K30: =I30*J30/1000 -> 0
A31: 2.6. | B31: строительство центров питания, подстанций уровнем напряжения 35 кВ и выше (ПС), на уровне напряжения i и (или) диапазоне мощности j | C31: =IF(D31=0,0,E31/D31*1000) -> 0 | G31: =D31 -> 0 | H31: =F31*G31/1000 -> 0 | K31: =I31*J31/1000 -> 0
A32: Добавить
A33: 3. | B33: Суммарный размер платы за технологическое присоединение [п. 3.1 * п. 3.2 / 1000]: | C33: х | D33: х | E33: =E34*E35/1000 -> 0 | F33: х | G33: х | H33: =H34*H35/1000 -> 0 | I33: х | J33: х | K33: =K34*K35/1000 -> 0
A34: 3.1. | B34: Размер платы за технологическое присоединение (руб. без НДС) | C34: х | D34: х | E34: 466.1 | F34: х | G34: х | H34: 466.1 | I34: х | J34: х | K34: 458.33
A35: 3.2. | B35: Плановое количество договоров на осуществление технологическое присоединение к электрическим сетям (плановое количество членов объединений (организаций), указанных в п. 16 Методических указаний по определению размера платы за технологическое присоединение к электрическим сетям, утвержденных приказом ФАС России от 29 августа 2017 года, N 1135/17) (шт.) | C35: х | D35: х | E35: =C44 -> 0 | F35: х | G35: х | H35: =C44 -> 0 | I35: х | J35: х | K35: =C45 -> 0
A36: 4. | B36: Размер расходов, связанных с осуществлением технологического присоединения к электрическим сетям, не включаемых в состав платы за технологическое присоединение (п. 1 + п. 2 - п. 3) | C36: х | D36: х | E36: =E13+E16-E33 -> 0 | F36: х | G36: х | H36: =H13+H16-H33 -> 0 | I36: х | J36: х | K36: =K13+K16-K33 -> 0
B39: Фактические средние данные по выполненым договорам технологического присоединения за 3 предыдущих года
B41: Год | C41: Количество заявителей технологического присоединения, ед. (для расчета Доходов) | F41: Количество технологических присоединений, ед. (для расчета Расходов)
B42: Факт 2016 г.
B43: Факт 2017 г.
B44: Факт 2018 г.
B45: План 2020 г. (расчет плановых значений исходя из данных за 3 предыдущих периода) | C45: =ROUND((C42+C43+C44)/3,0) -> 0 | F45: =ROUND((F42+F43+F44)/3,0) -> 0
B47: Сводный расчет выпадающих доходов от льготного ТП, подлежащих учету в 2020 году, тыс. руб.
B49: Выпадающие доходы, учтенные при тарифном регулировании на 2018 год всего в т.ч. | C49: =C50+C51 -> 0
B50: фактические по итогам 2016 года
B51: планового периода 2018 года
B52: Выпадающие доходы по итогам 2018 года за минусом плановых показателей 2018 года, подлежащие учету в 2020 году, тыс. руб. | C52: =E36-C51 -> 0 | G52: ИПЦ, %
B53: Выпадающие доходы по итогам 2018 года c учетом ИПЦ, подлежащие учету в 2020 году, тыс. руб. | C53: =C52*(1+H53)*(1+H54) -> 0 | G53: 2020 г. к 2019 г.
B54: Плановые выпадающие доходы на 2020 год | C54: =K36 -> 0 | G54: 2019 г. к 2018 г.
B55: Итого выпадающие доходы от льготного ТП подлежащие учету в 2020 году, тыс. руб. | C55: =C54+C53 -> 0
B57: Руководитель организации | D57: ='Инф-я'!$C$21 -> Окунев Василий Михайлович
A66: Виды строительства по МУ
A68: 3 | B68: Строительство воздушных линий
A69: 3. j | B69: Материал опоры (деревянные (j = 1), металлические (j = 2), железобетонные (j = 3)
A70: 3. j.k | B70: Тип провода (изолированный провод (k = 1), неизолированный провод (k = 2)
A71: 3. j.k.l | B71: Материал провода (медный (l=1), стальной (l = 2), сталеалюминиевый (l = 3), алюминиевый (l = 4)
A72: 3. j.k.l.m | B72: Сечение провода (диапазон до 50 квадратных мм включительно (m = 1), от 50 до 100 квадратных мм включительно (m = 2), от 100 до 200 квадратных мм включительно (m = 3), от 200 до 500 квадратных мм включительно (m = 4), от 500 до 800 квадратных мм включительно (m = 5), свыше 800 квадратных мм (m = 6)
A73: 4 | B73: Строительство кабельных линий
A74: 4. j | B74: Способ прокладки кабельных линий (в траншеях (j = 1), в блоках (j = 2), в каналах (j = 3), в туннелях и коллекторах (j = 4), в галереях и эстакадах (j = 5), горизонтальное наклонное бурение (j = 6)
A75: 4. j.k | B75: Одножильные (k = 1) и многожильные (k = 2)
A76: 4. j.k.l | B76: Кабели с резиновой и пластмассовой изоляцией (l=1), бумажной изоляцией (l = 2)
A77: 4. j.k.l.m | B77: Сечение провода (диапазон до 50 квадратных мм включительно (m = 1), от 50 до 100 квадратных мм включительно (m = 2), от 100 до 200 квадратных мм включительно (m = 3), от 200 до 500 квадратных мм включительно (m = 4), от 500 до 800 квадратных мм включительно (m = 5), свыше 800 квадратных мм (m = 6)
A78: 5 | B78: Строительство пунктов секционирования
A79: 5. j | B79: Реклоузеры (j = 1 распределительные пункты (РП) (j = 2), переключательные пункты (ПП) (j = 3)
A80: 5. j.k | B80: Номинальный ток до 100 А включительно (k = 1), от 100 до 250 А включительно (k = 2), от 250 до 500 А включительно (k = 3), от 500 А до 1 000 А включительно (k = 4), свыше 1 000 А (k = 5)
A81: 6 | B81: Строительство трансформаторных подстанций (ТП), за исключением распределительных трансформаторных подстанций (РТП), с уровнем напряжения до 35 кВ
A82: 6. j | B82: Трансформаторные подстанции (ТП), за исключением распределительных трансформаторных подстанций (РТП)
A83: 6. j.k | B83: Однотрансформаторные (k=1), двухтрансформаторные и более (k = 2)
A84: 6. j.k.l | B84: Трансформаторная мощность до 25 кВА включительно (l = 1), от 25 до 100 кВА включительно (l = 2), от 100 до 250 кВА включительно (l = 3), от 250 до 500 кВА (l = 4), от 500 до 900 кВА включительно (l = 5), свыше 1000 кВА (l = 6)
A85: 7 | B85: Строительство распределительных трансформаторных подстанций (РТП) с уровнем напряжения до 35 кВ
A86: 7. j | B86: Распределительные трансформаторные подстанции (РТП)
A87: 7. j.k | B87: Однотрансформаторные (k=1), двухтрансформаторные и более (k = 2)
A88: 7. j.k.l | B88: Трансформаторная мощность до 25 кВА включительно (l=1), от 25 до 100 кВ А включительно (l = 2), от 100 до 250 кВА включительно (l = 3), от 250 до 500 кВА (l = 4), от 500 до 900 кВА включительно (l = 5), свыше 1000 кВА (l = 6)
A89: 8 | B89: Строительство центров питания, подстанций уровнем напряжения 35 кВ и выше (ПС)
A90: 8. j | B90: ПС 35 кВ (j = 1), ПС 110 кВ и выше (j = 2)
A91: Стандартизированные ставки, применяемые для расчета платы за технологическое присоединение устройств к электрическим сетям (С2, СЗ, С4, С5), без НДС (в ценах 2018 г.)
A93: N | B93: Стандартизированные тарифные ставки | C93: Уровень напряжения в точке присоединения 0,4 кВ | D93: Уровень напряжения в точке присоединения 6-10 кВ | E93: Уровень напряжения в точке присоединения 35-110 кВ
A94: п/п
A95: 1 | B95: 2 | C95: 3 | D95: 4 | E95: 5
A96: 2 | B96: С2 - стандартизированная тарифная ставка на покрытие расходов сетевой организации на строительство воздушных линий электропередачи
A97: 2.1. | B97: Прокладка воздушных линий с установкой опор, руб./км
A98: 2001-01-02 | B98: сечение жилы до 16 мм2 | C98: 717297 | D98: - | E98: -
A99: 2002-01-02 | B99: сечение жилы до 25 мм2 | C99: 541675 | D99: - | E99: -
A100: 2003-01-02 | B100: сечение жилы до 35 мм2 | C100: 865225 | D100: 1364873 | E100: -
A101: 2004-01-02 | B101: сечение жилы до 50 мм2 | C101: 870017 | D101: 1475522 | E101: -
A102: 2005-01-02 | B102: сечение жилы до 70 мм2 | C102: 943132 | D102: 1405579 | E102: -
A103: 2006-01-02 | B103: сечение жилы до 95 мм2 | C103: 984942 | D103: 1498292 | E103: -
A104: 2007-01-02 | B104: сечение жилы до 120 мм2 | C104: 1158608 | D104: - | E104: -
A105: 2.2. | B105: Прокладка воздушных линий по существующим опорам, руб./км
A106: 2001-02-02 | B106: сечение жилы до 16 мм2 | C106: 322438 | D106: - | E106: -
A107: 2002-02-02 | B107: сечение жилы до 25 мм2 | C107: 397721 | D107: - | E107: -
A108: 2003-02-02 | B108: сечение жилы до 35 мм2 | C108: 545933 | D108: - | E108: -
A109: 2004-02-02 | B109: сечение жилы до 50 мм2 | C109: 525019 | D109: - | E109: -
A110: 3 | B110: С3 - стандартизированная тарифная ставка на покрытие расходов сетевой организации на строительство кабельных линий электропередачи
A111: 3.1. | B111: Прокладка одной КЛ в траншее (с благоустройством), руб./км
A112: 2001-01-03 | B112: сечение жилы до 35 мм2 | C112: 647881 | D112: - | E112: -
A113: 2002-01-03 | B113: сечение жилы до 50 мм2 | C113: 687655 | D113: 1317933 | E113: -
A114: 2003-01-03 | B114: сечение жилы до 70 мм2 | C114: 1111822 | D114: 1496543 | E114: -
A115: 2004-01-03 | B115: сечение жилы до 95 мм2 | C115: 931796 | D115: 1682039 | E115: -
A116: 2005-01-03 | B116: сечение жилы до 120 мм2 | C116: 2244755 | D116: 1775170 | E116: -
A117: 2006-01-03 | B117: сечение жилы до 150 мм2 | C117: 957616 | D117: 2014663 | E117: -
A118: 2007-01-03 | B118: сечение жилы до 185 мм2 | C118: 1232108 | D118: 2256703 | E118: -
A119: 2008-01-03 | B119: сечение жилы до 240 мм2 | C119: 1431202 | D119: 2562382 | E119: -
A120: 3.2. | B120: Прокладка двух КЛ в траншее (с благоустройством), руб./км
A121: 2001-02-03 | B121: сечение жилы до 16 мм2 | C121: 299583 | D121: - | E121: -
A122: 2002-02-03 | B122: сечение жилы до 35 мм2 | C122: 574329 | D122: - | E122: -
A123: 2003-02-03 | B123: сечение жилы до 120 мм2 | C123: - | D123: 2260898 | E123: -
A124: 2004-02-03 | B124: сечение жилы до 150 мм2 | C124: 679027 | D124: - | E124: -
A125: 2005-02-03 | B125: сечение жилы до 185 мм2 | C125: 2737754 | D125: - | E125: -
A126: 2006-02-03 | B126: сечение жилы до 240 мм2 | C126: 3866504 | D126: 3478293 | E126: -
A127: 3.3. | B127: Прокладка одной КЛ в полиэтиленовой трубе (с благоустройством), руб./км
A128: 2001-03-03 | B128: сечение жилы до 35 мм2 | C128: 779020 | D128: - | E128: -
A129: 2002-03-03 | B129: сечение жилы до 50 мм2 | C129: 738707 | D129: - | E129: -
A130: 2003-03-03 | B130: сечение жилы до 70 мм2 | C130: 1234707 | D130: 1609675 | E130: -
A131: 2004-03-03 | B131: сечение жилы до 95 мм2 | C131: 980094 | D131: 1796650 | E131: -
A132: 2005-03-03 | B132: сечение жилы до 120 мм2 | C132: 951115 | D132: 1813010 | E132: -
A133: 2006-03-03 | B133: сечение жилы до 150 мм2 | C133: 1255903 | D133: 2112225 | E133: -
A134: 2007-03-03 | B134: сечение жилы до 185 мм2 | C134: 1341496 | D134: 2365159 | E134: -
A135: 2008-03-03 | B135: сечение жилы до 240 мм2 | C135: 1519985 | D135: 2673372 | E135: -
A136: 3.4. | B136: Прокладка двух КЛ в полиэтиленовых трубах (с благоустройством), руб./км
A137: 3.4.1. | B137: сечение жилы до 120 мм2 | C137: - | D137: 4040285 | E137: -
A138: 3.5. | B138: Прокладка одной КЛ методом ГНБ, руб./км
A139: 2001-05-03 | B139: сечение жилы до 50 мм2 | C139: 5482415 | D139: 7092474 | E139: -
A140: 2002-05-03 | B140: сечение жилы до 70 мм2 | C140: 5548401 | D140: 6282313 | E140: -
A141: 2003-05-03 | B141: сечение жилы до 95 мм2 | C141: 5677167 | D141: 5733470 | E141: -
A142: 2004-05-03 | B142: сечение жилы до 120 мм2 | C142: 5314366 | D142: 6615307 | E142: -
A143: 2005-05-03 | B143: сечение жилы до 150 мм2 | C143: 5798713 | D143: 6656822 | E143: -
A144: 2006-05-03 | B144: сечение жилы до 185 мм2 | C144: 5943888 | D144: 7030091 | E144: -
A145: 2007-05-03 | B145: сечение жилы до 240 мм2 | C145: 6150642 | D145: 7335150 | E145: -
A146: 4 | B146: С4 - стандартизированная тарифная ставка на покрытие расходов сетевой организации на строительство
A147: 4.1. | B147: Реклоузеры, руб./шт.
A148: 2001-01-04 | B148: мощностью до 630 кВА | C148: 1507393 | E148: -
A149: 4.2. | B149: Переключательные пункты, руб./шт.
A150: 2001-02-04 | B150: мощностью до 250 кВА | C150: 1759310 | E150: -
A151: 2002-02-04 | B151: мощностью до 1000 кВА | C151: 1674164 | E151: -
A152: 2003-02-04 | B152: мощностью до 1250 кВА | C152: 2824472 | E152: -
A153: 2004-02-04 | B153: мощностью до 1600 кВА | C153: 1748482 | E153: -
A154: 2005-02-04 | B154: мощностью до 2500 кВА | C154: 1881231 | E154: -
A155: 2006-02-04 | B155: мощностью до 4000 кВА | C155: 3563450 | E155: -
A156: 4.3. | B156: Распределительные пункты, руб./шт.
A157: 2001-03-04 | B157: мощностью до 4000 кВА | C157: - | D157: - | E157: 50072988
A158: 5 | B158: С5 - стандартизированная тарифная ставка на покрытие расходов сетевой организации на строительство трансформаторных подстанций
A159: 5.1. | B159: Строительство блочных трансформаторных подстанций с двумя трансформаторами (все типы), руб./кВт
A160: 2001-01-05 | B160: мощностью до 2 x 160 кВА | C160: 19698 | E160: -
A161: 2002-01-05 | B161: мощностью до 2 x 400 кВА | C161: 12446 | E161: -
A162: 2003-01-05 | B162: мощностью до 2 x 630 кВА | C162: 8538 | E162: -
A163: 5.2. | B163: Строительство киосковых трансформаторных подстанций с одним трансформатором (все типы), руб./кВт
A164: 2001-02-05 | B164: мощностью до 1 x 16 кВА | C164: 63383 | E164: -
A165: 2002-02-05 | B165: мощностью до 1 x 25 кВА | C165: 28636 | E165: -
A166: 2003-02-05 | B166: мощностью до 1 x 40 кВА | C166: 13463 | E166: -
A167: 2004-02-05 | B167: мощностью до 1 x 63 кВА | C167: 9193 | E167: -
A168: 2005-02-05 | B168: мощностью до 1 x 100 кВА | C168: 5836 | E168: -
A169: 2006-02-05 | B169: мощностью до 1 x 160 кВА | C169: 7734 | E169: -
A170: 2007-02-05 | B170: мощностью до 1 x 250 кВА | C170: 5231 | E170: -
A171: 2008-02-05 | B171: мощностью до 1 x 400 кВА | C171: 2300 | E171: -
A172: 2009-02-05 | B172: мощностью до 1 x 630 кВА | C172: 3339 | E172: -
A173: 2010-02-05 | B173: мощностью до 1 x 1000 кВА | C173: 2406 | E173: -
A174: 5.3. | B174: Строительство киосковых трансформаторных подстанций с двумя трансформаторами (все типы), руб./кВт
A175: 2001-03-05 | B175: мощностью до 2 x 400 кВА | C175: 4068 | E175: -
A176: 5.4. | B176: Строительство столбовой трансформаторной подстанции с одним трансформатором, руб./кВт
A177: 2001-04-05 | B177: мощностью до 1 x 16 кВА | C177: 24891.79 | E177: -
A178: 5.5 | B178: Строительство комплектной трансформаторной подстанции с четырьмя трансформаторами, руб./кВт
A179: 2001-05-05 | B179: мощностью 4 х 1000 кВА | C179: 4867.73 | E179: -
A181: Стандартизированные ставки, применяемые для расчета платы за технологическое присоединение устройств к электрическим сетям (С2, СЗ, С4, С5), без НДС (в ценах 2019 г.)
A183: N | B183: Стандартизированные тарифные ставки | C183: Уровень напряжения 0,4 кВ | D183: Уровень напряжения 6 - 10 кВ | E183: Уровень напряжения 35 - 110 кВ
A184: п/п
A185: 1 | B185: 2 | C185: 3 | D185: 4 | E185: 5
A186: 2 | B186: С2 - стандартизированная тарифная ставка на покрытие расходов сетевой организации на строительство воздушных линий электропередачи
A187: 2.1. | B187: Прокладка воздушных линий с установкой опор, руб./км
A188: 2001-01-02 | B188: сечение жилы до 16 мм2 | C188: 561458 | D188: - | E188: -
A189: 2002-01-02 | B189: сечение жилы до 25 мм2 | C189: 680690 | D189: - | E189: -
A190: 2003-01-02 | B190: сечение жилы до 35 мм2 | C190: 930714 | D190: 1422158 | E190: -
A191: 2004-01-02 | B191: сечение жилы до 50 мм2 | C191: 1184804 | D191: 1583985 | E191: -
A192: 2005-01-02 | B192: сечение жилы до 70 мм2 | C192: 1025791 | D192: 1510508 | E192: 4983144
A193: 2006-01-02 | B193: сечение жилы до 95 мм2 | C193: 1230668 | D193: - | E193: -
A194: 2007-01-02 | B194: сечение жилы до 120 мм2 | C194: 1263691 | D194: - | E194: -
A195: 2.2. | B195: Прокладка воздушных линий по существующим опорам, руб./км
A196: 2001-02-02 | B196: сечение жилы до 16 мм2 | C196: 583509 | D196: - | E196: -
A197: 2002-02-02 | B197: сечение жилы до 25 мм2 | C197: 400278 | D197: - | E197: -
A198: 2003-02-02 | B198: сечение жилы до 35 мм2 | C198: 381701 | D198: - | E198: -
A199: 2004-02-02 | B199: сечение жилы до 50 мм2 | C199: 606480 | D199: - | E199: -
A200: 3 | B200: С3 - стандартизированная тарифная ставка на покрытие расходов сетевой организации на строительство кабельных линий электропередачи
A201: 3.1. | B201: Прокладка одной КЛ в траншее, руб./км
A202: 2001-01-03 | B202: Прокладка одной КЛ в траншее (с благоустройством), руб./км
A203: 3.1.1.1 | B203: сечение жилы до 16 мм2 | C203: 640869 | D203: - | E203: -
A204: 3.1.1.2 | B204: сечение жилы до 35 мм2 | C204: 639603 | D204: - | E204: -
A205: 3.1.1.3 | B205: сечение жилы до 50 мм2 | C205: 789642 | D205: - | E205: -
A206: 3.1.1.4 | B206: сечение жилы до 70 мм2 | C206: 945564 | D206: 1630485 | E206: -
A207: 3.1.1.5 | B207: сечение жилы до 95 мм2 | C207: 972676 | D207: 1748962 | E207: -
A208: 3.1.1.6 | B208: сечение жилы до 120 мм2 | C208: 1076218 | D208: 1939213 | E208: -
A209: 3.1.1.7 | B209: сечение жилы до 150 мм2 | C209: 1441925 | D209: 2133986 | E209: -
A210: 3.1.1.8 | B210: сечение жилы до 185 мм2 | C210: 1316334 | D210: 2355608 | E210: -
A211: 3.1.1.9 | B211: сечение жилы до 240 мм2 | C211: 1550787 | D211: 2918329 | E211: -
A212: 2002-01-03 | B212: Прокладка одной КЛ в траншее (без благоустройства), руб./км
A213: 3.1.2.1 | B213: сечение жилы до 35 мм2 | C213: 382355 | D213: - | E213: -
A214: 3.1.2.2 | B214: сечение жилы до 50 мм2 | C214: - | D214: 1585759 | E214: -
A215: 3.1.2.3 | B215: сечение жилы до 70 мм2 | C215: 735363 | D215: - | E215: -
A216: 3.1.2.4 | B216: сечение жилы до 95 мм2 | C216: 597701 | D216: - | E216: ,
A217: 3.1.2.5 | B217: сечение жилы до 120 мм2 | C217: 1237450 | D217: 1846495 | E217: -
A218: 3.1.2.6 | B218: сечение жилы до 150 мм2 | C218: 1527436 | D218: - | E218: -
A219: 3.1.2.7 | B219: сечение жилы до 185 мм2 | C219: 784944 | D219: - | E219: -
A220: 3.1.2.8 | B220: сечение жилы до 240 мм2 | C220: 2004705 | D220: - | E220: -
A221: 3.2. | B221: Прокладка двух КЛ в траншее (с благоустройством), руб./км
A222: 2001-02-03 | B222: сечение жилы до 120 мм2 | C222: 1967587 | D222: - | E222: -
... 67 more rows

Sheet Расчет выпадающих до 150 кВт (hidden)
G1: Приложение 1
G2: к Методическим указаниям,
G3: утвержденным приказом ФСТ от 11.09.2014 г. №215-э/1
A5: Расчет размера расходов, связанных с осуществлением технологического присоединения к электрическим сетям энергопринимающих устройств максимальной мощностью до 150 кВт включительно, не включаемых в состав платы за технологическое присоединение за 2018 год и плановый период 2020 года
A7: ='Инф-я'!$C$13 -> ООО "Энергетик"
A9: № п./п. | B9: Показатели | C9: Фактические данные за 2018 год | F9: Расчетные (фактические) данные за 2018 год | I9: Плановые показатели на 2020 год
C11: ставка платы (руб./кВт, руб./км, руб./шт.) | D11: мощность, длина линий, количество (кВт, км, шт.) | E11: Сумма (в соответствии с актами приемки выполненных работ) тыс. руб. | F11: стандартизированная ставка платы (руб./кВт, руб./км, руб./шт.) | G11: мощность, длина линий, количество (кВт, км, шт.) | H11: Сумма, тыс. руб. | I11: стандартизированная ставка платы (руб./кВт, руб./км, руб./шт.) | J11: мощность, длина линий, количество (кВт, км, шт.) | K11: Сумма, тыс. руб.
A12: 1 | B12: 2 | C12: 3 | D12: 4 | E12: 5 | F12: 6 | G12: 7 | H12: 8 | I12: 9 | J12: 10 | K12: 11
A13: 1. | B13: Расходы по мероприятиям "последней мили", связанные с осуществлением технологического присоединения к электрическим сетям [п.1.1 + п.1.2 + п.1.3 + п.1.4+ п.1.5+ п.1.6]: | C13: х | D13: х | E13: =SUM(E14:E27) -> 0 | F13: =C13 -> х | G13: х | H13: =SUM(H14:H27) -> 0 | I13: =F13 -> х | J13: х | K13: =SUM(K14:K27) -> 0
A14: 1.1. | B14: строительство воздушных линий, на уровне напряжения i и (или) диапазоне мощности j | C14: =IF(D14=0,0,E14/D14*1000) -> 0 | G14: =D14 -> 0 | H14: =F14*G14/1000 -> 0 | K14: =I14*J14/1000 -> 0
B15: строительство воздушных линий, на уровне напряжения i и (или) диапазоне мощности j | C15: 0 | G15: =D15 -> 0 | H15: 0 | K15: 0
B16: строительство воздушных линий, на уровне напряжения i и (или) диапазоне мощности j | C16: =IF(D16=0,0,E16/D16*1000) -> 0 | G16: =D16 -> 0 | H16: =F16*G16/1000 -> 0 | K16: 0
A17: Добавить
A18: 1.2. | B18: строительство кабельных линий, на уровне напряжения i и (или) диапазоне мощности j | C18: =IF(D18=0,0,E18/D18*1000) -> 0 | G18: =D18 -> 0 | H18: =F18*G18/1000 -> 0 | K18: =I18*J18/1000 -> 0
A19: Добавить
A20: 1.3. | B20: строительством пунктов секционирования, на уровне напряжения i и (или) диапазоне мощности j | C20: =IF(D20=0,0,E20/D20*1000) -> 0 | G20: =D20 -> 0 | H20: =F20*G20/1000 -> 0 | K20: =I20*J20/1000 -> 0
A21: Добавить
A22: 1.4. | B22: строительство комплектных трансформаторных подстанций (КТП) с уровнем напряжения до 35 кВ, на уровне напряжения i и (или) диапазоне мощности j | C22: =IF(D22=0,0,E22/D22*1000) -> 0 | G22: =D22 -> 0 | H22: =F22*G22/1000 -> 0 | K22: =I22*J22/1000 -> 0
A23: Добавить
A24: 1.5. | B24: строительство распределительных трансформаторных подстанций (РТП) с уровнем напряжения до 35 кВ, на уровне напряжения i и (или) диапазоне мощности j | C24: =IF(D24=0,0,E24/D24*1000) -> 0 | G24: =D24 -> 0 | H24: =F24*G24/1000 -> 0 | K24: =I24*J24/1000 -> 0
A25: Добавить
A26: 1.6. | B26: строительство центров питания, подстанций уровнем напряжения 35 кВ и выше (ПС), на уровне напряжения i и (или) диапазоне мощности j | C26: =IF(D26=0,0,E26/D26*1000) -> 0 | G26: =D26 -> 0 | H26: =F26*G26/1000 -> 0 | K26: =I26*J26/1000 -> 0
A27: Добавить
A28: 2. | B28: Суммарный размер платы за технологическое присоединение в части мероприятий "последней мили" [n.2.1 + п.2.2 + п.2.3 + п.2.4 + п.2.5+ п.2.6]: | C28: х | D28: х | E28: =SUM(E29:E42) -> 0 | F28: =C28 -> х | G28: =D28 -> х | H28: =SUM(H29:H42) -> 0 | I28: =F28 -> х | J28: =G28 -> х | K28: =SUM(K29:K42) -> 0
A29: 2.1. | B29: строительство воздушных линий, на уровне напряжения i и (или) диапазоне мощности j | C29: =IF(D29=0,0,E29/D29*1000) -> 0 | G29: =D29 -> 0 | H29: =F29*G29/1000 -> 0 | K29: =I29*J29/1000 -> 0
B30: строительство воздушных линий, на уровне напряжения i и (или) диапазоне мощности j | C30: 0 | G30: =D30 -> 0 | H30: 0 | K30: 0
B31: строительство воздушных линий, на уровне напряжения i и (или) диапазоне мощности j | C31: =IF(D31=0,0,E31/D31*1000) -> 0 | G31: =D31 -> 0 | H31: =F31*G31/1000 -> 0 | K31: =I31*J31/1000 -> 0
A32: Добавить
A33: 2.2. | B33: строительство кабельных линий, на уровне напряжения i и (или) диапазоне мощности j | C33: =IF(D33=0,0,E33/D33*1000) -> 0 | G33: =D33 -> 0 | H33: =F33*G33/1000 -> 0 | K33: =I33*J33/1000 -> 0
A34: Добавить
A35: 2.3. | B35: строительством пунктов секционирования, на уровне напряжения i и (или) диапазоне мощности j | C35: =IF(D35=0,0,E35/D35*1000) -> 0 | G35: =D35 -> 0 | H35: =F35*G35/1000 -> 0 | K35: =I35*J35/1000 -> 0
A36: Добавить
A37: 2.4. | B37: строительство комплектных трансформаторных подстанций (КТП) с уровнем напряжения до 35 кВ, на уровне напряжения i и (или) диапазоне мощности j | C37: =IF(D37=0,0,E37/D37*1000) -> 0 | G37: =D37 -> 0 | H37: =F37*G37/1000 -> 0 | K37: =I37*J37/1000 -> 0
A38: Добавить
A39: 2.5. | B39: строительство распределительных трансформаторных подстанций (РТП) с уровнем напряжения до 35 кВ, на уровне напряжения i и (или) диапазоне мощности j | C39: =IF(D39=0,0,E39/D39*1000) -> 0 | G39: =D39 -> 0 | H39: =F39*G39/1000 -> 0 | K39: =I39*J39/1000 -> 0
A40: Добавить
A41: 2.6. | B41: строительство центров питания, подстанций уровнем напряжения 35 кВ и выше (ПС), на уровне напряжения i и (или) диапазоне мощности j | C41: =IF(D41=0,0,E41/D41*1000) -> 0 | G41: =D41 -> 0 | H41: =F41*G41/1000 -> 0 | K41: =I41*J41/1000 -> 0
A42: Добавить
A43: 3. | B43: Размер расходов по мероприятиям "последней мили", связанных с осуществлением технологического присоединения к электрическим сетям, не включаемых в плату за технологическое присоединение [п.1 - п.2] | C43: х | D43: х | E43: =E13-E28 -> 0 | F43: х | G43: х | H43: =H13-H28 -> 0 | I43: х | J43: х | K43: =K13-K28 -> 0
B46: Фактические средние данные по выполненым договорам технологического присоединения за 3 предыдущих года
B48: Год | C48: строительство ВЛ, км | D48: строительство КЛ, км | E48: строительством пунктов секционирования, шт | F48: строительство КТП с уровнем напряжения до 35 кВ, кВт | G48: строительство РТП с уровнем напряжения до 35 кВ, кВт | H48: строительство ПС, кВт
B49: Факт 2016 г.
B50: Факт 2017 г.
B51: Факт 2018 г.
B52: План 2019 г. (расчет плановых значений исходя из данных за 3 предыдущих периода) | C52: =(C49+C50+C51)/3 -> 0 | D52: =(D49+D50+D51)/3 -> 0 | E52: 0 | F52: 0 | G52: 0 | H52: =(H49+H50+H51)/3 -> 0
B54: Сводный расчет выпадающих доходов от льготного ТП, подлежащих учету в 2020 году, тыс. руб.
B56: Выпадающие доходы, учтенные при тарифном регулировании на 2018 год всего в т.ч. | C56: =C57+C58 -> 0
B57: фактические по итогам 2016 года
B58: планового периода 2018 года
B59: Выпадающие доходы по итогам 2018 года за минусом плановых показателей 2018 года, подлежащие учету в 2020 году, тыс. руб. | C59: =E43-C58 -> 0 | G59: ИПЦ, %
B60: Выпадающие доходы по итогам 2018 года c учетом ИПЦ, подлежащие учету в 2020 году, тыс. руб. | C60: =C59*(1+H60)*(1+H61) -> 0 | G60: 2020 г. к 2019 г.
B61: Плановые выпадающие доходы на 2020 год | C61: =K43 -> 0 | G61: 2019 г. к 2018 г.
B62: Итого выпадающие доходы от льготного ТП подлежащие учету в 2020 году, тыс. руб. | C62: =C61+C60 -> 0
B64: Руководитель организации | D64: ='Инф-я'!$C$21 -> Окунев Василий Михайлович
A73: Виды строительства по МУ
A75: 3 | B75: Строительство воздушных линий
A76: 3. j | B76: Материал опоры (деревянные (j = 1), металлические (j = 2), железобетонные (j = 3)
A77: 3. j.k | B77: Тип провода (изолированный провод (k = 1), неизолированный провод (k = 2)
A78: 3. j.k.l | B78: Материал провода (медный (l=1), стальной (l = 2), сталеалюминиевый (l = 3), алюминиевый (l = 4)
A79: 3. j.k.l.m | B79: Сечение провода (диапазон до 50 квадратных мм включительно (m = 1), от 50 до 100 квадратных мм включительно (m = 2), от 100 до 200 квадратных мм включительно (m = 3), от 200 до 500 квадратных мм включительно (m = 4), от 500 до 800 квадратных мм включительно (m = 5), свыше 800 квадратных мм (m = 6)
A80: 4 | B80: Строительство кабельных линий
A81: 4. j | B81: Способ прокладки кабельных линий (в траншеях (j = 1), в блоках (j = 2), в каналах (j = 3), в туннелях и коллекторах (j = 4), в галереях и эстакадах (j = 5), горизонтальное наклонное бурение (j = 6)
A82: 4. j.k | B82: Одножильные (k = 1) и многожильные (k = 2)
A83: 4. j.k.l | B83: Кабели с резиновой и пластмассовой изоляцией (l=1), бумажной изоляцией (l = 2)
A84: 4. j.k.l.m | B84: Сечение провода (диапазон до 50 квадратных мм включительно (m = 1), от 50 до 100 квадратных мм включительно (m = 2), от 100 до 200 квадратных мм включительно (m = 3), от 200 до 500 квадратных мм включительно (m = 4), от 500 до 800 квадратных мм включительно (m = 5), свыше 800 квадратных мм (m = 6)
A85: 5 | B85: Строительство пунктов секционирования
A86: 5. j | B86: Реклоузеры (j = 1 распределительные пункты (РП) (j = 2), переключательные пункты (ПП) (j = 3)
A87: 5. j.k | B87: Номинальный ток до 100 А включительно (k = 1), от 100 до 250 А включительно (k = 2), от 250 до 500 А включительно (k = 3), от 500 А до 1 000 А включительно (k = 4), свыше 1 000 А (k = 5)
A88: 6 | B88: Строительство трансформаторных подстанций (ТП), за исключением распределительных трансформаторных подстанций (РТП), с уровнем напряжения до 35 кВ
A89: 6. j | B89: Трансформаторные подстанции (ТП), за исключением распределительных трансформаторных подстанций (РТП)
A90: 6. j.k | B90: Однотрансформаторные (k=1), двухтрансформаторные и более (k = 2)
A91: 6. j.k.l | B91: Трансформаторная мощность до 25 кВА включительно (l = 1), от 25 до 100 кВА включительно (l = 2), от 100 до 250 кВА включительно (l = 3), от 250 до 500 кВА (l = 4), от 500 до 900 кВА включительно (l = 5), свыше 1000 кВА (l = 6)
A92: 7 | B92: Строительство распределительных трансформаторных подстанций (РТП) с уровнем напряжения до 35 кВ
A93: 7. j | B93: Распределительные трансформаторные подстанции (РТП)
A94: 7. j.k | B94: Однотрансформаторные (k=1), двухтрансформаторные и более (k = 2)
A95: 7. j.k.l | B95: Трансформаторная мощность до 25 кВА включительно (l=1), от 25 до 100 кВ А включительно (l = 2), от 100 до 250 кВА включительно (l = 3), от 250 до 500 кВА (l = 4), от 500 до 900 кВА включительно (l = 5), свыше 1000 кВА (l = 6)
A96: 8 | B96: Строительство центров питания, подстанций уровнем напряжения 35 кВ и выше (ПС)
A97: 8. j | B97: ПС 35 кВ (j = 1), ПС 110 кВ и выше (j = 2)
A98: Стандартизированные ставки, применяемые для расчета платы за технологическое присоединение устройств к электрическим сетям (С2, СЗ, С4, С5), без НДС (в ценах 2018 г.)
A100: N | B100: Стандартизированные тарифные ставки | C100: Уровень напряжения в точке присоединения 0,4 кВ | D100: Уровень напряжения в точке присоединения 6-10 кВ | E100: Уровень напряжения в точке присоединения 35-110 кВ
A101: п/п
A102: 1 | B102: 2 | C102: 3 | D102: 4 | E102: 5
A103: 2 | B103: С2 - стандартизированная тарифная ставка на покрытие расходов сетевой организации на строительство воздушных линий электропередачи
A104: 2.1. | B104: Прокладка воздушных линий с установкой опор, руб./км
A105: 2001-01-02 | B105: сечение жилы до 16 мм2 | C105: 717297 | D105: - | E105: -
A106: 2002-01-02 | B106: сечение жилы до 25 мм2 | C106: 541675 | D106: - | E106: -
A107: 2003-01-02 | B107: сечение жилы до 35 мм2 | C107: 865225 | D107: 1364873 | E107: -
A108: 2004-01-02 | B108: сечение жилы до 50 мм2 | C108: 870017 | D108: 1475522 | E108: -
A109: 2005-01-02 | B109: сечение жилы до 70 мм2 | C109: 943132 | D109: 1405579 | E109: -
A110: 2006-01-02 | B110: сечение жилы до 95 мм2 | C110: 984942 | D110: 1498292 | E110: -
A111: 2007-01-02 | B111: сечение жилы до 120 мм2 | C111: 1158608 | D111: - | E111: -
A112: 2.2. | B112: Прокладка воздушных линий по существующим опорам, руб./км
A113: 2001-02-02 | B113: сечение жилы до 16 мм2 | C113: 322438 | D113: - | E113: -
A114: 2002-02-02 | B114: сечение жилы до 25 мм2 | C114: 397721 | D114: - | E114: -
A115: 2003-02-02 | B115: сечение жилы до 35 мм2 | C115: 545933 | D115: - | E115: -
A116: 2004-02-02 | B116: сечение жилы до 50 мм2 | C116: 525019 | D116: - | E116: -
A117: 3 | B117: С3 - стандартизированная тарифная ставка на покрытие расходов сетевой организации на строительство кабельных линий электропередачи
A118: 3.1. | B118: Прокладка одной КЛ в траншее (с благоустройством), руб./км
A119: 2001-01-03 | B119: сечение жилы до 35 мм2 | C119: 647881 | D119: - | E119: -
A120: 2002-01-03 | B120: сечение жилы до 50 мм2 | C120: 687655 | D120: 1317933 | E120: -
A121: 2003-01-03 | B121: сечение жилы до 70 мм2 | C121: 1111822 | D121: 1496543 | E121: -
A122: 2004-01-03 | B122: сечение жилы до 95 мм2 | C122: 931796 | D122: 1682039 | E122: -
A123: 2005-01-03 | B123: сечение жилы до 120 мм2 | C123: 2244755 | D123: 1775170 | E123: -
A124: 2006-01-03 | B124: сечение жилы до 150 мм2 | C124: 957616 | D124: 2014663 | E124: -
A125: 2007-01-03 | B125: сечение жилы до 185 мм2 | C125: 1232108 | D125: 2256703 | E125: -
A126: 2008-01-03 | B126: сечение жилы до 240 мм2 | C126: 1431202 | D126: 2562382 | E126: -
A127: 3.2. | B127: Прокладка двух КЛ в траншее (с благоустройством), руб./км
A128: 2001-02-03 | B128: сечение жилы до 16 мм2 | C128: 299583 | D128: - | E128: -
A129: 2002-02-03 | B129: сечение жилы до 35 мм2 | C129: 574329 | D129: - | E129: -
A130: 2003-02-03 | B130: сечение жилы до 120 мм2 | C130: - | D130: 2260898 | E130: -
A131: 2004-02-03 | B131: сечение жилы до 150 мм2 | C131: 679027 | D131: - | E131: -
A132: 2005-02-03 | B132: сечение жилы до 185 мм2 | C132: 2737754 | D132: - | E132: -
A133: 2006-02-03 | B133: сечение жилы до 240 мм2 | C133: 3866504 | D133: 3478293 | E133: -
A134: 3.3. | B134: Прокладка одной КЛ в полиэтиленовой трубе (с благоустройством), руб./км
A135: 2001-03-03 | B135: сечение жилы до 35 мм2 | C135: 779020 | D135: - | E135: -
A136: 2002-03-03 | B136: сечение жилы до 50 мм2 | C136: 738707 | D136: - | E136: -
A137: 2003-03-03 | B137: сечение жилы до 70 мм2 | C137: 1234707 | D137: 1609675 | E137: -
A138: 2004-03-03 | B138: сечение жилы до 95 мм2 | C138: 980094 | D138: 1796650 | E138: -
A139: 2005-03-03 | B139: сечение жилы до 120 мм2 | C139: 951115 | D139: 1813010 | E139: -
A140: 2006-03-03 | B140: сечение жилы до 150 мм2 | C140: 1255903 | D140: 2112225 | E140: -
A141: 2007-03-03 | B141: сечение жилы до 185 мм2 | C141: 1341496 | D141: 2365159 | E141: -
A142: 2008-03-03 | B142: сечение жилы до 240 мм2 | C142: 1519985 | D142: 2673372 | E142: -
A143: 3.4. | B143: Прокладка двух КЛ в полиэтиленовых трубах (с благоустройством), руб./км
A144: 3.4.1. | B144: сечение жилы до 120 мм2 | C144: - | D144: 4040285 | E144: -
A145: 3.5. | B145: Прокладка одной КЛ методом ГНБ, руб./км
A146: 2001-05-03 | B146: сечение жилы до 50 мм2 | C146: 5482415 | D146: 7092474 | E146: -
A147: 2002-05-03 | B147: сечение жилы до 70 мм2 | C147: 5548401 | D147: 6282313 | E147: -
A148: 2003-05-03 | B148: сечение жилы до 95 мм2 | C148: 5677167 | D148: 5733470 | E148: -
A149: 2004-05-03 | B149: сечение жилы до 120 мм2 | C149: 5314366 | D149: 6615307 | E149: -
A150: 2005-05-03 | B150: сечение жилы до 150 мм2 | C150: 5798713 | D150: 6656822 | E150: -
A151: 2006-05-03 | B151: сечение жилы до 185 мм2 | C151: 5943888 | D151: 7030091 | E151: -
A152: 2007-05-03 | B152: сечение жилы до 240 мм2 | C152: 6150642 | D152: 7335150 | E152: -
A153: 4 | B153: С4 - стандартизированная тарифная ставка на покрытие расходов сетевой организации на строительство
A154: 4.1. | B154: Реклоузеры, руб./шт.
A155: 2001-01-04 | B155: мощностью до 630 кВА | C155: 1507393 | E155: -
A156: 4.2. | B156: Переключательные пункты, руб./шт.
A157: 2001-02-04 | B157: мощностью до 250 кВА | C157: 1759310 | E157: -
A158: 2002-02-04 | B158: мощностью до 1000 кВА | C158: 1674164 | E158: -
A159: 2003-02-04 | B159: мощностью до 1250 кВА | C159: 2824472 | E159: -
A160: 2004-02-04 | B160: мощностью до 1600 кВА | C160: 1748482 | E160: -
A161: 2005-02-04 | B161: мощностью до 2500 кВА | C161: 1881231 | E161: -
A162: 2006-02-04 | B162: мощностью до 4000 кВА | C162: 3563450 | E162: -
A163: 4.3. | B163: Распределительные пункты, руб./шт.
A164: 2001-03-04 | B164: мощностью до 4000 кВА | C164: - | D164: - | E164: 50072988
A165: 5 | B165: С5 - стандартизированная тарифная ставка на покрытие расходов сетевой организации на строительство трансформаторных подстанций
A166: 5.1. | B166: Строительство блочных трансформаторных подстанций с двумя трансформаторами (все типы), руб./кВт
A167: 2001-01-05 | B167: мощностью до 2 x 160 кВА | C167: 19698 | E167: -
A168: 2002-01-05 | B168: мощностью до 2 x 400 кВА | C168: 12446 | E168: -
A169: 2003-01-05 | B169: мощностью до 2 x 630 кВА | C169: 8538 | E169: -
A170: 5.2. | B170: Строительство киосковых трансформаторных подстанций с одним трансформатором (все типы), руб./кВт
A171: 2001-02-05 | B171: мощностью до 1 x 16 кВА | C171: 63383 | E171: -
A172: 2002-02-05 | B172: мощностью до 1 x 25 кВА | C172: 28636 | E172: -
A173: 2003-02-05 | B173: мощностью до 1 x 40 кВА | C173: 13463 | E173: -
A174: 2004-02-05 | B174: мощностью до 1 x 63 кВА | C174: 9193 | E174: -
A175: 2005-02-05 | B175: мощностью до 1 x 100 кВА | C175: 5836 | E175: -
A176: 2006-02-05 | B176: мощностью до 1 x 160 кВА | C176: 7734 | E176: -
A177: 2007-02-05 | B177: мощностью до 1 x 250 кВА | C177: 5231 | E177: -
A178: 2008-02-05 | B178: мощностью до 1 x 400 кВА | C178: 2300 | E178: -
A179: 2009-02-05 | B179: мощностью до 1 x 630 кВА | C179: 3339 | E179: -
A180: 2010-02-05 | B180: мощностью до 1 x 1000 кВА | C180: 2406 | E180: -
A181: 5.3. | B181: Строительство киосковых трансформаторных подстанций с двумя трансформаторами (все типы), руб./кВт
A182: 2001-03-05 | B182: мощностью до 2 x 400 кВА | C182: 4068 | E182: -
A183: 5.4. | B183: Строительство столбовой трансформаторной подстанции с одним трансформатором, руб./кВт
A184: 2001-04-05 | B184: мощностью до 1 x 16 кВА | C184: 24891.79 | E184: -
A185: 5.5 | B185: Строительство комплектной трансформаторной подстанции с четырьмя трансформаторами, руб./кВт
A186: 2001-05-05 | B186: мощностью 4 х 1000 кВА | C186: 4867.73 | E186: -
A188: Стандартизированные ставки, применяемые для расчета платы за технологическое присоединение устройств к электрическим сетям (С2, СЗ, С4, С5), без НДС (в ценах 2019 г.)
A190: N | B190: Стандартизированные тарифные ставки | C190: Уровень напряжения 0,4 кВ | D190: Уровень напряжения 6 - 10 кВ | E190: Уровень напряжения 35 - 110 кВ
A191: п/п
A192: 1 | B192: 2 | C192: 3 | D192: 4 | E192: 5
A193: 2 | B193: С2 - стандартизированная тарифная ставка на покрытие расходов сетевой организации на строительство воздушных линий электропередачи
A194: 2.1. | B194: Прокладка воздушных линий с установкой опор, руб./км
A195: 2001-01-02 | B195: сечение жилы до 16 мм2 | C195: 561458 | D195: - | E195: -
A196: 2002-01-02 | B196: сечение жилы до 25 мм2 | C196: 680690 | D196: - | E196: -
A197: 2003-01-02 | B197: сечение жилы до 35 мм2 | C197: 930714 | D197: 1422158 | E197: -
A198: 2004-01-02 | B198: сечение жилы до 50 мм2 | C198: 1184804 | D198: 1583985 | E198: -
A199: 2005-01-02 | B199: сечение жилы до 70 мм2 | C199: 1025791 | D199: 1510508 | E199: 4983144
A200: 2006-01-02 | B200: сечение жилы до 95 мм2 | C200: 1230668 | D200: - | E200: -
A201: 2007-01-02 | B201: сечение жилы до 120 мм2 | C201: 1263691 | D201: - | E201: -
A202: 2.2. | B202: Прокладка воздушных линий по существующим опорам, руб./км
A203: 2001-02-02 | B203: сечение жилы до 16 мм2 | C203: 583509 | D203: - | E203: -
A204: 2002-02-02 | B204: сечение жилы до 25 мм2 | C204: 400278 | D204: - | E204: -
A205: 2003-02-02 | B205: сечение жилы до 35 мм2 | C205: 381701 | D205: - | E205: -
A206: 2004-02-02 | B206: сечение жилы до 50 мм2 | C206: 606480 | D206: - | E206: -
A207: 3 | B207: С3 - стандартизированная тарифная ставка на покрытие расходов сетевой организации на строительство кабельных линий электропередачи
A208: 3.1. | B208: Прокладка одной КЛ в траншее, руб./км
A209: 2001-01-03 | B209: Прокладка одной КЛ в траншее (с благоустройством), руб./км
A210: 3.1.1.1 | B210: сечение жилы до 16 мм2 | C210: 640869 | D210: - | E210: -
A211: 3.1.1.2 | B211: сечение жилы до 35 мм2 | C211: 639603 | D211: - | E211: -
A212: 3.1.1.3 | B212: сечение жилы до 50 мм2 | C212: 789642 | D212: - | E212: -
A213: 3.1.1.4 | B213: сечение жилы до 70 мм2 | C213: 945564 | D213: 1630485 | E213: -
A214: 3.1.1.5 | B214: сечение жилы до 95 мм2 | C214: 972676 | D214: 1748962 | E214: -
A215: 3.1.1.6 | B215: сечение жилы до 120 мм2 | C215: 1076218 | D215: 1939213 | E215: -
A216: 3.1.1.7 | B216: сечение жилы до 150 мм2 | C216: 1441925 | D216: 2133986 | E216: -
A217: 3.1.1.8 | B217: сечение жилы до 185 мм2 | C217: 1316334 | D217: 2355608 | E217: -
A218: 3.1.1.9 | B218: сечение жилы до 240 мм2 | C218: 1550787 | D218: 2918329 | E218: -
A219: 2002-01-03 | B219: Прокладка одной КЛ в траншее (без благоустройства), руб./км
A220: 3.1.2.1 | B220: сечение жилы до 35 мм2 | C220: 382355 | D220: - | E220: -
A221: 3.1.2.2 | B221: сечение жилы до 50 мм2 | C221: - | D221: 1585759 | E221: -
A222: 3.1.2.3 | B222: сечение жилы до 70 мм2 | C222: 735363 | D222: - | E222: -
... 74 more rows

Sheet СВОД по % по рассрочке (hidden)
B2: Выпадающие доходы сетевой организации от выплаты процентов по кредитным договорам, связанным с рассрочкой по оплате субъектами малого и среднего предпринимательства технологического присоединения энергопринимающих устройств максимальной мощностью свыше 15 кВт и до 150 кВт включительно в 2020 году
A4: ='Инф-я'!$C$13 -> ООО "Энергетик"
A6: N п/п | B6: Информация о договоре технологического присоединения (Контрагент (наименование), № договора ТП, Дата заключения договора) | F6: Ставка рефинансирования Центрального банка Российской Федерации | G6: Год закрытия | H6: Квартал закрытия | I6: Сумма договора,тыс. руб. с НДС | J6: Размера расходов, связанных с предоставлением беспроцентной рассрочки в 2020 году, тыс. руб.
A9: 1 | B9: 2 | F9: 3 | G9: 4 | H9: 5 | I9: 6 | J9: 7
A10: 1 | B10: =Заявитель1!A4 -> 0 | F10: =Заявитель1!B31 -> 0 | G10: =Заявитель1!B34 -> 0 | H10: =Заявитель1!B32 -> 0 | I10: =Заявитель1!B33 -> 0 | J10: =Заявитель1!G36 -> 0
A11: 2 | B11: =Заявитель2!A4 -> 0 | F11: =Заявитель2!B31 -> 0 | G11: =Заявитель2!B34 -> 0 | H11: =Заявитель2!B32 -> 0 | I11: =Заявитель2!B33 -> 0 | J11: =Заявитель2!G36 -> 0
A12: 3 | B12: =Заявитель3!A4 -> 0 | F12: =Заявитель3!B31 -> 0 | G12: =Заявитель3!B34 -> 0 | H12: =Заявитель3!B32 -> 0 | I12: =Заявитель3!B33 -> 0 | J12: =Заявитель3!G36 -> 0
A13: 4 | B13: =Заявитель4!A4 -> 0 | F13: =Заявитель4!B31 -> 0 | G13: =Заявитель4!B34 -> 0 | H13: =Заявитель4!B32 -> 0 | I13: =Заявитель4!B33 -> 0 | J13: =Заявитель4!G36 -> 0
A17: Добавить
A18: ИТОГО | I18: =SUM(I10:I17) -> 0 | J18: =SUM(J10:J17) -> 0
B20: Свод по кварталам | C20: Сумма по договорам
B21: 1 | C21: =SUMIF(H$6:H$22,B21,I$6:I$22) -> 0
B22: 2 | C22: =SUMIF(H$6:H$22,B22,I$6:I$22) -> 0
B23: 3 | C23: =SUMIF(H$6:H$22,B23,I$6:I$22) -> 0
B24: 4 | C24: =SUMIF(H$6:H$22,B24,I$6:I$22) -> 0
B25: ГОД | C25: =SUM(C21:C24) -> 0
C26: =C25-I18 -> 0
F28: Приложение 2 к Методическим указаниям, утвержденным приказом ФСТ от 11.09.2014 г. №215-э/1
A32: Таблица 1. Расчет суммарного размера платы за технологическое присоединение, подлежащего беспроцентной рассрочке
B34: ='Инф-я'!C13 -> ООО "Энергетик"
Q35: тыс. руб. с НДС
A36: N п/п | B36: Показатель | F36: Фактические данные за предыдущий период регулирования | K36: Ожидаемые данные за текущий период регулирования | P36: Плановые показатели на следующий период регулирования
F37: 1 кв. | G37: 2 кв. | H37: 3 кв. | I37: 4 кв. | J37: всего за год | K37: 1 кв. | L37: 2 кв. | M37: 3 кв. | N37: 4 кв. | O37: всего за год | P37: 1 кв. | Q37: 2 кв. | R37: 3 кв. | S37: 4 кв. | T37: всего за год
A38: 1 | B38: Суммарный размер платы за технологическое присоединение, тыс. руб., в т.ч.: | J38: =SUM(F38:I38) -> 0 | O38: =SUM(K38:N38) -> 0 | P38: =C21 -> 0 | Q38: =C22 -> 0 | R38: =C23 -> 0 | S38: =C24 -> 0 | T38: =SUM(P38:S38) -> 0
A39: 2 | B39: Суммарный размер платы за технологическое присоединение, подлежащий беспроцентной рассрочке | J39: =SUM(F39:I39) -> 0 | O39: =SUM(K39:N39) -> 0 | P39: =P38*0.95 -> 0 | Q39: =Q38*0.95 -> 0 | R39: 0 | S39: 0 | T39: 0
B41: Руководитель организации | D41: ='Инф-я'!C21 -> Окунев Василий Михайлович
A43: Примечание:
A44: 1) Суммарный размер платы за технологическое присоединение (п. 1) за каждый квартал следующего расчетного периода регулирования представляет собой прогнозную величину платы за технологическое присоединение для заявителей, обращающихся за беспроцентной рассрочкой, определенную на основе фактических данных о заявителях, обратившихся за рассрочкой за последний год, но не ниже документально подтвержденных данных о заявителях, обратившихся за рассрочкой на следующий период регулирования.
A45: 2) Суммарный размер платы за технологическое присоединение, подлежащий беспроцентной рассрочке (п. 2), за каждый квартал определяется как суммарный размер платы за технологическое присоединение (п. 1) за каждый квартал, умноженный на 0,95.

Sheet Заявитель1 (hidden)
C1: Приложение 2 к Методическим указаниям, утвержденным приказом ФСТ от 11.09.2014 г. №215-э/1
A3: Расчет размера расходов, связанных с предоставлением беспроцентной рассрочки (для конкретного заявителя)
B5: (Контрагент (наименование), № договора ТП, Дата заключения договора)
A7: N п/п | B7: Квартал, на который рассчитывается размер расходов, связанных с предоставлением беспроцентной рассрочки | C7: Расходы, связанные с предоставлением беспроцентной рассрочки, тыс. руб. (с учетом НДС) | H7: Номер квартала i
C8: в отношении суммарного размера платы за технологическое присоединение в 1 квартале | D8: в отношении суммарного размера платы за технологическое присоединение во 2 квартале | E8: в отношении суммарного размера платы за технологическое присоединение в 3 квартале | F8: в отношении суммарного размера платы за технологическое присоединение в 4 квартале | G8: всего в год
A9: 1 | B9: =CONCATENATE("1 год (",$B$34,"г.):") -> 1 год (г.): | C9: =SUM(C10:C13) -> 0 | D9: =SUM(D10:D13) -> 0 | E9: =SUM(E10:E13) -> 0 | F9: =SUM(F10:F13) -> 0 | G9: =SUM(C9:F9) -> 0
A10: 1.1. | B10: 1 квартал | C10: =IF($H10>=$B$32,Заявитель1!$B$33*0.95*((12+$B$32-$H10)/12)*($B$31/4),0) -> 0 | G10: 0 | H10: 1
A11: 1.2. | B11: 2 квартал | D11: =IF($H11>=$B$32,Заявитель1!$B$33*0.95*((12+$B$32-$H11)/12)*($B$31/4),0) -> 0 | G11: 0 | H11: 2
A12: 1.3. | B12: 3 квартал | E12: =IF($H12>=$B$32,Заявитель1!$B$33*0.95*((12+$B$32-$H12)/12)*($B$31/4),0) -> 0 | G12: 0 | H12: 3
A13: 1.4. | B13: 4 квартал | F13: =IF($H13>=$B$32,Заявитель1!$B$33*0.95*((12+$B$32-$H13)/12)*($B$31/4),0) -> 0 | G13: 0 | H13: 4
A14: 2 | B14: =CONCATENATE("1 год (",$B$34+1,"г.):") -> 1 год (1г.): | C14: =SUM(C15:C18) -> 0 | D14: =SUM(D15:D18) -> 0 | E14: =SUM(E15:E18) -> 0 | F14: =SUM(F15:F18) -> 0 | G14: 0
A15: 2.1. | B15: 5 квартал | C15: =Заявитель1!$B$33*0.95*((12+$B$32-$H15)/12)*($B$31/4) -> 0 | G15: 0 | H15: 5
A16: 2.2. | B16: 6 квартал | D16: =Заявитель1!$B$33*0.95*((12+$B$32-$H16)/12)*($B$31/4) -> 0 | G16: 0 | H16: 6
A17: 2.3. | B17: 7 квартал | E17: =Заявитель1!$B$33*0.95*((12+$B$32-$H17)/12)*($B$31/4) -> 0 | G17: 0 | H17: 7
A18: 2.4. | B18: 8 квартал | F18: =Заявитель1!$B$33*0.95*((12+$B$32-$H18)/12)*($B$31/4) -> 0 | G18: 0 | H18: 8
A19: 3 | B19: =CONCATENATE("1 год (",$B$34+2,"г.):") -> 1 год (2г.): | C19: =SUM(C20:C23) -> 0 | D19: =SUM(D20:D23) -> 0 | E19: =SUM(E20:E23) -> 0 | F19: =SUM(F20:F23) -> 0 | G19: 0
A20: 3.1. | B20: 9 квартал | C20: =Заявитель1!$B$33*0.95*((12+$B$32-$H20)/12)*($B$31/4) -> 0 | G20: 0 | H20: 9
A21: 3.2. | B21: 10 квартал | D21: =Заявитель1!$B$33*0.95*((12+$B$32-$H21)/12)*($B$31/4) -> 0 | G21: 0 | H21: 10
A22: 3.3. | B22: 11 квартал | E22: =Заявитель1!$B$33*0.95*((12+$B$32-$H22)/12)*($B$31/4) -> 0 | G22: 0 | H22: 11
A23: 3.4. | B23: 12 квартал | F23: =Заявитель1!$B$33*0.95*((12+$B$32-$H23)/12)*($B$31/4) -> 0 | G23: 0 | H23: 12
A24: 4 | B24: =CONCATENATE("1 год (",$B$34+3,"г.):") -> 1 год (3г.): | C24: =SUM(C25:C27) -> 0 | D24: =SUM(D25:D27) -> 0 | E24: =SUM(E25:E27) -> 0 | F24: =SUM(F25:F27) -> 0 | G24: 0
A25: 4.1. | B25: 13 квартал | C25: =Заявитель1!$B$33*0.95*((12+$B$32-$H25)/12)*($B$31/4) -> 0 | G25: 0 | H25: 13
A26: 4.2. | B26: 14 квартал | D26: =IF((Заявитель1!$B$33*0.95*((12+$B$32-$H26)/12)*($B$31/4))<0,0,Заявитель1!$B$33*0.95*((12+$B$32-$H26)/12)*($B$31/4)) -> 0 | G26: 0 | H26: 14
A27: 4.3. | B27: 15 квартал | E27: =IF((Заявитель1!$B$33*0.95*((12+$B$32-$H27)/12)*($B$31/4))<0,0,Заявитель1!$B$33*0.95*((12+$B$32-$H27)/12)*($B$31/4)) -> 0 | G27: 0 | H27: 15
A28: 5 | B28: Итого | C28: =C9+C14+C19+C24 -> 0 | D28: =D9+D14+D19+D24 -> 0 | E28: =E9+E14+E19+E24 -> 0 | F28: =F9+F14+F19+F24 -> 0 | G28: =G9+G14+G19+G24 -> 0
A32: k
A34: Год закрытия договора
A36: Размера расходов, связанных с предоставлением беспроцентной рассрочки в 2020 году | G36: =IF(B34<2017,0,IF(B34=2017,G24,IF(B34=2018,G19,IF(B34=2019,G14)))) -> 0 | H36: тыс. руб.
A38: Размер расходов, связанных с предоставлением беспроцентной рассрочки, в i-м квартале в течение трехлетнего периода предоставления беспроцентной рассрочки рассчитывается по формуле (1):
D40: , (1)
A42: где:
A43: - суммарный размер платы за технологическое присоединение, начисляемый заявителям, которым предоставляется рассрочка, в квартале k периода регулирования (тыс. руб.);
A44: k - номер квартала по порядку в периоде регулирования, в который начисляется размер платы за технологическое присоединение (равен от 1 до 4);
A45: i - номер квартала по порядку, начиная с момента начисления размера платы за технологическое присоединение с условием предоставления беспроцентной рассрочки в квартале k, с учетом квартала, в котором произведены начисления, в течение трехлетнего периода предоставления беспроцентной рассрочки (равен от k до 12 + k - 1);
A46: - ставка рефинансирования Центрального банка Российской Федерации на дату представления сетевой организацией заявки на установление размера платы за технологическое присоединение в регулирующий орган.
A47: В случае отклонения фактического значения процентной ставки по кредитам, связанным с рассрочкой по оплате технологического присоединения, от ставки рефинансирования Центрального банка Российской Федерации, при расчете фактического размера расходов, связанных с предоставлением беспроцентной рассрочки, применяется величина процентной ставки в соответствии с пунктом 87 Основ ценообразования.
A49: Примечание:
A50: 1) Периодом предоставления беспроцентной рассрочки считается 3 года.
A51: 2) Размер расходов, связанных с предоставлением беспроцентной рассрочки, в каждый квартал периода регулирования в течение трехлетнего периода предоставления беспроцентной рассрочки в отношении планируемого к получению (фактически полученного) от заявителей суммарного размера платы за технологическое присоединение, определяется в соответствии с формулой (1) Методических указаний по определению выпадающих доходов, связанных с осуществлением технологического присоединения к электрическим сетям.
A52: 3) При расчете планируемых значений показателей при заполнении таблиц 1 и 2 применяется планируемая к получению величина суммарного размера платы за технологическое присоединение, подлежащего беспроцентной рассрочке.
A53: 4) При расчете фактических значений показателей при заполнении таблиц 1 и 2 применяется суммарная плата за технологическое присоединение, начисленная с беспроцентной рассрочкой в соответствии с заключенными договорами об осуществлении технологического присоединения к электрическим сетям.

Sheet Заявитель2 (hidden)
C1: Приложение 2 к Методическим указаниям, утвержденным приказом ФСТ от 11.09.2014 г. №215-э/1
A3: Расчет размера расходов, связанных с предоставлением беспроцентной рассрочки (для конкретного заявителя)
B5: (Контрагент (наименование), № договора ТП, Дата заключения договора)
A7: N п/п | B7: Квартал, на который рассчитывается размер расходов, связанных с предоставлением беспроцентной рассрочки | C7: Расходы, связанные с предоставлением беспроцентной рассрочки, тыс. руб. (с учетом НДС) | H7: Номер квартала i
C8: в отношении суммарного размера платы за технологическое присоединение в 1 квартале | D8: в отношении суммарного размера платы за технологическое присоединение во 2 квартале | E8: в отношении суммарного размера платы за технологическое присоединение в 3 квартале | F8: в отношении суммарного размера платы за технологическое присоединение в 4 квартале | G8: всего в год
A9: 1 | B9: =CONCATENATE("1 год (",$B$34,"г.):") -> 1 год (г.): | C9: =SUM(C10:C13) -> 0 | D9: =SUM(D10:D13) -> 0 | E9: =SUM(E10:E13) -> 0 | F9: =SUM(F10:F13) -> 0 | G9: =SUM(C9:F9) -> 0
A10: 1.1. | B10: 1 квартал | C10: =IF($H10>=$B$32,Заявитель2!$B$33*0.95*((12+$B$32-$H10)/12)*($B$31/4),0) -> 0 | G10: 0 | H10: 1
A11: 1.2. | B11: 2 квартал | D11: =IF($H11>=$B$32,Заявитель2!$B$33*0.95*((12+$B$32-$H11)/12)*($B$31/4),0) -> 0 | G11: 0 | H11: 2
A12: 1.3. | B12: 3 квартал | E12: =IF($H12>=$B$32,Заявитель2!$B$33*0.95*((12+$B$32-$H12)/12)*($B$31/4),0) -> 0 | G12: 0 | H12: 3
A13: 1.4. | B13: 4 квартал | F13: =IF($H13>=$B$32,Заявитель2!$B$33*0.95*((12+$B$32-$H13)/12)*($B$31/4),0) -> 0 | G13: 0 | H13: 4
A14: 2 | B14: =CONCATENATE("1 год (",$B$34+1,"г.):") -> 1 год (1г.): | C14: =SUM(C15:C18) -> 0 | D14: =SUM(D15:D18) -> 0 | E14: =SUM(E15:E18) -> 0 | F14: =SUM(F15:F18) -> 0 | G14: 0
A15: 2.1. | B15: 5 квартал | C15: =Заявитель2!$B$33*0.95*((12+$B$32-$H15)/12)*($B$31/4) -> 0 | G15: 0 | H15: 5
A16: 2.2. | B16: 6 квартал | D16: =Заявитель2!$B$33*0.95*((12+$B$32-$H16)/12)*($B$31/4) -> 0 | G16: 0 | H16: 6
A17: 2.3. | B17: 7 квартал | E17: =Заявитель2!$B$33*0.95*((12+$B$32-$H17)/12)*($B$31/4) -> 0 | G17: 0 | H17: 7
A18: 2.4. | B18: 8 квартал | F18: =Заявитель2!$B$33*0.95*((12+$B$32-$H18)/12)*($B$31/4) -> 0 | G18: 0 | H18: 8
A19: 3 | B19: =CONCATENATE("1 год (",$B$34+2,"г.):") -> 1 год (2г.): | C19: =SUM(C20:C23) -> 0 | D19: =SUM(D20:D23) -> 0 | E19: =SUM(E20:E23) -> 0 | F19: =SUM(F20:F23) -> 0 | G19: 0
A20: 3.1. | B20: 9 квартал | C20: =Заявитель2!$B$33*0.95*((12+$B$32-$H20)/12)*($B$31/4) -> 0 | G20: 0 | H20: 9
A21: 3.2. | B21: 10 квартал | D21: =Заявитель2!$B$33*0.95*((12+$B$32-$H21)/12)*($B$31/4) -> 0 | G21: 0 | H21: 10
A22: 3.3. | B22: 11 квартал | E22: =Заявитель2!$B$33*0.95*((12+$B$32-$H22)/12)*($B$31/4) -> 0 | G22: 0 | H22: 11
A23: 3.4. | B23: 12 квартал | F23: =Заявитель2!$B$33*0.95*((12+$B$32-$H23)/12)*($B$31/4) -> 0 | G23: 0 | H23: 12
A24: 4 | B24: =CONCATENATE("1 год (",$B$34+3,"г.):") -> 1 год (3г.): | C24: =SUM(C25:C27) -> 0 | D24: =SUM(D25:D27) -> 0 | E24: =SUM(E25:E27) -> 0 | F24: =SUM(F25:F27) -> 0 | G24: 0
A25: 4.1. | B25: 13 квартал | C25: =Заявитель2!$B$33*0.95*((12+$B$32-$H25)/12)*($B$31/4) -> 0 | G25: 0 | H25: 13
A26: 4.2. | B26: 14 квартал | D26: =IF((Заявитель2!$B$33*0.95*((12+$B$32-$H26)/12)*($B$31/4))<0,0,Заявитель2!$B$33*0.95*((12+$B$32-$H26)/12)*($B$31/4)) -> 0 | G26: 0 | H26: 14
A27: 4.3. | B27: 15 квартал | E27: =IF((Заявитель2!$B$33*0.95*((12+$B$32-$H27)/12)*($B$31/4))<0,0,Заявитель2!$B$33*0.95*((12+$B$32-$H27)/12)*($B$31/4)) -> 0 | G27: 0 | H27: 15
A28: 5 | B28: Итого | C28: =C9+C14+C19+C24 -> 0 | D28: =D9+D14+D19+D24 -> 0 | E28: =E9+E14+E19+E24 -> 0 | F28: =F9+F14+F19+F24 -> 0 | G28: =G9+G14+G19+G24 -> 0
A32: k
A34: Год закрытия договора
A36: Размера расходов, связанных с предоставлением беспроцентной рассрочки в 2020 году | G36: =IF(B34<2017,0,IF(B34=2017,G24,IF(B34=2018,G19,IF(B34=2019,G14)))) -> 0 | H36: тыс. руб.
A38: Размер расходов, связанных с предоставлением беспроцентной рассрочки, в i-м квартале в течение трехлетнего периода предоставления беспроцентной рассрочки рассчитывается по формуле (1):
D40: , (1)
A42: где:
A43: - суммарный размер платы за технологическое присоединение, начисляемый заявителям, которым предоставляется рассрочка, в квартале k периода регулирования (тыс. руб.);
A44: k - номер квартала по порядку в периоде регулирования, в который начисляется размер платы за технологическое присоединение (равен от 1 до 4);
A45: i - номер квартала по порядку, начиная с момента начисления размера платы за технологическое присоединение с условием предоставления беспроцентной рассрочки в квартале k, с учетом квартала, в котором произведены начисления, в течение трехлетнего периода предоставления беспроцентной рассрочки (равен от k до 12 + k - 1);
A46: - ставка рефинансирования Центрального банка Российской Федерации на дату представления сетевой организацией заявки на установление размера платы за технологическое присоединение в регулирующий орган.
A47: В случае отклонения фактического значения процентной ставки по кредитам, связанным с рассрочкой по оплате технологического присоединения, от ставки рефинансирования Центрального банка Российской Федерации, при расчете фактического размера расходов, связанных с предоставлением беспроцентной рассрочки, применяется величина процентной ставки в соответствии с пунктом 87 Основ ценообразования.
A49: Примечание:
A50: 1) Периодом предоставления беспроцентной рассрочки считается 3 года.
A51: 2) Размер расходов, связанных с предоставлением беспроцентной рассрочки, в каждый квартал периода регулирования в течение трехлетнего периода предоставления беспроцентной рассрочки в отношении планируемого к получению (фактически полученного) от заявителей суммарного размера платы за технологическое присоединение, определяется в соответствии с формулой (1) Методических указаний по определению выпадающих доходов, связанных с осуществлением технологического присоединения к электрическим сетям.
A52: 3) При расчете планируемых значений показателей при заполнении таблиц 1 и 2 применяется планируемая к получению величина суммарного размера платы за технологическое присоединение, подлежащего беспроцентной рассрочке.
A53: 4) При расчете фактических значений показателей при заполнении таблиц 1 и 2 применяется суммарная плата за технологическое присоединение, начисленная с беспроцентной рассрочкой в соответствии с заключенными договорами об осуществлении технологического присоединения к электрическим сетям.

Sheet Заявитель3 (hidden)
C1: Приложение 2 к Методическим указаниям, утвержденным приказом ФСТ от 11.09.2014 г. №215-э/1
A3: Расчет размера расходов, связанных с предоставлением беспроцентной рассрочки (для конкретного заявителя)
B5: (Контрагент (наименование), № договора ТП, Дата заключения договора)
A7: N п/п | B7: Квартал, на который рассчитывается размер расходов, связанных с предоставлением беспроцентной рассрочки | C7: Расходы, связанные с предоставлением беспроцентной рассрочки, тыс. руб. (с учетом НДС) | H7: Номер квартала i
C8: в отношении суммарного размера платы за технологическое присоединение в 1 квартале | D8: в отношении суммарного размера платы за технологическое присоединение во 2 квартале | E8: в отношении суммарного размера платы за технологическое присоединение в 3 квартале | F8: в отношении суммарного размера платы за технологическое присоединение в 4 квартале | G8: всего в год
A9: 1 | B9: =CONCATENATE("1 год (",$B$34,"г.):") -> 1 год (г.): | C9: =SUM(C10:C13) -> 0 | D9: =SUM(D10:D13) -> 0 | E9: =SUM(E10:E13) -> 0 | F9: =SUM(F10:F13) -> 0 | G9: =SUM(C9:F9) -> 0
A10: 1.1. | B10: 1 квартал | C10: =IF($H10>=$B$32,Заявитель3!$B$33*0.95*((12+$B$32-$H10)/12)*($B$31/4),0) -> 0 | G10: 0 | H10: 1
A11: 1.2. | B11: 2 квартал | D11: =IF($H11>=$B$32,Заявитель3!$B$33*0.95*((12+$B$32-$H11)/12)*($B$31/4),0) -> 0 | G11: 0 | H11: 2
A12: 1.3. | B12: 3 квартал | E12: =IF($H12>=$B$32,Заявитель3!$B$33*0.95*((12+$B$32-$H12)/12)*($B$31/4),0) -> 0 | G12: 0 | H12: 3
A13: 1.4. | B13: 4 квартал | F13: =IF($H13>=$B$32,Заявитель3!$B$33*0.95*((12+$B$32-$H13)/12)*($B$31/4),0) -> 0 | G13: 0 | H13: 4
A14: 2 | B14: =CONCATENATE("1 год (",$B$34+1,"г.):") -> 1 год (1г.): | C14: =SUM(C15:C18) -> 0 | D14: =SUM(D15:D18) -> 0 | E14: =SUM(E15:E18) -> 0 | F14: =SUM(F15:F18) -> 0 | G14: 0
A15: 2.1. | B15: 5 квартал | C15: =Заявитель3!$B$33*0.95*((12+$B$32-$H15)/12)*($B$31/4) -> 0 | G15: 0 | H15: 5
A16: 2.2. | B16: 6 квартал | D16: =Заявитель3!$B$33*0.95*((12+$B$32-$H16)/12)*($B$31/4) -> 0 | G16: 0 | H16: 6
A17: 2.3. | B17: 7 квартал | E17: =Заявитель3!$B$33*0.95*((12+$B$32-$H17)/12)*($B$31/4) -> 0 | G17: 0 | H17: 7
A18: 2.4. | B18: 8 квартал | F18: =Заявитель3!$B$33*0.95*((12+$B$32-$H18)/12)*($B$31/4) -> 0 | G18: 0 | H18: 8
A19: 3 | B19: =CONCATENATE("1 год (",$B$34+2,"г.):") -> 1 год (2г.): | C19: =SUM(C20:C23) -> 0 | D19: =SUM(D20:D23) -> 0 | E19: =SUM(E20:E23) -> 0 | F19: =SUM(F20:F23) -> 0 | G19: 0
A20: 3.1. | B20: 9 квартал | C20: =Заявитель3!$B$33*0.95*((12+$B$32-$H20)/12)*($B$31/4) -> 0 | G20: 0 | H20: 9
A21: 3.2. | B21: 10 квартал | D21: =Заявитель3!$B$33*0.95*((12+$B$32-$H21)/12)*($B$31/4) -> 0 | G21: 0 | H21: 10
A22: 3.3. | B22: 11 квартал | E22: =Заявитель3!$B$33*0.95*((12+$B$32-$H22)/12)*($B$31/4) -> 0 | G22: 0 | H22: 11
A23: 3.4. | B23: 12 квартал | F23: =Заявитель3!$B$33*0.95*((12+$B$32-$H23)/12)*($B$31/4) -> 0 | G23: 0 | H23: 12
A24: 4 | B24: =CONCATENATE("1 год (",$B$34+3,"г.):") -> 1 год (3г.): | C24: =SUM(C25:C27) -> 0 | D24: =SUM(D25:D27) -> 0 | E24: =SUM(E25:E27) -> 0 | F24: =SUM(F25:F27) -> 0 | G24: 0
A25: 4.1. | B25: 13 квартал | C25: =Заявитель3!$B$33*0.95*((12+$B$32-$H25)/12)*($B$31/4) -> 0 | G25: 0 | H25: 13
A26: 4.2. | B26: 14 квартал | D26: =IF((Заявитель3!$B$33*0.95*((12+$B$32-$H26)/12)*($B$31/4))<0,0,Заявитель3!$B$33*0.95*((12+$B$32-$H26)/12)*($B$31/4)) -> 0 | G26: 0 | H26: 14
A27: 4.3. | B27: 15 квартал | E27: =IF((Заявитель3!$B$33*0.95*((12+$B$32-$H27)/12)*($B$31/4))<0,0,Заявитель3!$B$33*0.95*((12+$B$32-$H27)/12)*($B$31/4)) -> 0 | G27: 0 | H27: 15
A28: 5 | B28: Итого | C28: =C9+C14+C19+C24 -> 0 | D28: =D9+D14+D19+D24 -> 0 | E28: =E9+E14+E19+E24 -> 0 | F28: =F9+F14+F19+F24 -> 0 | G28: =G9+G14+G19+G24 -> 0
A32: k
A34: Год закрытия договора
A36: Размера расходов, связанных с предоставлением беспроцентной рассрочки в 2020 году | G36: =IF(B34<2017,0,IF(B34=2017,G24,IF(B34=2018,G19,IF(B34=2019,G14)))) -> 0 | H36: тыс. руб.
A38: Размер расходов, связанных с предоставлением беспроцентной рассрочки, в i-м квартале в течение трехлетнего периода предоставления беспроцентной рассрочки рассчитывается по формуле (1):
D40: , (1)
A42: где:
A43: - суммарный размер платы за технологическое присоединение, начисляемый заявителям, которым предоставляется рассрочка, в квартале k периода регулирования (тыс. руб.);
A44: k - номер квартала по порядку в периоде регулирования, в который начисляется размер платы за технологическое присоединение (равен от 1 до 4);
A45: i - номер квартала по порядку, начиная с момента начисления размера платы за технологическое присоединение с условием предоставления беспроцентной рассрочки в квартале k, с учетом квартала, в котором произведены начисления, в течение трехлетнего периода предоставления беспроцентной рассрочки (равен от k до 12 + k - 1);
A46: - ставка рефинансирования Центрального банка Российской Федерации на дату представления сетевой организацией заявки на установление размера платы за технологическое присоединение в регулирующий орган.
A47: В случае отклонения фактического значения процентной ставки по кредитам, связанным с рассрочкой по оплате технологического присоединения, от ставки рефинансирования Центрального банка Российской Федерации, при расчете фактического размера расходов, связанных с предоставлением беспроцентной рассрочки, применяется величина процентной ставки в соответствии с пунктом 87 Основ ценообразования.
A49: Примечание:
A50: 1) Периодом предоставления беспроцентной рассрочки считается 3 года.
A51: 2) Размер расходов, связанных с предоставлением беспроцентной рассрочки, в каждый квартал периода регулирования в течение трехлетнего периода предоставления беспроцентной рассрочки в отношении планируемого к получению (фактически полученного) от заявителей суммарного размера платы за технологическое присоединение, определяется в соответствии с формулой (1) Методических указаний по определению выпадающих доходов, связанных с осуществлением технологического присоединения к электрическим сетям.
A52: 3) При расчете планируемых значений показателей при заполнении таблиц 1 и 2 применяется планируемая к получению величина суммарного размера платы за технологическое присоединение, подлежащего беспроцентной рассрочке.
A53: 4) При расчете фактических значений показателей при заполнении таблиц 1 и 2 применяется суммарная плата за технологическое присоединение, начисленная с беспроцентной рассрочкой в соответствии с заключенными договорами об осуществлении технологического присоединения к электрическим сетям.

Sheet Заявитель4 (hidden)
C1: Приложение 2 к Методическим указаниям, утвержденным приказом ФСТ от 11.09.2014 г. №215-э/1
A3: Расчет размера расходов, связанных с предоставлением беспроцентной рассрочки (для конкретного заявителя)
B5: (Контрагент (наименование), № договора ТП, Дата заключения договора)
A7: N п/п | B7: Квартал, на который рассчитывается размер расходов, связанных с предоставлением беспроцентной рассрочки | C7: Расходы, связанные с предоставлением беспроцентной рассрочки, тыс. руб. (с учетом НДС) | H7: Номер квартала i
C8: в отношении суммарного размера платы за технологическое присоединение в 1 квартале | D8: в отношении суммарного размера платы за технологическое присоединение во 2 квартале | E8: в отношении суммарного размера платы за технологическое присоединение в 3 квартале | F8: в отношении суммарного размера платы за технологическое присоединение в 4 квартале | G8: всего в год
A9: 1 | B9: =CONCATENATE("1 год (",$B$34,"г.):") -> 1 год (г.): | C9: =SUM(C10:C13) -> 0 | D9: =SUM(D10:D13) -> 0 | E9: =SUM(E10:E13) -> 0 | F9: =SUM(F10:F13) -> 0 | G9: =SUM(C9:F9) -> 0
A10: 1.1. | B10: 1 квартал | C10: =IF($H10>=$B$32,Заявитель4!$B$33*0.95*((12+$B$32-$H10)/12)*($B$31/4),0) -> 0 | G10: 0 | H10: 1
A11: 1.2. | B11: 2 квартал | D11: =IF($H11>=$B$32,Заявитель4!$B$33*0.95*((12+$B$32-$H11)/12)*($B$31/4),0) -> 0 | G11: 0 | H11: 2
A12: 1.3. | B12: 3 квартал | E12: =IF($H12>=$B$32,Заявитель4!$B$33*0.95*((12+$B$32-$H12)/12)*($B$31/4),0) -> 0 | G12: 0 | H12: 3
A13: 1.4. | B13: 4 квартал | F13: =IF($H13>=$B$32,Заявитель4!$B$33*0.95*((12+$B$32-$H13)/12)*($B$31/4),0) -> 0 | G13: 0 | H13: 4
A14: 2 | B14: =CONCATENATE("1 год (",$B$34+1,"г.):") -> 1 год (1г.): | C14: =SUM(C15:C18) -> 0 | D14: =SUM(D15:D18) -> 0 | E14: =SUM(E15:E18) -> 0 | F14: =SUM(F15:F18) -> 0 | G14: 0
A15: 2.1. | B15: 5 квартал | C15: =Заявитель4!$B$33*0.95*((12+$B$32-$H15)/12)*($B$31/4) -> 0 | G15: 0 | H15: 5
A16: 2.2. | B16: 6 квартал | D16: =Заявитель4!$B$33*0.95*((12+$B$32-$H16)/12)*($B$31/4) -> 0 | G16: 0 | H16: 6
A17: 2.3. | B17: 7 квартал | E17: =Заявитель4!$B$33*0.95*((12+$B$32-$H17)/12)*($B$31/4) -> 0 | G17: 0 | H17: 7
A18: 2.4. | B18: 8 квартал | F18: =Заявитель4!$B$33*0.95*((12+$B$32-$H18)/12)*($B$31/4) -> 0 | G18: 0 | H18: 8
A19: 3 | B19: =CONCATENATE("1 год (",$B$34+2,"г.):") -> 1 год (2г.): | C19: =SUM(C20:C23) -> 0 | D19: =SUM(D20:D23) -> 0 | E19: =SUM(E20:E23) -> 0 | F19: =SUM(F20:F23) -> 0 | G19: 0
A20: 3.1. | B20: 9 квартал | C20: =Заявитель4!$B$33*0.95*((12+$B$32-$H20)/12)*($B$31/4) -> 0 | G20: 0 | H20: 9
A21: 3.2. | B21: 10 квартал | D21: =Заявитель4!$B$33*0.95*((12+$B$32-$H21)/12)*($B$31/4) -> 0 | G21: 0 | H21: 10
A22: 3.3. | B22: 11 квартал | E22: =Заявитель4!$B$33*0.95*((12+$B$32-$H22)/12)*($B$31/4) -> 0 | G22: 0 | H22: 11
A23: 3.4. | B23: 12 квартал | F23: =Заявитель4!$B$33*0.95*((12+$B$32-$H23)/12)*($B$31/4) -> 0 | G23: 0 | H23: 12
A24: 4 | B24: =CONCATENATE("1 год (",$B$34+3,"г.):") -> 1 год (3г.): | C24: =SUM(C25:C27) -> 0 | D24: =SUM(D25:D27) -> 0 | E24: =SUM(E25:E27) -> 0 | F24: =SUM(F25:F27) -> 0 | G24: 0
A25: 4.1. | B25: 13 квартал | C25: =Заявитель4!$B$33*0.95*((12+$B$32-$H25)/12)*($B$31/4) -> 0 | G25: 0 | H25: 13
A26: 4.2. | B26: 14 квартал | D26: =IF((Заявитель4!$B$33*0.95*((12+$B$32-$H26)/12)*($B$31/4))<0,0,Заявитель4!$B$33*0.95*((12+$B$32-$H26)/12)*($B$31/4)) -> 0 | G26: 0 | H26: 14
A27: 4.3. | B27: 15 квартал | E27: =IF((Заявитель4!$B$33*0.95*((12+$B$32-$H27)/12)*($B$31/4))<0,0,Заявитель4!$B$33*0.95*((12+$B$32-$H27)/12)*($B$31/4)) -> 0 | G27: 0 | H27: 15
A28: 5 | B28: Итого | C28: =C9+C14+C19+C24 -> 0 | D28: =D9+D14+D19+D24 -> 0 | E28: =E9+E14+E19+E24 -> 0 | F28: =F9+F14+F19+F24 -> 0 | G28: =G9+G14+G19+G24 -> 0
A32: k
A34: Год закрытия договора
A36: Размера расходов, связанных с предоставлением беспроцентной рассрочки в 2020 году | G36: =IF(B34<2017,0,IF(B34=2017,G24,IF(B34=2018,G19,IF(B34=2019,G14)))) -> 0 | H36: тыс. руб.
A38: Размер расходов, связанных с предоставлением беспроцентной рассрочки, в i-м квартале в течение трехлетнего периода предоставления беспроцентной рассрочки рассчитывается по формуле (1):
D40: , (1)
A42: где:
A43: - суммарный размер платы за технологическое присоединение, начисляемый заявителям, которым предоставляется рассрочка, в квартале k периода регулирования (тыс. руб.);
A44: k - номер квартала по порядку в периоде регулирования, в который начисляется размер платы за технологическое присоединение (равен от 1 до 4);
A45: i - номер квартала по порядку, начиная с момента начисления размера платы за технологическое присоединение с условием предоставления беспроцентной рассрочки в квартале k, с учетом квартала, в котором произведены начисления, в течение трехлетнего периода предоставления беспроцентной рассрочки (равен от k до 12 + k - 1);
A46: - ставка рефинансирования Центрального банка Российской Федерации на дату представления сетевой организацией заявки на установление размера платы за технологическое присоединение в регулирующий орган.
A47: В случае отклонения фактического значения процентной ставки по кредитам, связанным с рассрочкой по оплате технологического присоединения, от ставки рефинансирования Центрального банка Российской Федерации, при расчете фактического размера расходов, связанных с предоставлением беспроцентной рассрочки, применяется величина процентной ставки в соответствии с пунктом 87 Основ ценообразования.
A49: Примечание:
A50: 1) Периодом предоставления беспроцентной рассрочки считается 3 года.
A51: 2) Размер расходов, связанных с предоставлением беспроцентной рассрочки, в каждый квартал периода регулирования в течение трехлетнего периода предоставления беспроцентной рассрочки в отношении планируемого к получению (фактически полученного) от заявителей суммарного размера платы за технологическое присоединение, определяется в соответствии с формулой (1) Методических указаний по определению выпадающих доходов, связанных с осуществлением технологического присоединения к электрическим сетям.
A52: 3) При расчете планируемых значений показателей при заполнении таблиц 1 и 2 применяется планируемая к получению величина суммарного размера платы за технологическое присоединение, подлежащего беспроцентной рассрочке.
A53: 4) При расчете фактических значений показателей при заполнении таблиц 1 и 2 применяется суммарная плата за технологическое присоединение, начисленная с беспроцентной рассрочкой в соответствии с заключенными договорами об осуществлении технологического присоединения к электрическим сетям.

Sheet Возврат заемных средств
A2: Расходы на возврат и обслуживание долгосрочных заемных средств, направляемых на финансирование капитальных вложений
A4: ='Инф-я'!C13 -> ООО "Энергетик"
N5: тыс. руб.
A6: Показатели | B6: 2018 год | D6: 2019 год | F6: 2020 год | H6: 2021 год | J6: 2022 год | L6: 2023 год | N6: 2024 год
B7: Утверждено | C7: Факт | D7: Утверждено | E7: Ожидаемые | F7: По данным организации | G7: По данным экспертов | H7: По данным организации | I7: По данным экспертов | J7: По данным организации | K7: По данным экспертов | L7: По данным организации | M7: По данным экспертов | N7: По данным организации | O7: По данным экспертов
A8: 1 | B8: 2 | C8: 3 | D8: 4 | E8: 5 | F8: 6 | G8: 7 | H8: 8 | I8: 9 | J8: 10 | K8: 11 | L8: 12 | M8: 13 | N8: 14 | O8: 15
A9: Расходы по возврату заемных средств, направляемых на финансирование капитальных вложений | C9: 2402.137 | E9: 2413.818 | F9: 2561.731 | H9: 3017.762 | J9: 837.186
A10: Расходы на обслуживание долгосрочных заемных средств, направляемых на финансирование капитальных вложений | C10: 1239.118 | E10: 1018.242 | F10: 870.329 | H10: 414.298 | J10: 23.445
A11: Итого расходы на возврат и обслуживание долгосрочных заемных средств, направляемых на финансирование капитальных вложений | B11: =B10+B9 -> 0 | C11: =C10+C9 -> 3641.255 | D11: 0 | E11: 3432.06 | F11: 3432.06 | G11: 0 | H11: =H10+H9 -> 3432.06 | I11: 0 | J11: 860.631 | K11: 0 | L11: 0 | M11: 0 | N11: 0 | O11: 0
A12: в т.ч. по уровням напряжения: ВН | B12: х | C12: х | E12: х
A13: СН1 | B13: х | C13: х | E13: х
A14: СН11 | B14: х | C14: х | E14: х
A15: НН | B15: х | C15: х | E15: х
A17: Руководитель организации | D17: ='Инф-я'!$C$21 -> Окунев Василий Михайлович

Sheet Корр. ПР
A2: Корректировка подконтрольных расходов по результатам 2018 года
A4: ='Инф-я'!C13 -> ООО "Энергетик"
A6: № п.п. | B6: Наименование | C6: Ед.изм. | D6: 2018 год
D8: По расчету организации | E8: По расчету экспертов
A9: 1 | B9: 2 | C9: 3 | D9: 4 | E9: 5
A10: 1. | B10: Величина подконтрольных расходов, утвержденных на 2017 год | C10: тыс. руб. | D10: ='Подконтрольные расходы'!F32 -> 31416.51502 | E10: =D10 -> 31416.51502
A11: 2. | B11: Величина подконтрольных расходов, утвержденных на 2018 год | C11: тыс. руб. | D11: =' НВВ содержание'!C9 -> 33163.38025 | E11: =D11 -> 33163.38025
A12: 3. | B12: Фактический индекс потребительских цен 2018 года (ИПЦ) | C12: % | D12: ='Подконтрольные расходы'!I12 -> 0.04 | E12: =D12 -> 0.04
A13: 4. | B13: Индекс эффективности подконтрольных расходов (Хэф) | C13: % | D13: ='Подконтрольные расходы'!H10 -> 0.01 | E13: =D13 -> 0.01
A14: 5. | B14: Индекс изменения количества активов (ИКА ф) ((стр.5.1.- стр. 5.2.)/стр.5.2*100) | C14: % | D14: =IF(D16=0,0,(D15-D16)/D16) -> 0.01626110049 | E14: =IF(E16=0,0,(E15-E16)/E16) -> -1
A15: 5.1. | B15: фактический объем условных единиц 2018 года | C15: усл. ед. | D15: ='УЕ ТП 2017-2024'!L60 -> 938.203 | E15: ='УЕ ТП 2017-2024'!N60 -> 0
A16: 5.2. | B16: фактический объем условных единиц 2017 года | C16: усл. ед. | D16: ='УЕ ТП 2017-2024'!H60 -> 923.1909 | E16: =D16 -> 923.1909
A17: 6. | B17: Коэффициент эластичности подконтрольных расходов по количеству активов (К эл) | C17: знач. | D17: 0.75 | E17: 0.75
A18: Итого корректировка подконтрольных расходов | C18: тыс. руб. | D18: =D10*(1+D12)*(1+D17*D14)*(1-D13)-D11 -> -422.4448007 | E18: =E10*(1+E12)*(1+E17*E14)*(1-E13)-E11 -> -25076.76928
B20: Руководитель организации | D20: ='Инф-я'!$C$21 -> Окунев Василий Михайлович

Sheet Корр. ПО
A2: Корректировка НВВ с учетом изменения полезного отпуска и цен на электрическую энергию за 2018 год
A4: ='Инф-я'!C13 -> ООО "Энергетик"
A6: Месяц (Период) | B6: Вход электрической энергии в сеть организации | D6: Норматив потерь | E6: Объем потерь 2018 года | G6: Цена покупки потерь электрической энергии | I6: Величина корректировки
B7: План | C7: Факт | E7: Согласовано регулирующим органом | F7: Факт | G7: Учтенная при установлении тарифа | H7: Фактическая цена | I7: По данным организации | J7: По данным экспертов
A8: Ед.изм. | B8: тыс.кВт.ч. | C8: тыс.кВт.ч. | D8: % | E8: тыс.кВт.ч. | F8: тыс.кВт.ч. | G8: руб/тыс.кВт.ч | H8: руб/тыс.кВт.ч | I8: тыс. руб. | J8: тыс. руб.
A9: По данным организации
A10: Январь | B10: х | C10: 2459.398 | D10: х | E10: х | F10: 271.141 | G10: х | H10: 2634.42 | I10: х | J10: х
A11: Февраль | B11: х | C11: 2241.658 | D11: х | E11: х | F11: 290.796 | G11: х | H11: 2742.237 | I11: х | J11: х
A12: Март | B12: х | C12: 2384.182 | D12: х | E12: х | F12: 332.607 | G12: х | H12: 2586.288 | I12: х | J12: х
A13: Апрель | B13: х | C13: 2083.118 | D13: х | E13: х | F13: 268.485 | G13: х | H13: 2833.888 | I13: х | J13: х
A14: Май | B14: х | C14: 1785.486 | D14: х | E14: х | F14: 186.97 | G14: х | H14: 2677.49 | I14: х | J14: х
A15: Июнь | B15: х | C15: 1713.298 | D15: х | E15: х | F15: 167.548 | G15: х | H15: 2665.3958 | I15: х | J15: х
A16: 1 полугодие | B16: ='[16]тарифы 2018'!$H$13*1000+'[16]тарифы 2018'!$J$13*1000 -> 14261.15878 | C16: =C10+C11+C12+C13+C14+C15 -> 12667.14 | D16: х | E16: ='[16]тарифы 2018'!$J$13*1000 -> 2002 | F16: =F10+F11+F12+F13+F14+F15 -> 1517.547 | G16: 2952.08 | H16: х | I16: х
A17: Июль | B17: х | C17: 1735.604 | D17: х | E17: х | F17: 169.748 | G17: х | H17: 2813.1199 | I17: х | J17: х
A18: Август | B18: х | C18: 1760.412 | D18: х | E18: х | F18: 218.783 | G18: х | H18: 2864.22578 | I18: х | J18: х
A19: Сентябрь | B19: х | C19: 1792.078 | D19: х | E19: х | F19: 196.006 | G19: х | H19: 2994.6039 | I19: х | J19: х
A20: Октябрь | B20: х | C20: 2211.034 | D20: х | E20: х | F20: 232.672 | G20: х | H20: 2930.5064 | I20: х | J20: х
A21: Ноябрь | B21: х | C21: 2288.824 | D21: х | E21: х | F21: 239.002 | G21: х | H21: 2491.0399 | I21: х | J21: х
A22: Декабрь | B22: х | C22: 2477.22 | D22: х | E22: х | F22: 283.787 | G22: х | H22: 3261.70555 | I22: х | J22: х
A23: 2 полугодие | B23: ='[16]тарифы 2018'!$R$13*1000+'[16]тарифы 2018'!$T$13*1000 -> 11885.48622 | C23: =C17+C18+C19+C20+C21+C22 -> 12265.172 | D23: х | E23: ='[16]тарифы 2018'!$T$13*1000 -> 1668.5 | F23: =F17+F18+F19+F20+F21+F22 -> 1339.998 | G23: 2906.09 | H23: х | I23: х | J23: х
A24: ВСЕГО: | B24: =B16+B23 -> 26146.645 | C24: =C16+C23 -> 24932.312 | D24: =E24/B24 -> 0.1403812994 | E24: =E16+E23 -> 3670.5 | F24: =F16+F23 -> 2857.545 | G24: =IF(E24=0,0,(E16*G16+E23*G23)/E24) -> 2931.174315 | H24: =IF(F24=0,0,(F10*H10+F11*H11+F12*H12+F13*H13+F14*H14+F15*H15+F17*H17+F18*H18+F19*H19+F20*H20+F21*H21+F22*H22)/F24) -> 2790.494089 | I24: =IFERROR((C24-B24)*D24*H24+B24*(H24-G24)*D24,0)/1000 -> -992.0613072 | J24: х
A25: По данным экспертов
A26: Январь | B26: х | D26: х | E26: х | G26: х | I26: х | J26: х
A27: Февраль | B27: х | D27: х | E27: х | G27: х | I27: х | J27: х
A28: Март | B28: х | D28: х | E28: х | G28: х | I28: х | J28: х
A29: Апрель | B29: х | D29: х | E29: х | G29: х | I29: х | J29: х
A30: Май | B30: х | D30: х | E30: х | G30: х | I30: х | J30: х
A31: Июнь | B31: х | D31: х | E31: х | G31: х | I31: х | J31: х
A32: 1 полугодие | C32: =C26+C27+C28+C29+C30+C31 -> 0 | D32: х | F32: =F26+F27+F28+F29+F30+F31 -> 0 | H32: х | I32: х | J32: х
A33: Июль | B33: х | D33: х | E33: х | G33: х | I33: х | J33: х
A34: Август | B34: х | D34: х | E34: х | G34: х | I34: х | J34: х
A35: Сентябрь | B35: х | D35: х | E35: х | G35: х | I35: х | J35: х
A36: Октябрь | B36: х | D36: х | E36: х | G36: х | I36: х | J36: х
A37: Ноябрь | B37: х | D37: х | E37: х | G37: х | I37: х | J37: х
A38: Декабрь | B38: х | D38: х | E38: х | G38: х | I38: х | J38: х
A39: 2 полугодие | C39: =C33+C34+C35+C36+C37+C38 -> 0 | D39: х | F39: =F33+F34+F35+F36+F37+F38 -> 0 | H39: х | I39: х | J39: х
A40: ВСЕГО: | B40: =B32+B39 -> 0 | C40: =C32+C39 -> 0 | D40: =E40/B40 ->  | E40: =E32+E39 -> 0 | F40: =F32+F39 -> 0 | G40: =IF(E40=0,0,(E32*G32+E39*G39)/E40) -> 0 | H40: =IF(F40=0,0,(F26*H26+F27*H27+F28*H28+F29*H29+F30*H30+F31*H31+F33*H33+F34*H34+F35*H35+F36*H36+F37*H37+F38*H38)/F40) -> 0 | I40: х | J40: =IFERROR((C40-B40)*D40*H40+B40*(H40-G40)*D40,0)/1000 -> 0
A42: Руководитель организации | F42: ='Инф-я'!$C$21 -> Окунев Василий Михайлович

Sheet Корр.НВВ
A1: Корректировка необходимой валовой выручки по доходам от осуществления регулируемой деятельности за 2018 год
A2: ='Инф-я'!C13 -> ООО "Энергетик"
C4: тыс. руб.
B5: Наименование показателя | C5: Расчет Общества | D5: Расчет Экспертов | G5: 1 полугодие 2018 г. | J5: 2 полугодие 2018 г.
B6: НВВ сод 2018 | C6: =' НВВ содержание'!C49 -> 54503.97134 | D6: =C6 -> 54503.97134 | G6: Двухставочный тариф | I6: Одноставочный тариф | J6: Двухставочный тариф | L6: Одноставоч-ный тариф
B7: НВВ факт 2018 | C7: =E32+M32 -> 53949.72038 | D7: =E47+M47 -> 0 | G7: ставка за содержание электрических сетей | H7: ставка на оплату технологического расхода (потерь) | J7: ставка за содержание электрических сетей | K7: ставка на оплату технологического расхода (потерь)
B8: ∆ НВВ сод за 2018 год | C8: =C6-C7 -> 554.250962 | D8: =D6-D7 -> 54503.97134 | G8: руб./кВт мес. | H8: руб./ кВт ч | I8: руб./ кВт ч | J8: руб./кВт мес. | K8: руб./ кВт ч | L8: руб./ кВт ч
G9: 1010.25269 | H9: 0.48209 | I9: 2.69327 | J9: 1021.05223 | K9: 0.47458 | L9: 3.15609
B11: Руководитель организации | D11: ='Инф-я'!C21 -> Окунев Василий Михайлович
B14: Расчет доходов, полученных согласно актам оказания услуг Владимирэнерго
B15: 1. Доходы по двухставочному тарифу | I15: 1. Итого доходы по двухставочному тарифу, тыс. руб. | J15: 2. Доходы по одноставочному тарифу
C16: 1.1. Доходы на содержание сетей | E16: Доходы на содержание сетей, тыс. руб. | F16: 1.2. Доходы на компенсацию потерь | H16: Доходы на компенсацию нормативных потерь, тыс. руб. | J16: полезный отпуск, тыс кВт ч | K16: одноставочный инд тариф, руб./тыс. кВт ч | L16: Итого доходы по одноставочному тарифу, тыс. руб.
C17: договорная мощность, МВт | D17: ставка на содержание сетей, руб./МВт мес. | F17: полезный отпуск, тыс кВт ч | G17: инд тариф на потери, руб./ тыс.кВт ч | L17: Всего: | M17: в том числе, доходы на содержание сетей
B18: январь | D18: =$G$9*1000 -> 1010252.69 | E18: =C18*D18/1000 -> 0 | G18: =$H$9*1000 -> 482.09 | H18: =F18*$G$18/1000 -> 0 | I18: =E18+H18 -> 0 | J18: 2188.257 | K18: =$I$9*1000 -> 2693.27 | L18: =J18*K18/1000 -> 5893.56693 | M18: =J18*(K18-G18)/1000 -> 4838.630113
B19: февраль | D19: 1010252.69 | E19: =C19*D19/1000 -> 0 | G19: 482.09 | H19: =F19*$G$18/1000 -> 0 | I19: 0 | J19: 1950.862 | K19: 2693.27 | L19: =J19*K19/1000 -> 5254.198099 | M19: =J19*(K19-G19)/1000 -> 4313.707037
B20: март | D20: 1010252.69 | E20: 0 | G20: 482.09 | H20: 0 | I20: 0 | J20: 2051.575 | K20: 2693.27 | L20: 5525.4454 | M20: 4536.401608
B21: апрель | D21: 1010252.69 | E21: 0 | G21: 482.09 | H21: 0 | I21: 0 | J21: 1814.633 | K21: 2693.27 | L21: 4887.29662 | M21: 4012.480197
B22: май | D22: 1010252.69 | E22: 0 | G22: 482.09 | H22: 0 | I22: 0 | J22: 1598.516 | K22: 2693.27 | L22: 4305.235187 | M22: 3534.606609
B23: июнь | D23: 1010252.69 | E23: 0 | G23: 482.09 | H23: 0 | I23: 0 | J23: 1545.75 | K23: 2693.27 | L23: 4163.122103 | M23: 3417.931485
B24: Итого 1 пол. | C24: х | D24: х | E24: =SUM(E18:E23) -> 0 | F24: =SUM(F18:F23) -> 0 | G24: х | H24: =SUM(H18:H23) -> 0 | I24: 0 | J24: =SUM(J18:J23) -> 11149.593 | K24: х | L24: =SUM(L18:L23) -> 30028.86434 | M24: =SUM(M18:M23) -> 24653.75705
B25: июль | D25: =$J$9*1000 -> 1021052.23 | E25: =C25*D25/1000 -> 0 | G25: =$K$9*1000 -> 474.58 | H25: =F25*$G$25/1000 -> 0 | I25: 0 | J25: 1565.856 | K25: =$L$9*1000 -> 3156.09 | L25: =J25*K25/1000 -> 4941.982463 | M25: =J25*(K25-G25)/1000 -> 4198.858523
B26: август | D26: 1021052.23 | E26: 0 | G26: 474.58 | H26: 0 | I26: 0 | J26: 1541.629 | K26: 3156.09 | L26: 4865.519871 | M26: 4133.89358
B27: сентябрь | D27: 1021052.23 | E27: 0 | G27: 474.58 | H27: 0 | I27: 0 | J27: 1596.072 | K27: 3156.09 | L27: 5037.346878 | M27: 4279.883029
B28: октябрь | D28: 1021052.23 | E28: 0 | G28: 474.58 | H28: 0 | I28: 0 | J28: 1978.362 | K28: 3156.09 | L28: 6243.888525 | M28: 5304.997487
B29: ноябрь | D29: 1021052.23 | E29: 0 | G29: 474.58 | H29: 0 | I29: 0 | J29: 2049.822 | K29: 3156.09 | L29: 6469.422716 | M29: 5496.618191
B30: декабрь | D30: 1021052.23 | E30: 0 | G30: 474.58 | H30: 0 | I30: 0 | J30: 2193.433 | K30: 3156.09 | L30: 6922.671957 | M30: 5881.712524
B31: Итого 2 пол. | C31: х | D31: х | E31: =SUM(E25:E30) -> 0 | F31: =SUM(F25:F30) -> 0 | G31: х | H31: =SUM(H25:H30) -> 0 | I31: 0 | J31: =SUM(J25:J30) -> 10925.174 | K31: х | L31: =SUM(L25:L30) -> 34480.83241 | M31: =SUM(M25:M30) -> 29295.96333
B32: Всего за 2018 г. | C32: х | D32: х | E32: =E24+E31 -> 0 | F32: =F24+F31 -> 0 | G32: х | H32: =H24+H31 -> 0 | I32: =I24+I31 -> 0 | J32: =J24+J31 -> 22074.767 | K32: х | L32: х | M32: =M24+M31 -> 53949.72038
B33: январь | D33: =$G$9*1000 -> 1010252.69 | E33: =C33*D33/1000 -> 0 | G33: =$H$9*1000 -> 482.09 | H33: =F33*$G$33/1000 -> 0 | I33: =E33+H33 -> 0 | K33: =$I$9*1000 -> 2693.27 | L33: =J33*K33/1000 -> 0 | M33: =J33*(K33-G33)/1000 -> 0
B34: февраль | D34: 1010252.69 | E34: 0 | G34: 482.09 | H34: =F34*$G$33/1000 -> 0 | I34: 0 | K34: 2693.27 | L34: 0 | M34: 0
B35: март | D35: 1010252.69 | E35: 0 | G35: 482.09 | H35: 0 | I35: 0 | K35: 2693.27 | L35: 0 | M35: 0
B36: апрель | D36: 1010252.69 | E36: 0 | G36: 482.09 | H36: 0 | I36: 0 | K36: 2693.27 | L36: 0 | M36: 0
B37: май | D37: 1010252.69 | E37: 0 | G37: 482.09 | H37: 0 | I37: 0 | K37: 2693.27 | L37: 0 | M37: 0
B38: июнь | D38: 1010252.69 | E38: 0 | G38: 482.09 | H38: 0 | I38: 0 | K38: 2693.27 | L38: 0 | M38: 0
B39: Итого 1 пол. | C39: =SUM(C33:C38) -> 0 | D39: х | E39: =SUM(E33:E38) -> 0 | F39: =SUM(F33:F38) -> 0 | G39: х | H39: =SUM(H33:H38) -> 0 | I39: 0 | J39: =SUM(J33:J38) -> 0 | K39: х | L39: =SUM(L33:L38) -> 0 | M39: =SUM(M33:M38) -> 0
B40: июль | D40: =$J$9*1000 -> 1021052.23 | E40: =C40*D40/1000 -> 0 | G40: =$K$9*1000 -> 474.58 | H40: =F40*$G$40/1000 -> 0 | I40: 0 | K40: =$L$9*1000 -> 3156.09 | L40: =J40*K40/1000 -> 0 | M40: =J40*(K40-G40)/1000 -> 0
B41: август | D41: 1021052.23 | E41: 0 | G41: 474.58 | H41: =F41*$G$40/1000 -> 0 | I41: 0 | K41: 3156.09 | L41: 0 | M41: =J41*(K41-G41)/1000 -> 0
B42: сентябрь | D42: 1021052.23 | E42: 0 | G42: 474.58 | H42: 0 | I42: 0 | K42: 3156.09 | L42: 0 | M42: 0
B43: октябрь | D43: 1021052.23 | E43: 0 | G43: 474.58 | H43: 0 | I43: 0 | K43: 3156.09 | L43: 0 | M43: 0
B44: ноябрь | D44: 1021052.23 | E44: 0 | G44: 474.58 | H44: 0 | I44: 0 | K44: 3156.09 | L44: 0 | M44: 0
B45: декабрь | D45: 1021052.23 | E45: 0 | G45: 474.58 | H45: 0 | I45: 0 | K45: 3156.09 | L45: 0 | M45: 0
B46: Итого 2 пол. | C46: =SUM(C40:C45) -> 0 | D46: х | E46: =SUM(E40:E45) -> 0 | F46: =SUM(F40:F45) -> 0 | G46: х | H46: =SUM(H40:H45) -> 0 | I46: 0 | J46: =SUM(J40:J45) -> 0 | K46: х | L46: =SUM(L40:L45) -> 0 | M46: =SUM(M40:M45) -> 0
B47: Всего за 2018 г. | C47: х | D47: х | E47: =E39+E46 -> 0 | F47: =F39+F46 -> 0 | G47: х | H47: =H39+H46 -> 0 | I47: х | J47: =J39+J46 -> 0 | K47: х | L47: х | M47: =M39+M46 -> 0

Sheet Корр. НР
A2: Корректировка неподконтрольных расходов по результатам 2018 года
A4: ='Инф-я'!C13 -> ООО "Энергетик"
A6: № п/п | B6: Наименование показателей | C6: 2018 год утверждено | D6: По данным организации | F6: По данным экспертов
D7: Факт 2018 год | E7: Величина корректировки НР | F7: Факт 2018 год | G7: Величина корректировки НР
A8: 1 | B8: 2 | C8: 3 | D8: 4 | E8: 5 | F8: 6 | G8: 7
A9: 1. | B9: Страховые взносы во внебюджетные фонды | C9: ='Страховые взносы'!D18 -> 3706.168939 | D9: ='Страховые взносы'!E18 -> 4238.7 | E9: =D9-C9 -> 532.5310612 | F9: ='Страховые взносы'!R18 -> 0 | G9: =F9-C9 -> -3706.168939
A10: 2. | B10: Расходы на оплату услуг организаций, осуществляющих регулируемые виды деятельности | C10: ='Расходы рег. орг-ий'!B23 -> 249.946368 | D10: ='Расходы рег. орг-ий'!C23 -> 247.018 | E10: -2.928367994 | F10: ='Расходы рег. орг-ий'!P23 -> 0 | G10: -249.946368
A11: 3. | B11: Плата за землю | C11: ='Плата за землю'!B17 -> 369.5941697 | D11: ='Плата за землю'!C17 -> 109.97977 | E11: -259.6143997 | F11: ='Плата за землю'!P17 -> 0 | G11: -369.5941697
A12: 4. | B12: Транспортный налог | C12: ='Транспортный налог'!D17 -> 0 | D12: ='Транспортный налог'!E17 -> 0 | E12: 0 | F12: ='Транспортный налог'!T17 -> 0 | G12: 0
A13: 5. | B13: Налог на имущество | C13: ='Налог на имущество'!B15 -> 0 | D13: ='Налог на имущество'!C15 -> 0 | E13: 0 | F13: ='Налог на имущество'!P15 -> 0 | G13: 0
A14: 6. | B14: Плата за негативное воздействие на окружающую среду | C14: ='Негативное возд. на окр. среду '!C29 -> 0 | D14: ='Негативное возд. на окр. среду '!D29 -> 0 | E14: 0 | F14: ='Негативное возд. на окр. среду '!Q29 -> 0 | G14: 0
A15: 7. | B15: Налог на прибыль | C15: ='Налог прим при УСНО'!C10 -> 991.895 | D15: ='Налог прим при УСНО'!D10 -> 791.176 | E15: -200.719 | F15: ='Налог прим при УСНО'!P10 -> 0 | G15: -991.895
A16: 8. | B16: Плата за аренду имущества | C16: ='Аренда имущества'!B44 -> 4844.28 | D16: ='Аренда имущества'!C44 -> 4797.69936 | E16: -46.58064 | F16: ='Аренда имущества'!AD44 -> 0 | G16: -4844.28
A17: 9. | B17: Оплата услуг ПАО "ФСК ЕЭС" | C17: ='Услуги ФСК'!B17 -> 0 | D17: ='Услуги ФСК'!E17 -> 0 | E17: 0 | F17: ='Услуги ФСК'!X17 -> 0 | G17: 0
A18: 10. | B18: Прочие обоснованные неподконтрольные расходы | C18: ='Прочие НР'!B14 -> 198.026 | D18: ='Прочие НР'!C14 -> 198.03 | E18: 0.004 | F18: ='Прочие НР'!P14 -> 0 | G18: -198.026
A19: Итого корректировка неподконтрольных расходов по результатам 2018 года | C19: =SUM(C9:C18) -> 10359.91048 | D19: =SUM(D9:D18) -> 10382.60313 | E19: =SUM(E9:E18) -> 22.69265354 | F19: =SUM(F9:F18) -> 0 | G19: =SUM(G9:G18) -> -10359.91048
A21: Руководитель организации | C21: ='Инф-я'!$C$21 -> Окунев Василий Михайлович

Sheet Корр. ИП
A2: Корректировка НВВ в связи с изменением (неисполнением) инвестиционной программы по результатам 2018 года
A4: ='Инф-я'!C13 -> ООО "Энергетик"
A6: № п/п | B6: Наименование показателей | C6: Обозначение в методических указаниях | D6: По данным организации | E6: По данным экспертов
A7: 1 | B7: 2 | C7: 3 | D7: 4 | E7: 5
A8: 1. | B8: Расчетная величина собственных средств регулируемой организации для финансирования инвестиционной программы, учтенная при установлении тарифов в 2018 году, которая не может принимать отрицательные значения, всего, в том числе: | D8: =IF((D9+D10)>=D11,D11,(D9+D10)) -> 9406.261 | E8: =IF((E9+E10)>=E11,E11,(E9+E10)) -> 0
B9: -амортизация | D9: =' КВЛ'!B30 -> 4681.263209
B10: - капитальные вложения из прибыли | D10: =' КВЛ'!B32 -> 4724.997791
A11: 2. | B11: Плановый размер финансирования инвестиционной программы, представляющей собой совокупность инвестиционных проектов, утвержденной (скорректированной) в установленном порядке на 2018 год до его начала, за счет собственных средств (выручки от реализации товаров (услуг) по регулируемым ценам (тарифам)) без НДС | D11: =' КВЛ'!B29-' КВЛ'!B31 -> 9406.261
A12: 3. | B12: Объем фактического финансирования инвестиционной программы, представляющей собой совокупность инвестиционных проектов, утвержденной (скорректированной) в установленном порядке на 2018 год до его начала, за счет собственных средств (выручки от реализации товаров (услуг) по регулируемым ценам (тарифам)) без НДС в 2018 году | D12: =' КВЛ'!C29-' КВЛ'!C31 -> 9406.26
A13: 4. | B13: Учтенная при расчете тарифов на 2018 год корректировка необходимой валовой выручки на 2018-ой год долгосрочного периода регулирования, осуществленная в связи с изменением (неисполнением) инвестиционной программы за истекший период 2018-го года по результатам 9 месяцев | D13: 0
B14: Итого корректировка НВВ в связи с изменением (неисполнением) инвестиционной программы по результатам 2018 года | D14: =IF(D11=0,0,D8*(D12/D11-1)-D13) -> -0.001 | E14: =IF(E11=0,0,E8*(E12/E11-1)) -> 0
A17: Руководитель организации | C17: ='Инф-я'!$C$21 -> Окунев Василий Михайлович

Sheet Корр. КНК
A2: Корректировка НВВ с учетом надежности и качества оказываемых услуг по результатам 2018 года
A4: ='Инф-я'!C13 -> ООО "Энергетик"
A6: № п/п | B6: Наименование показателей | C6: Обзнач. в МУ | D6: По данным организации | E6: По данным экспертов
A7: 1 | B7: 2 | C7: 3 | D7: 4 | E7: 5
A8: 1. | B8: Оценка достижения показателя уровня надежности оказываемых услуг | D8: =(IF(AND(D22=0,E22=0),0,IF(AND(D22=0,E22>0),-1,IF(AND(69<F22,F22<=131),0,IF(F22>131,-1,IF(F22<=69,1)))))) -> 1 | E8: =(IF(AND(G22=0,D22=0),0,IF(AND(D22=0,G22>0),-1,IF(AND(69<H22,H22<=131),0,IF(H22>131,-1,IF(H22<=69,1)))))) -> 1
A9: 2. | B9: Оценка достижения показателя уровня качества осуществляемого технологического присоединения к сети | D9: =(IF(D23=0,0,IF(AND(69<F23,F23<=131),0,IF(F23>131,-1,IF(F23<=69,1))))) -> 0 | E9: =(IF(D23=0,0,IF(AND(69<H23,H23<=131),0,IF(H23>131,-1,IF(H23<=69,1))))) -> 1
A10: 3. | B10: Оценка достижения показателя уровня качества обслуживания потребителей услуг | D10: =(IF(D24=0,0,(IF(AND(67<F24,F24<=131),0,IF(F24>131,-1,IF(F24<=69,1)))))) -> 0 | E10: =IF(D24=0,0,(IF(AND(68<H24,H24<=131),0,IF(H24>131,-1,IF(H24<=69,1))))) -> 1
A11: 4. | B11: Обобщенный показатель уровня надежности и качества оказываемых услуг | D11: =D8*0.65+D9*0.25+D10*0.1 -> 0.65 | E11: =E8*0.65+E9*0.25+E10*0.1 -> 1
A12: 5. | B12: Максимальный процент корректировки, % | D12: 0.02 | E12: 0.02
A13: 6. | B13: Коэффициент, корректирующий НВВ с учетом надежности и качества оказываемых услуг | D13: =D11*D12 -> 0.013 | E13: =E11*E12 -> 0.02
A14: 7. | B14: Утвержденная НВВ на содержание электрических сетей (тыс. руб.) | D14: =' НВВ содержание'!C49 -> 54503.97134 | E14: =' НВВ содержание'!C49 -> 54503.97134
A15: 8. | B15: Величина корректировки НВВ с учетом надежности и качества оказываемых услуг | D15: =D13*D14 -> 708.5516275 | E15: =E13*E14 -> 1090.079427
A17: Показатели уровня надежности и уровня качества оказываемых услуг
A19: № п/п | B19: Наименование показателей | C19: Обозначение в Методических указаниях | D19: Утверждено на 2018 год | E19: По данным организации | G19: По данным экспертов
E20: Факт | F20: % отклонения | G20: Факт | H20: % отклонения
A21: 1 | B21: 2 | C21: 3 | D21: 4 | E21: 5 | F21: 6 | G21: 7 | H21: 8
A22: 1. | B22: Показатель средней продолжительности прекращений передачи электрической энергии | D22: 0.9679 | E22: ='Форма 1.2'!E8 -> 0.01826407437 | F22: =IF(D22=0,0,E22/D22*100) -> 1.886979478 | H22: =IF(D22=0,0,G22/D22*100) -> 0
A23: 2. | B23: Показатель уровня качества осуществляемого технологического присоединения к сети | D23: 0.9796 | E23: ='форма 3 '!D37 -> 1 | F23: =IF(D23=0,0,E23/D23*100) -> 102.0824826 | H23: =IF(D23=0,0,G23/D23*100) -> 0
A24: 3. | B24: Показатель уровня качества обслуживания потребителей услуг | D24: 0.8975 | E24: ='форма 2.4'!C14 -> 0.8975 | F24: =IF(D24=0,0,E24/D24*100) -> 100 | H24: =IF(D24=0,0,G24/D24*100) -> 0
